{"text_format":"1","workbook":"xlsx","n_sheets":19,"sheets":["Start","Betriebsübersicht","Energieeinsatz","Abgrenzung BZ","MV","RM","FE","FA","MS","MS A","LH","GM","G-A","PV","CO2","Effizienzförderung","Quellen+Literatur","Fragebogen","Druck"],"not_rendered":{"charts":81,"images":48,"macros":1,"external_links":0,"defined_names":18,"comments":0,"pivot_tables":0},"unopened":[],"bounds":{"document_bytes":16777216,"sheet_cells":100000,"rows_first":2000,"rows_last":500,"rows_between":2000,"halvings":0,"cell_chars":16384,"cell_head_chars":4096},"cells_cut":0,"cells_raw":0,"read":"whole","date_system":"1900"}

{"sheet":"Start","index":0,"n_rows":49,"n_cols":52,"rows_kept":49,"cut":false,"hidden":false,"merged":[[5,27,5,32],[6,27,6,32],[0,50,0,51],[0,5,0,6],[0,24,0,25],[0,31,0,32],[4,27,4,32],[0,9,0,15],[0,35,0,41]]}
["Energie-Check",null,null,null,null,{"$f":"Betriebsübersicht!F1","v":"V 1.0"},null,null,null,"Startseite - Übersicht",null,null,null,null,null,null,null,null,null,null,null,null,null,null,null,null,"Energie-Check",null,null,null,null,{"$f":"Betriebsübersicht!F1","v":"V 1.0"},null,null,null,"Startseite - Infos"]
[]
["Erfassung und Beurteilung des einzelbetrieblichen Energieverbrauchs",null,null,null,null,null,null,null,null,null,null,null,null,null,null,null,null,null,null,null,null,null,null,null,null,null,"Infos und Bearbeitungshinweise"]
[]
["Mit Energie-Check für landwirtschaftliche Betriebe in Bayern kann der Landwirt oder Berater",null,null,null,null,null,null,null,null,null,null,null,null,null,null,null,null,null,null,null,null,null,null,null,null,null,null,"Eingabefelder",null,null,null,null,null,null,"Felder für die Eingabe betrieblicher Daten"]
["durch die Eingabe betriebsspezifischer Daten zum Energieverbrauch und zum Betrieb selbst,",null,null,null,null,null,null,null,null,null,null,null,null,null,null,null,null,null,null,null,null,null,null,null,null,null,null,"berechnete Felder",null,null,null,null,null,null,"Felder die vom Programm berechnet werden"]
["eine Einordnung der individuellen betrieblichen Situation erarbeiten und diese anhand",null,null,null,null,null,null,null,null,null,null,null,null,null,null,null,null,null,null,null,null,null,null,null,null,null,null,"Werte",null,null,null,null,null,null,"Werte die aus Eingebefeldern übernommen wurden bzw. "]
["hinterlegter Vergleichswerte einordnen.",null,null,null,null,null,null,null,null,null,null,null,null,null,null,null,null,null,null,null,null,null,null,null,null,null,null,null,null,null,null,null,null,null,null,"-","Felder mit hinterlegten Werten"]
["Neben dem effizienten Energieeinsatz werden der Klimaschutz, die Erzeugung und Eigen-",null,null,null,null,null,null,null,null,null,null,null,null,null,null,null,null,null,null,null,null,null,null,null,null,null,null,null,null,null,null,null,null,null,null,"-","Felder mit hinterlegten Faktoren"]
["nutzung regenerativer Energie betrachtet."]
[null,null,null,null,null,null,null,null,null,null,null,null,null,null,null,null,null,null,null,null,null,null,null,null,null,null,"Im Registerblatt Betriebsübersicht können die Betriebs-, Flächen- und Tierdaten eingegeben"]
["Der Energie-Check beinhaltet Vergleichskennzahlen, Einsparpotenziale und -möglichkeiten für",null,null,null,null,null,null,null,null,null,null,null,null,null,null,null,null,null,null,null,null,null,null,null,null,null,null,null,"werden."]
["die Produktionsverfahren: "]
["  Rinder-, Schweine-, und Geflügelhaltung sowie des Kraftstoffeinsatz für die Außenwirtschaft",null,null,null,null,null,null,null,null,null,null,null,null,null,null,null,null,null,null,null,null,null,null,null,null,null,"Im Registerblatt Energieeinsatz wird der betriebliche Energieverbrauch und die "]
[null,null,null,null,null,null,null,null,null,null,null,null,null,null,null,null,null,null,null,null,null,null,null,null,null,null,null,null,"Energiekosten der letzten drei Jahre abgefragt."]
[null,"Über die Buttons oder Register gelangen Sie auf die einzelnen Tabellenblätter"]
[null,null,null,null,null,null,null,null,null,null,null,null,null,null,null,null,null,null,null,null,null,null,null,null,null,null,"Im Registerblatt Abgrenzung BZ (Betriebszweige) kann der betriebliche Energieverbrauch "]
[null,"Dateneingabe",null,null,null,null,null,null,null,null,null,null,null,null,null,null,null,null,null,null,null,null,null,null,null,null,null,null,"der Sektoren Strom, Wärme und Kraftstoff (lt. Zählerständen, Energiekosten- "]
[null,null,null,null,null,null,null,null,null,null,null,null,null,null,null,null,null,null,null,null,null,null,null,null,null,null,null,null,"abrechnungen, …) auf die einzelnen Betriebszweige aufgeteilt werden."]
[]
[null,null,null,null,null,null,null,null,null,null,null,null,null,null,null,null,null,null,null,null,null,null,null,null,null,null,"In den Ergebnisblättern der verschiedenen Betriebszweige (Rinder-, Schweine-, Geflügelhltung,"]
[null,"Ergebnisseiten",null,null,null,null,null,null,null,null,null,null,null,null,null,null,null,null,null,null,null,null,null,null,null,null,null,null,"Futter- und Marktfruchtbau, ...) werden die betrieblichen Energieverbrauchsdaten"]
[null,null,"Rinderhaltung",null,null,null,null,null,null,null,null,null,null,null,null,null,null,null,null,null,null,null,null,null,null,null,null,null,"Sollwerten  gegenübergestellt."]
[null,null,null,null,null,null,null,null,null,null,null,null,null,null,null,null,null,null,null,null,null,null,null,null,null,null,null,"Die Energiebedarfssollwerte richten sich nach durchschnittlichen Verbrauchskennzahlen"]
[null,null,null,null,null,null,null,null,null,null,null,null,null,null,null,null,null,null,null,null,null,null,null,null,null,null,null,null,"aus Tierhaltungseinrichungen mit guter, zeitgemäßer technischer Ausstattung."]
[null,null,"Schweinhaltung",null,null,null,null,null,null,null,null,null,null,null,null,null,null,null,null,null,null,null,null,null,null,null,null,"Ausgehend von den allgemeinen Ergebnisseiten der Betriebszweige kann in "]
[null,null,null,null,null,null,null,null,null,null,null,null,null,null,null,null,null,null,null,null,null,null,null,null,null,null,null,null,"die Detailbetrachtungen gewechselt werden. Hier  kann der Energiebedarf "]
[null,null,null,null,null,null,null,null,null,null,null,null,null,null,null,null,null,null,null,null,null,null,null,null,null,null,null,null,"betriebsspezifisch, je nach vorhandener Produktionseinrichtung/-technik differenziert "]
[null,null,null,null,null,null,null,null,null,null,null,null,null,null,null,null,null,null,null,null,null,null,null,null,null,null,null,null,"ausgewählt und bewertet werden."]
[null,null,null,null,null,null,null,null,null,null,null,null,null,null,null,null,null,null,null,null,null,null,null,null,null,null,null,"Berechnungshilfen sollen bei der Dateneingabe durch "]
[null,null,null,null,null,null,null,null,null,null,null,null,null,null,null,null,null,null,null,null,null,null,null,null,null,null,null,null,"-","Abgrenzung und Summierung von Abrechnungszeiträumen und Verbrauchern"]
[null,null,"Geflügelhaltung",null,null,null,null,null,null,null,null,null,null,null,null,null,null,null,null,null,null,null,null,null,null,null,null,null,"-","Umrechnungsfaktoren für Verbrauchswerte und Preise"]
[null,null,null,null,null,null,null,null,null,null,null,null,null,null,null,null,null,null,null,null,null,null,null,null,null,null,null,null,"-","Zu-/Abschlagwerte für andere technische Ausführungen"]
[null,null,null,null,null,null,null,null,null,null,null,null,null,null,null,null,null,null,null,null,null,null,null,null,null,null,null,null,"unterstützen."]
[null,null,"Futter-/Marktfruchtbau",null,null,null,null,null,null,null,null,null,null,null,null,null,null,null,null,null,null,null,null,null,null,null,null,"Unter Handlungsempfehlungen finden sie zu den jeweiligen Bereichen (Produktions-/"]
[null,null,null,null,null,null,null,null,null,null,null,null,null,null,null,null,null,null,null,null,null,null,null,null,null,null,null,null,"Betriebszweigen) Möglichkeiten, um die Effizienz bzw. das Verfahren"]
[null,null,"Energieeigennutzung",null,null,null,null,null,null,null,null,null,null,null,null,null,null,null,null,null,null,null,null,null,null,null,null,null,"zu verbessern."]
[]
[null,null,"Klimawirkung",null,null,null,null,null,null,null,null,null,null,null,null,null,null,null,null,null,null,null,null,null,null,null,"Im Registerblatt CO2 sind spezifische CO2-Emissionsfaktoren nach Energieträgern aufgelistet. "]
[null,null,null,null,null,null,null,null,null,null,null,null,null,null,null,null,null,null,null,null,null,null,null,null,null,null,null,null,"Mit der Berechnungshilfe kann die Klimawirksamkeit einer möglichen"]
[null,null,null,null,null,null,null,null,null,null,null,null,null,null,null,null,null,null,null,null,null,null,null,null,null,null,null,null,"Energieeinsparmaßnahme berechnet werden."]
[null,"Infoseiten"]
[null,null,null,null,null,null,null,null,null,null,null,null,null,null,null,null,null,null,null,null,null,null,null,null,null,null,"Auf den weiteren Registerblättern finden Sie Informationen zu Förderprogrammen,"]
[null,null,null,null,null,null,null,null,null,null,null,null,null,null,null,null,null,null,null,null,null,null,null,null,null,null,null,null,"Datenquellen, weiterführender Literatur, sowie einen Fragebogen zur Bewertung,"]
[null,null,null,null,null,null,null,null,null,null,null,null,null,null,null,null,null,null,null,null,null,null,null,null,null,null,null,null,"Potenzialanalyse und der Möglichkeit eigene Anmerkungen mitzuteilen."]
[]
[null,null,null,null,null,null,null,null,null,null,null,null,null,null,null,null,null,null,null,null,null,null,null,null,null,null,"Auf dem Registerblatt Druck können Sie die Seiten für den PDF-Druck auswählen."]
[]
[null,null,null,null,"© LfL",null,"Bayerische Landesanstalt für Landwirtschaft",null,null,null,null,null,null,null,null,null,null,null,null,null,null,null,null,null,null,"S.1",null,null,null,null,"Viel Freude bei der Eigenanalyse Ihres Energieverbrauchs!",null,null,null,null,null,null,null,null,null,null,null,null,null,null,null,null,null,null,null,null,"S.2"]

{"sheet":"Betriebsübersicht","index":1,"n_rows":49,"n_cols":51,"rows_kept":49,"cut":false,"hidden":false,"merged":[[25,35,25,37],[26,35,26,37],[26,47,26,49],[19,21,19,23],[23,21,23,23],[24,21,24,23],[22,47,22,49],[23,47,23,49],[24,47,24,49],[18,35,18,37],[18,47,18,49],[20,35,20,37],[20,47,20,49],[21,35,21,37],[21,47,21,49],[0,5,0,6],[0,24,0,25],[10,7,10,24],[11,7,11,24],[12,7,12,24],[8,19,8,24],[2,1,2,6],[3,1,3,6],[4,1,4,6],[0,9,0,18],[30,21,30,23],[31,21,31,23],[26,9,26,11],[32,21,32,23],[26,21,26,23],[30,9,30,11],[13,7,13,24],[14,7,14,24],[18,9,18,11],[25,9,25,11],[20,9,20,11],[21,9,21,11],[20,21,20,23],[21,21,21,23],[22,21,22,23],[18,21,18,23],[19,9,19,11],[47,6,47,23],[48,6,48,23],[33,9,33,11],[31,9,31,11],[32,9,32,11],[40,21,40,23],[40,9,40,11],[36,21,36,23],[41,21,41,23],[43,21,43,23],[44,21,44,23],[41,9,41,11],[43,9,43,11],[44,9,44,11],[36,9,36,11],[37,9,37,11]]}
["Energie-Check",null,null,null,null,"V 1.0",null,null,null,"Betriebsübersicht - Dateneingabe"]
[]
[null,"Eingabefelder",null,null,null,null,null,null,"Felder für die Eingabe betrieblicher Daten"]
[null,"berechnete Felder",null,null,null,null,null,null,"Felder die vom Programm berechnet werden"]
[null,"Werte",null,null,null,null,null,null,"Werte die aus Eingebefeldern übernommen wurden bzw. "]
[null,null,null,null,null,null,null,null,null,"-","Felder mit hinterlegten Werten"]
[null,null,null,null,null,null,null,null,null,"-","Felder mit hinterlegten Faktoren"]
["Betriebsübersicht"]
[null,null,null,null,null,null,null,"Bitte Betriebsdaten eingeben",null,null,null,null,null,null,null,null,null,"Datum",null,"2022-09-20"]
[null,"Anschrift"]
[null,null,"Name",null,null,null,null,"Claudia"]
[null,null,"Straße / Nr.",null,null,null,null,"Gruber"]
[null,null,"PLZ / Ort",null,null,null,null,"12345 Viehhausen"]
[null,null,"Telefon / Mobil"]
[null,null,"e-mail"]
[]
[]
[null,"Betriebsfläche",null,null,null,null,null,null,null,null,null,null,null,null,null,null,null,null,null,null,null,null,null,null,null,null,null,"Betriebsfläche"]
[null,null,"Grünlandfläche (DG)",null,null,null,null,null,null,46,null,null,"ha",null,"Ackerfläche (AF)",null,null,null,null,null,null,32,null,null,"ha",null,null,null,"Grünlandfläche (DG)",null,null,null,null,null,null,120,null,null,"l/ha",null,"Ackerfläche (AF)",null,null,null,null,null,null,100,null,null,"l/ha"]
[null,null,"davon",null,null,null,null,null,null,{"$f":"-(J19-J21-J22)","v":0},null,null,null,null,"davon",null,null,null,null,null,null,{"$f":"-(V19-V21-V22-V23-V24-V25)","v":-2},null,null,null,null,null,null,"davon",null,null,null,null,null,null,null,null,null,null,null,"davon"]
[null,null,null,"Silage",null,null,null,null,null,38,null,null,"ha",null,null,"Getreide",null,null,null,null,null,6,null,null,"ha",null,null,null,null,"Silage",null,null,null,null,null,110,null,null,"l/ha",null,null,"Getreide",null,null,null,null,null,90,null,null,"l/ha"]
[null,null,null,"Heu",null,null,null,null,null,8,null,null,"ha",null,null,"Silomais",null,null,null,null,null,12,null,null,"ha",null,null,null,null,"Heu",null,null,null,null,null,130,null,null,"l/ha",null,null,"Silomais",null,null,null,null,null,110,null,null,"l/ha"]
[null,null,null,null,null,null,null,null,null,null,null,null,null,null,null,"Kartoffeln",null,null,null,null,null,2,null,null,"ha",null,null,null,null,null,null,null,null,null,null,null,null,null,null,null,null,"Kartoffeln",null,null,null,null,null,130,null,null,"l/ha"]
[null,null,null,null,null,null,null,null,null,null,null,null,null,null,null,"Zuckerrüben",null,null,null,null,null,4,null,null,"ha",null,null,null,null,null,null,null,null,null,null,null,null,null,null,null,null,"Zuckerrüben",null,null,null,null,null,110,null,null,"l/ha"]
[null,null,"Sonstige",null,null,null,null,null,null,null,null,null,null,null,null,"Ackergras",null,null,null,null,null,6,null,null,"ha",null,null,null,null,null,null,null,null,null,null,null,null,null,null,null,null,"Ackergras",null,null,null,null,null,150,null,null,"l/ha"]
[null,null,"Forstfläche",null,null,null,null,null,null,6,null,null,"ha",null,null,null,null,null,null,null,null,null,null,null,null,null,null,null,"Forstfläche",null,null,null,null,null,null,20,null,null,"l/ha"]
[null,null,"Sonderkulturfläche",null,null,null,null,null,null,null,null,null,"ha",null,"LW Nutzfläche",null,null,null,null,null,null,{"$f":"J19+V19","v":78},null,null,"ha",null,null,null,"Sonderkulturfläche",null,null,null,null,null,null,200,null,null,"l/ha",null,"LW Nutzfläche",null,null,null,null,null,null,110,null,null,"l/ha"]
[]
[null,"Tierhaltung"]
[null,null,"Rinder",null,null,null,null,null,null,null,null,null,null,null,"Schweine"]
[null,null,null,"Milchvieh",null,null,null,null,null,82,null,null,"TP",null,null,"Zuchtsauen",null,null,null,null,null,80,null,null,"TP"]
[null,null,null,"Mastkälber",null,null,null,null,null,40,null,null,"TP",null,null,"Ferkel",null,null,null,null,null,400,null,null,"TP"]
[null,null,null,"Mastrinder",null,null,null,null,null,120,null,null,"TP",null,null,"Mastschweine",null,null,null,null,null,200,null,null,"TP"]
[null,null,null,"Sonstige Rinder",null,null,null,null,null,40,null,null,"TP"]
[null,null,null,null,null,null,null,null,null,null,null,null,null,null,"TP = Tierplätze"]
[null,null,"Geflügel"]
[null,null,null,"Legehennen",null,null,null,null,null,8000,null,null,"TP",null,null,"Sonstige",null,null,null,null,null,2,null,null,"TP"]
[null,null,null,"Mastgeflügel",null,null,null,null,null,4000,null,null,"TP"]
[]
[null,"Gebäude"]
[null,null,"Wohngebäude/Baujahr",null,null,null,null,null,null,1972,null,null,null,null,"Stallgebäude/Baujahr",null,null,null,null,null,null,2008]
[null,null,null,null,"beheizete Fläche",null,null,null,null,180,null,null,"m²",null,null,null,"beheizete Fläche",null,null,null,null,3000,null,null,"m²"]
[]
[null,null,"Wohngebäude/Baujahr",null,null,null,null,null,null,2010,null,null,null,null,"Stallgebäude/Baujahr"]
[null,null,null,null,"beheizete Fläche",null,null,null,null,140,null,null,"m²",null,null,null,"beheizete Fläche",null,null,null,null,null,null,null,"m²"]
[]
[]
[null,"Anmerkungen:",null,null,null,null,"3 Pferde"]
[null,null,null,null,null,null,"Sonstige Gebäude = Maschinenhalle + Werkstatt",null,null,null,null,null,null,null,null,null,null,null,null,null,null,null,null,null,null,"BÜ"]

{"sheet":"Energieeinsatz","index":2,"n_rows":49,"n_cols":77,"rows_kept":49,"cut":false,"hidden":false,"merged":[[0,9,0,17],[0,35,0,43],[0,61,0,69],[28,63,28,65],[28,68,28,70],[28,73,28,75],[29,63,29,65],[29,68,29,70],[29,73,29,75],[21,63,21,65],[21,68,21,70],[21,73,21,75],[22,63,22,65],[22,68,22,70],[22,73,22,75],[23,63,23,65],[23,68,23,70],[23,73,23,75],[16,63,16,65],[16,68,16,70],[16,73,16,75],[19,63,19,65],[19,68,19,70],[19,73,19,75],[34,63,34,65],[34,68,34,70],[34,73,34,75],[35,63,35,65],[35,68,35,70],[35,73,35,75],[30,63,30,65],[30,68,30,70],[30,73,30,75],[31,63,31,65],[31,68,31,70],[31,73,31,75],[32,63,32,65],[32,68,32,70],[32,73,32,75],[33,63,33,65],[33,68,33,70],[33,73,33,75],[20,63,20,65],[20,68,20,70],[20,73,20,75],[17,63,17,65],[17,68,17,70],[17,73,17,75],[18,63,18,65],[18,68,18,70],[18,73,18,75],[14,21,14,23],[12,11,12,13],[3,21,3,23],[5,37,5,39],[5,42,5,44],[5,47,5,49],[3,11,3,13],[3,16,3,18],[7,11,7,13],[5,16,5,18],[6,16,6,18],[7,16,7,18],[5,11,5,13],[6,11,6,13],[30,21,30,23],[32,11,32,13],[0,50,0,51],[5,21,5,23],[6,21,6,23],[7,21,7,23],[0,31,0,32],[3,37,3,39],[3,42,3,44],[3,47,3,49],[17,11,17,13],[17,16,17,18],[17,21,17,23],[6,37,6,39],[6,42,6,44],[6,47,6,49],[11,11,11,13],[11,16,11,18],[11,21,11,23],[13,11,13,13],[13,16,13,18],[13,21,13,23],[14,11,14,13],[14,16,14,18],[20,47,20,49],[20,42,20,44],[20,37,20,39],[21,47,21,49],[21,42,21,44],[21,37,21,39],[23,11,23,13],[23,16,23,18],[23,21,23,23],[22,11,22,13],[22,16,22,18],[21,11,21,13],[21,16,21,18],[21,21,21,23],[31,21,31,23],[9,16,9,18],[9,21,9,23],[16,11,16,13],[16,16,16,18],[16,21,16,23],[24,11,24,13],[24,16,24,18],[24,21,24,23],[25,11,25,13],[25,16,25,18],[25,21,25,23],[12,16,12,18],[12,21,12,23],[10,21,10,23],[10,11,10,13],[10,16,10,18],[9,11,9,13],[22,21,22,23],[28,11,28,13],[31,11,31,13],[31,16,31,18],[30,11,30,13],[30,16,30,18],[36,16,36,18],[36,21,36,23],[37,11,37,13],[37,16,37,18],[37,21,37,23],[36,37,36,39],[36,42,36,44],[36,47,36,49],[32,16,32,18],[32,21,32,23],[35,37,35,39],[35,42,35,44],[35,47,35,49],[47,11,47,13],[47,16,47,18],[47,21,47,23],[44,11,44,13],[44,16,44,18],[44,21,44,23],[45,11,45,13],[45,16,45,18],[45,21,45,23],[0,24,0,25],[0,76,0,77],[46,11,46,13],[46,16,46,18],[46,21,46,23],[42,11,42,13],[42,16,42,18],[42,21,42,23],[43,11,43,13],[43,16,43,18],[43,21,43,23],[40,11,40,13],[40,16,40,18],[40,21,40,23],[41,11,41,13],[41,16,41,18],[41,21,41,23],[38,11,38,13],[38,16,38,18],[38,21,38,23],[39,11,39,13],[39,16,39,18],[39,21,39,23],[36,11,36,13],[0,5,0,6],[0,57,0,58],[48,24,48,25],[48,76,48,77],[5,53,5,58],[3,53,3,58],[4,53,4,58],[15,11,15,13],[15,16,15,18],[15,21,15,23],[8,11,8,13],[8,16,8,18],[8,21,8,23],[28,16,28,18],[28,21,28,23],[29,11,29,13],[29,16,29,18],[29,21,29,23],[26,11,26,13],[26,16,26,18],[26,21,26,23],[27,11,27,13],[27,16,27,18],[27,21,27,23]]}
["Energie-Check",null,null,null,null,{"$f":"Betriebsübersicht!F1","v":"V 1.0"},null,null,null,"Energieeinsatz - Eingabeblatt",null,null,null,null,null,null,null,null,null,null,null,null,null,null,null,null,"Energie-Check",null,null,null,null,{"$f":"Betriebsübersicht!F1","v":"V 1.0"},null,null,null,"Energieeinsatz - Ergebnisblatt",null,null,null,null,null,null,null,null,null,null,null,null,null,null,null,null,"Energie-Check",null,null,null,null,{"$f":"Betriebsübersicht!F1","v":"V 1.0"},null,null,null,"Energieeinsatz - Infoblatt"]
[null,null,"Bitte Abrechnungsjahre, Verbrauchsdaten und Kosten eintragen",null,null,null,null,null,null,null,null,null,null,null,null,null,null,null,null,null,null,null,null,null,null,null,"Entwicklung des Verbrauchs und der Kosten: Strom - Kraftstoff - Wärme",null,null,null,null,null,null,null,null,null,null,null,null,null,null,null,null,null,null,null,null,null,null,null,null,null,"Berechnungshilfe und Umrechnungsfaktoren"]
[]
[null,null,null,null,"Abrechnungsjahr",null,null,null,null,null,null,1999,null,null,null,null,2020,null,null,null,null,2021,null,null,null,null,"Energieeinsatz",null,null,null,null,null,"Abrechnungsjahr",null,null,null,null,{"$f":"L4","v":1999},null,null,null,null,{"$f":"Q4","v":2020},null,null,null,null,{"$f":"V4","v":2021},null,null,null,null,null,"Eingabefelder",null,null,null,null,null,null,"Felder für die Eingabe betrieblicher Daten"]
["Strom",null,null,null,null,null,null,null,null,null,null,null,null,null,null,null,null,null,null,null,null,"aktuelles Jahr",null,null,null,null,null,null,null,null,null,null,null,null,null,null,null,null,null,null,null,null,null,null,null,null,null,null,null,null,null,null,null,"berechnete Felder",null,null,null,null,null,null,"Felder die vom Programm berechnet werden"]
[null,null,"Verbrauchswerte",null,null,null,null,null,null,null,1,35642,null,null,"kWh",null,84698,null,null,"kWh",null,21566,null,null,"kWh",null,null,"Strom",null,null,null,"Verbrauch",null,null,null,null,null,{"$f":"L11","v":83878},null,null,"kWh",null,{"$f":"Q11","v":84698},null,null,"kWh",null,{"$f":"V11","v":83100},null,null,"kWh",null,null,"Werte",null,null,null,null,null,null,"Werte die aus Eingebefeldern übernommen wurden bzw. "]
[null,null,null,null,null,null,null,null,null,null,2,48236,null,null,"kWh",null,null,null,null,"kWh",null,18963,null,null,"kWh",null,null,null,null,null,null,"Kosten",null,null,null,null,null,{"$f":"L18","v":20729.280000000002},null,null,"€",null,{"$f":"Q18","v":21290.7},null,null,"€",null,{"$f":"V18","v":22364.160000000003},null,null,"€",null,null,null,null,null,null,null,null,null,null,"-","Felder mit hinterlegten Werten"]
[null,"Stromverbrauch in kWh",null,null,null,null,null,null,null,null,3,null,null,null,"kWh",null,null,null,null,"kWh",null,42571,null,null,"kWh",null,null,null,null,null,null,null,null,null,null,null,null,null,null,null,null,null,null,null,null,null,null,null,null,null,null,null,null,null,null,null,null,null,null,null,null,"-","Felder mit hinterlegten Faktoren"]
[null,null,null,null,null,null,null,null,null,null,4,null,null,null,"kWh",null,null,null,null,"kWh",null,null,null,null,"kWh"]
[null,null,null,null,null,null,null,null,null,null,5,null,null,null,"kWh",null,null,null,null,"kWh",null,null,null,null,"kWh"]
[null,null,null,null,null,null,null,"Summe",null,null,null,{"$f":"SUM(L6:N10)","v":83878},null,null,"kWh",null,{"$f":"SUM(Q6:S10)","v":84698},null,null,"kWh",null,{"$f":"SUM(V6:X10)","v":83100},null,null,"kWh"]
[null,null,"Kosten",null,null,"Grundpreis",null,null,null,null,null,116.2,null,null,"€",null,116.2,null,null,"€",null,122.4,null,null,"€"]
[null,null,null,null,null,"Arbeitspreis *)",null,null,null,null,1,0.24,null,null,"€/kWh",null,0.25,null,null,"€/kWh",null,0.25,null,null,"€/kWh",null,null,null,null,null,null,null,null,null,null,null,null,null,null,null,null,null,null,null,null,null,null,null,null,null,null,null,"Umrechnungshilfe für den Wärme- bzw. Heizenergieeinsatz"]
[null,null,null,null,null,null,null,null,null,null,2,0.25,null,null,"€/kWh",null,null,null,null,"€/kWh",null,0.26,null,null,"€/kWh"]
[null,"Strompreis, netto in ct/kWh",null,null,null,null,null,null,null,null,3,null,null,null,"€/kWh",null,null,null,null,"€/kWh",null,0.28000000000000003,null,null,"€/kWh",null,null,null,null,null,null,null,null,null,null,null,null,null,null,null,null,null,null,null,null,null,null,null,null,null,null,null,"Umrechnungsfaktoren Verbrauchswerte"]
[null,null,null,null,null,null,null,null,null,null,4,null,null,null,"€/kWh",null,null,null,null,"€/kWh",null,null,null,null,"€/kWh",null,null,null,null,null,null,null,null,null,null,null,null,null,null,null,null,null,null,null,null,null,null,null,null,null,null,null,null,null,null,null,null,null,null,null,null,null,null,null,null,null,null,null,"Heizwert"]
[null,null,null,null,null,null,null,null,null,null,5,null,null,null,"€/kWh",null,null,null,null,"€/kWh",null,null,null,null,"€/kWh",null,null,null,null,null,null,null,null,null,null,null,null,null,null,null,null,null,null,null,null,null,null,null,null,null,null,null,null,null,null,"Heizöl",null,null,null,null,null,null,null,8000,null,null,"l",null,9.8000000000000007,null,null,null,null,{"$f":"BL17*BQ17","v":78400},null,null,"kWh"]
[null,null,null,null,null,null,null,"Summe",null,null,null,{"$f":"L12+(L6*L13+L7*L14+L8*L15+L9*L16+L10*L17)","v":20729.280000000002},null,null,"€",null,{"$f":"Q12+(Q6*Q13+Q7*Q14+Q8*Q15+Q9*Q16+Q10*Q17)","v":21290.7},null,null,"€",null,{"$f":"V12+(V6*V13+V7*V14+V8*V15+V9*V16*V10*V17)","v":22364.160000000003},null,null,"€",null,null,null,null,null,null,null,null,null,null,null,null,null,null,null,null,null,null,null,null,null,null,null,null,null,null,null,null,null,null,"Erdgas",null,null,null,null,null,null,null,8000,null,null,"m³",null,10.4,null,null,null,null,{"$f":"BL18*BQ18","v":83200},null,null,"kWh"]
[null,"*) der Arbeitspreis bezieht sich auf den jeweiligen Verbrauchswert in den Zeilen 1 bis 5",null,null,null,null,null,null,null,null,null,null,null,null,null,null,null,null,null,null,null,null,null,null,null,null,null,null,null,null,null,null,null,null,null,null,null,null,null,null,null,null,null,null,null,null,null,null,null,null,null,null,null,null,null,"Flüssiggas",null,null,null,null,null,null,null,1200,null,null,"l",null,6.57,null,null,null,null,7884,null,null,"kWh"]
[null,null,null,null,null,null,null,null,null,null,null,null,null,null,null,null,null,null,null,null,null,null,null,null,null,null,null,null,null,null,null,null,null,null,null,null,null,null,null,null,null,null,null,null,null,null,null,null,null,null,null,null,null,null,null,"Scheitholz - Hartholz",null,null,null,null,null,null,null,14,null,null,"rm",null,1800,null,null,null,null,25200,null,null,"kWh"]
["Diesel",null,null,null,null,null,null,null,null,null,null,null,null,null,null,null,null,null,null,null,null,null,null,null,null,null,null,"Kraftstoff",null,null,null,"Verbrauch",null,null,null,null,null,{"$f":"L27","v":21200},null,null,"Liter",null,{"$f":"Q27","v":20400},null,null,"Liter",null,{"$f":"V27","v":24000},null,null,"Liter",null,null,null,null,"Scheitholz - Weichholz",null,null,null,null,null,null,null,12,null,null,"rm",null,1400,null,null,null,null,16800,null,null,"kWh"]
[null,null,"Verbrauchswerte",null,null,null,null,null,null,null,1,6000,null,null,"l",null,7000,null,null,"l",null,3000,null,null,"l",null,null,"Diesel",null,null,null,"Kosten",null,null,null,null,null,{"$f":"L33","v":18148},null,null,"€",null,{"$f":"Q33","v":15974},null,null,"€",null,{"$f":"V33","v":19600},null,null,"€",null,null,null,null,"Hackschnitzel - Hartholz",null,null,null,null,null,null,null,14,null,null,"srm",null,945,null,null,null,null,13230,null,null,"kWh"]
[null,null,null,null,null,null,null,null,null,null,2,8000,null,null,"l",null,6000,null,null,"l",null,4000,null,null,"l",null,null,null,null,null,null,null,null,null,null,null,null,null,null,null,null,null,null,null,null,null,null,null,null,null,null,null,null,null,null,"Hackschnitzel - Weichholz",null,null,null,null,null,null,null,12,null,null,"srm",null,720,null,null,null,null,8640,null,null,"kWh"]
[null,"Dieselverbrauch in l",null,null,null,null,null,null,null,null,3,1200,null,null,"l",null,7400,null,null,"l",null,9000,null,null,"l",null,null,null,null,null,null,null,null,null,null,null,null,null,null,null,null,null,null,null,null,null,null,null,null,null,null,null,null,null,null,"Holzpellets",null,null,null,null,null,null,null,8.4,null,null,"t",null,4300,null,null,null,null,36120,null,null,"kWh"]
[null,null,null,null,null,null,null,null,null,null,4,3000,null,null,"l",null,null,null,null,"l",null,8000,null,null,"l"]
[null,null,null,null,null,null,null,null,null,null,5,3000,null,null,"l",null,null,null,null,"l",null,null,null,null,"l"]
[null,null,null,null,null,null,null,"Summe",null,null,null,{"$f":"SUM(L22:N26)","v":21200},null,null,"l",null,{"$f":"SUM(Q22:S26)","v":20400},null,null,"l",null,{"$f":"SUM(V22:X26)","v":24000},null,null,"l",null,null,null,null,null,null,null,null,null,null,null,null,null,null,null,null,null,null,null,null,null,null,null,null,null,null,null,"Umrechnungsfaktoren Preise"]
[null,null,"Kosten *)",null,null,null,null,null,null,null,1,0.86,null,null,"€/l",null,0.81,null,null,"€/l",null,0.78,null,null,"€/l",null,null,null,null,null,null,null,null,null,null,null,null,null,null,null,null,null,null,null,null,null,null,null,null,null,null,null,null,null,null,null,null,null,null,null,null,null,null,null,null,null,null,null,"Heizwert"]
[null,null,null,null,null,null,null,null,null,null,2,0.86,null,null,"€/l",null,0.78,null,null,"€/l",null,0.79,null,null,"€/l",null,null,null,null,null,null,null,null,null,null,null,null,null,null,null,null,null,null,null,null,null,null,null,null,null,null,null,null,null,null,"Heizöl",null,null,null,null,null,null,null,1.08,null,null,"€/l",null,9.8000000000000007,null,null,null,null,{"$f":"BL29/BQ29*100","v":11.020408163265307},null,null,"ct/kWh"]
[null,null,null,null,null,null,null,null,null,null,3,0.84,null,null,"€/l",null,0.76,null,null,"€/l",null,0.82,null,null,"€/l",null,null,null,null,null,null,null,null,null,null,null,null,null,null,null,null,null,null,null,null,null,null,null,null,null,null,null,null,null,null,"Erdgas",null,null,null,null,null,null,null,0.66,null,null,"€/m³",null,10.4,null,null,null,null,{"$f":"BL30/BQ30*100","v":6.3461538461538458},null,null,"ct/kWh"]
[null,"Dieselpreis, netto in ct/l",null,null,null,null,null,null,null,null,4,0.88,null,null,"€/l",null,null,null,null,"€/l",null,0.84,null,null,"€/l",null,null,null,null,null,null,null,null,null,null,null,null,null,null,null,null,null,null,null,null,null,null,null,null,null,null,null,null,null,null,"Flüssiggas",null,null,null,null,null,null,null,1.18,null,null,"€/l",null,6.57,null,null,null,null,{"$f":"BL31/BQ31*100","v":17.960426179604262},null,null,"ct/kWh"]
[null,null,null,null,null,null,null,null,null,null,5,0.82,null,null,"€/l",null,null,null,null,"€/l",null,null,null,null,"€/l",null,null,null,null,null,null,null,null,null,null,null,null,null,null,null,null,null,null,null,null,null,null,null,null,null,null,null,null,null,null,"Scheitholz - Hartholz",null,null,null,null,null,null,null,85,null,null,"€/rm",null,1800,null,null,null,null,4.7222222222222223,null,null,"ct/kWh"]
[null,null,null,null,null,null,null,"Summe",null,null,null,{"$f":"L22*L28+L23*L29+L24*L30+L25*L31+L26*L32","v":18148},null,null,"€",null,{"$f":"Q22*Q28+Q23*Q29+Q24*Q30+Q25*Q31+Q26*Q32","v":15974},null,null,"€",null,{"$f":"V22*V28+V23*V29+V24*V30+V25*V31+V26*V32","v":19600},null,null,"€",null,null,null,null,null,null,null,null,null,null,null,null,null,null,null,null,null,null,null,null,null,null,null,null,null,null,null,null,null,null,"Scheitholz - Weichholz",null,null,null,null,null,null,null,75,null,null,"€/rm",null,1400,null,null,null,null,5.3571428571428568,null,null,"ct/kWh"]
[null,"*) der Arbeitspreis bezieht sich auf den jeweiligen Verbrauchswert in den Zeilen 1 bis 5",null,null,null,null,null,null,null,null,null,null,null,null,null,null,null,null,null,null,null,null,null,null,null,null,null,null,null,null,null,null,null,null,null,null,null,null,null,null,null,null,null,null,null,null,null,null,null,null,null,null,null,null,null,"Hackschnitzel - Hartholz",null,null,null,null,null,null,null,28,null,null,"€/srm",null,945,null,null,null,null,2.9629629629629632,null,null,"ct/kWh"]
[null,null,null,null,null,null,null,null,null,null,null,null,null,null,null,null,null,null,null,null,null,null,null,null,null,null,null,null,null,null,null,null,null,null,null,null,null,null,null,null,null,null,null,null,null,null,null,null,null,null,null,null,null,null,null,"Hackschnitzel - Weichholz",null,null,null,null,null,null,null,22,null,null,"€/srm",null,700,null,null,null,null,3.1428571428571432,null,null,"ct/kWh"]
["Wärme",null,null,null,null,"zur Berechnungshilfe",null,null,null,null,null,null,null,null,null,null,null,null,null,null,null,null,null,null,null,null,null,"Wärme",null,null,null,"Verbrauch",null,null,null,null,null,{"$f":"L42","v":185000},null,null,"kWh",null,{"$f":"Q42","v":184000},null,null,"kWh",null,{"$f":"V42","v":184000},null,null,"kWh",null,null,null,null,"Holzpellets",null,null,null,null,null,null,null,360,null,null,"€/t",null,4300,null,null,null,null,8.3720930232558146,null,null,"ct/kWh"]
[null,null,"Verbrauchswerte",null,null,null,null,null,null,null,1,59000,null,null,"kWh",null,56000,null,null,"kWh",null,58800,null,null,"kWh",null,null,"Heizenergie",null,null,null,"Kosten",null,null,null,null,null,{"$f":"L48","v":10667.4},null,null,"€",null,{"$f":"Q48","v":11656},null,null,"€",null,{"$f":"V48","v":12389.2},null,null,"€"]
[null,null,null,null,null,null,null,null,null,null,2,126000,null,null,"kWh",null,128000,null,null,"kWh",null,125200,null,null,"kWh",null,null,null,null,null,null,null,null,null,null,null,null,null,null,null,null,null,null,null,null,null,null,null,null,null,null,null,null,null,null,null,null,null,null,"Zurück"]
[null,"Heizenergieverbrauch in kWh",null,null,null,null,null,null,null,null,3,null,null,null,"kWh",null,null,null,null,"kWh",null,null,null,null,"kWh"]
[null,null,null,null,null,null,null,null,null,null,4,null,null,null,"kWh",null,null,null,null,"kWh",null,null,null,null,"kWh"]
[null,null,null,null,null,null,null,null,null,null,5,null,null,null,"kWh",null,null,null,null,"kWh",null,null,null,null,"kWh",null,null,null,null,null,null,null,null,null,null,null,null,null,null,null,null,null,null,null,null,null,null,null,null,null,null,null,"Handlungsempfehlungen:"]
[null,null,null,null,null,null,null,"Summe",null,null,null,{"$f":"SUM(L37:N41)","v":185000},null,null,"kWh",null,{"$f":"SUM(Q37:S41)","v":184000},null,null,"kWh",null,{"$f":"SUM(V37:X41)","v":184000},null,null,"kWh",null,null,null,null,null,null,null,null,null,null,null,null,null,null,null,null,null,null,null,null,null,null,null,null,null,null,null,null,null,"-","Beobachtung, Aufzeichnung und Auswertung der Verbrauchsdaten und der "]
[null,null,"Kosten *)",null,null,null,null,null,null,null,1,8.94,null,null,"ct/kWh",null,10.3,null,null,"ct/kWh",null,11.02,null,null,"ct/kWh",null,null,null,null,null,null,null,null,null,null,null,null,null,null,null,null,null,null,null,null,null,null,null,null,null,null,null,null,null,null,"Preisentwicklung"]
[null,null,null,null,null,null,null,null,null,null,2,4.28,null,null,"ct/kWh",null,4.5999999999999996,null,null,"ct/kWh",null,4.72,null,null,"ct/kWh",null,null,null,null,null,null,null,null,null,null,null,null,null,null,null,null,null,null,null,null,null,null,null,null,null,null,null,null,null,"-","Anbieter- bzw. Tarifwechsel überprüfen"]
[null,null,null,null,null,null,null,null,null,null,3,null,null,null,"ct/kWh",null,null,null,null,"ct/kWh",null,null,null,null,"ct/kWh"]
[null,"Energiepreis, netto in ct/kWh",null,null,null,null,null,null,null,null,4,null,null,null,"ct/kWh",null,null,null,null,"ct/kWh",null,null,null,null,"ct/kWh"]
[null,null,null,null,null,null,null,null,null,null,5,null,null,null,"ct/kWh",null,null,null,null,"ct/kWh",null,null,null,null,"ct/kWh"]
[null,null,null,null,null,null,null,"Summe",null,null,null,{"$f":"(L37*L43+L38*L44+L39*L45+L40*L46+L41*L47)/100","v":10667.4},null,null,"€",null,{"$f":"(Q37*Q43+Q38*Q44+Q39*Q45+Q40*Q46+Q41*Q47)/100","v":11656},null,null,"€",null,{"$f":"(V37*V43+V38*V44+V39*V45+V40*V46+V41*V47)/100","v":12389.2},null,null,"€"]
[null,"*) der Arbeitspreis bezieht sich auf den jeweiligen Verbrauchswert in den Zeilen 1 bis 5",null,null,null,null,null,null,null,null,null,null,null,null,null,null,null,null,null,null,null,null,null,null,"EE.1",null,null,null,null,null,null,null,null,null,null,null,null,null,null,null,null,null,null,null,null,null,null,null,null,null,null,null,null,null,null,null,null,null,null,null,null,null,null,null,null,null,null,null,null,null,null,null,null,null,null,null,"EE.3"]

{"sheet":"Abgrenzung BZ","index":3,"n_rows":49,"n_cols":48,"rows_kept":49,"cut":false,"hidden":false,"merged":[[23,8,24,24],[0,24,0,25],[17,8,17,10],[7,11,7,12],[7,17,7,18],[7,14,7,16],[5,20,5,22],[6,20,6,22],[7,23,7,24],[10,23,10,24],[12,23,12,24],[13,23,13,24],[14,23,14,24],[15,23,15,24],[15,20,15,22],[12,20,12,22],[14,11,14,12],[13,14,13,16],[14,14,14,16],[4,1,4,6],[7,20,7,22],[11,11,11,12],[13,17,13,18],[14,17,14,18],[13,20,13,22],[14,20,14,22],[13,11,13,12],[0,5,0,6],[3,21,3,23],[12,11,12,12],[2,1,2,6],[3,1,3,6],[6,14,6,16],[5,8,5,10],[6,8,6,10],[5,14,5,16],[10,8,10,10],[10,20,10,22],[10,11,10,12],[10,14,10,16],[12,14,12,16],[0,9,0,18],[19,8,19,10],[15,11,15,12],[19,14,19,16],[18,17,18,18],[15,17,15,18],[16,17,16,18],[17,17,17,18],[20,8,20,10],[7,8,7,10],[12,8,12,10],[13,8,13,10],[14,8,14,10],[15,8,15,10],[16,8,16,10],[18,8,18,10],[8,8,8,24],[19,11,19,12],[20,11,20,12],[10,17,10,18],[12,17,12,18],[17,14,17,16],[19,17,19,18],[20,17,20,18],[20,14,20,16],[18,11,18,12],[16,11,16,12],[17,11,17,12],[15,14,15,16],[16,14,16,16],[18,14,18,16],[17,23,17,24],[18,23,18,24],[19,23,19,24],[20,23,20,24],[16,20,16,22],[17,20,17,22],[18,20,18,22],[0,50,0,51],[48,24,48,25],[22,8,22,10],[22,11,22,12],[22,14,22,16],[22,17,22,18],[22,20,22,22],[22,23,22,24],[11,8,11,10],[11,14,11,16],[11,20,11,22],[11,23,11,24],[11,17,11,18],[19,20,19,22],[20,20,20,22],[16,23,16,24]]}
["Energie-Check",null,null,null,null,{"$f":"Betriebsübersicht!F1","v":"V 1.0"},null,null,null,"Abgrenzung der Betriebszweige"]
[]
[null,"Eingabefelder"]
[null,"berechnete Felder",null,null,null,null,null,null,null,null,null,null,null,null,null,null,"Abrechnungsjahr",null,null,null,null,{"$f":"Energieeinsatz!AV4","v":2021}]
[null,"Werte"]
[null,null,null,null,null,null,null,null,"Strom",null,null,null,null,null,"Kraftstoff",null,null,null,null,null,"Wärme",null,null,null,null,null,null,null,null,null,null,null,null,null,"S",null,null,null,null,null,"K",null,null,null,null,null,null,"W"]
[null,null,null,null,null,null,null,null,"kWh",null,null,null,null,null,"Liter",null,null,null,null,null,"kWh"]
[null,"Gesamt",null,null,null,null,null,null,{"$f":"Energieeinsatz!AV6","v":83100},null,null,1,null,null,{"$f":"Energieeinsatz!AV21","v":24000},null,null,1,null,null,{"$f":"Energieeinsatz!AV36","v":184000},null,null,1,null,null,null,null,null,null,null,null,null,null,{"$f":"I8","v":83100},null,null,null,null,null,{"$f":"O8","v":24000},null,null,null,null,null,null,{"$f":"U8","v":184000}]
[null,null,null,null,null,null,null,null,"Bitte Verbrauchsdaten auf die Betriebszweige verteilen"]
[null,null,null,null,null,null,null,null,null,null,null,null,null,null,null,null,null,null,null,null,null,null,null,null,null,null,null,null,null,null,null,null,null,null,0,null,null,null,null,null,0,null,null,null,null,null,null,0]
[null,"P/H","Privat / Haushalt",null,null,null,null,null,3100,null,null,{"$f":"I11/$I$8","v":3.7304452466907341E-2},null,null,1800,null,null,{"$f":"O11/$O$8","v":7.4999999999999997E-2},null,null,12000,null,null,{"$f":"U11/$U$8","v":6.5217391304347824E-2},null,null,null,null,null,null,null,null,null,null,3100,null,null,null,null,null,1800,null,null,null,null,null,null,12000]
[null,"SBZ","Sonstige Betriebszweige",null,null,null,null,null,null,null,null,{"$f":"I12/$I$8","v":0},null,null,200,null,null,{"$f":"O12/$O$8","v":8.3333333333333332E-3},null,null,3800,null,null,{"$f":"U12/$U$8","v":2.0652173913043477E-2},null,null,null,null,null,null,null,null,null,null,0,null,null,null,null,null,200,null,null,null,null,null,null,3800]
["*)","MV","Milchvieh",null,null,null,null,null,50000,null,null,0.60168471720818295,null,null,4200,null,null,0.17499999999999999,null,null,null,null,null,0,null,null,null,null,null,null,null,null,null,null,50000,null,null,null,null,null,4200,null,null,null,null,null,null,0]
["*)","RM","Rindermast",null,null,null,null,null,3000,null,null,3.6101083032490974E-2,null,null,3000,null,null,0.125,null,null,null,null,null,0,null,null,null,null,null,null,null,null,null,null,3000,null,null,null,null,null,3000,null,null,null,null,null,null,0]
[null,"FE","Ferkelerzeugung ",null,null,null,null,null,20000,null,null,0.24067388688327315,null,null,null,null,null,0,null,null,30000,null,null,0.16304347826086957,null,null,null,null,null,null,null,null,null,null,20000,null,null,null,null,null,0,null,null,null,null,null,null,30000]
[null,"FA","Ferkelaufzucht",null,null,null,null,null,10000,null,null,0.12033694344163658,null,null,null,null,null,0,null,null,40000,null,null,0.21739130434782608,null,null,null,null,null,null,null,null,null,null,10000,null,null,null,null,null,0,null,null,null,null,null,null,40000]
[null,"MS","Schweinemast ",null,null,null,null,null,5000,null,null,6.0168471720818288E-2,null,null,null,null,null,0,null,null,6000,null,null,3.2608695652173912E-2,null,null,null,null,null,null,null,null,null,null,5000,null,null,null,null,null,0,null,null,null,null,null,null,6000]
["*)","MSA","Schweinemast Außenklima",null,null,null,null,null,2000,null,null,2.4067388688327317E-2,null,null,1200,null,null,0.05,null,null,3000,null,null,1.6304347826086956E-2,null,null,null,null,null,null,null,null,null,null,2000,null,null,null,null,null,1200,null,null,null,null,null,null,3000]
[null,"LH","Legehennen",null,null,null,null,null,2000,null,null,2.4067388688327317E-2,null,null,200,null,null,8.3333333333333332E-3,null,null,null,null,null,0,null,null,null,null,null,null,null,null,null,null,2000,null,null,null,null,null,200,null,null,null,null,null,null,0]
["*)","GM","Geflügelmast",null,null,null,null,null,2000,null,null,2.4067388688327317E-2,null,null,null,null,null,0,null,null,12000,null,null,6.5217391304347824E-2,null,null,null,null,null,null,null,null,null,null,2000,null,null,null,null,null,0,null,null,null,null,null,null,12000]
[null,"G-A","Grünland - Ackerbau",null,null,null,null,null,null,null,null,0,null,null,15000,null,null,0.625,null,null,null,null,null,0,null,null,null,null,null,null,null,null,null,null,0,null,null,null,null,null,15000,null,null,null,null,null,null,0]
[null,null,null,null,null,null,null,null,null,null,null,null,null,null,null,null,null,null,null,null,null,null,null,null,null,null,null,null,null,null,null,null,null,null,0,null,null,null,null,null,0,null,null,null,null,null,null,0]
[null,"Verbleiben",null,null,null,null,null,null,{"$f":"I8-I12-I11-I13-I14-I15-I16-I17-I18-I19-I20-I21","v":-14000},null,null,{"$f":"L8-L12-L11-L13-L14-L15-L16-L17-L18-L19-L20-L21","v":-0.16847172081829129},null,null,{"$f":"O8-O12-O11-O13-O14-O15-O16-O17-O18-O19-O20-O21","v":-1600},null,null,{"$f":"R8-R12-R11-R13-R14-R15-R16-R17-R18-R19-R20-R21","v":-6.6666666666666652E-2},null,null,{"$f":"U8-U12-U11-U13-U14-U15-U16-U17-U18-U19-U20-U21","v":77200},null,null,{"$f":"X8-X12-X11-X13-X14-X15-X16-X17-X18-X19-X20-X21","v":0.41956521739130426},null,null,null,null,null,null,null,null,null,null,-14000,null,null,null,null,null,-1600,null,null,null,null,null,null,77200]
[null,null,null,null,null,null,null,null,"Bitte erst Fortfahren, wenn alle Energieträger vollständig auf die Betriebszweige verteilt wurden!"]
[]
["*) Kraftstoffverbrauch für"]
[null,null,"-","Grundfuttervorlage = Silo: Entnahme und Mischen, Verteilen auf dem Futtertisch"]
[null,null,"-","mobile Entmistung"]
[]
[null,null,null,{"$f":"D21","v":0},0,0,0]
[null,null,null,{"$f":"D20","v":0},0,0,0,null,null,null,null,null,null,null,null,null,null,null,null,null,null,null,null,null,null,null,null,null,null,null,null,null,null,null,"Strom [kWh]",null,null,null,null,null,"Kraftstoff [l]",null,null,null,null,null,null,"Wärme [kWh]"]
[null,null,null,{"$f":"D19","v":0},0,0,0]
[null,null,null,{"$f":"D18","v":0},0,0,0,null,null,null,null,null,null,null,null,null,null,null,null,null,null,null,null,null,null,null,null,{"$f":"C21","v":"Grünland - Ackerbau"},null,null,null,null,null,null,{"$f":"I21","v":0},null,null,null,null,null,{"$f":"O21","v":15000},null,null,null,null,null,null,{"$f":"U21","v":0}]
[null,null,null,{"$f":"D17","v":0},0,0,0,null,null,null,null,null,null,null,null,null,null,null,null,null,null,null,null,null,null,null,null,{"$f":"C20","v":"Geflügelmast"},null,null,null,null,null,null,{"$f":"I20","v":2000},null,null,null,null,null,{"$f":"O20","v":0},null,null,null,null,null,null,{"$f":"U20","v":12000}]
[null,null,null,{"$f":"D16","v":0},0,0,0,null,null,null,null,null,null,null,null,null,null,null,null,null,null,null,null,null,null,null,null,{"$f":"C19","v":"Legehennen"},null,null,null,null,null,null,{"$f":"I19","v":2000},null,null,null,null,null,{"$f":"O19","v":200},null,null,null,null,null,null,{"$f":"U19","v":0}]
[null,null,null,{"$f":"D15","v":0},0,0,0,null,null,null,null,null,null,null,null,null,null,null,null,null,null,null,null,null,null,null,null,{"$f":"C18","v":"Schweinemast Außenklima"},null,null,null,null,null,null,{"$f":"I18","v":2000},null,null,null,null,null,{"$f":"O18","v":1200},null,null,null,null,null,null,{"$f":"U18","v":3000}]
[null,null,null,{"$f":"D14","v":0},0,0,0,null,null,null,null,null,null,null,null,null,null,null,null,null,null,null,null,null,null,null,null,{"$f":"C17","v":"Schweinemast "},null,null,null,null,null,null,{"$f":"I17","v":5000},null,null,null,null,null,{"$f":"O17","v":0},null,null,null,null,null,null,{"$f":"U17","v":6000}]
[null,null,null,{"$f":"D13","v":0},0,0,0,null,null,null,null,null,null,null,null,null,null,null,null,null,null,null,null,null,null,null,null,{"$f":"C16","v":"Ferkelaufzucht"},null,null,null,null,null,null,{"$f":"I16","v":10000},null,null,null,null,null,{"$f":"O16","v":0},null,null,null,null,null,null,{"$f":"U16","v":40000}]
[null,null,null,{"$f":"D11","v":0},0,0,0,null,null,null,null,null,null,null,null,null,null,null,null,null,null,null,null,null,null,null,null,{"$f":"C15","v":"Ferkelerzeugung "},null,null,null,null,null,null,{"$f":"I15","v":20000},null,null,null,null,null,{"$f":"O15","v":0},null,null,null,null,null,null,{"$f":"U15","v":30000}]
[null,null,null,null,null,null,null,null,null,null,null,null,null,null,null,null,null,null,null,null,null,null,null,null,null,null,null,{"$f":"C14","v":"Rindermast"},null,null,null,null,null,null,{"$f":"I14","v":3000},null,null,null,null,null,{"$f":"O14","v":3000},null,null,null,null,null,null,{"$f":"U14","v":0}]
[null,null,null,null,null,null,null,null,null,null,null,null,null,null,null,null,null,null,null,null,null,null,null,null,null,null,null,{"$f":"C13","v":"Milchvieh"},null,null,null,null,null,null,{"$f":"I13","v":50000},null,null,null,null,null,{"$f":"O13","v":4200},null,null,null,null,null,null,{"$f":"U13","v":0}]
[null,null,null,null,null,null,null,null,null,null,null,null,null,null,null,null,null,null,null,null,null,null,null,null,null,null,null,{"$f":"C12","v":"Sonstige Betriebszweige"},null,null,null,null,null,null,{"$f":"I12","v":0},null,null,null,null,null,{"$f":"O12","v":200},null,null,null,null,null,null,{"$f":"U12","v":3800}]
[null,null,null,null,null,null,null,null,null,null,null,null,null,null,null,null,null,null,null,null,null,null,null,null,null,null,null,{"$f":"C11","v":"Privat / Haushalt"},null,null,null,null,null,null,{"$f":"I11","v":3100},null,null,null,null,null,{"$f":"O11","v":1800},null,null,null,null,null,null,{"$f":"U11","v":12000}]
[]
[]
[]
[]
[]
[null,null,null,null,null,null,null,null,null,null,null,null,null,null,null,null,null,null,null,null,null,null,null,null,"AB.1"]

{"sheet":"MV","index":4,"n_rows":49,"n_cols":141,"rows_kept":49,"cut":false,"hidden":false,"merged":[[0,113,0,118],[11,96,11,98],[43,96,43,97],[43,100,43,101],[0,83,0,84],[48,50,48,51],[2,27,2,32],[3,27,3,32],[4,27,4,32],[0,31,0,32],[0,50,0,51],[34,73,34,75],[35,73,35,75],[43,79,43,83],[43,85,43,86],[44,88,44,89],[43,88,43,89],[43,92,43,93],[17,99,17,101],[6,85,6,87],[7,85,7,87],[6,96,6,98],[7,96,7,98],[13,73,13,75],[30,94,30,96],[30,99,30,101],[31,94,31,96],[26,68,26,70],[26,73,26,75],[27,68,27,70],[27,73,27,75],[23,99,23,101],[19,94,19,96],[19,99,19,101],[28,99,28,101],[17,73,17,75],[18,73,18,75],[28,73,28,75],[30,73,30,75],[30,68,30,70],[24,73,24,75],[28,94,28,96],[41,100,41,101],[41,79,41,83],[28,88,28,90],[42,100,42,101],[42,96,42,97],[42,92,42,93],[38,73,38,75],[36,73,36,75],[41,73,41,75],[41,92,41,93],[41,96,41,97],[28,68,28,70],[42,88,42,89],[0,76,0,77],[3,73,3,75],[3,10,3,12],[22,10,22,12],[22,19,22,21],[6,10,6,12],[7,10,7,12],[7,19,7,21],[6,19,6,21],[10,68,10,70],[10,73,10,75],[19,68,19,70],[19,73,19,75],[13,68,13,70],[21,68,21,70],[21,73,21,75],[22,68,22,70],[22,73,22,75],[12,73,12,75],[14,68,14,70],[14,73,14,75],[8,70,8,75],[16,73,16,75],[0,9,0,14],[0,5,0,6],[0,24,0,25],[12,68,12,70],[23,24,23,25],[23,15,23,16],[21,10,21,13],[7,24,7,25],[7,15,7,16],[24,68,24,70],[23,10,23,12],[23,19,23,21],[8,56,8,61],[8,63,8,68],[16,68,16,70],[17,68,17,70],[18,68,18,70],[0,57,0,58],[3,21,3,23],[0,35,0,40],[0,61,0,66],[42,73,42,75],[44,85,44,86],[47,68,47,70],[38,6,38,8],[47,6,47,8],[40,73,40,75],[48,76,48,77],[47,73,47,75],[44,73,44,75],[42,6,42,8],[43,6,43,8],[44,6,44,8],[45,6,45,8],[46,6,46,8],[48,6,48,8],[38,68,38,70],[40,68,40,70],[44,68,44,70],[41,68,41,70],[42,68,42,70],[32,68,32,70],[32,73,32,75],[34,68,34,70],[36,68,36,70],[35,68,35,70],[37,6,37,8],[39,6,39,8],[40,6,40,8],[41,6,41,8],[46,68,46,70],[46,73,46,75],[43,110,43,112],[44,110,44,112],[45,110,45,112],[46,110,46,112],[45,96,45,97],[45,100,45,101],[44,92,44,93],[44,96,44,97],[44,100,44,101],[45,92,45,93],[46,100,46,101],[45,79,45,83],[45,85,45,86],[45,88,45,89],[7,128,7,129],[23,110,23,112],[24,110,24,112],[0,109,0,110],[0,128,0,129],[3,114,3,116],[3,125,3,127],[47,110,47,112],[34,110,34,112],[38,110,38,112],[39,110,39,112],[40,110,40,112],[41,110,41,112],[42,110,42,112],[6,123,6,125],[7,114,7,116],[7,119,7,120],[7,123,7,125],[25,110,25,112],[26,110,26,112],[27,110,27,112],[28,110,28,112],[29,110,29,112],[30,110,30,112],[48,110,48,112],[24,94,24,96],[24,99,24,101],[33,99,33,101],[22,110,22,112],[36,110,36,112],[37,110,37,112],[5,114,5,117],[6,114,6,116],[31,110,31,112],[32,110,32,112],[33,110,33,112],[21,94,21,96],[23,94,23,96],[9,96,9,98],[17,94,17,96],[21,99,21,101],[0,102,0,103],[44,79,44,83],[3,99,3,101],[20,94,20,96],[20,99,20,101],[48,102,48,103],[31,99,31,101],[32,94,32,96],[32,99,32,101],[41,85,41,86],[41,88,41,89],[42,85,42,86],[42,79,42,83],[9,85,9,87],[0,87,0,92]]}
["Energie-Check",null,null,null,null,{"$f":"Betriebsübersicht!F1","v":"V 1.0"},null,null,null,"Milchviehhaltung",null,null,null,null,null," Ergebnisblatt",null,null,null,null,null,null,null,null,null,null,"Energie-Check",null,null,null,null,{"$f":"Betriebsübersicht!F1","v":"V 1.0"},null,null,null,"Milchviehhaltung",null,null,null,null,null,"Infoblatt",null,null,null,null,null,null,null,null,null,null,"Energie-Check",null,null,null,null,{"$f":"Betriebsübersicht!F1","v":"V 1.0"},null,null,null,"Milchviehhaltung",null,null,null,null,null,"Eingabeblatt 1",null,null,null,null,null,null,null,null,null,null,"Energie-Check",null,null,null,null,{"$f":"Betriebsübersicht!F1","v":"V 1.0"},null,null,null,"Milchviehhaltung",null,null,null,null,null,"Eingabeblatt 2",null,null,null,null,null,null,null,null,null,null,"Energie-Check",null,null,null,null,{"$f":"Betriebsübersicht!F1","v":"V 1.0"},null,null,null,"Milchviehhaltung",null,null,null,null,null," Ergebnisblatt Vgl. SOLL - IST"]
[null,null,null,null,null,null,null,null,null,null,null,null,null,null,null,null,null,null,null,null,null,null,null,null,null,null,null,null,null,null,null,null,null,null,null,null,null,null,null,null,null,null,null,null,null,null,null,null,null,null,null,null,"Detailbetrachtung",null,null,null,null,null,null,null,null,null,null,null,null,null,null,null,null,null,null,null,null,null,null,null,null,null,"Detailbetrachtung",null,null,null,null,null,null,null,null,null,null,null,null,null,null,null,null,null,null,null,null,null,null,null,null,null,"Detailbetrachtung"]
[null,null,null,null,null,null,null,null,null,null,null,null,null,null,null,null,null,null,null,null,null,null,null,null,null,null,null,"Eingabefelder",null,null,null,null,null,null,"Felder für die Eingabe betrieblicher Daten",null,null,null,null,null,null,null,null,null,null,null,null,null,null,null,null,null,"Berechnung Stromverbrauch - Technische Ausstattung",null,null,null,null,null,null,null,null,null,null,null,null,null,null,null,null,null,null,null,null,null,null,null,null,null,"Berechnung Dieselverbrauch mit Futtermischwagen - SOLL:"]
[null,null,null,null,null,null,null,null,null,"Anzahl Milchkühe ",{"$f":"Betriebsübersicht!J31","v":82},null,null,null,null,null,"Abrechnungsjahr",null,null,null,null,{"$f":"Energieeinsatz!AV4","v":2021},null,null,null,null,null,"berechnete Felder",null,null,null,null,null,null,"Felder die vom Programm berechnet werden",null,null,null,null,null,null,null,null,null,null,null,null,null,null,null,null,null,null,null,null,null,null,null,null,null,null,null,null,null,null,null,null,null,"Abrechnungsjahr",null,null,null,null,{"$f":"V4","v":2021},null,null,null,null,null,null,null,null,null,null,null,null,null,null,null,null,null,null,null,null,"Abrechnungsjahr",null,null,null,null,{"$f":"V4","v":2021},null,null,null,null,null,null,null,null,null,null,null,null,null,"Anzahl Milchkühe ",{"$f":"K4","v":82},null,null,null,null,null,"Abrechnungsjahr",null,null,null,null,{"$f":"V4","v":2021}]
[null,null,null,null,null,null,null,null,null,null,null,null,null,null,null,null,null,null,null,null,null,null,null,null,null,null,null,"Werte",null,null,null,null,null,null,"Werte die aus Eingebefeldern übernommen wurden bzw. ",null,null,null,null,null,null,null,null,null,null,null,null,null,null,null,null,null,null,null,null,null,null,null,null,null,null,null,null,null,null,null,null,null,null,null,null,null,null,null,null,null,null,null,null,"Hier kann der Dieseleinsatz anhand der Futtermenge berechnet werden."]
[null,null,null,null,null,null,null,null,null,null,"Strom",null,null,null,null,null,null,null,null,"Diesel - Grundfuttervorlage",null,null,null,null,null,null,null,null,null,null,null,null,null,null,null,"-","Felder mit hinterlegten Werten",null,null,null,null,null,null,null,null,null,null,null,null,null,null,null,null,"Sollwerte: durchschnittliche Verbrauchskennzahlen aus zeitgemäßen Tiehaltungsanlagen",null,null,null,null,null,null,null,null,null,null,null,null,null,null,null,null,null,null,null,null,null,null,null,null,null,null,"pro Milchkuh",null,null,null,null,null,null,null,null,null,null,null,null,null,null,null,null,null,null,null,null,null,null,null,null,null,null,null,null,null,null,null,null,null,"Strom",null,null,null,null,null,null,null,null,"Diesel - Grundfuttervorlage"]
[null,null,null,"Gesamtverbrauch",null,null,null,null,null,null,{"$f":"'Abgrenzung BZ'!AI8","v":83100},null,null,"kWh",null,null,null,null,null,{"$f":"'Abgrenzung BZ'!AO8","v":24000},null,null,"Liter",null,null,null,null,null,null,null,null,null,null,null,null,"-","Felder mit hinterlegten Faktoren",null,null,null,null,null,null,null,null,null,null,null,null,null,null,null,null,"Istwerte: ",null,null,"Bitte hier betriebliche Daten eintragen, Sollwert kann als Anhaltspunkt dienen.",null,null,null,null,null,null,null,null,null,null,null,null,null,null,null,null,null,null,null,null,null,null,null,null,null,null,null,"Frischmasse: ",70,null,null,"kg FM/Kuh/Tag",null,null,null,null,null,null,"Diesel: ",2.4,null,null,"l Diesel / t FM",null,null,null,null,null,null,null,"pro Milchkuh - SOLL",null,null,null,null,null,null,400,null,null,"kWh",null,null,null,null,null,60,null,null,"Liter"]
[null,"davon",null,"Verbrauch Milchvieh",null,null,null,null,null,null,{"$f":"'Abgrenzung BZ'!AI13","v":50000},null,null,"kWh",null,{"$f":"K8/K7","v":0.60168471720818295},null,null,null,{"$f":"'Abgrenzung BZ'!AO13","v":4200},null,null,"Liter",null,{"$f":"T8/T7","v":0.17499999999999999},null,null,null,null,null,null,null,null,null,null,null,null,null,null,null,null,null,null,null,null,null,null,null,null,null,null,null,null,null,null,null,"Falls keine Messwerte vorhanden, Schätzwerte eingeben!",null,null,null,null,null,null,null,null,null,null,null,null,null,null,null,null,null,null,null,null,null,null,null,null,null,null,null,null,{"$f":"CH7*365/1000","v":25.55},null,null,"t FM/Kuh/Jahr",null,null,null,null,null,null,null,{"$f":"CH8*CS7","v":61.32},null,null,"l Diesel / Jahr",null,null,null,null,null,null,null,"pro Milchkuh - IST",null,null,null,null,null,null,{"$f":"BV47","v":638},null,null,"kWh",null,{"$f":"DK8/DK7","v":1.595},null,null,null,{"$f":"CS8","v":61.32},null,null,"Liter",null,{"$f":"DT8/DT7","v":1.022}]
["Anteil am Gesamtverbrauch",null,null,null,null,null,null,null,null,null,null,null,null,null,null,null,null,null,null,null,null,null,null,null,null,null,null,null,null,null,null,null,null,null,null,null,null,null,null,null,null,null,null,null,null,null,null,null,null,null,null,null,null,null,null,null,"Eingabefelder",null,null,null,null,null,null,"berechnete Felder",null,null,null,null,null,null,"Werte",null,null,null,null,null,null,null,null,null,"Betrieb"]
[null,null,null,null,null,null,null,null,null,null,null,null,null,null,null,null,null,null,null,null,null,null,null,null,null,null,"Hauptverbrauchsbereiche sind die Milchgewinnung und die Milchkühlung mit einem Anteil",null,null,null,null,null,null,null,null,null,null,null,null,null,null,null,null,null,null,null,null,null,null,null,null,null,"pro Milchkuh",null,null,null,null,null,null,null,null,null,null,null,null,null,null,null,null,null,"Verbrauchswert",null,null,null,null,null,null,null,null,null,null,null,null,null,"Frischmasse: ",{"$f":"CH8*K4","v":2095.1},null,null,"t FM/Jahr",null,null,null,null,null,null,"Diesel: ",{"$f":"CS8*K4","v":5028.24},null,null,"l Diesel / Jahr"]
[null,null,null,null,null,null,null,null,null,null,null,null,null,null,null,null,null,null,null,null,null,null,null,null,null,null,null,"bis über 60 % des Gesamtstromverbrauchs.",null,null,null,null,null,null,null,null,null,null,null,null,null,null,null,null,null,null,null,null,null,null,null,null,null,null,null,null,null,null,null,null,null,null,null,null,null,null,null,null,"SOLL",null,null,null,null,"IST"]
[null,null,null,null,null,null,null,null,null,null,null,null,null,null,null,null,null,null,null,null,null,null,null,null,null,null,"Die Vakuumversorgung für den Milchentzug und für die Spülung der Melkanlage weist den ",null,null,null,null,null,null,null,null,null,null,null,null,null,null,null,null,null,null,null,null,null,null,null,null,null,null,"Milchgewinnung - Melksystem:",null,null,null,null,null,null,null,null,null,null,null,null,null,null,null,null,null,null,null,null,null,null,null,null,null,null,null,null,null,null,"Vergleich:"," Dieselverbrauch lt. Abgrenzung BZ",null,null,null,null,null,null,null,null,null,null,{"$f":"T8","v":4200},null,null,"l Diesel / Jahr"]
[null,null,null,null,null,null,null,null,null,null,null,null,null,null,null,null,null,null,null,null,null,null,null,null,null,null,null,"höchsten Stromverbrauch bei der Milchgewinnung aus. Weitere technische Anlagen bei der ",null,null,null,null,null,null,null,null,null,null,null,null,null,null,null,null,null,null,null,null,null,null,null,null,null,null,null,null,null,null,null,null,null,null,null,null,null,null,null,"Melkstand (Vakuumpumpe nicht frequenzgeregelt) ",140,null,null,"kWh",null,null,null,null,"kWh",null,null,"(FM = Frischmasse)",null,null,null,null,null,"(BZ=Betriebszweig)"]
[null,null,null,null,null,null,null,null,null,null,null,null,null,null,null,null,null,null,null,null,null,null,null,null,null,null,null,"Milchgewinnung mit geringerem Strombedarf sind die Milchpumpe, die Beleuchtung des ",null,null,null,null,null,null,null,null,null,null,null,null,null,null,null,null,null,null,null,null,null,null,null,null,null,null,null,null,null,null,null,null,null,null,null,null,null,null,null,"Melkstand (Vakuumpumpe frequenzgeregelt) ",88,null,null,"kWh",null,200,null,null,"kWh"]
[null,null,null,null,null,null,null,null,null,null,null,null,null,null,null,null,null,null,null,null,null,null,null,null,null,null,null,"Melkstands und Kompressoren für die Drucklufterzeugung. Der Druckluftbedarf bei",null,null,null,null,null,null,null,null,null,null,null,null,null,null,null,null,null,null,null,null,null,null,null,null,null,null,null,null,null,null,null,null,null,null,null,null,null,null,null,"Melkroboter (AMS - automatisches Melksystem) ",120,null,null,"kWh",null,null,null,null,"kWh"]
[null,null,null,null,null,null,null,null,null,null,null,null,null,null,null,null,null,null,null,null,null,null,null,null,null,null,null,"Melkroboterbetrieben (pneumatische Abnahmeautomatik der Melkzeuge und Steuerung ",null,null,null,null,null,null,null,null,null,null,null,null,null,null,null,null,null,null,null,null,null,null,null,null,null,null,null,null,null,null,null,null,null,null,null,null,null,null,null,null,null,null,null,null,null,null,null,null,null,null,"Berechnung Stromverbrauch Automatische Grundfuttervorlage (AFS) - SOLL:"]
[null,null,null,null,null,null,null,null,null,null,null,null,null,null,null,null,null,null,null,null,null,null,null,null,null,null,null,"der Tore, bei neueren Melkrobotersystemen sind diese mit Elektromotoren ausgestattet)",null,null,null,null,null,null,null,null,null,null,null,null,null,null,null,null,null,null,null,null,null,null,null,null,null,"Milchkühlung:",null,null,null,null,null,null,null,null,null,null,null,null,null,"Direktkühlung ",118,null,null,"kWh",null,162,null,null,"kWh",null,null,"pro Milchkuh",null,null,null,null,null,null,null,null,null,null,null,null,null,null,null,null,"Verbrauchswert"]
[null,null,null,null,null,null,null,null,null,null,null,null,null,null,null,null,null,null,null,null,null,null,null,null,null,null,null,"ist höher als bei Betrieben mit konventionellen Melksystemen. ",null,null,null,null,null,null,null,null,null,null,null,null,null,null,null,null,null,null,null,null,null,null,null,null,null,null,null,null,null,null,null,null,null,null,null,null,null,null,null,"Direktkühlung mit Vorkühlung ",72,null,null,"kWh",null,null,null,null,"kWh",null,null,"(AFS - automatisches Fütterungssystem)",null,null,null,null,null,null,null,null,null,null,null,null,null,null,"SOLL",null,null,null,null,"IST"]
[null,null,null,null,null,null,null,null,null,null,null,null,null,null,null,null,null,null,null,null,null,null,null,null,null,null,"Für die Abkühlung der Milch können Direktkühlung oder indirekte Kühlsysteme mit Eiswasser ",null,null,null,null,null,null,null,null,null,null,null,null,null,null,null,null,null,null,null,null,null,null,null,null,null,null,null,null,null,null,null,null,null,null,null,null,null,null,null,null,"Eiswasserkühlung ",142,null,null,"kWh",null,null,null,null,"kWh"]
[null,null,null,null,null,null,null,null,null,null,null,null,null,null,null,null,null,null,null,null,null,null,null,null,null,null,null,"genutzt werden. Direktkühlungen haben einen höheren Wirkungsgrad als Eiswasseranlagen ",null,null,null,null,null,null,null,null,null,null,null,null,null,null,null,null,null,null,null,null,null,null,null,null,null,null,null,null,null,null,null,null,null,null,null,null,null,null,null,"Eiswaserkühlung mit Vorkühlung ",86,null,null,"kWh",null,null,null,null,"kWh",null,null,null,null,null,null,null,null,null,null,null,null,null,null,null,null,"Futterentnahme (Silo, Heu, Stroh) und befüllen Bunker ",10,null,null,"kWh",null,null,null,null,"kWh"]
[null,null,null,null,null,null,null,null,null,null,null,null,null,null,null,null,null,null,null,null,null,null,null,null,null,null,null,"(Umwandlungs- und Lagerverluste), der Leistungsbedarf ist jedoch höher. Der Vorteil von ",null,null,null,null,null,null,null,null,null,null,null,null,null,null,null,null,null,null,null,null,null,null,null,null,null,"Melkanlagen-/Tankreinigung - Wärmerückgewinnung (WRG) aus der Milchkühlung:",null,null,null,null,null,null,null,null,null,null,null,null,null,null,null,null,null,null,null,null,null,null,null,null,null,null,null,null,null,null,null,null,null,null,null,null,null,null,null,"Futter auflösen, bervorraten und fördern in Mischer ",40,null,null,"kWh",null,null,null,null,"kWh",null,"Zusammensetzung des Sollwerts (ohne Kälber und AFS = automatisches Fütterungssystem)"]
[null,null,null,null,null,null,null,null,null,null,"Strom",null,null,null,null,null,null,null,null,"Diesel - Grundfuttervorlage",null,null,null,null,null,null,null,"Eiswasserkühlungen ist, dass unabhängig von den Melkzeiten Eiswasser produziert und ",null,null,null,null,null,null,null,null,null,null,null,null,null,null,null,null,null,null,null,null,null,null,null,null,null,null,null,null,null,null,null,null,null,null,null,null,null,null,null,"Warmwasserbereitung ohne WRG und Elektroboiler ",98,null,null,"kWh",null,null,null,null,"kWh",null,null,null,null,null,null,null,null,null,null,null,null,null,null,null,null,"Futter mischen und verteilen (Roboter/Band) ",60,null,null,"kWh",null,null,null,null,"kWh"]
[null,null,null,"pro Milchkuh - SOLL",null,null,null,null,null,null,400,null,null,"kWh",null,null,null,null,null,60,null,null,"Liter",null,null,null,null,"somit höhere Nutzungspotenziale für selbst erzeugten Solarstrom ausgenutzt werden kann. ",null,null,null,null,null,null,null,null,null,null,null,null,null,null,null,null,null,null,null,null,null,null,null,null,null,null,null,null,null,null,null,null,null,null,null,null,null,null,null,"Warmwasserbereitung mit WRG und Elektroboiler ",52,null,null,"kWh",null,86,null,null,"kWh",null,null,null,null,null,null,null,null,null,null,null,null,null,null,null,null,null,null,null,null,null,null,null,null,null,null,null,null,null,null,null,null,null,"Soll"]
[null,null,null,"pro Milchkuh - IST",null,null,null,null,null,null,{"$f":"K8/$K$4","v":609.7560975609756},null,null,"kWh",null,{"$f":"K24/K23","v":1.524390243902439},null,null,null,{"$f":"T8/K4","v":51.219512195121951},null,null,"Liter",null,{"$f":"T24/T23","v":0.85365853658536583},null,"Größere Verbraucher im Milchviehstall sind Beleuchtungseinrichtungen, Zusatzlüftung",null,null,null,null,null,null,null,null,null,null,null,null,null,null,null,null,null,null,null,null,null,null,null,null,null,null,null,null,null,null,null,null,null,null,null,null,null,null,null,null,null,null,null,null,null,null,null,null,null,null,null,null,"Kraftfutteraufbereitung:",null,null,null,null,null,null,null,null,null,null,null,null,null,"Mahl- und Mischanlage ",40,null,null,"kWh",null,null,null,null,"kWh",null,null,null,null,null,null,null,"kWh",null,null,null,null,null,null,null,null,null,null,null,null,null,null,null,null,null,null,null,null,null,null,null,null,null,"IST",null,null,null,"Soll"]
["Zusammensetzung des Sollwerts (ohne Kälber und AFS = automatisches Fütterungssystem)",null,null,null,null,null,null,null,null,null,null,null,null,null,null,null,null,null,null,null,null,null,null,null,null,null,null,"(Ventilatoren), Frostsicherungssysteme für Tränkbecken und Wasserleitungen, ",null,null,null,null,null,null,null,null,null,null,null,null,null,null,null,null,null,null,null,null,null,null,null,null,null,"Summe Milchgewinnung",null,null,null,null,null,null,null,null,null,null,null,null,null,null,260,null,null,"kWh",null,{"$f":"SUM(BV13:BX23)","v":448},null,null,"kWh",null,null,"Summe AFS",null,null,null,null,null,null,null,null,null,null,null,null,null,null,120,null,null,null,null,{"$f":"SUM(CV20:CX24)","v":0},null,null,null,null,null,"Milchgewinnung",null,null,null,null,120,null,null,null,null,null,null,null,null,null,null,null,null,null,null,null,null,null,null,null,null,{"$f":"DB35","v":"AFS"},{"$f":"DC35","v":0},0,0,0,{"$f":"DG49","v":0},null,null,null,{"$f":"DG35","v":120}]
[null,null,null,null,null,null,null,null,null,null,null,null,null,null,null,null,null,null,null,null,null,null,null,null,null,null,null,"Güllerührwerke und –pumpen. Weitere Verbraucher mit eher geringerem Strombedarf sind",null,null,null,null,null,null,null,null,null,null,null,null,null,null,null,null,null,null,null,null,null,null,null,null,null,null,null,null,null,null,null,null,null,null,null,null,null,null,null,null,null,null,null,null,null,null,null,null,null,null,null,null,null,null,null,null,null,null,null,null,null,null,null,null,null,null,null,null,null,null,null,null,null,null,null,null,null,"Milchkühlung",null,null,null,null,90,null,null,null,null,null,null,null,null,null,null,null,null,null,null,null,null,null,null,null,null,{"$f":"DB34","v":"Kälber"},{"$f":"DC34","v":0},0,0,0,{"$f":"DG48","v":62},null,null,null,{"$f":"DG34","v":40}]
[null,null,null,null,null,null,null,null,null,null,null,null,null,null,null,null,null,null,null,null,null,null,null,null,null,null,null,"Einrichtungen für die Kraftfuttervorlage, stationäre Entmistungssysteme, Kuhbürsten, ",null,null,null,null,null,null,null,null,null,null,null,null,null,null,null,null,null,null,null,null,null,null,null,null,null,"Beleuchtung:",null,null,null,null,3,"h/d",null,null,null,null,null,null,null,"Leuchtstoffröhren ",36,null,null,"kWh",null,null,null,null,"kWh",null,null,null,null,null,null,null,null,null,null,null,null,null,null,null,null,null,null,null,null,null,null,null,null,null,null,null,null,"Reinigung",null,null,null,null,50,null,null,null,null,null,null,null,null,null,null,null,null,null,null,null,null,null,null,null,null,{"$f":"DB33","v":"Sonstige"},{"$f":"DC33","v":0},0,0,0,{"$f":"DG47","v":22},null,null,null,{"$f":"DG33","v":20}]
[null,null,null,null,null,null,null,null,null,null,null,null,null,null,null,null,null,null,null,null,null,null,null,null,null,null,null,"Windschutznetze, Hochdruckreiniger und die Büroausstattung. ",null,null,null,null,null,null,null,null,null,null,null,null,null,null,null,null,null,null,null,null,null,null,null,null,null,null,null,null,null,null,null,null,null,null,null,null,null,null,null,"Metalldampflampen ",24,null,null,"kWh",null,30,null,null,"kWh",null,"Berechnung Stromverbrauch Kälber - SOLL:",null,null,null,null,null,null,null,null,null,null,null,null,null,null,null,null,null,null,null,null,null,null,null,null,null,null,"Beleuchtung",null,null,null,null,30,null,null,null,null,null,null,null,null,null,null,null,null,null,null,null,null,null,null,null,null,{"$f":"DB32","v":"Lüftung"},{"$f":"DC32","v":0},0,0,0,{"$f":"DG46","v":16},null,null,null,{"$f":"DG32","v":40}]
[null,null,null,null,null,null,null,null,null,null,null,null,null,null,null,null,null,null,null,null,null,null,null,null,null,null,null,null,null,null,null,null,null,null,null,null,null,null,null,null,null,null,null,null,null,null,null,null,null,null,null,null,null,null,null,null,null,null,null,null,null,null,null,null,null,null,null,"LED-Leuchten ",10,null,null,"kWh",null,null,null,null,"kWh",null,null,null,null,null,null,null,null,null,null,"Anzahl Kälber",40,null,null,null,null,null,"IST",null,null,null,null,"IST",null,null,null,null,null,"Frostsicherung",null,null,null,null,20,null,null,null,null,null,null,null,null,null,null,null,null,null,null,null,null,null,null,null,null,{"$f":"DB31","v":"Entmistung"},{"$f":"DC31","v":0},0,0,0,{"$f":"DG45","v":22},null,null,null,{"$f":"DG31","v":20}]
[null,null,null,null,null,null,null,null,null,null,null,null,null,null,null,null,null,null,null,null,null,null,null,null,null,null,null,null,null,null,null,null,null,null,null,null,null,null,null,null,null,null,null,null,null,null,null,null,null,null,null,null,null,null,null,null,null,null,null,null,null,null,null,null,null,null,null,null,null,null,null,null,null,null,null,null,null,null,null,null,null,null,null,null,null,null,null,null,null,null,null,null,null,null,null,null,null,null,null,null,null,null,null,null,null,"Fütterung (KF)",null,null,null,null,10,null,null,null,null,null,null,null,null,null,null,null,null,null,null,null,null,null,null,null,null,{"$f":"DB30","v":"Fütterung (KF)"},{"$f":"DC30","v":0},0,0,0,{"$f":"DG44","v":4},null,null,null,{"$f":"DG30","v":10}]
[null,null,null,null,null,null,null,null,null,null,null,null,null,null,null,null,null,null,null,null,null,null,null,null,null,null,"Handlungsempfehlungen:",null,null,null,null,null,null,null,null,null,null,null,null,null,null,null,null,null,null,null,null,null,null,null,null,null,null,"Frostsicherung:",null,null,null,null,null,null,null,null,null,null,null,null,null,"Zirkulation / Begleitheizung ",20,null,null,"kWh",null,34,null,null,"kWh",null,null,null,null,null,null,null,null,null,null,null,null,null,null,null,null,"Milch- und MAT-Tränken ",40,null,null,"kWh",null,62,null,null,"kWh",null,null,"Entmistung",null,null,null,null,20,null,null,null,null,null,null,null,null,null,null,null,null,null,null,null,null,null,null,null,null,{"$f":"DB29","v":"Frostsicherung"},{"$f":"DC29","v":0},0,0,0,{"$f":"DG43","v":34},null,null,null,{"$f":"DG29","v":20}]
[null,null,null,null,null,null,null,null,null,null,null,null,null,null,null,null,null,null,null,null,null,null,null,null,null,null,null,"Melken",null,null,null,null,null,null,null,null,null,null,null,null,null,null,null,null,null,null,null,null,null,null,null,null,null,null,null,null,null,null,null,null,null,null,null,null,null,null,null,null,null,null,null,null,null,null,null,null,null,null,null,null,null,null,null,null,null,null,null,null,null,null,null,null,null,"Futterautomat ",40,null,null,"kWh",null,null,null,null,"kWh",null,null,"Lüftung",null,null,null,null,40,null,null,null,null,null,null,null,null,null,null,null,null,null,null,null,null,null,null,null,null,{"$f":"DB28","v":"Beleuchtung"},{"$f":"DC28","v":0},0,0,0,{"$f":"DG42","v":30},null,null,null,{"$f":"DG28","v":30}]
[null,null,null,null,null,null,null,null,null,null,null,null,null,null,null,null,null,null,null,null,null,null,null,null,null,null,null,null,"-","Zügiges Melken (Verkürzung der Melkzeiten)",null,null,null,null,null,null,null,null,null,null,null,null,null,null,null,null,null,null,null,null,null,null,null,"Fütterung:",null,null,null,null,null,null,null,null,null,null,null,null,null,"Kraftfutterautomat ",6,null,null,"kWh",null,4,null,null,"kWh",null,null,null,null,null,null,null,null,null,null,null,null,null,null,null,null,"Warmwasserbereitung mit Elektroboiler ",10,null,null,"kWh",null,null,null,null,"kWh",null,null,"Sonstige",null,null,null,null,20,null,null,null,null,null,null,null,null,null,null,null,null,null,null,null,null,null,null,null,null,{"$f":"DB27","v":"Reinigung"},{"$f":"DC27","v":0},0,0,0,{"$f":"DG41","v":86},null,null,null,{"$f":"DG27","v":50}]
[null,null,null,null,null,null,null,null,null,null,null,null,null,null,null,null,null,null,null,null,null,null,null,null,null,null,null,null,"-","Angepasste Auslegung und Frequenzregelung der Vakuumpumpe",null,null,null,null,null,null,null,null,null,null,null,null,null,null,null,null,null,null,null,null,null,null,null,null,null,null,null,null,null,null,null,null,null,null,null,null,null,null,null,null,null,null,null,null,null,null,null,null,null,"Summe Kälber",null,null,null,null,null,null,null,null,null,null,null,null,null,null,null,null,null,null,null,{"$f":"SUM(CV31:CX33)","v":62},null,null,null,null,null,"Kälber",null,null,null,null,40,null,null,null,null,null,null,null,null,null,null,null,null,null,null,null,null,null,null,null,null,{"$f":"DB26","v":"Milchkühlung"},{"$f":"DC26","v":0},0,0,0,{"$f":"DG40","v":162},null,null,null,{"$f":"DG26","v":90}]
[null,null,null,null,null,null,null,null,null,null,null,null,null,null,null,null,null,null,null,null,null,null,null,null,null,null,null,"Kühlen",null,null,null,null,null,null,null,null,null,null,null,null,null,null,null,null,null,null,null,null,null,null,null,null,null,"Entmistung:",null,null,null,null,null,null,null,null,null,null,null,null,null,"Faltschieber ",16,null,null,"kWh",null,22,null,null,"kWh",null,null,null,null,null,null,null,null,null,null,null,null,null,null,null,null,null,null,null,null,null,null,null,null,null,null,null,null,"AFS",null,null,null,null,120,null,null,null,null,null,null,null,null,null,null,null,null,null,null,null,null,null,null,null,null,{"$f":"DB25","v":"Milchgewinnung"},{"$f":"DC25","v":0},0,0,0,{"$f":"DG39","v":200},null,null,null,{"$f":"DG25","v":120}]
[null,null,null,null,null,null,null,null,null,null,null,null,null,null,null,null,null,null,null,null,null,null,null,null,null,null,null,null,"-","Ein Vorkühler senkt die Milchtemperatur vor dem Einlauf in den Milchtank",null,null,null,null,null,null,null,null,null,null,null,null,null,null,null,null,null,null,null,null,null,null,null,null,null,null,null,null,null,null,null,null,null,null,null,null,null,"Spaltenroboter ",10,null,null,"kWh",null,null,null,null,"kWh"]
[null,null,null,null,null,null,null,null,null,null,null,null,null,null,null,null,null,null,null,null,null,null,null,null,null,null,null,null,"-","Bedarfsgerechte Auslegung des Kälteaggregats und der Milchtankgröße",null,null,null,null,null,null,null,null,null,null,null,null,null,null,null,null,null,null,null,null,null,null,null,null,null,null,null,null,null,null,null,null,null,null,null,null,null,"Güllepumpe ",8,null,null,"kWh",null,null,null,null,"kWh",null,"Berechnungshilfe elektrische Energie:",null,null,null,null,null,null,null,null,null,null,null,null,null,null,null,null,null,null,null,null,null,null,null,null,null,null,null,null,null,null,null,"IST"]
[null,null,null,null,null,null,"kWh",null,null,null,null,null,null,null,null,null,null,null,null,null,null,null,null,null,null,null,null,null,"-","Aufstellort des Kühlaggregats an einem kühlen Platz mit genügend Luftzirkulation",null,null,null,null,null,null,null,null,null,null,null,null,null,null,null,null,null,null,null,null,null,null,null,null,null,null,null,null,null,null,null,null,null,null,null,null,null,null,null,null,null,null,null,null,null,null,null,null,null,"Hier kann mittels Leistung und Laufzeit der Jahresstromverbrauch der einzelnen",null,null,null,null,null,null,null,null,null,null,null,null,null,null,null,null,null,null,null,null,null,null,null,null,null,null,null,null,null,null,"kWh"]
[null,"Milchgewinnung",null,null,null,null,120,null,null,null,null,null,null,null,null,null,null,null,null,null,null,null,null,null,null,null,null,null,"-","Bauliche Trennung von Milchlagerraum und Kompressor ",null,null,null,null,null,null,null,null,null,null,null,null,null,null,null,null,null,null,null,null,null,null,null,"Lüftung:",null,null,null,null,null,null,null,null,null,null,null,null,null,"Ventilatoren ",42,null,null,"kWh",null,16,null,null,"kWh",null,null,"Systemkomponenten berechnet werden.",null,null,null,null,null,null,null,null,null,null,null,null,null,null,null,null,null,null,null,null,null,null,null,null,null,"Milchgewinnung",null,null,null,null,{"$f":"SUM(BV13:BX15)","v":200}]
[null,"Milchkühlung",null,null,null,null,90,null,null,null,null,null,null,null,null,null,null,null,null,null,null,null,null,null,null,null,null,null,"-","Milchtank in Raum mit niedrigen Temperaturen (Nordseite)",null,null,null,null,null,null,null,null,null,null,null,null,null,null,null,null,null,null,null,null,null,null,null,null,null,null,null,null,null,null,null,null,null,null,null,null,null,null,null,null,null,null,null,null,null,null,null,null,null,null,null,null,null,null,null,null,null,null,null,null,null,null,null,null,null,null,null,null,null,null,null,null,null,null,null,"Milchkühlung",null,null,null,null,{"$f":"SUM(BV17:BX20)","v":162}]
[null,"Reinigung",null,null,null,null,50,null,null,null,null,null,null,null,null,null,null,null,null,null,null,null,null,null,null,null,null,null,"-","Regelmäßige Wartung (Kältemittelstand, Sauberkeit des Aggregats, …)",null,null,null,null,null,null,null,null,null,null,null,null,null,null,null,null,null,null,null,null,null,null,null,"Sonstige:",null,null,null,null,null,null,null,null,null,null,null,null,null,"Kuhbürsten ",12,null,null,"kWh",null,14,null,null,"kWh",null,null,"Verbraucher",null,null,null,null,null,"Anzahl",null,null,"Leistung",null,null,null,"Laufzeit",null,null,null,"Tage",null,null,null,"Strom",null,null,null,null,"Reinigung",null,null,null,null,{"$f":"SUM(BV22:BX23)","v":86}]
[null,"Beleuchtung",null,null,null,null,30,null,null,null,null,null,null,null,null,null,null,null,null,null,null,null,null,null,null,null,null,"Warmwasserbereitung",null,null,null,null,null,null,null,null,null,null,null,null,null,null,null,null,null,null,null,null,null,null,null,null,null,null,null,null,null,null,null,null,null,null,null,null,null,null,null,"Windschutznetze ",6,null,null,"kWh",null,8,null,null,"kWh",null,null,"HDR",null,null,null,null,null,1,null,null,2.6,null,"kW",null,0.5,null,"h",null,20,null,"d",null,{"$f":"CH42*CK42*CO42*CS42","v":26},null,"kWh",null,null,"Beleuchtung",null,null,null,null,{"$f":"SUM(BV27:BX29)","v":30}]
[null,"Frostsicherung",null,null,null,null,20,null,null,null,null,null,null,null,null,null,null,null,null,null,null,null,null,null,null,null,null,null,"-","Mit Wärmerückgewinnungssystemen wird die Abwärme die beim Abkühlen der",null,null,null,null,null,null,null,null,null,null,null,null,null,null,null,null,null,null,null,null,null,null,null,null,null,null,null,null,null,null,null,null,null,null,null,null,null,"Wasserpumpen ",18,null,null,"kWh",null,null,null,null,"kWh",null,null,"Gebläse",null,null,null,null,null,1,null,null,1.5,null,"kW",null,8,null,"h",null,20,null,"d",null,{"$f":"CH43*CK43*CO43*CS43","v":240},null,"kWh",null,null,"Frostsicherung",null,null,null,null,{"$f":"BV31","v":34}]
[null,"Fütterung (KF)",null,null,null,null,10,null,null,null,null,null,null,null,null,null,null,null,null,null,null,null,null,null,null,null,null,null,null,"Milch entsteht, für die Erwärmung des Brauchwassers genutzt.",null,null,null,null,null,null,null,null,null,null,null,null,null,null,null,null,null,null,null,null,null,null,null,null,null,null,null,null,null,null,null,null,null,null,null,null,null,null,null,null,null,null,null,null,null,null,null,null,null,"Getreidemühle",null,null,null,null,null,1,null,null,7.5,null,"kW",null,1.5,null,"h",null,120,null,"d",null,{"$f":"CH44*CK44*CO44*CS44","v":1350},null,"kWh",null,null,"Fütterung (KF)",null,null,null,null,{"$f":"BV33","v":4}]
[null,"Entmistung",null,null,null,null,20,null,null,null,null,null,null,null,null,null,null,null,null,null,null,null,null,null,null,null,null,"Stall",null,null,null,null,null,null,null,null,null,null,null,null,null,null,null,null,null,null,null,null,null,null,null,null,null,"Summe Milchviehstall",null,null,null,null,null,null,null,null,null,null,null,null,null,null,140,null,null,"kWh",null,{"$f":"SUM(BV27:BX43)","v":128},null,null,"kWh",null,null,"Leuchtstoffröhren",null,null,null,null,null,40,null,null,7.0000000000000007E-2,null,"kW",null,3.5,null,"h",null,365,null,"d",null,{"$f":"CH45*CK45*CO45*CS45","v":3577.0000000000005},null,"kWh",null,null,"Entmistung",null,null,null,null,{"$f":"SUM(BV35:BX37)","v":22}]
[null,"Lüftung",null,null,null,null,40,null,null,null,null,null,null,null,null,null,null,null,null,null,null,null,null,null,null,null,null,null,"-","Beleuchtung: Umrüstung auf LED",null,null,null,null,null,null,null,null,null,null,null,null,null,null,null,null,null,null,null,null,null,null,null,null,null,null,null,null,null,null,null,null,null,null,null,null,null,null,null,null,null,null,null,null,null,null,null,null,null,null,null,null,null,null,null,null,null,null,null,null,"kW",null,null,null,"h",null,null,null,"d",null,0,null,"kWh",null,null,"Lüftung",null,null,null,null,{"$f":"BV39","v":16}]
[null,"Sonstige",null,null,null,null,20,null,null,null,null,null,null,null,null,null,null,null,null,null,null,null,null,null,null,null,null,null,"-","Frostsichere Verlegung der Wasserleitungen",null,null,null,null,null,null,null,null,null,null,null,null,null,null,null,null,null,null,null,null,null,null,null,"Gesamt Milch + Stall + Kälber pro Platz",null,null,null,null,null,null,null,null,null,null,null,null,null,null,{"$f":"BQ25+BQ45","v":400},null,null,"kWh",null,{"$f":"BV25+BV45+CV31","v":638},null,null,"kWh",null,null,null,null,null,null,null,null,null,null,null,null,null,null,null,null,null,null,null,null,null,null,null,{"$f":"SUM(CW42:CX46)","v":5193},null,"kWh",null,null,"Sonstige",null,null,null,null,{"$f":"SUM(BV41:BX43)","v":22}]
[null,"Kälber",null,null,null,null,40,null,null,null,null,null,null,null,null,null,null,null,null,null,null,null,null,null,null,null,null,null,"-","Einbau hocheffizienter Antriebe und Pumpen",null,null,null,null,null,null,null,null,null,null,null,null,null,null,null,null,null,null,null,null,null,null,null,"Gesamt Milch + Stall + Kälber",null,null,null,null,null,null,null,null,null,null,null,null,null,null,{"$f":"BQ47*K4","v":32800},null,null,null,null,{"$f":"BV47*K4","v":52316},null,null,"kWh",null,null,null,null,null,null,null,null,null,null,null,null,null,null,null,null,null,null,null,null,null,null,null,null,null,null,null,null,"Kälber",null,null,null,null,{"$f":"CV34","v":62}]
[null,"AFS",null,null,null,null,120,null,null,null,null,null,null,null,null,null,null,null,null,null,null,null,null,null,null,null,null,null,null,null,null,null,null,null,null,null,null,null,null,null,null,null,null,null,null,null,null,null,null,null,"MV.2",null,null,null,null,null,null,null,null,null,null,null,null,null,null,null,null,null,null,null,null,null,null,null,null,null,"MV.3",null,null,null,null,null,null,null,null,null,null,null,null,null,null,null,null,null,null,null,null,null,null,null,null,null,"MV.4",null,null,"AFS",null,null,null,null,{"$f":"CV25","v":0}]

{"sheet":"RM","index":5,"n_rows":49,"n_cols":141,"rows_kept":49,"cut":false,"hidden":false,"merged":[[0,9,0,13],[6,10,6,12],[0,5,0,6],[0,24,0,25],[3,21,3,23],[2,10,2,12],[5,10,5,13],[5,17,5,25],[3,10,3,12],[0,35,0,39],[0,50,0,51],[7,19,7,21],[7,24,7,25],[6,19,6,21],[22,19,22,21],[21,17,21,25],[9,85,9,87],[9,96,9,98],[0,31,0,32],[2,27,2,32],[3,27,3,32],[4,27,4,32],[0,57,0,58],[0,61,0,65],[6,85,6,87],[0,76,0,77],[6,96,6,98],[7,10,7,12],[11,68,11,70],[30,99,30,101],[31,94,31,96],[31,99,31,101],[27,94,27,96],[27,99,27,101],[14,68,14,70],[14,73,14,75],[8,56,8,61],[29,94,29,96],[20,96,20,98],[15,96,15,98],[15,91,15,93],[21,68,21,70],[21,73,21,75],[7,85,7,87],[7,96,7,98],[15,85,15,87],[11,73,11,75],[7,15,7,16],[30,94,30,96],[0,102,0,103],[29,99,29,101],[13,68,13,70],[13,73,13,75],[0,83,0,84],[0,87,0,91],[3,99,3,101],[15,68,15,70],[15,73,15,75],[17,68,17,70],[17,73,17,75],[22,96,22,98],[17,96,17,98],[19,68,19,70],[19,73,19,75],[20,68,20,70],[20,73,20,75],[3,73,3,75],[8,63,8,68],[8,70,8,75],[45,96,45,97],[45,100,45,101],[43,96,43,97],[43,100,43,101],[45,85,45,86],[45,88,45,89],[45,92,45,93],[44,85,44,86],[44,88,44,89],[44,92,44,93],[44,96,44,97],[44,100,44,101],[43,85,43,86],[43,88,43,89],[43,92,43,93],[39,68,39,70],[39,73,39,75],[36,73,36,75],[38,68,38,70],[38,73,38,75],[45,79,45,83],[44,79,44,83],[42,73,42,75],[40,68,40,70],[40,73,40,75],[41,68,41,70],[43,79,43,83],[42,79,42,83],[33,99,33,101],[17,85,17,87],[46,6,46,8],[33,94,33,96],[35,99,35,101],[38,6,38,8],[39,6,39,8],[23,68,23,70],[23,73,23,75],[25,68,25,70],[25,73,25,75],[34,73,34,75],[23,10,23,12],[23,15,23,16],[23,19,23,21],[23,24,23,25],[42,88,42,89],[42,92,42,93],[42,85,42,86],[35,68,35,70],[35,73,35,75],[36,68,36,70],[21,10,21,13],[22,10,22,12],[47,6,47,8],[46,68,46,70],[46,73,46,75],[48,6,48,8],[47,68,47,70],[47,73,47,75],[26,68,26,70],[26,73,26,75],[44,6,44,8],[45,6,45,8],[28,68,28,70],[28,73,28,75],[32,68,32,70],[32,73,32,75],[34,68,34,70],[40,6,40,8],[41,6,41,8],[42,6,42,8],[37,6,37,8],[48,50,48,51],[44,68,44,70],[44,73,44,75],[42,68,42,70],[41,73,41,75],[48,76,48,77],[48,102,48,103],[44,110,44,112],[45,110,45,112],[46,110,46,112],[25,110,25,112],[26,110,26,112],[27,110,27,112],[28,110,28,112],[30,110,30,112],[31,110,31,112],[32,110,32,112],[33,110,33,112],[34,110,34,112],[38,110,38,112],[39,110,39,112],[40,110,40,112],[41,110,41,112],[42,110,42,112],[46,100,46,101],[47,110,47,112],[48,110,48,112],[42,100,42,101],[42,96,42,97],[0,113,0,117],[22,110,22,112],[36,110,36,112],[37,110,37,112],[5,114,5,117],[6,114,6,116],[5,121,5,129],[6,123,6,125],[7,114,7,116],[7,119,7,120],[7,123,7,125],[7,128,7,129],[23,110,23,112],[24,110,24,112],[0,109,0,110],[0,128,0,129],[2,114,2,116],[3,114,3,116],[3,125,3,127]]}
["Energie-Check",null,null,null,null,{"$f":"Betriebsübersicht!F1","v":"V 1.0"},null,null,null,"Rindermast",null,null,null,null,null," Ergebnisblatt",null,null,null,null,null,null,null,null,null,null,"Energie-Check",null,null,null,null,{"$f":"Betriebsübersicht!F1","v":"V 1.0"},null,null,null,"Rindermast",null,null,null,null,null,"Infoblatt",null,null,null,null,null,null,null,null,null,null,"Energie-Check",null,null,null,null,{"$f":"Betriebsübersicht!F1","v":"V 1.0"},null,null,null,"Rindermast",null,null,null,null,null,"Eingabeblatt 1",null,null,null,null,null,null,null,null,null,null,"Energie-Check",null,null,null,null,{"$f":"Betriebsübersicht!F1","v":"V 1.0"},null,null,null,"Rindermast",null,null,null,null,null,"Eingabeblatt 2",null,null,null,null,null,null,null,null,null,null,"Energie-Check",null,null,null,null,{"$f":"Betriebsübersicht!F1","v":"V 1.0"},null,null,null,"Rindermast",null,null,null,null,null," Ergebnisblatt Vgl. SOLL - IST"]
[null,null,null,null,null,null,null,null,null,null,null,null,null,null,null,null,null,null,null,null,null,null,null,null,null,null,null,null,null,null,null,null,null,null,null,null,null,null,null,null,null,null,null,null,null,null,null,null,null,null,null,null,"Detailbetrachtung",null,null,null,null,null,null,null,null,null,null,null,null,null,null,null,null,null,null,null,null,null,null,null,null,null,"Detailbetrachtung",null,null,null,null,null,null,null,null,null,null,null,null,null,null,null,null,null,null,null,null,null,null,null,null,null,"Detailbetrachtung"]
["Rindermast",null,null,null,null,null,null,null,null,"Bullen / Färsen ",{"$f":"Betriebsübersicht!J33","v":120},null,null,null,null,null,null,null,null,null,null,null,null,null,null,null,null,"Eingabefelder",null,null,null,null,null,null,"Felder für die Eingabe betrieblicher Daten",null,null,null,null,null,null,null,null,null,null,null,null,null,null,null,null,null,"Berechnung Stromverbrauch - Technische Ausstattung",null,null,null,null,null,null,null,null,null,null,null,null,null,null,null,null,null,null,null,null,null,null,null,null,null,"Berechnung Dieselverbrauch mit Futtermischwagen - SOLL:",null,null,null,null,null,null,null,null,null,null,null,null,null,null,null,null,null,null,null,null,null,null,null,null,null,null,null,null,null,null,null,null,null,null,"Bullen / Färsen ",{"$f":"K3","v":120}]
[null,null,null,null,null,null,null,null,null,"Kälber / Fresser ",{"$f":"Betriebsübersicht!J32","v":40},null,null,null,null,null,"Abrechnungsjahr",null,null,null,null,{"$f":"Energieeinsatz!AV4","v":2021},null,null,null,null,null,"berechnete Felder",null,null,null,null,null,null,"Felder die vom Programm berechnet werden",null,null,null,null,null,null,null,null,null,null,null,null,null,null,null,null,null,null,null,null,null,null,null,null,null,null,null,null,null,null,null,null,null,"Abrechnungsjahr",null,null,null,null,{"$f":"V4","v":2021},null,null,null,null,null,null,null,null,null,null,null,null,null,null,null,null,null,null,null,null,"Abrechnungsjahr",null,null,null,null,{"$f":"V4","v":2021},null,null,null,null,null,null,null,null,null,null,null,null,null,"Kälber / Fresser ",{"$f":"K4","v":40},null,null,"kg/a",null,null,"Abrechnungsjahr",null,null,null,null,{"$f":"V4","v":2021}]
[null,null,null,null,null,null,null,null,null,null,null,null,null,null,null,null,null,null,null,null,null,null,null,null,null,null,null,"Werte",null,null,null,null,null,null,"Werte die aus Eingebefeldern übernommen wurden bzw. ",null,null,null,null,null,null,null,null,null,null,null,null,null,null,null,null,null,null,null,null,null,null,null,null,null,null,null,null,null,null,null,null,null,null,null,null,null,null,null,null,null,null,null,null,"Hier kann der Dieseleinsatz anhand der Futtermenge berechnet werden."]
[null,null,null,null,null,null,null,null,null,null,"Strom",null,null,null,null,null,null,"Diesel - Futtervorlage+Entmistung",null,null,null,null,null,null,null,null,null,null,null,null,null,null,null,null,null,"-","Felder mit hinterlegten Werten",null,null,null,null,null,null,null,null,null,null,null,null,null,null,null,null,"Sollwerte: durchschnittliche Verbrauchskennzahlen aus zeitgemäßen Tiehaltungsanlagen",null,null,null,null,null,null,null,null,null,null,null,null,null,null,null,null,null,null,null,null,null,null,null,null,null,null,"pro Bulle / Färse",null,null,null,null,null,null,null,null,null,null,null,null,null,null,null,null,null,null,null,null,null,null,null,"Rindermast gesamt",null,null,null,null,null,null,null,null,null,"Strom",null,null,null,null,null,null,"Diesel - Futtervorlage+Entmistung"]
[null,null,null,"Gesamtverbrauch",null,null,null,null,null,null,{"$f":"'Abgrenzung BZ'!AI8","v":83100},null,null,"kWh",null,null,null,null,null,{"$f":"'Abgrenzung BZ'!AO8","v":24000},null,null,"Liter",null,null,null,null,null,null,null,null,null,null,null,null,"-","Felder mit hinterlegten Faktoren",null,null,null,null,null,null,null,null,null,null,null,null,null,null,null,null,"Istwerte: ",null,null,"Bitte hier betriebliche Daten eintragen, Sollwert kann als Anhaltspunkt dienen.",null,null,null,null,null,null,null,null,null,null,null,null,null,null,null,null,null,null,null,null,null,null,null,null,null,null,null,"Frischmasse: ",25,null,null,"kg FM/MR/Tag",null,null,null,null,null,null,"Diesel: ",2.4,null,null,"l Diesel / t FM",null,null,null,null,null,null,null,"pro Mastplatz - SOLL",null,null,null,null,null,null,{"$f":"BQ29+BQ45","v":50},null,null,"kWh",null,null,null,null,null,30,null,null,"Liter"]
[null,"davon",null,"Rindermast",null,null,null,null,null,null,{"$f":"'Abgrenzung BZ'!AI14","v":3000},null,null,"kWh",null,{"$f":"K8/K7","v":3.6101083032490974E-2},null,null,null,{"$f":"'Abgrenzung BZ'!AO14","v":3000},null,null,"Liter",null,{"$f":"T8/T7","v":0.125},null,null,null,null,null,null,null,null,null,null,null,null,null,null,null,null,null,null,null,null,null,null,null,null,null,null,null,null,null,null,null,"Falls keine Messwerte vorhanden, Schätzwerte eingeben!",null,null,null,null,null,null,null,null,null,null,null,null,null,null,null,null,null,null,null,null,null,null,null,null,null,null,null,null,{"$f":"CH7*365/1000","v":9.125},null,null,"t FM/MR/Jahr",null,null,null,null,null,null,null,{"$f":"CH8*CS7","v":21.9},null,null,"l Diesel / Jahr",null,null,null,null,null,null,null,"pro Mastplatz - IST",null,null,null,null,null,null,{"$f":"BV29+BV45","v":58},null,null,"kWh",null,{"$f":"DK8/DK7","v":1.1599999999999999},null,null,null,{"$f":"CS8+CH18","v":28.65},null,null,"Liter",null,{"$f":"DT8/DT7","v":0.95499999999999996}]
["Anteil am Gesamtverbrauch",null,null,null,null,null,null,null,null,null,null,null,null,null,null,null,null,null,null,null,null,null,null,null,null,null,null,null,null,null,null,null,null,null,null,null,null,null,null,null,null,null,null,null,null,null,null,null,null,null,null,null,null,null,null,null,"Eingabefelder",null,null,null,null,null,null,"berechnete Felder",null,null,null,null,null,null,"Werte",null,null,null,null,null,null,null,null,null,"Betrieb"]
[null,null,null,null,null,null,null,null,null,null,null,null,null,null,null,null,null,null,null,null,null,null,null,null,null,null,"Kälber / Fresser ",null,null,null,null,null,null,null,null,null,null,null,null,null,null,null,null,null,null,null,null,null,null,null,null,null,null,null,null,null,null,null,null,null,null,null,null,null,null,null,null,null,null,null,null,null,null,null,null,null,null,null,null,null,null,null,null,null,"Frischmasse: ",{"$f":"CH8*K3","v":1095},null,null,"t FM/Jahr",null,null,null,null,null,null,"Diesel: ",{"$f":"CS8*K3","v":2628},null,null,"l Diesel / Jahr"]
[null,null,null,null,null,null,null,null,null,null,null,null,null,null,null,null,null,null,null,null,null,null,null,null,null,null,null,"Die meiste Elektroenergie bei der Kälber-/Fresseraufzucht wird für die Fütterung ",null,null,null,null,null,null,null,null,null,null,null,null,null,null,null,null,null,null,null,null,null,null,null,null,"pro Bulle / Färse",null,null,null,null,null,null,null,null,null,null,null,null,null,null,null,null,null,"Verbrauchswert",null,null,null,null,null,null,null,null,null,"(FM = Frischmasse)"]
[null,null,null,null,null,null,null,null,null,null,null,null,null,null,null,null,null,null,null,null,null,null,null,null,null,null,null,"beansprucht. Hauptverbraucher sind Futter- und Tränkautomaten, sowie die",null,null,null,null,null,null,null,null,null,null,null,null,null,null,null,null,null,null,null,null,null,null,null,null,null,null,null,null,null,null,null,null,null,null,null,null,null,null,null,null,"SOLL",null,null,null,null,"IST"]
[null,null,null,null,null,null,null,null,null,null,null,null,null,null,null,null,null,null,null,null,null,null,null,null,null,null,null,"Warmwasserbereitung."]
[null,null,null,null,null,null,null,null,null,null,null,null,null,null,null,null,null,null,null,null,null,null,null,null,null,null,null,null,null,null,null,null,null,null,null,null,null,null,null,null,null,null,null,null,null,null,null,null,null,null,null,null,null,"Beleuchtung:",null,null,null,null,null,2,"h/d",null,null,null,null,null,null,"Leuchtstoffröhren ",6,null,null,"kWh",null,6,null,null,"kWh",null,"Berechnung Dieselverbrauch Entmistung - SOLL:"]
[null,null,null,null,null,null,null,null,null,null,null,null,null,null,null,null,null,null,null,null,null,null,null,null,null,null,"Bullen / Färsen ",null,null,null,null,null,null,null,null,null,null,null,null,null,null,null,null,null,null,null,null,null,null,null,null,null,null,null,null,null,null,null,null,null,null,null,null,null,null,null,null,"Metalldampflampen ",4,null,null,"kWh",null,null,null,null,"kWh",null,null,null,null,null,null,null,null,"Dieselverbrauch",null,null,null,null,null,"Dauer",null,null,null,null,"Tage"]
[null,null,null,null,null,null,null,null,null,null,null,null,null,null,null,null,null,null,null,null,null,null,null,null,null,null,null,"Aufgrund des geringen Stromverbrauchs in der Bullen-/Färsenmast sind auch nur geringe ",null,null,null,null,null,null,null,null,null,null,null,null,null,null,null,null,null,null,null,null,null,null,null,null,null,null,null,null,null,null,null,null,null,null,null,null,null,null,null,"LED-Leuchten ",2,null,null,"kWh",null,null,null,null,"kWh",null,null,"Schlepper / Hoftruck",null,null,null,null,null,12,null,null,"Liter/h",null,null,0.5,null,null,"h",null,180,null,null,"d"]
[null,null,null,null,null,null,null,null,null,null,null,null,null,null,null,null,null,null,null,null,null,null,null,null,null,null,null,"Energieeinsparpotenziale vorhanden. In der Praxis kann ein automatisiertes "]
[null,null,null,null,null,null,null,null,null,null,null,null,null,null,null,null,null,null,null,null,null,null,null,null,null,null,null,"Fütterungssystem den Dieseleinsatz für die Grundfuttervorlage mit mobilen ",null,null,null,null,null,null,null,null,null,null,null,null,null,null,null,null,null,null,null,null,null,null,null,null,null,"Frostsicherung:",null,null,null,null,null,null,null,null,null,null,null,null,null,"Zirkulation / Begleitheizung ",10,null,null,"kWh",null,8,null,null,"kWh",null,null,null,"pro Mastplatz",null,null,null,null,{"$f":"CS18/(K3+K4)","v":6.75},null,null,"l Diesel / Jahr",null,null,null,null,null,null,"Diesel: ",{"$f":"CH16*CN16*CS16","v":1080},null,null,"l Diesel / Jahr"]
[null,null,null,null,null,null,null,null,null,null,null,null,null,null,null,null,null,null,null,null,null,null,null,null,null,null,null,"Futtermischwagen ersetzen."]
[null,null,null,null,null,null,null,null,null,null,null,null,null,null,null,null,null,null,null,null,null,null,null,null,null,null,null,null,null,null,null,null,null,null,null,null,null,null,null,null,null,null,null,null,null,null,null,null,null,null,null,null,null,"Entmistung:",null,null,null,null,null,null,null,null,null,null,null,null,null,"Faltschieber ",8,null,null,"kWh",null,8,null,null,"kWh"]
[null,null,null,null,null,null,null,null,null,null,null,null,null,null,null,null,null,null,null,null,null,null,null,null,null,null,null,null,null,null,null,null,null,null,null,null,null,null,null,null,null,null,null,null,null,null,null,null,null,null,null,null,null,null,null,null,null,null,null,null,null,null,null,null,null,null,null,"Spaltenroboter ",6,null,null,"kWh",null,null,null,null,"kWh",null,"Dieselverbrauch Futtervorlage + Entmistung",null,null,null,null,null,null,null,null,null,null,null,null,null,null,null,null,null,{"$f":"CS10+CS18","v":3708},null,null,"l Diesel / Jahr",null,null,null,null,"Zusammensetzung des Sollwerts inkl. Kälber/Fresser ohne AFS = automatisches Fütterungssystem"]
[null,null,null,null,null,null,null,null,null,null,"Strom",null,null,null,null,null,null,"Diesel - Futtervorlage+Entmistung",null,null,null,null,null,null,null,null,null,null,null,null,null,null,null,null,null,null,null,null,null,null,null,null,null,null,null,null,null,null,null,null,null,null,null,null,null,null,null,null,null,null,null,null,null,null,null,null,null,"Güllepumpe ",8,null,null,"kWh",null,null,null,null,"kWh"]
[null,null,null,"pro Mastplatz - SOLL",null,null,null,null,null,null,20,null,null,"kWh",null,null,null,null,null,30,null,null,"Liter",null,null,null,"Handlungsempfehlungen:",null,null,null,null,null,null,null,null,null,null,null,null,null,null,null,null,null,null,null,null,null,null,null,null,null,null,null,null,null,null,null,null,null,null,null,null,null,null,null,null,null,null,null,null,null,null,null,null,null,null,null,null,null,null,null,null,null,"Vergleich:"," Dieselverbrauch lt. Abgrenzung BZ",null,null,null,null,null,null,null,null,null,null,{"$f":"T8","v":3000},null,null,"l Diesel / Jahr",null,null,null,null,null,null,null,null,null,null,"Soll"]
[null,null,null,"pro Mastplatz - IST",null,null,null,null,null,null,{"$f":"K8/K3","v":25},null,null,"kWh",null,{"$f":"K24/K23","v":1.25},null,null,null,{"$f":"T8/K3","v":25},null,null,"Liter",null,{"$f":"T24/T23","v":0.83333333333333337},null,null,"-","Bei beheizten Stallanlagen (Kälber-/Fresseraufzucht) sollte darauf geachtet werden, ",null,null,null,null,null,null,null,null,null,null,null,null,null,null,null,null,null,null,null,null,null,null,null,null,"Lüftung:",null,null,null,null,null,null,null,null,null,null,null,null,null,"Ventilatoren ",10,null,null,"kWh",null,4,null,null,"kWh",null,null,null,null,null,null,null,null,"(BZ=Betriebszweig)",null,null,null,null,null,null,null,null,null,null,null,null,null,null,null,null,null,null,"Bullen / Färsen",null,null,null,null,null,"kWh",null,null,null,null,null,null,null,null,null,null,null,null,null,null,null,null,null,null,null,null,null,null,null,null,null,"IST",null,null,null,"Soll"]
["Zusammensetzung des Sollwerts ohne Kälber/Fresser und AFS = auto. Fütterungssystem",null,null,null,null,null,null,null,null,null,null,null,null,null,null,null,null,null,null,null,null,null,null,null,null,null,null,null,"dass Fenster, Wände und insbesondere die Decken gut gedämmt sind.",null,null,null,null,null,null,null,null,null,null,null,null,null,null,null,null,null,null,null,null,null,null,null,null,null,null,null,null,null,null,null,null,null,null,null,null,null,null,null,null,null,null,null,null,null,null,null,null,null,null,null,null,null,null,null,null,null,null,null,null,null,null,null,null,null,null,null,null,null,null,null,null,null,null,null,null,"Beleuchtung",null,null,null,null,6,null,null,null,null,null,null,null,null,null,null,null,null,null,null,null,null,null,null,null,null,{"$f":"DB35","v":"WW  Boiler"},{"$f":"DC35","v":0},{"$f":"DD35","v":0},{"$f":"DE35","v":0},{"$f":"DF35","v":0},{"$f":"DG49","v":12},null,null,null,{"$f":"DG35","v":6}]
[null,null,null,null,null,null,null,null,null,null,null,null,null,null,null,null,null,null,null,null,null,null,null,null,null,null,null,"-","Wenn möglich auf regenerative Heizsstoffe umstellen",null,null,null,null,null,null,null,null,null,null,null,null,null,null,null,null,null,null,null,null,null,null,null,null,"Sonstige:",null,null,null,null,null,null,null,null,null,null,null,null,null,"Windschutznetze ",2,null,null,"kWh",null,1,null,null,"kWh",null,null,null,null,null,null,null,null,null,null,null,null,null,null,null,null,null,null,null,null,null,null,null,null,null,null,null,null,"Frostsicherung",null,null,null,null,10,null,null,null,null,null,null,null,null,null,null,null,null,null,null,null,null,null,null,null,null,{"$f":"DB34","v":"Futterautomat "},{"$f":"DC34","v":0},{"$f":"DD34","v":0},{"$f":"DE34","v":0},{"$f":"DF34","v":0},{"$f":"DG48","v":0},null,null,null,{"$f":"DG34","v":20}]
[null,null,null,null,null,null,null,null,null,null,null,null,null,null,null,null,null,null,null,null,null,null,null,null,null,null,null,"-","regelmäßige Wartung der Anlagen insbesondere der Fütterungs- und ",null,null,null,null,null,null,null,null,null,null,null,null,null,null,null,null,null,null,null,null,null,null,null,null,null,null,null,null,null,null,null,null,null,null,null,null,null,null,"Wasserpumpen ",4,null,null,"kWh",null,null,null,null,"kWh",null,"Automatisches Fütterungssystem (AFS)",null,null,null,null,null,null,null,null,null,null,null,null,null,null,null,null,null,"Verbrauchswert",null,null,null,null,null,null,null,null,"Entmistung",null,null,null,null,6,null,null,null,null,null,null,null,null,null,null,null,null,null,null,null,null,null,null,null,null,{"$f":"DB33","v":"Milchtränken"},{"$f":"DC33","v":0},{"$f":"DD33","v":0},{"$f":"DE33","v":0},{"$f":"DF33","v":0},{"$f":"DG47","v":12},null,null,null,{"$f":"DG33","v":20}]
[null,null,null,null,null,null,null,null,null,null,null,null,null,null,null,null,null,null,null,null,null,null,null,null,null,null,null,null,"Futteraufbereitungsanlagen",null,null,null,null,null,null,null,null,null,null,null,null,null,null,null,null,null,null,null,null,null,null,null,null,null,null,null,null,null,null,null,null,null,null,null,null,null,null,null,null,null,null,null,null,null,null,null,null,null,null,"pro Mastplatz",null,null,null,null,null,null,null,null,null,null,null,null,null,null,"SOLL",null,null,null,null,"IST",null,null,null,null,null,"Lüftung",null,null,null,null,10,null,null,null,null,null,null,null,null,null,null,null,null,null,null,null,null,null,null,null,null,{"$f":"DB32","v":"Lüftung"},{"$f":"DC32","v":0},{"$f":"DD32","v":0},{"$f":"DE32","v":0},{"$f":"DF32","v":0},{"$f":"DG46","v":0},null,null,null,{"$f":"DG32","v":4}]
[null,null,null,null,null,null,null,null,null,null,null,null,null,null,null,null,null,null,null,null,null,null,null,null,null,null,null,"-","Beleuchtung: Umrüstung auf LED",null,null,null,null,null,null,null,null,null,null,null,null,null,null,null,null,null,null,null,null,null,null,null,null,"Summe Maststall",null,null,null,null,null,null,null,null,null,null,null,null,null,null,20,null,null,"kWh",null,{"$f":"SUM(BV14:BX27)","v":27},null,null,"kWh",null,null,"Grundfutteraufbereitung/-vorlage",null,null,null,null,null,null,null,null,null,null,null,null,null,null,null,null,null,null,null,null,null,null,null,null,null,"AFS",null,null,null,null,24,null,null,null,null,null,null,null,null,null,null,null,null,null,null,null,null,null,null,null,null,{"$f":"DB31","v":"Beleuchtung"},{"$f":"DC31","v":0},{"$f":"DD31","v":0},{"$f":"DE31","v":0},{"$f":"DF31","v":0},{"$f":"DG45","v":6},null,null,null,{"$f":"DG31","v":6}]
[null,null,null,null,null,null,null,null,null,null,null,null,null,null,null,null,null,null,null,null,null,null,null,null,null,null,null,"-","frostsichere Verlegung der Wasserleitungen",null,null,null,null,null,null,null,null,null,null,null,null,null,null,null,null,null,null,null,null,null,null,null,null,null,null,null,null,null,null,null,null,null,null,null,null,null,null,null,null,null,null,null,null,null,null,null,null,null,null,null,null,null,null,null,null,null,null,null,null,null,null,null,null,"Futterentnahme (Silo, Heu, Stroh) und befüllen Bunker ",3,null,null,"kWh",null,null,null,null,"kWh",null,"Kälber / Fresser",null,null,null,null,null,null,null,null,null,null,null,null,null,null,null,null,null,null,null,null,null,null,null,null,null,null,{"$f":"DB30","v":0},{"$f":"DC30","v":0},{"$f":"DD30","v":0},{"$f":"DE30","v":0},{"$f":"DF30","v":0},{"$f":"DG44","v":0},null,null,null,{"$f":"DG30","v":0}]
[null,null,null,null,null,null,null,null,null,null,null,null,null,null,null,null,null,null,null,null,null,null,null,null,null,null,null,"-","Einbau hocheffizienter Antriebe und Pumpen",null,null,null,null,null,null,null,null,null,null,null,null,null,null,null,null,null,null,null,null,null,null,null,null,null,null,null,null,null,null,null,null,null,null,null,null,null,null,null,null,null,null,null,null,null,null,null,null,null,null,null,null,null,null,null,null,null,null,null,null,null,null,null,null,"Futter auflösen, bervorraten und fördern in Mischer ",10,null,null,"kWh",null,20,null,null,"kWh",null,null,"Beleuchtung",null,null,null,null,6,null,null,null,null,null,null,null,null,null,null,null,null,null,null,null,null,null,null,null,null,{"$f":"DB29","v":"AFS"},{"$f":"DC29","v":0},{"$f":"DD29","v":0},{"$f":"DE29","v":0},{"$f":"DF29","v":0},{"$f":"DG43","v":40},null,null,null,{"$f":"DG29","v":24}]
[null,null,null,null,null,null,null,null,null,null,null,null,null,null,null,null,null,null,null,null,null,null,null,null,null,null,null,null,null,null,null,null,null,null,null,null,null,null,null,null,null,null,null,null,null,null,null,null,null,null,null,null,"pro Kalb / Fresser",null,null,null,null,null,null,null,null,null,null,null,null,null,null,null,null,null,"Verbrauchswert",null,null,null,null,null,null,null,null,null,null,null,null,null,null,null,null,null,null,null,null,null,null,"Futter mischen und verteilen (Roboter/Band) ",14,null,null,"kWh",null,20,null,null,"kWh",null,null,"Lüftung",null,null,null,null,4,null,null,null,null,null,null,null,null,null,null,null,null,null,null,null,null,null,null,null,null,{"$f":"DB28","v":"Lüftung"},{"$f":"DC28","v":0},{"$f":"DD28","v":0},{"$f":"DE28","v":0},{"$f":"DF28","v":0},{"$f":"DG42","v":4},null,null,null,{"$f":"DG28","v":10}]
[null,null,null,null,null,null,null,null,null,null,null,null,null,null,null,null,null,null,null,null,null,null,null,null,null,null,null,null,null,null,null,null,null,null,null,null,null,null,null,null,null,null,null,null,null,null,null,null,null,null,null,null,null,null,null,null,null,null,null,null,null,null,null,null,null,null,null,null,"SOLL",null,null,null,null,"IST",null,null,null,null,null,null,null,null,null,null,null,null,null,null,null,null,null,null,null,null,null,null,null,null,null,null,null,null,null,null,null,"Milchtränken",null,null,null,null,20,null,null,null,null,null,null,null,null,null,null,null,null,null,null,null,null,null,null,null,null,{"$f":"DB27","v":"Entmistung"},{"$f":"DC27","v":0},{"$f":"DD27","v":0},{"$f":"DE27","v":0},{"$f":"DF27","v":0},{"$f":"DG41","v":8},null,null,null,{"$f":"DG27","v":6}]
[null,null,null,null,null,null,null,null,null,null,null,null,null,null,null,null,null,null,null,null,null,null,null,null,null,null,null,null,null,null,null,null,null,null,null,null,null,null,null,null,null,null,null,null,null,null,null,null,null,null,null,null,null,null,null,null,null,null,null,null,null,null,null,null,null,null,null,null,null,null,null,null,null,null,null,null,null,null,null,"Kraftfutteraufbereitung:",null,null,null,null,null,null,null,null,null,null,null,null,null,"Mahl- und Mischanlage ",40,null,null,"kWh",null,null,null,null,"kWh",null,null,"Futterautomat ",null,null,null,null,20,null,null,null,null,null,null,null,null,null,null,null,null,null,null,null,null,null,null,null,null,{"$f":"DB26","v":"Frostsicherung"},{"$f":"DC26","v":0},{"$f":"DD26","v":0},{"$f":"DE26","v":0},{"$f":"DF26","v":0},{"$f":"DG40","v":8},null,null,null,{"$f":"DG26","v":10}]
[null,null,null,null,null,null,null,null,null,null,null,null,null,null,null,null,null,null,null,null,null,null,null,null,null,null,null,null,null,null,null,null,null,null,null,null,null,null,null,null,null,null,null,null,null,null,null,null,null,null,null,null,null,"Beleuchtung:",null,null,null,null,null,null,null,null,null,null,null,null,null,"Leuchtstoffröhren ",6,null,null,"kWh",null,6,null,null,"kWh",null,null,null,null,null,null,null,null,null,null,null,null,null,null,null,null,null,null,null,null,null,null,null,null,null,null,null,null,"WW  Boiler",null,null,null,null,6,null,null,null,null,null,null,null,null,null,null,null,null,null,null,null,null,null,null,null,null,{"$f":"DB25","v":"Beleuchtung"},{"$f":"DC25","v":0},{"$f":"DD25","v":0},{"$f":"DE25","v":0},{"$f":"DF25","v":0},{"$f":"DG39","v":6},null,null,null,{"$f":"DG25","v":6}]
[null,null,null,null,null,null,null,null,null,null,null,null,null,null,null,null,null,null,null,null,null,null,null,null,null,null,null,null,null,null,null,null,null,null,null,null,null,null,null,null,null,null,null,null,null,null,null,null,null,null,null,null,null,null,null,null,null,null,null,null,null,null,null,null,null,null,null,"Metalldampflampen ",4,null,null,"kWh",null,null,null,null,"kWh",null,null,"Gesamt",null,null,null,null,null,null,null,null,null,null,null,null,null,null,null,null,null,null,null,{"$f":"SUM(CV30:CX34)","v":40},null,null,"kWh"]
[null,"*) automatisches Fütterungssystem",null,null,null,null,null,null,null,null,null,"*) WW = Warmwasserbereitung",null,null,null,null,null,null,null,null,null,null,null,null,null,null,null,null,null,null,null,null,null,null,null,null,null,null,null,null,null,null,null,null,null,null,null,null,null,null,null,null,null,null,null,null,null,null,null,null,null,null,null,null,null,null,null,"LED-Leuchten ",2,null,null,"kWh",null,null,null,null,"kWh",null,null,null,null,null,null,null,null,null,null,null,null,null,null,null,null,null,null,null,null,null,null,null,null,null,null,null,null,null,null,null,null,null,"IST"]
["Bullen / Färsen",null,null,null,null,null,"kWh",null,null,null,null,null,null,null,null,null,null,null,null,null,null,null,null,null,null,null,null,null,null,null,null,null,null,null,null,null,null,null,null,null,null,null,null,null,null,null,null,null,null,null,null,null,null,null,null,null,null,null,null,null,null,null,null,null,null,null,null,null,null,null,null,null,null,null,null,null,null,null,null,null,null,null,null,null,null,null,null,null,null,null,null,null,null,null,null,null,null,null,null,null,null,null,null,null,"Bullen / Färsen",null,null,null,null,null,"kWh"]
[null,"Beleuchtung",null,null,null,null,6,null,null,null,null,null,null,null,null,null,null,null,null,null,null,null,null,null,null,null,null,null,null,null,null,null,null,null,null,null,null,null,null,null,null,null,null,null,null,null,null,null,null,null,null,null,null,"Lüftung:",null,null,null,null,null,null,null,null,null,null,null,null,null,"Ventilatoren ",4,null,null,"kWh",null,null,null,null,"kWh",null,"Berechnungshilfe elektrische Energie:",null,null,null,null,null,null,null,null,null,null,null,null,null,null,null,null,null,null,null,null,null,null,null,null,null,null,"Beleuchtung",null,null,null,null,{"$f":"SUM(BV14:BX16)","v":6}]
[null,"Frostsicherung",null,null,null,null,10,null,null,null,null,null,null,null,null,null,null,null,null,null,null,null,null,null,null,null,null,null,null,null,null,null,null,null,null,null,null,null,null,null,null,null,null,null,null,null,null,null,null,null,null,null,null,"Tränken:",null,null,null,null,null,null,null,null,null,null,null,null,null,"Milch- und MAT-Tränken ",20,null,null,"kWh",null,12,null,null,"kWh",null,null,"Hier kann mittels Leistung und Laufzeit der Jahresstromverbrauch der einzelnen",null,null,null,null,null,null,null,null,null,null,null,null,null,null,null,null,null,null,null,null,null,null,null,null,null,"Frostsicherung",null,null,null,null,{"$f":"BV18","v":8}]
[null,"Entmistung",null,null,null,null,6,null,null,null,null,null,null,null,null,null,null,null,null,null,null,null,null,null,null,null,null,null,null,null,null,null,null,null,null,null,null,null,null,null,null,null,null,null,null,null,null,null,null,null,null,null,null,"Fütterung:",null,null,null,null,null,null,null,null,null,null,null,null,null,"Futterautomat ",20,null,null,"kWh",null,null,null,null,"kWh",null,null,"Systemkomponenten berechnet werden.",null,null,null,null,null,null,null,null,null,null,null,null,null,null,null,null,null,null,null,null,null,null,null,null,null,"Entmistung",null,null,null,null,{"$f":"SUM(BV20:BX22)","v":8}]
[null,"Lüftung",null,null,null,null,10,null,null,null,null,null,null,null,null,null,null,null,null,null,null,null,null,null,null,null,null,null,null,null,null,null,null,null,null,null,null,null,null,null,null,null,null,null,null,null,null,null,null,null,null,null,null,"Warmwasserbereitung:",null,null,null,null,null,null,null,null,null,null,null,null,null,"Elektroboiler ",6,null,null,"kWh",null,12,null,null,"kWh",null,null,"Verbraucher",null,null,null,null,null,"Anzahl",null,null,"Leistung",null,null,null,"Laufzeit",null,null,null,"Tage",null,null,null,"Strom",null,null,null,null,"Lüftung",null,null,null,null,{"$f":"BV24","v":4}]
["*)","AFS",null,null,null,null,24,null,null,null,null,null,null,null,null,null,null,null,null,null,null,null,null,null,null,null,null,null,null,null,null,null,null,null,null,null,null,null,null,null,null,null,null,null,null,null,null,null,null,null,null,null,null,"Sonstige:",null,null,null,null,null,null,null,null,null,null,null,null,null,"Windschutznetze, Wasserpumpern, … ",2,null,null,"kWh",null,1,null,null,"kWh",null,null,"Leuchtstoffröhren",null,null,null,null,null,20,null,null,7.0000000000000007E-2,null,"kW",null,2,null,"h",null,365,null,"d",null,{"$f":"CH43*CK43*CO43*CS43","v":1022.0000000000001},null,"kWh",null,null,"AFS",null,null,null,null,{"$f":"CV36","v":40}]
["Kälber / Fresser",null,null,null,null,null,null,null,null,null,null,null,null,null,null,null,null,null,null,null,null,null,null,null,null,null,null,null,null,null,null,null,null,null,null,null,null,null,null,null,null,null,null,null,null,null,null,null,null,null,null,null,null,null,null,null,null,null,null,null,null,null,null,null,null,null,null,null,null,null,null,null,null,null,null,null,null,null,null,"Ventilator",null,null,null,null,null,4,null,null,0.6,null,"kW",null,8,null,"h",null,20,null,"d",null,{"$f":"CH44*CK44*CO44*CS44","v":384},null,"kWh",null,"Kälber / Fresser"]
[null,"Beleuchtung",null,null,null,null,6,null,null,null,null,null,null,null,null,null,null,null,null,null,null,null,null,null,null,null,null,null,null,null,null,null,null,null,null,null,null,null,null,null,null,null,null,null,null,null,null,null,null,null,null,null,null,"Summe Kälber- / Fresserstall",null,null,null,null,null,null,null,null,null,null,null,null,null,null,30,null,null,"kWh",null,{"$f":"SUM(BV35:BX43)","v":31},null,null,"kWh",null,null,"Getreidemühle",null,null,null,null,null,1,null,null,7.5,null,"kW",null,0.5,null,"h",null,170,null,"d",null,{"$f":"CH45*CK45*CO45*CS45","v":637.5},null,"kWh",null,null,"Beleuchtung",null,null,null,null,{"$f":"SUM(BV35:BX37)","v":6}]
[null,"Lüftung",null,null,null,null,4,null,null,null,null,null,null,null,null,null,null,null,null,null,null,null,null,null,null,null,null,null,null,null,null,null,null,null,null,null,null,null,null,null,null,null,null,null,null,null,null,null,null,null,null,null,null,null,null,null,null,null,null,null,null,null,null,null,null,null,null,null,null,null,null,null,null,null,null,null,null,null,null,null,null,null,null,null,null,null,null,null,null,null,"kW",null,null,null,"h",null,null,null,"d",null,{"$f":"CH46*CK46*CO46*CS46","v":0},null,"kWh",null,null,"Lüftung",null,null,null,null,{"$f":"BV39","v":0}]
[null,"Milchtränken",null,null,null,null,20,null,null,null,null,null,null,null,null,null,null,null,null,null,null,null,null,null,null,null,null,null,null,null,null,null,null,null,null,null,null,null,null,null,null,null,null,null,null,null,null,null,null,null,null,null,"Gesamt pro Platz",null,null,null,null,null,null,null,null,null,null,null,null,null,null,null,{"$f":"BQ29+BQ45","v":50},null,null,"kWh",null,{"$f":"BV29+BV45","v":58},null,null,"kWh",null,null,null,null,null,null,null,null,null,null,null,null,null,null,null,null,null,null,null,null,null,null,null,{"$f":"SUM(CW43:CX46)","v":2043.5},null,"kWh",null,null,"Milchtränken",null,null,null,null,{"$f":"BV40","v":12}]
[null,"Futterautomat ",null,null,null,null,20,null,null,null,null,null,null,null,null,null,null,null,null,null,null,null,null,null,null,null,null,null,null,null,null,null,null,null,null,null,null,null,null,null,null,null,null,null,null,null,null,null,null,null,null,null,"Gesamt",null,null,null,null,null,null,null,null,null,null,null,null,null,null,null,{"$f":"BQ47*K3","v":6000},null,null,null,null,{"$f":"BV47*(K3+K4)","v":9280},null,null,"kWh",null,null,null,null,null,null,null,null,null,null,null,null,null,null,null,null,null,null,null,null,null,null,null,null,null,null,null,null,"Futterautomat ",null,null,null,null,{"$f":"BV41","v":0}]
["*)","WW  Boiler",null,null,null,null,6,null,null,null,null,null,null,null,null,null,null,null,null,null,null,null,null,null,null,null,null,null,null,null,null,null,null,null,null,null,null,null,null,null,null,null,null,null,null,null,null,null,null,null,"RM.2",null,null,null,null,null,null,null,null,null,null,null,null,null,null,null,null,null,null,null,null,null,null,null,null,null,"RM.3",null,null,null,null,null,null,null,null,null,null,null,null,null,null,null,null,null,null,null,null,null,null,null,null,null,"RM.4",null,null,"WW  Boiler",null,null,null,null,{"$f":"BV42","v":12}]

{"sheet":"FE","index":6,"n_rows":49,"n_cols":141,"rows_kept":49,"cut":false,"hidden":false,"merged":[[3,21,3,23],[3,10,3,12],[35,94,35,96],[35,99,35,101],[46,94,46,96],[46,99,46,101],[40,94,40,96],[43,94,43,96],[44,94,44,96],[43,99,43,101],[45,94,45,96],[45,99,45,101],[44,99,44,101],[5,10,5,13],[5,19,5,22],[20,93,20,97],[17,68,17,70],[17,73,17,75],[16,68,16,70],[16,73,16,75],[20,68,20,70],[23,68,23,70],[23,73,23,75],[7,10,7,12],[0,5,0,6],[0,24,0,25],[39,99,39,101],[37,94,37,96],[37,99,37,101],[38,94,38,96],[38,99,38,101],[39,94,39,96],[6,10,6,12],[6,19,6,21],[0,76,0,77],[0,31,0,32],[0,35,0,39],[0,50,0,51],[2,27,2,32],[3,27,3,32],[4,27,4,32],[0,83,0,84],[0,87,0,91],[23,15,23,16],[23,19,23,21],[23,24,23,25],[20,82,20,85],[20,87,20,91],[46,6,46,8],[30,94,30,96],[21,10,21,13],[21,19,21,22],[25,68,25,70],[25,73,25,75],[46,74,46,75],[7,15,7,16],[7,19,7,21],[7,24,7,25],[43,6,43,8],[12,68,12,70],[18,68,18,70],[22,10,22,12],[44,6,44,8],[45,6,45,8],[27,68,27,70],[41,6,41,8],[42,6,42,8],[37,6,37,8],[38,6,38,8],[39,6,39,8],[35,68,35,70],[31,68,31,70],[40,6,40,8],[31,73,31,75],[33,73,33,75],[29,73,29,75],[22,87,22,91],[22,93,22,97],[24,93,24,97],[22,82,22,85],[24,82,24,85],[22,19,22,21],[23,10,23,12],[33,68,33,70],[29,68,29,70],[36,68,36,70],[36,73,36,75],[26,93,26,97],[28,93,28,97],[28,87,28,91],[28,82,28,85],[27,73,27,75],[48,50,48,51],[0,9,0,13],[0,57,0,58],[0,61,0,65],[3,73,3,75],[8,56,8,61],[8,63,8,68],[8,70,8,75],[10,68,10,70],[10,73,10,75],[44,53,44,57],[44,59,44,60],[44,62,44,63],[44,66,44,67],[44,70,44,71],[44,74,44,75],[45,53,45,57],[45,59,45,60],[45,62,45,63],[45,66,45,67],[45,70,45,71],[45,74,45,75],[35,73,35,75],[22,68,22,70],[12,73,12,75],[18,73,18,75],[20,73,20,75],[17,94,17,96],[22,73,22,75],[42,53,42,57],[42,59,42,60],[42,62,42,63],[42,66,42,67],[42,70,42,71],[42,74,42,75],[43,53,43,57],[43,59,43,60],[43,62,43,63],[43,66,43,67],[43,70,43,71],[43,74,43,75],[22,110,22,112],[23,110,23,112],[24,110,24,112],[25,110,25,112],[26,110,26,112],[0,102,0,103],[46,110,46,112],[5,123,5,126],[27,110,27,112],[28,110,28,112],[29,110,29,112],[0,109,0,110],[0,113,0,117],[30,110,30,112],[31,110,31,112],[32,110,32,112],[36,110,36,112],[33,102,33,103],[20,99,20,103],[3,99,3,101],[22,99,22,103],[24,99,24,103],[28,99,28,103],[0,128,0,129],[3,114,3,116],[3,125,3,127],[5,114,5,117],[6,114,6,116],[6,123,6,125],[7,114,7,116],[7,119,7,120],[7,123,7,125],[7,128,7,129],[47,99,47,101],[48,76,48,77],[48,102,48,103],[37,110,37,112],[38,110,38,112],[39,110,39,112],[40,110,40,112],[41,110,41,112],[42,110,42,112],[43,110,43,112],[44,110,44,112],[45,110,45,112],[47,94,47,96]]}
["Energie-Check",null,null,null,null,{"$f":"Betriebsübersicht!F1","v":"V 1.0"},null,null,null,"Ferkelerzeugung",null,null,null,null,null," Ergebnisblatt",null,null,null,null,null,null,null,null,null,null,"Energie-Check",null,null,null,null,{"$f":"Betriebsübersicht!F1","v":"V 1.0"},null,null,null,"Ferkelerzeugung",null,null,null,null,null,"Infoblatt",null,null,null,null,null,null,null,null,null,null,"Energie-Check",null,null,null,null,{"$f":"Betriebsübersicht!F1","v":"V 1.0"},null,null,null,"Ferkelerzeugung",null,null,null,null,null,"Eingabeblatt 1",null,null,null,null,null,null,null,null,null,null,"Energie-Check",null,null,null,null,{"$f":"Betriebsübersicht!F1","v":"V 1.0"},null,null,null,"Ferkelerzeugung",null,null,null,null,null,"Eingabeblatt 2",null,null,null,null,null,null,null,null,null,null,"Energie-Check",null,null,null,null,{"$f":"Betriebsübersicht!F1","v":"V 1.0"},null,null,null,"Ferkelerzeugung",null,null,null,null,null," Ergebnisblatt Vgl. SOLL - IST"]
[null,null,null,null,null,null,null,null,null,null,null,null,null,null,null,null,null,null,null,null,null,null,null,null,null,null,null,null,null,null,null,null,null,null,null,null,null,null,null,null,null,null,null,null,null,null,null,null,null,null,null,null,"Detailbetrachtung",null,null,null,null,null,null,null,null,null,null,null,null,null,null,null,null,null,null,null,null,null,null,null,null,null,"Detailbetrachtung",null,null,null,null,null,null,null,null,null,null,null,null,null,null,null,null,null,null,null,null,null,null,null,null,null,"Detailbetrachtung"]
[null,null,null,null,null,null,null,null,null,null,null,null,null,null,null,null,null,null,null,null,null,null,null,null,null,null,null,"Eingabefelder",null,null,null,null,null,null,"Felder für die Eingabe betrieblicher Daten",null,null,null,null,null,null,null,null,null,null,null,null,null,null,null,null,null,"Berechnung Stromverbrauch - Technische Ausstattung",null,null,null,null,null,null,null,null,null,null,null,null,null,null,null,null,null,null,null,null,null,null,null,null,null,"Berechnung Stromverbrauch - Technische Ausstattung"]
[null,null,null,null,null,null,null,null,null,"Zuchtsauplätze ",{"$f":"Betriebsübersicht!V31","v":80},null,null,null,null,null,"Abrechnungsjahr",null,null,null,null,{"$f":"Energieeinsatz!AV4","v":2021},null,null,null,null,null,"berechnete Felder",null,null,null,null,null,null,"Felder die vom Programm berechnet werden",null,null,null,null,null,null,null,null,null,null,null,null,null,null,null,null,null,null,null,null,null,null,null,null,null,null,null,null,null,null,null,null,null,"Abrechnungsjahr",null,null,null,null,{"$f":"V4","v":2021},null,null,null,null,null,null,null,null,null,null,null,null,null,null,null,null,null,null,null,null,"Abrechnungsjahr",null,null,null,null,{"$f":"V4","v":2021},null,null,null,null,null,null,null,null,null,null,null,null,null,"Zuchtsauplätze ",{"$f":"K4","v":80},null,null,null,null,null,"Abrechnungsjahr",null,null,null,null,{"$f":"V4","v":2021}]
[null,null,null,null,null,null,null,null,null,null,null,null,null,null,null,null,null,null,null,null,null,null,null,null,null,null,null,"Werte",null,null,null,null,null,null,"Werte die aus Eingebefeldern übernommen wurden bzw. "]
[null,null,null,null,null,null,null,null,null,null,"Strom",null,null,null,null,null,null,null,null,"Wärme",null,null,null,null,null,null,null,null,null,null,null,null,null,null,null,"-","Felder mit hinterlegten Werten",null,null,null,null,null,null,null,null,null,null,null,null,null,null,null,null,"Sollwerte: durchschnittliche Verbrauchskennzahlen aus zeitgemäßen Tiehaltungsanlagen",null,null,null,null,null,null,null,null,null,null,null,null,null,null,null,null,null,null,null,null,null,null,null,null,"Der Stromverbrauch der Lüftungsanlage ist im Wesentlichen von der baulichen und",null,null,null,null,null,null,null,null,null,null,null,null,null,null,null,null,null,null,null,null,null,null,null,null,null,null,null,null,null,null,null,null,null,null,null,"Strom",null,null,null,null,null,null,null,null,"Wärme"]
[null,null,null,"Gesamtverbrauch",null,null,null,null,null,null,{"$f":"'Abgrenzung BZ'!AI8","v":83100},null,null,"kWh",null,null,null,null,null,{"$f":"'Abgrenzung BZ'!AV8","v":184000},null,null,"kWh",null,null,null,null,null,null,null,null,null,null,null,null,"-","Felder mit hinterlegten Faktoren",null,null,null,null,null,null,null,null,null,null,null,null,null,null,null,null,"Istwerte: ",null,null,"Bitte hier betriebliche Daten eintragen, Sollwert kann als Anhaltspunkt dienen.",null,null,null,null,null,null,null,null,null,null,null,null,null,null,null,null,null,null,null,null,null,null,"technischen Ausführung abhängig.",null,null,null,null,null,null,null,null,null,null,null,null,null,null,null,null,null,null,null,null,null,null,null,null,null,null,null,"pro Zuchtsau - SOLL",null,null,null,null,null,null,{"$f":"BQ36","v":126.75},null,null,"kWh",null,null,null,null,null,{"$f":"CQ40","v":220},null,null,"kWh"]
[null,"davon",null,"Ferkelerzeugung",null,null,null,null,null,null,{"$f":"'Abgrenzung BZ'!AI15","v":20000},null,null,"kWh",null,{"$f":"K8/K7","v":0.24067388688327315},null,null,null,{"$f":"'Abgrenzung BZ'!AV15","v":30000},null,null,"kWh",null,{"$f":"T8/T7","v":0.16304347826086957},null,null,null,null,null,null,null,null,null,null,null,null,null,null,null,null,null,null,null,null,null,null,null,null,null,null,null,null,null,null,null,"Falls keine Messwerte vorhanden, Schätzwerte eingeben!",null,null,null,null,null,null,null,null,null,null,null,null,null,null,null,null,null,null,null,null,null,"Unter Berechnung Lüftungsstrombedarf ist eine für das Produktionsverfahren",null,null,null,null,null,null,null,null,null,null,null,null,null,null,null,null,null,null,null,null,null,null,null,null,null,null,null,null,"pro Zuchtsau - IST",null,null,null,null,null,null,{"$f":"BV36","v":169},null,null,"kWh",null,{"$f":"DK8/DK7","v":1.3333333333333333},null,null,null,{"$f":"CV47","v":390},null,null,"kWh",null,{"$f":"DT8/DT7","v":1.7727272727272727}]
["Anteil am Gesamtverbrauch",null,null,null,null,null,null,null,null,null,null,null,null,null,null,null,null,null,null,null,null,null,null,null,null,null,null,null,null,null,null,null,null,null,null,null,null,null,null,null,null,null,null,null,null,null,null,null,null,null,null,null,null,null,null,null,"Eingabefelder",null,null,null,null,null,null,"berechnete Felder",null,null,null,null,null,null,"Werte",null,null,null,null,null,null,null,null,"Ferkelerzeugung typische und energetisch effiziente Ausführung dargestellt."]
[null,null,null,null,null,null,null,null,null,null,null,null,null,null,null,null,null,null,null,null,null,null,null,null,null,null,"Die Haltungsabschnitte der Ferkelerzeugung und -aufzucht können in die Stallbereiche",null,null,null,null,null,null,null,null,null,null,null,null,null,null,null,null,null,null,null,null,null,null,null,null,null,"pro Zuchtsau",null,null,null,null,null,null,null,null,null,null,null,null,null,null,null,null,null,"Verbrauchswert",null,null,null,null,null,null,null,"Durch Eingabe von Zu-/und Abschlagswerten kann der Stromverbrauch der Praxisanlage"]
[null,null,null,null,null,null,null,null,null,null,null,null,null,null,null,null,null,null,null,null,null,null,null,null,null,null,null,"Abferkelabteil, Ferkelaufzuchtabteil, Warteabteil und Deckzentrum unterteilt werden. ",null,null,null,null,null,null,null,null,null,null,null,null,null,null,null,null,null,null,null,null,null,null,null,null,null,null,null,null,null,null,null,null,null,null,null,null,null,null,null,null,"SOLL",null,null,null,null,"IST",null,null,null,null,null,"berechnet werden."]
[null,null,null,null,null,null,null,null,null,null,null,null,null,null,null,null,null,null,null,null,null,null,null,null,null,null,"Um den Temperaturansprüchen der Ferkel gerecht zu werden, müssen die Stallungen beheizt "]
[null,null,null,null,null,null,null,null,null,null,null,null,null,null,null,null,null,null,null,null,null,null,null,null,null,null,null,"werden. Deshalb wird neben dem elektrischen, auch der thermische Energieeinsatz",null,null,null,null,null,null,null,null,null,null,null,null,null,null,null,null,null,null,null,null,null,null,null,null,null,"Lüftung: *)",null,null,null,null,null,null,null,null,null,null,null,null,null,"Lüftungsanlage ",{"$f":"CQ31","v":57.75},null,null,"kWh",null,75,null,null,"kWh",null,"Berechnung Lüftungsstrombedarf"]
[null,null,null,null,null,null,null,null,null,null,null,null,null,null,null,null,null,null,null,null,null,null,null,null,null,null,null,"betrachtet.",null,null,null,null,null,null,null,null,null,null,null,null,null,null,null,null,null,null,null,null,null,null,null,null,null,null,null,null,null,null,null,null,null,null,null,null,null,null,null,null,null,null,null,null,null,null,null,null,null,null,null,"Lüftungsanlage:"]
[null,null,null,null,null,null,null,null,null,null,null,null,null,null,null,null,null,null,null,null,null,null,null,null,null,null,"Den größten Anteil am elektrischen Energieverbrauch wird für die Stallklimatisierung ",null,null,null,null,null,null,null,null,null,null,null,null,null,null,null,null,null,null,null,null,null,null,null,null,null,"*) Berechnung Lüftungsstrombedarf -> siehe Eingabeblatt 2",null,null,null,null,null,null,null,null,null,null,null,null,null,null,null,null,null,null,null,null,null,null,null,null,null,null,null,null,null,"Zuluftführung",null,null,null,null,"Abluftführung",null,null,null,null,null,"Kamin",null,null,null,null,null,"Regelungstechnik"]
[null,null,null,null,null,null,null,null,null,null,null,null,null,null,null,null,null,null,null,null,null,null,null,null,null,null,null,"beansprucht. Eine Optimierung der Lüftungstechnik birgt daher großes Einsparpotenzial.",null,null,null,null,null,null,null,null,null,null,null,null,null,null,null,null,null,null,null,null,null,null,null,null,null,null,null,null,null,null,null,null,null,null,null,null,null,null,null,null,null,null,null,null,null,null,null,null,null,null,null,null,null,null,"Lochplatten ",null,null,null,null,"Oberflur zentral ",null,null,null,null,null,"gerade Ausführung ",null,null,null,null,null,null,null,null,null,"Frequenzregelung "]
[null,null,null,null,null,null,null,null,null,null,null,null,null,null,null,null,null,null,null,null,null,null,null,null,null,null,null,null,null,null,null,null,null,null,null,null,null,null,null,null,null,null,null,null,null,null,null,null,null,null,null,null,null,"Fütterung:",null,null,null,null,null,null,null,null,null,null,null,null,null,"Trockenfütterung ",2,null,null,"kWh",null,2,null,null,"kWh"]
[null,null,null,null,null,null,null,null,null,null,null,null,null,null,null,null,null,null,null,null,null,null,null,null,null,null,"Handlungsempfehlungen:",null,null,null,null,null,null,null,null,null,null,null,null,null,null,null,null,null,null,null,null,null,null,null,null,null,null,null,null,null,null,null,null,null,null,null,null,null,null,null,null,"Flüssigfütterung ",4,null,null,"kWh",null,null,null,null,"kWh",null,null,null,null,null,null,null,null,null,null,null,null,null,null,null,null,null,35,null,null,"kWh"]
[null,null,null,null,null,null,null,null,null,null,null,null,null,null,null,null,null,null,null,null,null,null,null,null,null,null,null,"Lüftung",null,null,null,null,null,null,null,null,null,null,null,null,null,null,null,null,null,null,null,null,null,null,null,null,null,null,null,null,null,null,null,null,null,null,null,null,null,null,null,"pneumatisches Fütterungssystem ",18,null,null,"kWh",null,null,null,null,"kWh",null,null,"Zu-/Abschlagwerte für andere Ausführungen"]
[null,null,null,null,null,null,null,null,null,null,null,null,null,null,null,null,null,null,null,null,null,null,null,null,null,null,null,null,"-","Wichtigster Ansatz zur Effizienzsteigerung ist die Minderung von Druckverlusten ",null,null,null,null,null,null,null,null,null,null,null,null,null,null,null,null,null,null,null,null,null,null,null,null,null,null,null,null,null,null,null,null,null,null,null,null,null,null,null,null,null,null,null,null,null,null,null,null,null,null,null,null,"Futtergang ",null,null,null,null,"Unterflur zentral ",null,null,null,null,null,"Weitwurfdüse ",null,null,null,null,null,"Phasenanschnitt"]
[null,null,null,null,null,null,null,null,null,null,null,null,null,null,null,null,null,null,null,null,null,null,null,null,null,null,null,null,null,"durch optimal dimensionierte Querschnitte und eine strömungstechnisch günstige ",null,null,null,null,null,null,null,null,null,null,null,null,null,null,null,null,null,null,null,null,null,null,null,"Futteraufbereitung:",null,null,null,null,null,null,null,null,null,null,null,null,null,"Mahl- und Mischanlage ",20,null,null,"kWh",null,22,null,null,"kWh",null,null,null,null,null,-0.24,null,null,null,null,0.42,null,null,null,null,null,0.49,null,null,null,null,null,0.65]
[null,null,null,null,null,null,null,null,null,null,"Strom",null,null,null,null,null,null,null,null,"Wärme",null,null,null,null,null,null,null,null,null,"Ausführung der Zu- und Abluftführung",null,null,null,null,null,null,null,null,null,null,null,null,null,null,null,null,null,null,null,null,null,null,null,null,null,null,null,null,null,null,null,null,null,null,null,null,null,null,null,null,null,null,null,null,null,null,null,null,null,null,null,null,"Strahllüftung ",null,null,null,null,"Oberflur dezentral ",null,null,null,null,null,"Regenhaube ",null,null,null,null,null,"Traforegelung "]
[null,null,null,"pro Zuchtsau - SOLL",null,null,null,null,null,null,140,null,null,"kWh",null,null,null,null,null,220,null,null,"kWh",null,null,null,null,null,"-","Durch den Einsatz von Energiesparventilatoren können Einsparpotenziale von 50%",null,null,null,null,null,null,null,null,null,null,null,null,null,null,null,null,null,null,null,null,null,null,null,"Beleuchtung:",null,null,null,null,null,2,"h/d",null,null,null,null,null,null,"Leuchtstoffröhren ",6,null,null,"kWh",null,6,null,null,"kWh",null,null,null,null,null,-0.1,null,null,null,null,-0.42,null,null,null,null,null,0.44,null,null,null,null,null,0.45,null,null,null,null,null,null,null,null,null,null,"Soll"]
[null,null,null,"pro Zuchtsau - IST",null,null,null,null,null,null,{"$f":"K8/$K$4","v":250},null,null,"kWh",null,{"$f":"K24/K23","v":1.7857142857142858},null,null,null,{"$f":"T8/K4","v":375},null,null,"kWh",null,{"$f":"T24/T23","v":1.7045454545454546},null,null,null,null,"und mehr realisiert werden. Die höheren Anschaffungskosten haben eine kurze ",null,null,null,null,null,null,null,null,null,null,null,null,null,null,null,null,null,null,null,null,null,null,null,null,null,null,null,null,null,null,null,null,null,null,null,null,null,"LED-Leuchten ",2,null,null,"kWh",null,null,null,null,"kWh",null,null,null,null,null,"Porendecke ",null,null,null,null,null,null,null,null,null,null,"Einströmdüse ",null,null,null,null,null,"EC-Motor ",null,null,null,null,null,null,null,null,null,null,"kWh",null,null,null,null,null,null,null,null,null,null,null,null,null,null,null,null,null,null,null,null,null,null,null,null,null,"IST",null,null,null,"Soll"]
[null,null,null,null,null,null,null,null,null,null,null,null,null,null,null,null,null,null,null,null,null,null,null,null,null,null,null,null,null,"Amortisationszeit von durchschnittlich 3 bis 5 Jahren.",null,null,null,null,null,null,null,null,null,null,null,null,null,null,null,null,null,null,null,null,null,null,null,null,null,null,null,null,null,null,null,null,null,null,null,null,null,null,null,null,null,null,null,null,null,null,null,null,null,null,null,null,0.2,null,null,null,null,null,null,null,null,null,null,-7.0000000000000007E-2,null,null,null,null,null,-0.05,null,null,null,null,null,"Lüftung",null,null,null,null,70,null,null,null,null,null,null,null,null,null,null,null,null,null,null,null,null,null,null,null,null,{"$f":"DB35","v":0},{"$f":"DC35","v":0},0,0,0,{"$f":"DG49","v":0},null,null,null,{"$f":"DG35","v":0}]
[null,null,null,null,null,null,null,null,null,null,null,null,null,null,null,null,null,null,null,null,null,null,null,null,null,null,null,null,"-","Die Art der Regelung hat einen direkten Einfluss auf den Energiebedarf. Vor allem ",null,null,null,null,null,null,null,null,null,null,null,null,null,null,null,null,null,null,null,null,null,null,null,"Reinigung:",null,null,null,null,null,null,null,null,null,null,null,null,null,"Hochdruckreiniger (HDR) ",5,null,null,"kWh",null,4,null,null,"kWh",null,null,null,null,null,null,null,null,null,null,null,null,null,null,null,null,"Diffusor ",null,null,null,null,null,null,null,null,null,null,null,"Fütterung",null,null,null,null,2,null,null,null,null,null,null,null,null,null,null,null,null,null,null,null,null,null,null,null,null,{"$f":"DB34","v":0},{"$f":"DC34","v":0},0,0,0,{"$f":"DG48","v":0},null,null,null,{"$f":"DG34","v":0}]
[null,null,null,null,null,null,null,null,null,null,null,null,null,null,null,null,null,null,null,null,null,null,null,null,null,null,null,null,null,"im abgeregelten Leistungsbereich haben frequenzgesteuerte und EC-Ventilatoren",null,null,null,null,null,null,null,null,null,null,null,null,null,null,null,null,null,null,null,null,null,null,null,null,null,null,null,null,null,null,null,null,null,null,null,null,null,null,null,null,null,null,null,null,null,null,null,null,null,null,null,null,null,null,null,null,null,null,null,null,null,null,null,-0.17,null,null,null,null,null,null,null,null,null,null,null,"Mahl-/Mischanlage",null,null,null,null,20,null,null,null,null,null,null,null,null,null,null,null,null,null,null,null,null,null,null,null,null,{"$f":"DB33","v":"Sonstige"},{"$f":"DC33","v":0},0,0,0,{"$f":"DG47","v":20},null,null,null,{"$f":"DG33","v":12}]
[null,null,null,null,null,null,null,null,null,null,null,null,null,null,null,null,null,null,null,null,null,null,null,null,null,null,null,null,null,"mit elektronisch geregeltem Gleichstrommotor im Vergleich zu herkömmlichen ",null,null,null,null,null,null,null,null,null,null,null,null,null,null,null,null,null,null,null,null,null,null,null,"Entmistung:",null,null,null,null,null,null,null,null,null,null,null,null,null,"Güllerührwerk /-pumpe ",4,null,null,"kWh",null,null,null,null,"kWh",null,null,null,null,null,null,null,null,null,null,null,null,null,null,null,null,null,null,null,null,null,null,null,null,null,null,null,null,"Beleuchtung",null,null,null,null,6,null,null,null,null,null,null,null,null,null,null,null,null,null,null,null,null,null,null,null,null,{"$f":"DB32","v":"Betriebsstrom"},{"$f":"DC32","v":0},0,0,0,{"$f":"DG46","v":20},null,null,null,{"$f":"DG32","v":6}]
[null,null,null,null,null,null,null,null,null,null,null,null,null,null,null,null,null,null,null,null,null,null,null,null,null,null,null,null,null,"Ventilatoren mit Phasenanschnitt- oder transformatorischer Steuerung eine deutlich ",null,null,null,null,null,null,null,null,null,null,null,null,null,null,null,null,null,null,null,null,null,null,null,null,null,null,null,null,null,null,null,null,null,null,null,null,null,null,null,null,null,null,null,null,null,null,null,null,null,null,null,null,-0.24,null,null,null,null,null,null,null,null,null,null,0.44,null,null,null,null,null,0.45,null,null,null,null,null,"Reinigung",null,null,null,null,5,null,null,null,null,null,null,null,null,null,null,null,null,null,null,null,null,null,null,null,null,{"$f":"DB31","v":"Ferkelnest"},{"$f":"DC31","v":0},0,0,0,{"$f":"DG45","v":20},null,null,null,{"$f":"DG31","v":15}]
[null,null,null,null,null,null,null,null,null,null,null,null,null,null,null,null,null,null,null,null,null,null,null,null,null,null,null,null,null,"geringere spezifische Leistungsaufnahme.",null,null,null,null,null,null,null,null,null,null,null,null,null,null,null,null,null,null,null,null,null,null,null,"Ferkelnest:",null,null,null,null,null,null,null,null,null,null,null,null,null,"Infrarotlampen ",15,null,null,"kWh",null,20,null,null,"kWh",null,null,null,null,null,null,null,null,null,null,null,null,null,null,null,null,null,null,null,null,null,null,null,null,null,null,null,null,"Entmistung",null,null,null,null,4,null,null,null,null,null,null,null,null,null,null,null,null,null,null,null,null,null,null,null,null,{"$f":"DB30","v":"Entmistung"},{"$f":"DC30","v":0},0,0,0,{"$f":"DG44","v":0},null,null,null,{"$f":"DG30","v":4}]
[null,null,null,null,null,null,null,null,null,null,null,null,null,null,null,null,null,null,null,null,null,null,null,null,null,null,null,null,"baulich-technische Maßnahmen:",null,null,null,null,null,null,null,null,null,null,null,null,null,null,null,null,null,null,null,null,null,null,null,null,null,null,null,null,null,null,null,null,null,null,null,null,null,null,null,null,null,null,null,null,null,null,null,null,null,null,null,null,null,"Verbrauchswert - SOLL",null,null,null,null,null,null,null,null,null,null,"Lüftungsanlage ",{"$f":"CQ18+(CQ18*CE29)+(CQ18*CJ29)+(CQ18*CP29)+(CQ18*CV29)","v":57.75},null,null,"kWh",null,null,"Zurück",null,null,null,null,"Ferkelnest",null,null,null,null,15,null,null,null,null,null,null,null,null,null,null,null,null,null,null,null,null,null,null,null,null,{"$f":"DB29","v":"Reinigung"},{"$f":"DC29","v":0},0,0,0,{"$f":"DG43","v":4},null,null,null,{"$f":"DG29","v":5}]
[null,null,null,null,null,null,null,null,null,null,null,null,null,null,null,null,null,null,null,null,null,null,null,null,null,null,null,null,"-","richtige Dimensionierung der Lüftungsanlage",null,null,null,null,null,null,null,null,null,null,null,null,null,null,null,null,null,null,null,null,null,null,null,"Betriebsstrom Heizung:",null,null,null,null,null,null,null,null,null,null,null,null,null,"Umwälzpumpen, ... ",6,null,null,"kWh",null,20,null,null,"kWh",null,null,null,null,null,null,null,null,null,null,null,null,null,null,null,null,null,null,null,null,null,null,null,null,null,null,null,null,"Betriebsstrom",null,null,null,null,6,null,null,null,null,null,null,null,null,null,null,null,null,null,null,null,null,null,null,null,null,{"$f":"DB28","v":"Beleuchtung"},{"$f":"DC28","v":0},0,0,0,{"$f":"DG42","v":6},null,null,null,{"$f":"DG28","v":6}]
[null,null,null,null,null,null,null,null,null,null,null,null,null,null,null,null,null,null,null,null,null,null,null,null,null,null,null,null,null,null,null,"(Sommer: Abfuhr der Wärme – Winter: Wasserdampf + Schadgase)",null,null,null,null,null,null,null,null,null,null,null,null,null,null,null,null,null,null,null,null,null,null,null,null,null,null,null,null,null,null,null,null,null,null,null,null,null,null,null,null,null,null,null,null,null,null,null,null,null,null,null,null,null,null,null,null,null,null,null,null,null,null,null,null,null,null,null,null,null,null,null,null,null,"Sonstige",null,null,null,null,12,null,null,null,null,null,null,null,null,null,null,null,null,null,null,null,null,null,null,null,null,{"$f":"DB27","v":"Mahl-/Mischanlage"},{"$f":"DC27","v":0},0,0,0,{"$f":"DG41","v":22},null,null,null,{"$f":"DG27","v":20}]
[null,null,null,null,null,null,null,null,null,null,null,null,null,null,null,null,null,null,null,null,null,null,null,null,null,null,null,null,"-","strömungstechnisch günstige Gestaltung der Zu- und Abluftführung",null,null,null,null,null,null,null,null,null,null,null,null,null,null,null,null,null,null,null,null,null,null,null,"Sonstige:",null,null,null,null,null,null,null,null,null,null,null,null,null,"Stallbüro, Elektroboiler, Kühlschränke, …",15,null,null,"kWh",null,20,null,null,"kWh",null,"Berechnung Wärmebedarf - SOLL:",null,null,null,null,null,null,null,null,null,null,null,null,null,null,null,null,null,null,null,null,null,null,null,null,null,null,null,null,null,null,null,null,null,null,null,null,null,null,null,null,null,null,null,null,null,null,null,null,null,null,null,null,{"$f":"DB26","v":"Fütterung"},{"$f":"DC26","v":0},0,0,0,{"$f":"DG40","v":2},null,null,null,{"$f":"DG26","v":2}]
[null,null,null,null,null,null,null,null,null,null,null,null,null,null,null,null,null,null,null,null,null,null,null,null,null,null,null,null,"-","fachgerechte Dämmung und Abdichtung der Stallgebäude und des Dachraums",null,null,null,null,null,null,null,null,null,null,null,null,null,null,null,null,null,null,null,null,null,null,null,null,null,null,null,null,null,null,null,null,null,null,null,null,null,null,null,null,null,null,null,null,null,null,null,null,null,"pro Zuchtsau",null,null,null,null,null,null,null,null,null,null,null,null,null,null,null,null,"Verbrauchswert",null,null,null,null,null,null,null,null,null,null,null,null,null,null,null,null,null,null,null,null,null,null,null,null,null,null,null,null,null,null,null,null,null,null,{"$f":"DB25","v":"Lüftung"},{"$f":"DC25","v":0},0,0,0,{"$f":"DG39","v":75},null,null,null,{"$f":"DG25","v":70}]
[null,null,null,null,null,null,null,null,null,null,null,null,null,null,null,null,null,null,null,null,null,null,null,null,null,null,null,null,null,null,null,"(Vermeidung von Wärmeverlusten im Winter und starke Zuluftanwärmung",null,null,null,null,null,null,null,null,null,null,null,null,null,null,null,null,null,null,null,null,null,"Gesamt pro Platz",null,null,null,null,null,null,null,null,null,null,null,null,null,null,{"$f":"BQ13+BQ17+IF(BV21>0.001,BQ21,0)+BQ23+BQ26+BQ30+BQ32+BQ34","v":126.75},null,null,"kWh",null,{"$f":"SUM(BV13:BX34)","v":169},null,null,"kWh",null,null,null,null,null,null,null,null,null,null,null,null,null,null,null,null,null,"SOLL",null,null,null,null,"IST"]
[null,null,null,null,null,null,null,null,null,null,null,null,null,null,null,null,null,null,null,null,null,null,null,null,null,null,null,null,null,null,null,"im Sommer)",null,null,null,null,null,null,null,null,null,null,null,null,null,null,null,null,null,null,null,null,null,"Gesamt",null,null,null,null,null,null,null,null,null,null,null,null,null,null,{"$f":"BQ36*K4","v":10140},null,null,"kWh",null,{"$f":"BV36*K4","v":13520},null,null,"kWh",null,null,"Heizung: Warmwasser und Infrarotlampen",null,null,null,null,null,null,null,null,null,null,null,null,null,null,null,null,null,null,null,null,null,null,null,null,null,null,null,null,null,null,"IST"]
[null,null,null,null,null,null,"kWh",null,null,null,null,null,null,null,null,null,null,null,null,null,null,null,null,null,null,null,null,null,"betriebliches Management - Vermeidung von Druckverlusten",null,null,null,null,null,null,null,null,null,null,null,null,null,null,null,null,null,null,null,null,null,null,null,null,null,null,null,null,null,null,null,null,null,null,null,null,null,null,null,null,null,null,null,null,null,null,null,null,null,null,"gut gedämmtes Stallgebäude",null,null,null,null,null,null,null,null,null,null,null,null,null,"Stallheizung ",60,null,null,"kWh",null,80,null,null,"kWh",null,null,null,null,null,null,null,"kWh"]
[null,"Lüftung",null,null,null,null,70,null,null,null,null,null,null,null,null,null,null,null,null,null,null,null,null,null,null,null,null,null,"-","regelmäßige Reinigung (mindestens zweimal pro Jahr) ",null,null,null,null,null,null,null,null,null,null,null,null,null,null,null,null,null,null,null,null,null,null,"Berechnungshilfe elektrische Energie:",null,null,null,null,null,null,null,null,null,null,null,null,null,null,null,null,null,null,null,null,null,null,null,null,null,null,"mit WRG (Wärmetauscher)",null,null,null,null,null,null,null,null,null,null,null,null,null,"Ferkelnestheizung",160,null,null,"kWh",null,180,null,null,"kWh",null,null,"Lüftung",null,null,null,null,{"$f":"BV13","v":75}]
[null,"Fütterung",null,null,null,null,{"$f":"BV17+BV18+BV19","v":2},null,null,null,null,null,null,null,null,null,null,null,null,null,null,null,null,null,null,null,null,null,"-","Wartung und Überprüfung der Zu- und Abluftkanäle, der Ventilatoren und Lüftungs-",null,null,null,null,null,null,null,null,null,null,null,null,null,null,null,null,null,null,null,null,null,null,null,"Hier kann mittels Leistung und Laufzeit der Jahresstromverbrauch der einzelnen",null,null,null,null,null,null,null,null,null,null,null,null,null,null,null,null,null,null,null,null,null,null,null,null,null,"Gesamt pro Platz",null,null,null,null,null,null,null,null,null,null,null,null,null,null,{"$f":"CQ38+CQ39","v":220},null,null,"kWh",null,{"$f":"CV38+CV39","v":260},null,null,"kWh",null,null,"Fütterung",null,null,null,null,{"$f":"SUM(BV17:BX19)","v":2}]
[null,"Mahl-/Mischanlage",null,null,null,null,{"$f":"BV21","v":22},null,null,null,null,null,null,null,null,null,null,null,null,null,null,null,null,null,null,null,null,null,null,"klappen inkl. Kalibrierung und optimale Einstellung der Temperaturfühler",null,null,null,null,null,null,null,null,null,null,null,null,null,null,null,null,null,null,null,null,null,null,null,"Systemkomponenten berechnet werden.",null,null,null,null,null,null,null,null,null,null,null,null,null,null,null,null,null,null,null,null,null,null,null,null,null,"Gesamt",null,null,null,null,null,null,null,null,null,null,null,null,null,null,{"$f":"CQ40*K4","v":17600},null,null,"kWh",null,null,null,null,null,null,null,"Mahl-/Mischanlage",null,null,null,null,{"$f":"BV21","v":22}]
[null,"Beleuchtung",null,null,null,null,{"$f":"BV23+BV24","v":6},null,null,null,null,null,null,null,null,null,null,null,null,null,null,null,null,null,null,null,null,"Stall",null,null,null,null,null,null,null,null,null,null,null,null,null,null,null,null,null,null,null,null,null,null,null,null,null,"Verbraucher",null,null,null,null,null,"Anzahl",null,null,"Leistung",null,null,null,"Laufzeit",null,null,null,"Tage",null,null,null,"Strom",null,null,null,null,null,null,null,null,null,null,null,null,null,null,null,null,null,null,null,null,null,null,null,null,null,null,null,null,null,null,"Beleuchtung",null,null,null,null,{"$f":"SUM(BV23:BX24)","v":6}]
[null,"Reinigung",null,null,null,null,5,null,null,null,null,null,null,null,null,null,null,null,null,null,null,null,null,null,null,null,null,null,"-","regelmäßige Wartung der Anlagen insbes. der Fütterungs- und ",null,null,null,null,null,null,null,null,null,null,null,null,null,null,null,null,null,null,null,null,null,null,null,"HDR",null,null,null,null,null,1,null,null,2.6,null,"kW",null,4,null,"h",null,80,null,"d",null,{"$f":"BH43*BK43*BO43*BS43","v":832},null,"kWh",null,null,"Zu/-Abschlagwerte für andere Ausführungen",null,null,null,null,null,null,null,null,null,null,null,null,null,null,null,null,null,null,null,null,null,null,null,null,null,"Reinigung",null,null,null,null,{"$f":"BV26","v":4}]
[null,"Entmistung",null,null,null,null,4,null,null,null,null,null,null,null,null,null,null,null,null,null,null,null,null,null,null,null,null,null,null,"Futteraufbereitungsanlagen",null,null,null,null,null,null,null,null,null,null,null,null,null,null,null,null,null,null,null,null,null,null,null,"Gebläse",null,null,null,null,null,1,null,null,1.5,null,"kW",null,8,null,"h",null,20,null,"d",null,{"$f":"BH44*BK44*BO44*BS44","v":240},null,"kWh",null,null,null,"ohne WRG",null,null,null,null,null,null,null,null,null,null,null,null,null,0.2,null,null,null,null,null,null,null,null,null,null,"Entmistung",null,null,null,null,{"$f":"BV28","v":0}]
[null,"Ferkelnest",null,null,null,null,15,null,null,null,null,null,null,null,null,null,null,null,null,null,null,null,null,null,null,null,null,null,"-","Beleuchtung: Umrüstung auf LED",null,null,null,null,null,null,null,null,null,null,null,null,null,null,null,null,null,null,null,null,null,null,null,"Schrotmühle",null,null,null,null,null,1,null,null,10.5,null,"kW",null,1.5,null,"h",null,180,null,"d",null,{"$f":"BH45*BK45*BO45*BS45","v":2835},null,"kWh",null,null,null,"ohne Ferkelnestabdeckung",null,null,null,null,null,null,null,null,null,null,null,null,null,0.4,null,null,null,null,0.3,null,null,null,null,null,"Ferkelnest",null,null,null,null,{"$f":"BV30","v":20}]
[null,"Betriebsstrom",null,null,null,null,6,null,null,null,null,null,null,null,null,null,null,null,null,null,null,null,null,null,null,null,null,null,"-","Frostsichere Verlegung der Wasserleitungen",null,null,null,null,null,null,null,null,null,null,null,null,null,null,null,null,null,null,null,null,null,null,null,"Leuchtstoffröhren",null,null,null,null,null,35,null,null,7.0000000000000007E-2,null,"kW",null,2,null,"h",null,365,null,"d",null,{"$f":"BH46*BK46*BO46*BS46","v":1788.5000000000002},null,"kWh",null,null,null,"geringe Dämmung + Sonstige Verlustquellen",null,null,null,null,null,null,null,null,null,null,null,null,null,0.4,null,null,null,null,0.2,null,null,null,null,null,"Betriebsstrom",null,null,null,null,{"$f":"BV32","v":20}]
[null,"Sonstige",null,null,null,null,12,null,null,null,null,null,null,null,null,null,null,null,null,null,null,null,null,null,null,null,null,null,"-","Einbau hocheffizienter Antriebe und Pumpen",null,null,null,null,null,null,null,null,null,null,null,null,null,null,null,null,null,null,null,null,null,null,null,null,null,null,null,null,null,null,null,null,null,null,null,null,null,null,null,null,null,null,null,null,{"$f":"SUM(BW43:BX46)","v":5695.5},null,"kWh",null,null,"Gesamt pro Platz",null,null,null,null,null,null,null,null,null,null,null,null,null,null,{"$f":"CQ40+(CQ40*CQ44)+(CQ40*CQ45)+(CQ40*CQ46)","v":440},null,null,"kWh",null,{"$f":"CV40+(CV40*CV44)+(CV40*CV45)+(CV40*CV46)","v":390},null,null,"kWh",null,null,"Sonstige",null,null,null,null,{"$f":"BV34","v":20}]
[null,null,null,null,null,null,null,null,null,null,null,null,null,null,null,null,null,null,null,null,null,null,null,null,null,null,null,null,null,null,null,null,null,null,null,null,null,null,null,null,null,null,null,null,null,null,null,null,null,null,null,null,null,null,null,null,null,null,null,null,null,null,null,null,null,null,null,null,null,null,null,null,null,null,null,null,null,null,null,"Gesamt",null,null,null,null,null,null,null,null,null,null,null,null,null,null,{"$f":"CQ47*K4","v":35200},null,null,"kWh",null,{"$f":"CV47*K4","v":31200},null,null,"kWh"]
[null,null,null,null,null,null,null,null,null,null,null,null,null,null,null,null,null,null,null,null,null,null,null,null,null,null,null,null,"Heizung: siehe Ferkelauzucht",null,null,null,null,null,null,null,null,null,null,null,"Zurück zu Legehennen",null,null,null,null,null,null,null,null,null,"FE.2",null,null,null,null,null,null,null,null,null,null,null,null,null,null,null,null,null,null,null,null,null,null,null,null,null,"FE.3",null,null,null,null,null,null,null,null,null,null,null,null,null,null,null,null,null,null,null,null,null,null,null,null,null,"FE.4"]

{"sheet":"FA","index":7,"n_rows":49,"n_cols":141,"rows_kept":49,"cut":false,"hidden":false,"merged":[[43,74,43,75],[44,74,44,75],[48,76,48,77],[46,74,46,75],[45,6,45,8],[45,53,45,57],[45,59,45,60],[45,62,45,63],[45,66,45,67],[45,70,45,71],[45,74,45,75],[48,50,48,51],[43,6,43,8],[43,53,43,57],[44,53,44,57],[43,59,43,60],[44,59,44,60],[43,62,43,63],[44,62,44,63],[43,66,43,67],[44,66,44,67],[43,70,43,71],[44,70,44,71],[40,53,40,57],[40,59,40,60],[40,62,40,63],[40,66,40,67],[40,70,40,71],[40,74,40,75],[42,6,42,8],[41,53,41,57],[41,59,41,60],[41,62,41,63],[41,66,41,67],[41,70,41,71],[41,74,41,75],[42,74,42,75],[42,53,42,57],[42,59,42,60],[42,62,42,63],[42,66,42,67],[42,70,42,71],[29,68,29,70],[29,73,29,75],[27,68,27,70],[27,73,27,75],[33,68,33,70],[33,73,33,75],[34,68,34,70],[34,73,34,75],[37,6,37,8],[31,68,31,70],[31,73,31,75],[20,73,20,75],[12,68,12,70],[12,73,12,75],[16,68,16,70],[16,73,16,75],[25,68,25,70],[25,73,25,75],[23,10,23,12],[23,15,23,16],[23,19,23,21],[23,24,23,25],[23,68,23,70],[23,73,23,75],[21,10,21,13],[21,19,21,22],[22,10,22,12],[22,19,22,21],[22,68,22,70],[22,73,22,75],[0,61,0,65],[3,73,3,75],[5,10,5,13],[5,19,5,22],[7,10,7,12],[7,15,7,16],[7,19,7,21],[7,24,7,25],[6,10,6,12],[6,19,6,21],[0,9,0,13],[4,27,4,32],[2,27,2,32],[3,27,3,32],[0,31,0,32],[0,35,0,39],[0,50,0,51],[0,5,0,6],[0,24,0,25],[38,6,38,8],[39,6,39,8],[40,6,40,8],[41,6,41,8],[44,6,44,8],[48,102,48,103],[44,94,44,96],[44,99,44,101],[24,93,24,97],[24,99,24,103],[22,87,22,91],[22,93,22,97],[17,94,17,96],[20,82,20,85],[20,87,20,91],[20,93,20,97],[28,82,28,85],[28,87,28,91],[0,76,0,77],[3,21,3,23],[3,10,3,12],[0,57,0,58],[45,110,45,112],[45,94,45,96],[45,99,45,101],[43,94,43,96],[43,99,43,101],[44,110,44,112],[43,110,43,112],[38,110,38,112],[39,94,39,96],[39,110,39,112],[36,110,36,112],[37,110,37,112],[8,56,8,61],[8,63,8,68],[8,70,8,75],[46,94,46,96],[46,99,46,101],[42,94,42,96],[42,99,42,101],[41,110,41,112],[42,110,42,112],[40,110,40,112],[38,94,38,96],[38,99,38,101],[10,68,10,70],[10,73,10,75],[17,68,17,70],[17,73,17,75],[18,68,18,70],[18,73,18,75],[20,68,20,70],[28,99,28,103],[28,110,28,112],[24,82,24,85],[24,110,24,112],[25,110,25,112],[33,102,33,103],[29,110,29,112],[30,94,30,96],[30,110,30,112],[31,110,31,112],[26,93,26,97],[26,110,26,112],[27,110,27,112],[28,93,28,97],[0,109,0,110],[0,113,0,117],[0,128,0,129],[3,99,3,101],[3,114,3,116],[0,83,0,84],[0,87,0,91],[0,102,0,103],[36,94,36,96],[36,99,36,101],[7,114,7,116],[7,119,7,120],[7,123,7,125],[7,128,7,129],[6,114,6,116],[6,123,6,125],[3,125,3,127],[5,114,5,117],[5,123,5,126],[22,99,22,103],[22,110,22,112],[23,110,23,112],[20,99,20,103],[22,82,22,85]]}
["Energie-Check",null,null,null,null,{"$f":"Betriebsübersicht!F1","v":"V 1.0"},null,null,null,"Ferkelaufzucht",null,null,null,null,null," Ergebnisblatt",null,null,null,null,null,null,null,null,null,null,"Energie-Check",null,null,null,null,{"$f":"Betriebsübersicht!F1","v":"V 1.0"},null,null,null,"Ferkelaufzucht",null,null,null,null,null,"Infoblatt",null,null,null,null,null,null,null,null,null,null,"Energie-Check",null,null,null,null,{"$f":"Betriebsübersicht!F1","v":"V 1.0"},null,null,null,"Ferkelaufzucht",null,null,null,null,null,"Eingabeblatt 1",null,null,null,null,null,null,null,null,null,null,"Energie-Check",null,null,null,null,{"$f":"Betriebsübersicht!F1","v":"V 1.0"},null,null,null,"Ferkelaufzucht",null,null,null,null,null,"Eingabeblatt 2",null,null,null,null,null,null,null,null,null,null,"Energie-Check",null,null,null,null,{"$f":"Betriebsübersicht!F1","v":"V 1.0"},null,null,null,"Ferkelaufzucht",null,null,null,null,null," Ergebnisblatt Vgl. SOLL - IST"]
[null,null,null,null,null,null,null,null,null,null,null,null,null,null,null,null,null,null,null,null,null,null,null,null,null,null,null,null,null,null,null,null,null,null,null,null,null,null,null,null,null,null,null,null,null,null,null,null,null,null,null,null,"Detailbetrachtung",null,null,null,null,null,null,null,null,null,null,null,null,null,null,null,null,null,null,null,null,null,null,null,null,null,"Detailbetrachtung",null,null,null,null,null,null,null,null,null,null,null,null,null,null,null,null,null,null,null,null,null,null,null,null,null,"Detailbetrachtung"]
[null,null,null,null,null,null,null,null,null,null,null,null,null,null,null,null,null,null,null,null,null,null,null,null,null,null,null,"Eingabefelder",null,null,null,null,null,null,"Felder für die Eingabe betrieblicher Daten",null,null,null,null,null,null,null,null,null,null,null,null,null,null,null,null,null,"Berechnung Stromverbrauch - Technische Ausstattung",null,null,null,null,null,null,null,null,null,null,null,null,null,null,null,null,null,null,null,null,null,null,null,null,null,"Berechnung Stromverbrauch - Technische Ausstattung"]
[null,null,null,null,null,null,null,null,null,"Ferkelplätze ",{"$f":"Betriebsübersicht!V32","v":400},null,null,null,null,null,"Abrechnungsjahr",null,null,null,null,{"$f":"Energieeinsatz!AV4","v":2021},null,null,null,null,null,"berechnete Felder",null,null,null,null,null,null,"Felder die vom Programm berechnet werden",null,null,null,null,null,null,null,null,null,null,null,null,null,null,null,null,null,null,null,null,null,null,null,null,null,null,null,null,null,null,null,null,null,"Abrechnungsjahr",null,null,null,null,{"$f":"V4","v":2021},null,null,null,null,null,null,null,null,null,null,null,null,null,null,null,null,null,null,null,null,"Abrechnungsjahr",null,null,null,null,{"$f":"V4","v":2021},null,null,null,null,null,null,null,null,null,null,null,null,null,"Ferkelplätze ",{"$f":"Betriebsübersicht!V32","v":400},null,null,null,null,null,"Abrechnungsjahr",null,null,null,null,{"$f":"V4","v":2021}]
[null,null,null,null,null,null,null,null,null,null,null,null,null,null,null,null,null,null,null,null,null,null,null,null,null,null,null,"Werte",null,null,null,null,null,null,"Werte die aus Eingebefeldern übernommen wurden bzw. "]
[null,null,null,null,null,null,null,null,null,null,"Strom",null,null,null,null,null,null,null,null,"Wärme",null,null,null,null,null,null,null,null,null,null,null,null,null,null,null,"-","Felder mit hinterlegten Werten",null,null,null,null,null,null,null,null,null,null,null,null,null,null,null,null,"Sollwerte: durchschnittliche Verbrauchskennzahlen aus zeitgemäßen Tiehaltungsanlagen",null,null,null,null,null,null,null,null,null,null,null,null,null,null,null,null,null,null,null,null,null,null,null,null,"Der Stromverbrauch der Lüftungsanlage ist im Wesentlichen Abhängig von baulichen und",null,null,null,null,null,null,null,null,null,null,null,null,null,null,null,null,null,null,null,null,null,null,null,null,null,null,null,null,null,null,null,null,null,null,null,"Strom",null,null,null,null,null,null,null,null,"Wärme"]
[null,null,null,"Gesamtverbrauch",null,null,null,null,null,null,{"$f":"'Abgrenzung BZ'!AI8","v":83100},null,null,"kWh",null,null,null,null,null,{"$f":"'Abgrenzung BZ'!AV8","v":184000},null,null,"kWh",null,null,null,null,null,null,null,null,null,null,null,null,"-","Felder mit hinterlegten Faktoren",null,null,null,null,null,null,null,null,null,null,null,null,null,null,null,null,"Istwerte: ",null,null,"Bitte hier betriebliche Daten eintragen, Sollwert kann als Anhaltspunkt dienen.",null,null,null,null,null,null,null,null,null,null,null,null,null,null,null,null,null,null,null,null,null,null,"technischen Ausführung.",null,null,null,null,null,null,null,null,null,null,null,null,null,null,null,null,null,null,null,null,null,null,null,null,null,null,null,"pro Ferkelplatz - SOLL",null,null,null,null,null,null,{"$f":"BQ34","v":22.100000000000005},null,null,"kWh",null,null,null,null,null,{"$f":"CQ39","v":100},null,null,"kWh"]
[null,"davon",null,"Ferkelaufzucht",null,null,null,null,null,null,{"$f":"'Abgrenzung BZ'!AI16","v":10000},null,null,"kWh",null,{"$f":"K8/K7","v":0.12033694344163658},null,null,null,{"$f":"'Abgrenzung BZ'!AV16","v":40000},null,null,"kWh",null,{"$f":"T8/T7","v":0.21739130434782608},null,null,null,null,null,null,null,null,null,null,null,null,null,null,null,null,null,null,null,null,null,null,null,null,null,null,null,null,null,null,null,"Falls keine Messwerte vorhanden, Schätzwerte eingeben!",null,null,null,null,null,null,null,null,null,null,null,null,null,null,null,null,null,null,null,null,null,"Unter Berechnung Lüftungsstrombedarf ist eine für das Produktionsverfahren",null,null,null,null,null,null,null,null,null,null,null,null,null,null,null,null,null,null,null,null,null,null,null,null,null,null,null,null,"pro Ferkelplatz - IST",null,null,null,null,null,null,{"$f":"BV34","v":26},null,null,"kWh",null,{"$f":"DK8/DK7","v":1.1764705882352939},null,null,null,{"$f":"CV46","v":132},null,null,"kWh",null,{"$f":"DT8/DT7","v":1.32}]
["Anteil am Gesamtverbrauch",null,null,null,null,null,null,null,null,null,null,null,null,null,null,null,null,null,null,null,null,null,null,null,null,null,null,null,null,null,null,null,null,null,null,null,null,null,null,null,null,null,null,null,null,null,null,null,null,null,null,null,null,null,null,null,"Eingabefelder",null,null,null,null,null,null,"berechnete Felder",null,null,null,null,null,null,"Werte",null,null,null,null,null,null,null,null,"Ferkelaufzucht typische und energetisch effiziente Ausführung dargestellt."]
[null,null,null,null,null,null,null,null,null,null,null,null,null,null,null,null,null,null,null,null,null,null,null,null,null,null,"Der thermische Energiebedarf der Betriebszweige Ferkelproduktion und Ferkelaufzucht ist im",null,null,null,null,null,null,null,null,null,null,null,null,null,null,null,null,null,null,null,null,null,null,null,null,null,"pro Ferkelplatz",null,null,null,null,null,null,null,null,null,null,null,null,null,null,null,null,null,"Verbrauchswert",null,null,null,null,null,null,null,"Durch Eingabe von Zu-/und Abschlagswerten kann der Stromverbrauch der Praxisanlage"]
[null,null,null,null,null,null,null,null,null,null,null,null,null,null,null,null,null,null,null,null,null,null,null,null,null,null,null,"Vergleich zu anderen Produktionsbereichen sehr hoch und von schwankenden ",null,null,null,null,null,null,null,null,null,null,null,null,null,null,null,null,null,null,null,null,null,null,null,null,null,null,null,null,null,null,null,null,null,null,null,null,null,null,null,null,"SOLL",null,null,null,null,"IST",null,null,null,null,null,"berechnet werden."]
[null,null,null,null,null,null,null,null,null,null,null,null,null,null,null,null,null,null,null,null,null,null,null,null,null,null,null,"außenklimatischen Bedingungen (Außentemperaturen) abhängig. Im Wesentlichen werden "]
[null,null,null,null,null,null,null,null,null,null,null,null,null,null,null,null,null,null,null,null,null,null,null,null,null,null,null,"in der Praxis die Abferkel- und Ferkelaufzuchtabteile beheizt. Im Abferkelbereich und in ",null,null,null,null,null,null,null,null,null,null,null,null,null,null,null,null,null,null,null,null,null,null,null,null,null,"Lüftung: *)",null,null,null,null,null,null,null,null,null,null,null,null,null,"Lüftungsanlage ",{"$f":"CQ31","v":13.8},null,null,"kWh",null,15,null,null,"kWh",null,"Berechnung Lüftungsstrombedarf"]
[null,null,null,null,null,null,null,null,null,null,null,null,null,null,null,null,null,null,null,null,null,null,null,null,null,null,null,"den Ferkelaufzuchtabteilen sind sowohl Heizelemente für die Temperierung der Raumluft ",null,null,null,null,null,null,null,null,null,null,null,null,null,null,null,null,null,null,null,null,null,null,null,null,null,null,null,null,null,null,null,null,null,null,null,null,null,null,null,null,null,null,null,null,null,null,null,null,null,null,null,"Lüftungsanlage:"]
[null,null,null,null,null,null,null,null,null,null,null,null,null,null,null,null,null,null,null,null,null,null,null,null,null,null,null,"als auch elektrische Heizlampen und thermische Warmwasserfußbodenheizungen oder auch",null,null,null,null,null,null,null,null,null,null,null,null,null,null,null,null,null,null,null,null,null,null,null,null,"*) Berechnung Lüftungsstrombedarf -> siehe Eingabeblatt 2",null,null,null,null,null,null,null,null,null,null,null,null,null,null,null,null,null,null,null,null,null,null,null,null,null,null,null,null,null,"Zuluftführung",null,null,null,null,"Abluftführung",null,null,null,null,null,"Kamin",null,null,null,null,null,"Regelungstechnik"]
[null,null,null,null,null,null,null,null,null,null,null,null,null,null,null,null,null,null,null,null,null,null,null,null,null,null,null,"die Kombination aus Raum- und Zonenheizsystemen vorzufinden. ",null,null,null,null,null,null,null,null,null,null,null,null,null,null,null,null,null,null,null,null,null,null,null,null,null,null,null,null,null,null,null,null,null,null,null,null,null,null,null,null,null,null,null,null,null,null,null,null,null,null,null,null,null,null,"Lochplatten ",null,null,null,null,"Oberflur zentral ",null,null,null,null,null,"gerade Ausführung ",null,null,null,null,null,null,null,null,null,"Frequenzregelung "]
[null,null,null,null,null,null,null,null,null,null,null,null,null,null,null,null,null,null,null,null,null,null,null,null,null,null,"Zur Beheizung der gesamten Stallluft sind Twin- oder Deltarohre, Rippenheizungen, ",null,null,null,null,null,null,null,null,null,null,null,null,null,null,null,null,null,null,null,null,null,null,null,null,null,null,"Fütterung:",null,null,null,null,null,null,null,null,null,null,null,null,null,"Trockenfütterung ",0.3,null,null,"kWh",null,null,null,null,"kWh"]
[null,null,null,null,null,null,null,null,null,null,null,null,null,null,null,null,null,null,null,null,null,null,null,null,null,null,null,"Flachheizkörper und Radiatoren installiert. Aufgrund guter Wärmeleiteigenschaften sichern ",null,null,null,null,null,null,null,null,null,null,null,null,null,null,null,null,null,null,null,null,null,null,null,null,null,null,null,null,null,null,null,null,null,null,null,null,null,null,null,"Flüssigfütterung ",0.8,null,null,"kWh",null,1,null,null,"kWh",null,null,null,null,null,null,null,null,null,null,null,null,null,null,null,null,null,12,null,null,"kWh"]
[null,null,null,null,null,null,null,null,null,null,null,null,null,null,null,null,null,null,null,null,null,null,null,null,null,null,null,"sie konstante Raumtemperaturen im Stall. Große Oberflächen von Twin-, Delta- und ",null,null,null,null,null,null,null,null,null,null,null,null,null,null,null,null,null,null,null,null,null,null,null,null,null,null,null,null,null,null,null,null,null,null,null,null,null,null,null,"pneumatisches Fütterungssystem ",3.2,null,null,"kWh",null,null,null,null,"kWh",null,null,"Zu-/Abschlagwerte für andere Ausführungen"]
[null,null,null,null,null,null,null,null,null,null,null,null,null,null,null,null,null,null,null,null,null,null,null,null,null,null,null,"Rippenrohren ermöglichen bei geringen Wassermengen eine hohe Wärmeabgabe. ",null,null,null,null,null,null,null,null,null,null,null,null,null,null,null,null,null,null,null,null,null,null,null,null,null,null,null,null,null,null,null,null,null,null,null,null,null,null,null,null,null,null,null,null,null,null,null,null,null,null,null,null,null,null,"Futtergang ",null,null,null,null,"Unterflur zentral ",null,null,null,null,null,"Weitwurfdüse ",null,null,null,null,null,"Phasenanschnitt"]
[null,null,null,null,null,null,null,null,null,null,null,null,null,null,null,null,null,null,null,null,null,null,null,null,null,null,"Zum Aufheizen von Stallabteilen vor der Neubelegung werden meist Heizkanonen (direkte ",null,null,null,null,null,null,null,null,null,null,null,null,null,null,null,null,null,null,null,null,null,null,null,null,null,null,"Futteraufbereitung:",null,null,null,null,null,null,null,null,null,null,null,null,null,"Mahl- und Mischanlage ",3.2,null,null,"kWh",null,4,null,null,"kWh",null,null,null,null,null,-0.24,null,null,null,null,0.42,null,null,null,null,null,0.49,null,null,null,null,null,0.65]
[null,null,null,null,null,null,null,null,null,null,"Strom",null,null,null,null,null,null,null,null,"Wärme",null,null,null,null,null,null,null,"Lufterwärmung) eingesetzt. Sie sind relativ günstig in der Anschaffung und haben ein großes",null,null,null,null,null,null,null,null,null,null,null,null,null,null,null,null,null,null,null,null,null,null,null,null,null,null,null,null,null,null,null,null,null,null,null,null,null,null,null,null,null,null,null,null,null,null,null,null,null,null,null,null,null,null,"Strahllüftung ",null,null,null,null,"Oberflur dezentral ",null,null,null,null,null,"Regenhaube ",null,null,null,null,null,"Traforegelung "]
[null,null,null,"pro Ferkelplatz - SOLL",null,null,null,null,null,null,18,null,null,"kWh",null,null,null,null,null,100,null,null,"kWh",null,null,null,null,"Leistungsspektrum.",null,null,null,null,null,null,null,null,null,null,null,null,null,null,null,null,null,null,null,null,null,null,null,null,null,"Beleuchtung:",null,null,null,null,null,2,"h/d",null,null,null,null,null,null,"Leuchtstoffröhren ",1.6,null,null,"kWh",null,2,null,null,"kWh",null,null,null,null,null,-0.1,null,null,null,null,-0.42,null,null,null,null,null,0.44,null,null,null,null,null,0.45,null,null,null,null,null,null,null,null,null,null,"Soll"]
[null,null,null,"pro Ferkelplatz - IST",null,null,null,null,null,null,{"$f":"K8/$K$4","v":25},null,null,"kWh",null,{"$f":"K24/K23","v":1.3888888888888888},null,null,null,{"$f":"T8/K4","v":100},null,null,"kWh",null,{"$f":"T24/T23","v":1},null,null,null,null,null,null,null,null,null,null,null,null,null,null,null,null,null,null,null,null,null,null,null,null,null,null,null,null,null,null,null,null,null,null,null,null,null,null,null,null,null,null,"LED-Leuchten ",0.4,null,null,"kWh",null,null,null,null,"kWh",null,null,null,null,null,"Porendecke ",null,null,null,null,null,null,null,null,null,null,"Einströmdüse ",null,null,null,null,null,"EC-Motor ",null,null,null,null,null,null,null,null,null,null,"kWh",null,null,null,null,null,null,null,null,null,null,null,null,null,null,null,null,null,null,null,null,null,null,null,null,null,"IST",null,null,null,"Soll"]
[null,null,null,null,null,null,null,null,null,null,null,null,null,null,null,null,null,null,null,null,null,null,null,null,null,null,"Handlungsempfehlungen:",null,null,null,null,null,null,null,null,null,null,null,null,null,null,null,null,null,null,null,null,null,null,null,null,null,null,null,null,null,null,null,null,null,null,null,null,null,null,null,null,null,null,null,null,null,null,null,null,null,null,null,null,null,null,null,0.2,null,null,null,null,null,null,null,null,null,null,-7.0000000000000007E-2,null,null,null,null,null,-0.05,null,null,null,null,null,"Lüftung",null,null,null,null,12,null,null,null,null,null,null,null,null,null,null,null,null,null,null,null,null,null,null,null,null,{"$f":"DB35","v":0},{"$f":"DC35","v":0},{"$f":"DD35","v":0},{"$f":"DE35","v":0},{"$f":"DF35","v":0},{"$f":"DG49","v":0},null,null,null,{"$f":"DG35","v":0}]
[null,null,null,null,null,null,null,null,null,null,null,null,null,null,null,null,null,null,null,null,null,null,null,null,null,null,null,"Heizuzng",null,null,null,null,null,null,null,null,null,null,null,null,null,null,null,null,null,null,null,null,null,null,null,null,null,"Reinigung:",null,null,null,null,null,null,null,null,null,null,null,null,null,"Hochdruckreiniger (HDR) ",0.6,null,null,"kWh",null,1,null,null,"kWh",null,null,null,null,null,null,null,null,null,null,null,null,null,null,null,null,"Diffusor ",null,null,null,null,null,null,null,null,null,null,null,"Fütterung",null,null,null,null,1,null,null,null,null,null,null,null,null,null,null,null,null,null,null,null,null,null,null,null,null,{"$f":"DB34","v":0},{"$f":"DC34","v":0},{"$f":"DD34","v":0},{"$f":"DE34","v":0},{"$f":"DF34","v":0},{"$f":"DG48","v":0},null,null,null,{"$f":"DG34","v":0}]
[null,null,null,null,null,null,null,null,null,null,null,null,null,null,null,null,null,null,null,null,null,null,null,null,null,null,null,null,"-","Insgesamt lassen sich mit dem Einsatz von Zonenheizungen bis zu 30 % ",null,null,null,null,null,null,null,null,null,null,null,null,null,null,null,null,null,null,null,null,null,null,null,null,null,null,null,null,null,null,null,null,null,null,null,null,null,null,null,null,null,null,null,null,null,null,null,null,null,null,null,null,null,null,null,null,null,null,null,null,null,null,null,-0.17,null,null,null,null,null,null,null,null,null,null,null,"Mahl-/Mischanlage",null,null,null,null,3,null,null,null,null,null,null,null,null,null,null,null,null,null,null,null,null,null,null,null,null,{"$f":"DB33","v":0},{"$f":"DC33","v":0},{"$f":"DD33","v":0},{"$f":"DE33","v":0},{"$f":"DF33","v":0},null,null,null,null,{"$f":"DG33","v":0}]
[null,null,null,null,null,null,null,null,null,null,null,null,null,null,null,null,null,null,null,null,null,null,null,null,null,null,null,null,null,"Heizenergie einsparen. Optimale Temperaturbedingungen im Bereich der ",null,null,null,null,null,null,null,null,null,null,null,null,null,null,null,null,null,null,null,null,null,null,null,"Entmistung:",null,null,null,null,null,null,null,null,null,null,null,null,null,"Güllerührwerk /-pumpe ",0.1,null,null,"kWh",null,null,null,null,"kWh",null,null,null,null,null,null,null,null,null,null,null,null,null,null,null,null,null,null,null,null,null,null,null,null,null,null,null,null,"Beleuchtung",null,null,null,null,1.6,null,null,null,null,null,null,null,null,null,null,null,null,null,null,null,null,null,null,null,null,{"$f":"DB32","v":"Sonstige"},{"$f":"DC32","v":0},{"$f":"DD32","v":0},{"$f":"DE32","v":0},{"$f":"DF32","v":0},{"$f":"DG46","v":2},null,null,null,{"$f":"DG32","v":1.2}]
[null,null,null,null,null,null,null,null,null,null,null,null,null,null,null,null,null,null,null,null,null,null,null,null,null,null,null,null,null,"Ferkelnester sind mit einer Kombination aus regelbarer Fußbodenheizung und ",null,null,null,null,null,null,null,null,null,null,null,null,null,null,null,null,null,null,null,null,null,null,null,null,null,null,null,null,null,null,null,null,null,null,null,null,null,null,null,null,null,null,null,null,null,null,null,null,null,null,null,null,0.2,null,null,null,null,null,null,null,null,null,null,null,null,null,null,null,null,-0.05,null,null,null,null,null,"Reinigung",null,null,null,null,0.6,null,null,null,null,null,null,null,null,null,null,null,null,null,null,null,null,null,null,null,null,{"$f":"DB31","v":"Betriebsstrom"},{"$f":"DC31","v":0},{"$f":"DD31","v":0},{"$f":"DE31","v":0},{"$f":"DF31","v":0},{"$f":"DG45","v":1},null,null,null,{"$f":"DG31","v":0.6}]
[null,null,null,null,null,null,null,null,null,null,null,null,null,null,null,null,null,null,null,null,null,null,null,null,null,null,null,null,null,"Wärmelampen gegeben. Mit dem Einbau von Abdeckplatten werden Wärmepolster ",null,null,null,null,null,null,null,null,null,null,null,null,null,null,null,null,null,null,null,null,null,null,null,"Betriebsstrom Heizung:",null,null,null,null,null,null,null,null,null,null,null,null,null,"Umwälzpumpen, ... ",0.6,null,null,"kWh",null,1,null,null,"kWh",null,null,null,null,null,null,null,null,null,null,null,null,null,null,null,null,null,null,null,null,null,null,null,null,null,null,null,null,"Entmistung",null,null,null,null,0.2,null,null,null,null,null,null,null,null,null,null,null,null,null,null,null,null,null,null,null,null,{"$f":"DB30","v":"Entmistung"},{"$f":"DC30","v":0},{"$f":"DD30","v":0},{"$f":"DE30","v":0},{"$f":"DF30","v":0},{"$f":"DG44","v":0},null,null,null,{"$f":"DG30","v":0.2}]
[null,null,null,null,null,null,null,null,null,null,null,null,null,null,null,null,null,null,null,null,null,null,null,null,null,null,null,null,null,"gebildet, die Wärmeverluste vermindern. Außerhalb des Liegebereichs sind die ",null,null,null,null,null,null,null,null,null,null,null,null,null,null,null,null,null,null,null,null,null,null,null,null,null,null,null,null,null,null,null,null,null,null,null,null,null,null,null,null,null,null,null,null,null,null,null,null,null,null,null,null,"Verbrauchswert - SOLL",null,null,null,null,null,null,null,null,null,null,"Lüftungsanlage ",{"$f":"CQ18+(CQ18*CE29)+(CQ18*CJ29)+(CQ18*CP29)+(CQ18*CV29)","v":13.8},null,null,"kWh",null,null,"Zurück",null,null,null,null,"Betriebsstrom",null,null,null,null,0.6,null,null,null,null,null,null,null,null,null,null,null,null,null,null,null,null,null,null,null,null,{"$f":"DB29","v":"Reinigung"},{"$f":"DC29","v":0},{"$f":"DD29","v":0},{"$f":"DE29","v":0},{"$f":"DF29","v":0},{"$f":"DG43","v":1},null,null,null,{"$f":"DG29","v":0.6}]
[null,null,null,null,null,null,null,null,null,null,null,null,null,null,null,null,null,null,null,null,null,null,null,null,null,null,null,null,null,"Raumtemperaturen niedriger.",null,null,null,null,null,null,null,null,null,null,null,null,null,null,null,null,null,null,null,null,null,null,null,"Sonstige:",null,null,null,null,null,null,null,null,null,null,null,null,null,"Stallbüro, Elektroboiler, Kühlschränke, …",1.5,null,null,"kWh",null,2,null,null,"kWh",null,null,null,null,null,null,null,null,null,null,null,null,null,null,null,null,null,null,null,null,null,null,null,null,null,null,null,null,"Sonstige",null,null,null,null,1.2,null,null,null,null,null,null,null,null,null,null,null,null,null,null,null,null,null,null,null,null,{"$f":"DB28","v":"Beleuchtung"},{"$f":"DC28","v":0},{"$f":"DD28","v":0},{"$f":"DE28","v":0},{"$f":"DF28","v":0},{"$f":"DG42","v":2},null,null,null,{"$f":"DG28","v":1.6}]
[null,null,null,null,null,null,null,null,null,null,null,null,null,null,null,null,null,null,null,null,null,null,null,null,null,null,null,null,null,null,null,null,null,null,null,null,null,null,null,null,null,null,null,null,null,null,null,null,null,null,null,null,null,null,null,null,null,null,null,null,null,null,null,null,null,null,null,null,null,null,null,null,null,null,null,null,null,null,null,null,null,null,null,null,null,null,null,null,null,null,null,null,null,null,null,null,null,null,null,null,null,null,null,null,null,null,null,null,null,null,null,null,null,null,null,null,null,null,null,null,null,null,null,null,null,null,null,null,null,null,null,{"$f":"DB27","v":"Mahl-/Mischanlage"},{"$f":"DC27","v":0},{"$f":"DD27","v":0},{"$f":"DE27","v":0},{"$f":"DF27","v":0},{"$f":"DG41","v":4},null,null,null,{"$f":"DG27","v":3}]
[null,null,null,null,null,null,null,null,null,null,null,null,null,null,null,null,null,null,null,null,null,null,null,null,null,null,null,null,"baulich-technische Maßnahmen:",null,null,null,null,null,null,null,null,null,null,null,null,null,null,null,null,null,null,null,null,null,null,null,null,"Gesamt pro Platz",null,null,null,null,null,null,null,null,null,null,null,null,null,null,{"$f":"BQ13+BQ18+IF(BV21>0.001,BQ21,0)+BQ23+BQ26+BQ30+BQ32","v":22.100000000000005},null,null,"kWh",null,{"$f":"SUM(BV13:BX32)","v":26},null,null,"kWh",null,"Berechnung Wärmebedarf - SOLL:",null,null,null,null,null,null,null,null,null,null,null,null,null,null,null,null,null,null,null,null,null,null,null,null,null,null,null,null,null,null,null,null,null,null,null,null,null,null,null,null,null,null,null,null,null,null,null,null,null,null,null,null,{"$f":"DB26","v":"Fütterung"},{"$f":"DC26","v":0},{"$f":"DD26","v":0},{"$f":"DE26","v":0},{"$f":"DF26","v":0},{"$f":"DG40","v":1},null,null,null,{"$f":"DG26","v":1}]
[null,null,null,null,null,null,null,null,null,null,null,null,null,null,null,null,null,null,null,null,null,null,null,null,null,null,null,null,"-","fachgerechte Dämmung und Abdichtung der Stallgebäude und des Dachraums",null,null,null,null,null,null,null,null,null,null,null,null,null,null,null,null,null,null,null,null,null,null,null,"Gesamt",null,null,null,null,null,null,null,null,null,null,null,null,null,null,{"$f":"BQ34*K4","v":8840.0000000000018},null,null,"kWh",null,{"$f":"BV34*K4","v":10400},null,null,"kWh",null,null,"pro Ferkelplatz",null,null,null,null,null,null,null,null,null,null,null,null,null,null,null,null,"Verbrauchswert",null,null,null,null,null,null,null,null,null,null,null,null,null,null,null,null,null,null,null,null,null,null,null,null,null,null,null,null,null,null,null,null,null,null,{"$f":"DB25","v":"Lüftung"},{"$f":"DC25","v":0},{"$f":"DD25","v":0},{"$f":"DE25","v":0},{"$f":"DF25","v":0},{"$f":"DG39","v":15},null,null,null,{"$f":"DG25","v":12}]
[null,null,null,null,null,null,null,null,null,null,null,null,null,null,null,null,null,null,null,null,null,null,null,null,null,null,null,null,null,null,null,"(Vermeidung von Wärmeverlusten im Winter und starke Zuluftanwärmung"]
[null,null,null,null,null,null,null,null,null,null,null,null,null,null,null,null,null,null,null,null,null,null,null,null,null,null,null,null,null,null,null,"im Sommer)",null,null,null,null,null,null,null,null,null,null,null,null,null,null,null,null,null,null,null,null,"Berechnungshilfe elektrische Energie:",null,null,null,null,null,null,null,null,null,null,null,null,null,null,null,null,null,null,null,null,null,null,null,null,null,null,"Heizung: Warmwasser und WRG (Wärmetauscher)",null,null,null,null,null,null,null,null,null,null,null,null,null,null,"SOLL",null,null,null,null,"IST",null,null,null,null,null,null,null,null,null,null,"IST"]
[null,null,null,null,null,null,"kWh",null,null,null,null,null,null,null,null,null,null,null,null,null,null,null,null,null,null,null,null,null,"-","regelmäßige Wartung der Heizanlagen",null,null,null,null,null,null,null,null,null,null,null,null,null,null,null,null,null,null,null,null,null,null,null,"Hier kann mittels Leistung und Laufzeit der Jahresstromverbrauch der einzelnen",null,null,null,null,null,null,null,null,null,null,null,null,null,null,null,null,null,null,null,null,null,null,null,null,null,"gut gedämmtes Stallgebäude",null,null,null,null,null,null,null,null,null,null,null,null,null,null,null,null,null,null,null,null,null,null,null,null,null,null,null,null,null,null,"kWh"]
[null,"Lüftung",null,null,null,null,12,null,null,null,null,null,null,null,null,null,null,null,null,null,null,null,null,null,null,null,null,null,null,null,null,null,null,null,null,null,null,null,null,null,null,null,null,null,null,null,null,null,null,null,null,null,null,"Systemkomponenten berechnet werden.",null,null,null,null,null,null,null,null,null,null,null,null,null,null,null,null,null,null,null,null,null,null,null,null,null,"Gesamt pro Platz",null,null,null,null,null,null,null,null,null,null,null,null,null,"Stallheizung ",100,null,null,"kWh",null,80,null,null,"kWh",null,null,"Lüftung",null,null,null,null,{"$f":"BV13","v":15}]
[null,"Fütterung",null,null,null,null,{"$f":"BV17+BV18+BV19","v":1},null,null,null,null,null,null,null,null,null,null,null,null,null,null,null,null,null,null,null,null,"Neben dem thermischen Energieaufwand, dem Stromverbrauch für die Infrarotstrahler und",null,null,null,null,null,null,null,null,null,null,null,null,null,null,null,null,null,null,null,null,null,null,null,null,null,"Verbraucher",null,null,null,null,null,"Anzahl",null,null,"Leistung",null,null,null,"Laufzeit",null,null,null,"Tage",null,null,null,"Strom",null,null,null,null,"Gesamt",null,null,null,null,null,null,null,null,null,null,null,null,null,null,{"$f":"CQ39*K4","v":40000},null,null,"kWh",null,null,null,null,null,null,null,"Fütterung",null,null,null,null,{"$f":"SUM(BV17:BX19)","v":1}]
[null,"Mahl-/Mischanlage",null,null,null,null,2,null,null,null,null,null,null,null,null,null,null,null,null,null,null,null,null,null,null,null,null,null,"der Umwälzpumpen für die Wärmeverteilung in Warmwasserleitungen, wird ",null,null,null,null,null,null,null,null,null,null,null,null,null,null,null,null,null,null,null,null,null,null,null,null,"HDR",null,null,null,null,null,1,null,null,2.6,null,"kW",null,4,null,"h",null,80,null,"d",null,{"$f":"BH41*BK41*BO41*BS41","v":832},null,"kWh",null,null,null,null,null,null,null,null,null,null,null,null,null,null,null,null,null,null,null,null,null,null,null,null,null,null,null,null,"Mahl-/Mischanlage",null,null,null,null,{"$f":"BV21","v":4}]
[null,"Beleuchtung",null,null,null,null,1.6,null,null,null,null,null,null,null,null,null,null,null,null,null,null,null,null,null,null,null,null,null,"insbesondere bei Biomasse- und Hackschnitzelheizungen Strom für Förderschnecken,",null,null,null,null,null,null,null,null,null,null,null,null,null,null,null,null,null,null,null,null,null,null,null,null,"Gebläse",null,null,null,null,null,1,null,null,1.5,null,"kW",null,8,null,"h",null,20,null,"d",null,{"$f":"BH42*BK42*BO42*BS42","v":240},null,"kWh",null,null,"Zu/-Abschlagwerte für andere Ausführungen",null,null,null,null,null,null,null,null,null,null,null,null,null,null,null,null,null,null,null,null,null,null,null,null,null,"Beleuchtung",null,null,null,null,{"$f":"SUM(BV23:BX24)","v":2}]
[null,"Reinigung",null,null,null,null,0.6,null,null,null,null,null,null,null,null,null,null,null,null,null,null,null,null,null,null,null,null,null,"Antriebe und der Steuerung benötigt.",null,null,null,null,null,null,null,null,null,null,null,null,null,null,null,null,null,null,null,null,null,null,null,null,"Schrotmühle",null,null,null,null,null,1,null,null,10.5,null,"kW",null,1.5,null,"h",null,180,null,"d",null,{"$f":"BH43*BK43*BO43*BS43","v":2835},null,"kWh",null,null,null,"ohne WRG",null,null,null,null,null,null,null,null,null,null,null,null,null,0.2,null,null,null,null,0.25,null,null,null,null,null,"Reinigung",null,null,null,null,{"$f":"BV26","v":1}]
[null,"Entmistung",null,null,null,null,0.2,null,null,null,null,null,null,null,null,null,null,null,null,null,null,null,null,null,null,null,null,null,"-","Einbau hocheffizienter Antriebe und Pumpen",null,null,null,null,null,null,null,null,null,null,null,null,null,null,null,null,null,null,null,null,null,null,null,null,null,null,null,null,null,null,null,null,null,null,"kW",null,null,null,"h",null,null,null,"d",null,null,null,"kWh",null,null,null,"ohne Liegeflächenabdeckung",null,null,null,null,null,null,null,null,null,null,null,null,null,0.4,null,null,null,null,0.4,null,null,null,null,null,"Entmistung",null,null,null,null,{"$f":"BV28","v":0}]
[null,"Betriebsstrom",null,null,null,null,1.4,null,null,null,null,null,null,null,null,null,null,null,null,null,null,null,null,null,null,null,null,null,null,null,null,null,null,null,null,null,null,null,null,null,null,null,null,null,null,null,null,null,null,null,null,null,null,null,null,null,null,null,null,null,null,null,null,null,"kW",null,null,null,"h",null,null,null,"d",null,null,null,"kWh",null,null,null,"geringe Dämmung + Sonstige Verlustquellen",null,null,null,null,null,null,null,null,null,null,null,null,null,0.4,null,null,null,null,null,null,null,null,null,null,"Betriebsstrom",null,null,null,null,{"$f":"BV30","v":1}]
[null,"Sonstige",null,null,null,null,1.2,null,null,null,null,null,null,null,null,null,null,null,null,null,null,null,null,null,null,null,null,"Beleuchtung --> Umrüstung auf LED",null,null,null,null,null,null,null,null,null,null,null,null,null,null,null,null,null,null,null,null,null,null,null,null,null,null,null,null,null,null,null,null,null,null,null,null,"kW",null,null,null,"h",null,null,null,"d",null,null,null,"kWh",null,null,"Gesamt pro Platz",null,null,null,null,null,null,null,null,null,null,null,null,null,null,{"$f":"CQ39+(CQ39*CQ43)+(CQ39*CQ44)+(CQ39*CQ45)","v":200},null,null,"kWh",null,{"$f":"CV39+(CV39*CV43)+(CV39*CV44)+(CV39*CV45)","v":132},null,null,"kWh",null,null,"Sonstige",null,null,null,null,{"$f":"BV32","v":2}]
[null,null,null,null,null,null,null,null,null,null,null,null,null,null,null,null,null,null,null,null,null,null,null,null,null,null,null,null,null,null,null,null,null,null,null,null,null,null,null,null,null,null,null,null,null,null,null,null,null,null,null,null,null,null,null,null,null,null,null,null,null,null,null,null,null,null,null,null,null,null,null,null,null,null,{"$f":"SUM(BW41:BX46)","v":3907},null,"kWh",null,null,"Gesamt",null,null,null,null,null,null,null,null,null,null,null,null,null,null,{"$f":"CQ46*K4","v":80000},null,null,"kWh",null,{"$f":"CV46*K4","v":52800},null,null,"kWh"]
[null,null,null,null,null,null,null,null,null,null,null,null,null,null,null,null,null,null,null,null,null,null,null,null,null,null,null,null,"Lüftung: siehe Ferkelerzeugung"]
[null,null,null,null,null,null,null,null,null,null,null,null,null,null,null,null,null,null,null,null,null,null,null,null,null,null,null,null,null,null,null,null,null,null,null,null,null,null,null,null,null,null,null,null,null,null,null,null,null,null,"FA.2",null,null,null,null,null,null,null,null,null,null,null,null,null,null,null,null,null,null,null,null,null,null,null,null,null,"FA.3",null,null,null,null,null,null,null,null,null,null,null,null,null,null,null,null,null,null,null,null,null,null,null,null,null,"FA.4"]

{"sheet":"MS","index":8,"n_rows":49,"n_cols":141,"rows_kept":49,"cut":false,"hidden":false,"merged":[[48,76,48,77],[0,57,0,58],[0,61,0,65],[3,73,3,75],[8,56,8,61],[8,63,8,68],[8,70,8,75],[31,82,31,85],[0,109,0,110],[20,99,20,103],[22,82,22,85],[22,87,22,91],[22,93,22,97],[17,94,17,96],[20,82,20,85],[20,87,20,91],[20,93,20,97],[24,82,24,85],[24,93,24,97],[24,99,24,103],[24,110,24,112],[25,110,25,112],[22,99,22,103],[22,110,22,112],[0,113,0,117],[0,128,0,129],[3,99,3,101],[3,114,3,116],[0,83,0,84],[0,87,0,91],[0,102,0,103],[7,123,7,125],[7,128,7,129],[6,114,6,116],[6,123,6,125],[3,125,3,127],[5,114,5,117],[5,123,5,126],[7,114,7,116],[7,119,7,120],[23,110,23,112],[29,110,29,112],[30,110,30,112],[31,110,31,112],[26,93,26,97],[26,110,26,112],[27,110,27,112],[28,82,28,85],[28,87,28,91],[28,93,28,97],[28,99,28,103],[28,110,28,112],[31,99,31,101],[31,87,31,91],[32,110,32,112],[37,110,37,112],[39,94,39,96],[37,94,37,96],[37,99,37,101],[36,110,36,112],[39,110,39,112],[40,110,40,112],[39,99,39,101],[38,110,38,112],[40,94,40,96],[41,110,41,112],[43,94,43,96],[46,110,46,112],[43,99,43,101],[42,110,42,112],[44,94,44,96],[0,9,0,13],[48,50,48,51],[4,27,4,32],[2,27,2,32],[3,27,3,32],[45,99,45,101],[45,110,45,112],[46,94,46,96],[46,99,46,101],[48,102,48,103],[44,110,44,112],[45,94,45,96],[44,99,44,101],[43,110,43,112],[0,31,0,32],[0,35,0,39],[0,50,0,51],[10,73,10,75],[0,5,0,6],[0,24,0,25],[0,76,0,77],[3,21,3,23],[3,10,3,12],[33,68,33,70],[33,73,33,75],[5,10,5,13],[5,19,5,22],[6,10,6,12],[6,19,6,21],[7,10,7,12],[7,15,7,16],[7,19,7,21],[7,24,7,25],[12,68,12,70],[12,73,12,75],[16,68,16,70],[16,73,16,75],[17,68,17,70],[17,73,17,75],[18,68,18,70],[18,73,18,75],[10,68,10,70],[20,68,20,70],[20,73,20,75],[21,10,21,13],[21,19,21,22],[22,10,22,12],[22,19,22,21],[22,68,22,70],[22,73,22,75],[25,68,25,70],[25,73,25,75],[23,10,23,12],[23,15,23,16],[23,19,23,21],[23,24,23,25],[23,68,23,70],[23,73,23,75],[35,68,35,70],[35,73,35,75],[31,68,31,70],[31,73,31,75],[27,68,27,70],[27,73,27,75],[29,68,29,70],[29,73,29,75],[36,68,36,70],[36,73,36,75],[43,74,43,75],[39,6,39,8],[42,53,42,57],[42,59,42,60],[42,62,42,63],[42,66,42,67],[42,70,42,71],[38,6,38,8],[37,6,37,8],[42,74,42,75],[40,6,40,8],[46,74,46,75],[45,6,45,8],[46,6,46,8],[44,74,44,75],[42,6,42,8],[43,6,43,8],[44,6,44,8],[41,6,41,8],[44,53,44,57],[44,59,44,60],[44,62,44,63],[44,66,44,67],[44,70,44,71],[45,53,45,57],[45,59,45,60],[45,62,45,63],[45,66,45,67],[45,70,45,71],[45,74,45,75],[43,53,43,57],[43,59,43,60],[43,62,43,63],[43,66,43,67],[43,70,43,71]]}
["Energie-Check",null,null,null,null,{"$f":"Betriebsübersicht!F1","v":"V 1.0"},null,null,null,"Schweinemast",null,null,null,null,null," Ergebnisblatt",null,null,null,null,null,null,null,null,null,null,"Energie-Check",null,null,null,null,{"$f":"Betriebsübersicht!F1","v":"V 1.0"},null,null,null,"Schweinemast",null,null,null,null,null,"Infoblatt",null,null,null,null,null,null,null,null,null,null,"Energie-Check",null,null,null,null,{"$f":"Betriebsübersicht!F1","v":"V 1.0"},null,null,null,"Schweinemast",null,null,null,null,null,"Eingabeblatt 1",null,null,null,null,null,null,null,null,null,null,"Energie-Check",null,null,null,null,{"$f":"Betriebsübersicht!F1","v":"V 1.0"},null,null,null,"Schweinemast",null,null,null,null,null,"Eingabeblatt 2",null,null,null,null,null,null,null,null,null,null,"Energie-Check",null,null,null,null,{"$f":"Betriebsübersicht!F1","v":"V 1.0"},null,null,null,"Schweinemast",null,null,null,null,null," Ergebnisblatt Vgl. SOLL - IST"]
[null,null,null,null,null,null,null,null,null,null,null,null,null,null,null,null,null,null,null,null,null,null,null,null,null,null,null,null,null,null,null,null,null,null,null,null,null,null,null,null,null,null,null,null,null,null,null,null,null,null,null,null,"Detailbetrachtung",null,null,null,null,null,null,null,null,null,null,null,null,null,null,null,null,null,null,null,null,null,null,null,null,null,"Detailbetrachtung",null,null,null,null,null,null,null,null,null,null,null,null,null,null,null,null,null,null,null,null,null,null,null,null,null,"Detailbetrachtung"]
[null,null,null,null,null,null,null,null,null,null,null,null,null,null,null,null,null,null,null,null,null,null,null,null,null,null,null,"Eingabefelder",null,null,null,null,null,null,"Felder für die Eingabe betrieblicher Daten",null,null,null,null,null,null,null,null,null,null,null,null,null,null,null,null,null,"Berechnung Stromverbrauch - Technische Ausstattung",null,null,null,null,null,null,null,null,null,null,null,null,null,null,null,null,null,null,null,null,null,null,null,null,null,"Berechnung Stromverbrauch - Technische Ausstattung"]
[null,null,null,null,null,null,null,null,null,"Mastplätze ",{"$f":"Betriebsübersicht!V33","v":200},null,null,null,null,null,"Abrechnungsjahr",null,null,null,null,{"$f":"Energieeinsatz!AV4","v":2021},null,null,null,null,null,"berechnete Felder",null,null,null,null,null,null,"Felder die vom Programm berechnet werden",null,null,null,null,null,null,null,null,null,null,null,null,null,null,null,null,null,null,null,null,null,null,null,null,null,null,null,null,null,null,null,null,null,"Abrechnungsjahr",null,null,null,null,{"$f":"V4","v":2021},null,null,null,null,null,null,null,null,null,null,null,null,null,null,null,null,null,null,null,null,"Abrechnungsjahr",null,null,null,null,{"$f":"V4","v":2021},null,null,null,null,null,null,null,null,null,null,null,null,null,"Mastplätze ",{"$f":"Betriebsübersicht!V33","v":200},null,null,null,null,null,"Abrechnungsjahr",null,null,null,null,{"$f":"V4","v":2021}]
[null,null,null,null,null,null,null,null,null,null,null,null,null,null,null,null,null,null,null,null,null,null,null,null,null,null,null,"Werte",null,null,null,null,null,null,"Werte die aus Eingebefeldern übernommen wurden bzw. "]
[null,null,null,null,null,null,null,null,null,null,"Strom",null,null,null,null,null,null,null,null,"Wärme",null,null,null,null,null,null,null,null,null,null,null,null,null,null,null,"-","Felder mit hinterlegten Werten",null,null,null,null,null,null,null,null,null,null,null,null,null,null,null,null,"Sollwerte: durchschnittliche Verbrauchskennzahlen aus zeitgemäßen Tiehaltungsanlagen",null,null,null,null,null,null,null,null,null,null,null,null,null,null,null,null,null,null,null,null,null,null,null,null,"Der Stromverbrauch der Lüftungsanlage ist im Wesentlichen Abhängig von baulichen und",null,null,null,null,null,null,null,null,null,null,null,null,null,null,null,null,null,null,null,null,null,null,null,null,null,null,null,null,null,null,null,null,null,null,null,"Strom",null,null,null,null,null,null,null,null,"Wärme"]
[null,null,null,"Gesamtverbrauch",null,null,null,null,null,null,{"$f":"'Abgrenzung BZ'!AI8","v":83100},null,null,"kWh",null,null,null,null,null,{"$f":"'Abgrenzung BZ'!AV8","v":184000},null,null,"kWh",null,null,null,null,null,null,null,null,null,null,null,null,"-","Felder mit hinterlegten Faktoren",null,null,null,null,null,null,null,null,null,null,null,null,null,null,null,null,"Istwerte: ",null,null,"Bitte hier betriebliche Daten eintragen, Sollwert kann als Anhaltspunkt dienen.",null,null,null,null,null,null,null,null,null,null,null,null,null,null,null,null,null,null,null,null,null,null,"technischen Ausführung.",null,null,null,null,null,null,null,null,null,null,null,null,null,null,null,null,null,null,null,null,null,null,null,null,null,null,null,"pro Mastplatz - SOLL",null,null,null,null,null,null,{"$f":"BQ36","v":64.64},null,null,"kWh",null,null,null,null,null,{"$f":"CQ40","v":25},null,null,"kWh"]
[null,"davon",null,"Schweinemast",null,null,null,null,null,null,{"$f":"'Abgrenzung BZ'!AI17","v":5000},null,null,"kWh",null,{"$f":"K8/K7","v":6.0168471720818288E-2},null,null,null,{"$f":"'Abgrenzung BZ'!AV17","v":6000},null,null,"kWh",null,{"$f":"T8/T7","v":3.2608695652173912E-2},null,null,null,null,null,null,null,null,null,null,null,null,null,null,null,null,null,null,null,null,null,null,null,null,null,null,null,null,null,null,null,"Falls keine Messwerte vorhanden, Schätzwerte eingeben!",null,null,null,null,null,null,null,null,null,null,null,null,null,null,null,null,null,null,null,null,null,"Unter Berechnung Lüftungsstrombedarf ist eine für das Produktionsverfahren",null,null,null,null,null,null,null,null,null,null,null,null,null,null,null,null,null,null,null,null,null,null,null,null,null,null,null,null,"pro Mastplatz - IST",null,null,null,null,null,null,{"$f":"BV36","v":51.5},null,null,"kWh",null,{"$f":"DK8/DK7","v":0.79672029702970293},null,null,null,{"$f":"CV46","v":27.5},null,null,"kWh",null,{"$f":"DT8/DT7","v":1.1000000000000001}]
["Anteil am Gesamtverbrauch",null,null,null,null,null,null,null,null,null,null,null,null,null,null,null,null,null,null,null,null,null,null,null,null,null,null,null,null,null,null,null,null,null,null,null,null,null,null,null,null,null,null,null,null,null,null,null,null,null,null,null,null,null,null,null,"Eingabefelder",null,null,null,null,null,null,"berechnete Felder",null,null,null,null,null,null,"Werte",null,null,null,null,null,null,null,null,"Schweinemast typische und energetisch effiziente Ausführung dargestellt."]
[null,null,null,null,null,null,null,null,null,null,null,null,null,null,null,null,null,null,null,null,null,null,null,null,null,null,"Der Energiebedarf in Schweinemastställen wird im Wesentlichen durch die Lüftung, Fütterung ",null,null,null,null,null,null,null,null,null,null,null,null,null,null,null,null,null,null,null,null,null,null,null,null,null,"pro Mastplatz",null,null,null,null,null,null,null,null,null,null,null,null,null,null,null,null,null,"Verbrauchswert",null,null,null,null,null,null,null,"Durch Eingabe von Zu-/und Abschlagswerten kann der Stromverbrauch der Praxisanlage"]
[null,null,null,null,null,null,null,null,null,null,null,null,null,null,null,null,null,null,null,null,null,null,null,null,null,null,null,"und Futteraufbereitung bestimmt. Bei Betrieben mit Abluftreinigungsanlagen erhöht sich ",null,null,null,null,null,null,null,null,null,null,null,null,null,null,null,null,null,null,null,null,null,null,null,null,null,null,null,null,null,null,null,null,null,null,null,null,null,null,null,null,"SOLL",null,null,null,null,"IST",null,null,null,null,null,"berechnet werden."]
[null,null,null,null,null,null,null,null,null,null,null,null,null,null,null,null,null,null,null,null,null,null,null,null,null,null,null,"der Energiebedarf durch Umwälzpumpen, aber auch durch höhere Druckverluste bei der "]
[null,null,null,null,null,null,null,null,null,null,null,null,null,null,null,null,null,null,null,null,null,null,null,null,null,null,null,"Stallklimatisierung.",null,null,null,null,null,null,null,null,null,null,null,null,null,null,null,null,null,null,null,null,null,null,null,null,null,"Lüftung: *)",null,null,null,null,null,null,null,null,null,null,null,null,null,"Lüftungsanlage ",{"$f":"CV32","v":38.340000000000003},null,null,"kWh",null,30,null,null,"kWh",null,"Berechnung Lüftungsstrombedarf"]
[null,null,null,null,null,null,null,null,null,null,null,null,null,null,null,null,null,null,null,null,null,null,null,null,null,null,"Der Gesamtstromverbrauch (ohne Futteraufbereitung) der konventionell wirtschaftenden",null,null,null,null,null,null,null,null,null,null,null,null,null,null,null,null,null,null,null,null,null,null,null,null,null,null,null,null,null,null,null,null,null,null,null,null,null,null,null,null,null,null,null,null,null,null,null,null,null,null,null,null,"Lüftungsanlage:"]
[null,null,null,null,null,null,null,null,null,null,null,null,null,null,null,null,null,null,null,null,null,null,null,null,null,null,null,"Mastbetriebe ohne Abluftreinigung liegt durchschnittlich bei 35 kWh pro Mastplatz und ",null,null,null,null,null,null,null,null,null,null,null,null,null,null,null,null,null,null,null,null,null,null,null,null,"*) Berechnung Lüftungsstrombedarf -> siehe Eingabeblatt 2",null,null,null,null,null,null,null,null,null,null,null,null,null,null,null,null,null,null,null,null,null,null,null,null,null,null,null,null,null,"Zuluftführung",null,null,null,null,"Abluftführung",null,null,null,null,null,"Kamin",null,null,null,null,null,"Regelungstechnik"]
[null,null,null,null,null,null,null,null,null,null,null,null,null,null,null,null,null,null,null,null,null,null,null,null,null,null,null,"Jahr, mit Abluftreinigung durchschnittlich bei 60 kWh pro Mastplatz und Jahr.",null,null,null,null,null,null,null,null,null,null,null,null,null,null,null,null,null,null,null,null,null,null,null,null,null,null,null,null,null,null,null,null,null,null,null,null,null,null,null,null,null,null,null,null,null,null,null,null,null,null,null,null,null,null,"Lochplatten ",null,null,null,null,"Oberflur zentral ",null,null,null,null,null,"gerade Ausführung ",null,null,null,null,null,null,null,null,null,"Frequenzregelung "]
[null,null,null,null,null,null,null,null,null,null,null,null,null,null,null,null,null,null,null,null,null,null,null,null,null,null,"Zum Aufheizen von Stallabteilen vor der Neubelegung werden meist Heizkanonen (direkte ",null,null,null,null,null,null,null,null,null,null,null,null,null,null,null,null,null,null,null,null,null,null,null,null,null,null,"Fütterung:",null,null,null,null,null,null,null,null,null,null,null,null,null,"Trockenfütterung ",1,null,null,"kWh",null,null,null,null,"kWh"]
[null,null,null,null,null,null,null,null,null,null,null,null,null,null,null,null,null,null,null,null,null,null,null,null,null,null,null,"Lufterwärmung) eingesetzt. Sie sind relativ günstig in der Anschaffung und haben ein großes",null,null,null,null,null,null,null,null,null,null,null,null,null,null,null,null,null,null,null,null,null,null,null,null,null,null,null,null,null,null,null,null,null,null,null,null,null,null,null,"Flüssigfütterung ",2.2999999999999998,null,null,"kWh",null,2.5,null,null,"kWh",null,null,null,null,null,null,null,null,null,null,null,null,null,null,null,null,null,18,null,null,"kWh"]
[null,null,null,null,null,null,null,null,null,null,null,null,null,null,null,null,null,null,null,null,null,null,null,null,null,null,null,"Leistungsspektrum.",null,null,null,null,null,null,null,null,null,null,null,null,null,null,null,null,null,null,null,null,null,null,null,null,null,null,null,null,null,null,null,null,null,null,null,null,null,null,null,"pneumatisches Fütterungssystem ",9.3000000000000007,null,null,"kWh",null,null,null,null,"kWh",null,null,"Zu-/Abschlagwerte für andere Ausführungen"]
[null,null,null,null,null,null,null,null,null,null,null,null,null,null,null,null,null,null,null,null,null,null,null,null,null,null,null,null,null,null,null,null,null,null,null,null,null,null,null,null,null,null,null,null,null,null,null,null,null,null,null,null,null,null,null,null,null,null,null,null,null,null,null,null,null,null,null,null,null,null,null,null,null,null,null,null,null,null,null,null,null,null,"Futtergang ",null,null,null,null,"Unterflur zentral ",null,null,null,null,null,"Weitwurfdüse ",null,null,null,null,null,"Phasenanschnitt"]
[null,null,null,null,null,null,null,null,null,null,null,null,null,null,null,null,null,null,null,null,null,null,null,null,null,null,null,null,null,null,null,null,null,null,null,null,null,null,null,null,null,null,null,null,null,null,null,null,null,null,null,null,null,"Futteraufbereitung:",null,null,null,null,null,null,null,null,null,null,null,null,null,"Mahl- und Mischanlage ",9.1999999999999993,null,null,"kWh",null,4,null,null,"kWh",null,null,null,null,null,-0.24,null,null,null,null,0.42,null,null,null,null,null,0.49,null,null,null,null,null,0.65]
[null,null,null,null,null,null,null,null,null,null,"Strom",null,null,null,null,null,null,null,null,"Wärme",null,null,null,null,null,null,"Handlungsempfehlungen:",null,null,null,null,null,null,null,null,null,null,null,null,null,null,null,null,null,null,null,null,null,null,null,null,null,null,null,null,null,null,null,null,null,null,null,null,null,null,null,null,null,null,null,null,null,null,null,null,null,null,null,null,null,null,null,"Strahllüftung ",null,null,null,null,"Oberflur dezentral ",null,null,null,null,null,"Regenhaube ",null,null,null,null,null,"Traforegelung "]
[null,null,null,"pro Mastplatz - SOLL *)",null,null,null,null,null,null,35,null,null,"kWh",null,null,null,null,null,25,null,null,"kWh",null,null,null,null,null,null,null,null,null,null,null,null,null,null,null,null,null,null,null,null,null,null,null,null,null,null,null,null,null,null,"Beleuchtung:",null,null,null,null,null,2,"h/d",null,null,null,null,null,null,"Leuchtstoffröhren ",1.3,null,null,"kWh",null,2,null,null,"kWh",null,null,null,null,null,-0.1,null,null,null,null,-0.42,null,null,null,null,null,0.44,null,null,null,null,null,0.45,null,null,null,null,null,null,null,null,null,null,"Soll"]
[null,null,null,"pro Mastplatz - IST",null,null,null,null,null,null,{"$f":"K8/$K$4","v":25},null,null,"kWh",null,{"$f":"K24/K23","v":0.7142857142857143},null,null,null,{"$f":"T8/K4","v":30},null,null,"kWh",null,{"$f":"T24/T23","v":1.2},null,"Die höchsten Energieeinsparmöglichkeiten in zwangsbelüfteten Stallanlagen für die ",null,null,null,null,null,null,null,null,null,null,null,null,null,null,null,null,null,null,null,null,null,null,null,null,null,null,null,null,null,null,null,null,null,null,null,null,null,null,null,null,"LED-Leuchten ",0.3,null,null,"kWh",null,null,null,null,"kWh",null,null,null,null,null,"Porendecke ",null,null,null,null,null,null,null,null,null,null,"Einströmdüse ",null,null,null,null,null,"EC-Motor ",null,null,null,null,null,null,null,null,null,null,"kWh",null,null,null,null,null,null,null,null,null,null,null,null,null,null,null,null,null,null,null,null,null,null,null,null,null,"IST",null,null,null,"Soll"]
["*) ohne Abluftreinigung",null,null,null,null,null,null,null,null,null,null,null,null,null,null,null,null,null,null,null,null,null,null,null,null,null,null,"Schweinehaltung liegen bei der Stallklimatisierung. Mit optimaler Dimensionierung und ",null,null,null,null,null,null,null,null,null,null,null,null,null,null,null,null,null,null,null,null,null,null,null,null,null,null,null,null,null,null,null,null,null,null,null,null,null,null,null,null,null,null,null,null,null,null,null,null,null,null,null,null,null,null,0.2,null,null,null,null,null,null,null,null,null,null,-7.0000000000000007E-2,null,null,null,null,null,-0.05,null,null,null,null,null,"Lüftung",null,null,null,null,25,null,null,null,null,null,null,null,null,null,null,null,null,null,null,null,null,null,null,null,null,{"$f":"DB35","v":0},{"$f":"DC35","v":0},{"$f":"DD35","v":0},{"$f":"DE35","v":0},{"$f":"DF35","v":0},{"$f":"DG49","v":0},null,null,null,{"$f":"DG35","v":0}]
[null,null,null,null,null,null,null,null,null,null,null,null,null,null,null,null,null,null,null,null,null,null,null,null,null,null,null,"strömungstechnisch günstiger Gestaltung der Luftführungen, sowie mit dem Einsatz ",null,null,null,null,null,null,null,null,null,null,null,null,null,null,null,null,null,null,null,null,null,null,null,null,null,"Reinigung:",null,null,null,null,null,null,null,null,null,null,null,null,null,"Hochdruckreiniger (HDR) ",0.3,null,null,"kWh",null,1,null,null,"kWh",null,null,null,null,null,null,null,null,null,null,null,null,null,null,null,null,"Diffusor ",null,null,null,null,null,null,null,null,null,null,null,"Fütterung",null,null,null,null,2,null,null,null,null,null,null,null,null,null,null,null,null,null,null,null,null,null,null,null,null,{"$f":"DB34","v":0},{"$f":"DC34","v":0},{"$f":"DD34","v":0},{"$f":"DE34","v":0},{"$f":"DF34","v":0},{"$f":"DG48","v":0},null,null,null,{"$f":"DG34","v":0}]
[null,null,null,null,null,null,null,null,null,null,null,null,null,null,null,null,null,null,null,null,null,null,null,null,null,null,null,"moderner Regelungstechnik, wie Frequenzregelung und EC-Technik, kann der ",null,null,null,null,null,null,null,null,null,null,null,null,null,null,null,null,null,null,null,null,null,null,null,null,null,null,null,null,null,null,null,null,null,null,null,null,null,null,null,null,null,null,null,null,null,null,null,null,null,null,null,null,null,null,null,null,null,null,null,null,null,null,null,null,null,-0.17,null,null,null,null,null,null,null,null,null,null,null,"Mahl-/Mischanlage",null,null,null,null,9,null,null,null,null,null,null,null,null,null,null,null,null,null,null,null,null,null,null,null,null,{"$f":"DB33","v":"Abluftreinigung"},{"$f":"DC33","v":0},{"$f":"DD33","v":0},{"$f":"DE33","v":0},{"$f":"DF33","v":0},{"$f":"DG47","v":10},null,null,null,{"$f":"DG33","v":12}]
[null,null,null,null,null,null,null,null,null,null,null,null,null,null,null,null,null,null,null,null,null,null,null,null,null,null,null,"Gesamtstromverbrauch um bis zu 60 % und mehr reduziert werden.",null,null,null,null,null,null,null,null,null,null,null,null,null,null,null,null,null,null,null,null,null,null,null,null,null,"Entmistung:",null,null,null,null,null,null,null,null,null,null,null,null,null,"Güllerührwerk /-pumpe ",2,null,null,"kWh",null,null,null,null,"kWh",null,null,null,null,null,null,null,null,null,null,null,null,null,null,null,null,null,null,null,null,null,null,null,null,null,null,null,null,"Beleuchtung",null,null,null,null,1,null,null,null,null,null,null,null,null,null,null,null,null,null,null,null,null,null,null,null,null,{"$f":"DB32","v":"Sonstige"},{"$f":"DC32","v":0},{"$f":"DD32","v":0},{"$f":"DE32","v":0},{"$f":"DF32","v":0},{"$f":"DG46","v":1},null,null,null,{"$f":"DG32","v":1}]
[null,null,null,null,null,null,null,null,null,null,null,null,null,null,null,null,null,null,null,null,null,null,null,null,null,null,null,null,null,null,null,null,null,null,null,null,null,null,null,null,null,null,null,null,null,null,null,null,null,null,null,null,null,null,null,null,null,null,null,null,null,null,null,null,null,null,null,null,null,null,null,null,null,null,null,null,null,null,null,null,null,null,0.2,null,null,null,null,null,null,null,null,null,null,0.48,null,null,null,null,null,-0.05,null,null,null,null,null,"Reinigung",null,null,null,null,0.5,null,null,null,null,null,null,null,null,null,null,null,null,null,null,null,null,null,null,null,null,{"$f":"DB31","v":"Betriebsstrom"},{"$f":"DC31","v":0},{"$f":"DD31","v":0},{"$f":"DE31","v":0},{"$f":"DF31","v":0},{"$f":"DG45","v":1},null,null,null,{"$f":"DG31","v":0.5}]
[null,null,null,null,null,null,null,null,null,null,null,null,null,null,null,null,null,null,null,null,null,null,null,null,null,null,"In den Praxisställen sind meist Leuchtstoffröhren zur Beleuchtung der Abteile eingebaut. Die ",null,null,null,null,null,null,null,null,null,null,null,null,null,null,null,null,null,null,null,null,null,null,null,null,null,null,"Betriebsstrom Heizung:",null,null,null,null,null,null,null,null,null,null,null,null,null,"Umwälzpumpen, ... ",0.2,null,null,"kWh",null,1,null,null,"kWh",null,null,null,null,null,null,null,null,null,null,null,null,null,null,null,null,null,null,null,null,null,null,null,null,null,null,null,null,"Entmistung",null,null,null,null,0,null,null,null,null,null,null,null,null,null,null,null,null,null,null,null,null,null,null,null,null,{"$f":"DB30","v":"Entmistung"},{"$f":"DC30","v":0},{"$f":"DD30","v":0},{"$f":"DE30","v":0},{"$f":"DF30","v":0},{"$f":"DG44","v":0},null,null,null,{"$f":"DG30","v":0}]
[null,null,null,null,null,null,null,null,null,null,null,null,null,null,null,null,null,null,null,null,null,null,null,null,null,null,null,"Tierschutz-Nutztierhaltungsverordnung (TierSchNutzV) sieht eine Beleuchtungsstärke im ",null,null,null,null,null,null,null,null,null,null,null,null,null,null,null,null,null,null,null,null,null,null,null,null,null,null,null,null,null,null,null,null,null,null,null,null,null,null,null,null,null,null,null,null,null,null,null,null,null,null,null,null,null,null,"Abluftreinigung",null,null,null,null,null,null,null,null,null,null,"Verbrauchswert - SOLL",null,null,null,null,null,null,null,null,null,null,null,"Betriebsstrom",null,null,null,null,0.5,null,null,null,null,null,null,null,null,null,null,null,null,null,null,null,null,null,null,null,null,{"$f":"DB29","v":"Reinigung"},{"$f":"DC29","v":0},{"$f":"DD29","v":0},{"$f":"DE29","v":0},{"$f":"DF29","v":0},{"$f":"DG43","v":1},null,null,null,{"$f":"DG29","v":0.5}]
[null,null,null,null,null,null,null,null,null,null,null,null,null,null,null,null,null,null,null,null,null,null,null,null,null,null,null,"Aufenthaltsbereich der Tiere von mindestens 80 Lux, über 8 Stunden, die dem ",null,null,null,null,null,null,null,null,null,null,null,null,null,null,null,null,null,null,null,null,null,null,null,null,null,"Sonstige:",null,null,null,null,null,null,null,null,null,null,null,null,null,"Stallbüro, Elektroboiler, Kühlschränke, … ",1,null,null,"kWh",null,1,null,null,"kWh",null,null,null,null,null,0.5,null,null,null,null,0.5,null,null,null,null,null,null,null,null,null,null,"Lüftungsanlage ",{"$f":"CQ18+(CQ18*CE29)+(CQ18*CJ29)+(CQ18*CP29)+(CQ18*CV29)+(CQ18*CJ32)","v":38.340000000000003},null,null,"kWh",null,null,"Sonstige",null,null,null,null,1,null,null,null,null,null,null,null,null,null,null,null,null,null,null,null,null,null,null,null,null,{"$f":"DB28","v":"Beleuchtung"},{"$f":"DC28","v":0},{"$f":"DD28","v":0},{"$f":"DE28","v":0},{"$f":"DF28","v":0},{"$f":"DG42","v":2},null,null,null,{"$f":"DG28","v":1}]
[null,null,null,null,null,null,null,null,null,null,null,null,null,null,null,null,null,null,null,null,null,null,null,null,null,null,null,"Tagesrhythmus angepasst ist, vor. Der Einsatz von Lichtreflektoren ist Stand der Technik. ",null,null,null,null,null,null,null,null,null,null,null,null,null,null,null,null,null,null,null,null,null,null,null,null,null,null,null,null,null,null,null,null,null,null,null,null,null,null,null,null,null,null,null,null,null,null,null,null,null,null,null,null,null,null,null,null,null,null,null,null,null,null,null,null,null,null,null,null,null,null,null,null,null,null,null,null,null,"Abluftreinigung",null,null,null,null,12,null,null,null,null,null,null,null,null,null,null,null,null,null,null,null,null,null,null,null,null,{"$f":"DB27","v":"Mahl-/Mischanlage"},{"$f":"DC27","v":0},{"$f":"DD27","v":0},{"$f":"DE27","v":0},{"$f":"DF27","v":0},{"$f":"DG41","v":4},null,null,null,{"$f":"DG27","v":9}]
[null,null,null,null,null,null,null,null,null,null,null,null,null,null,null,null,null,null,null,null,null,null,null,null,null,null,null,"Sie verbessern den Lampenwirkungsgrad durch die gezielte Lichtabgabe in die",null,null,null,null,null,null,null,null,null,null,null,null,null,null,null,null,null,null,null,null,null,null,null,null,null,"Abluftreinigung:",null,null,null,null,null,null,null,null,null,null,null,null,null,"Wäscher, Umwälzpumpen ",12,null,null,"kWh",null,10,null,null,"kWh",null,null,null,null,null,null,null,null,null,null,null,null,null,null,null,null,null,null,null,null,null,null,null,"Zurück",null,null,null,null,null,null,null,null,null,null,null,null,null,null,null,null,null,null,null,null,null,null,null,null,null,null,null,null,null,null,{"$f":"DB26","v":"Fütterung"},{"$f":"DC26","v":0},{"$f":"DD26","v":0},{"$f":"DE26","v":0},{"$f":"DF26","v":0},{"$f":"DG40","v":2.5},null,null,null,{"$f":"DG26","v":2}]
[null,null,null,null,null,null,null,null,null,null,null,null,null,null,null,null,null,null,null,null,null,null,null,null,null,null,null,"Beleuchtungsebene. Ein Austausch der Leuchtmittel mit LED-Technik kann den ",null,null,null,null,null,null,null,null,null,null,null,null,null,null,null,null,null,null,null,null,null,null,null,null,null,null,null,null,null,null,null,null,null,null,null,null,null,null,null,null,null,null,null,null,null,null,null,null,null,null,"Berechnung Wärmebedarf - SOLL:",null,null,null,null,null,null,null,null,null,null,null,null,null,null,null,null,null,null,null,null,null,null,null,null,null,null,null,null,null,null,null,null,null,null,null,null,null,null,null,null,null,null,null,null,null,null,null,null,null,null,null,null,{"$f":"DB25","v":"Lüftung"},{"$f":"DC25","v":0},{"$f":"DD25","v":0},{"$f":"DE25","v":0},{"$f":"DF25","v":0},{"$f":"DG39","v":30},null,null,null,{"$f":"DG25","v":25}]
[null,null,null,null,null,null,null,null,null,null,null,null,null,null,null,null,null,null,null,null,null,null,null,null,null,null,null,"Energieverbrauch deutlich reduzieren.",null,null,null,null,null,null,null,null,null,null,null,null,null,null,null,null,null,null,null,null,null,null,null,null,null,"Gesamt pro Platz",null,null,null,null,null,null,null,null,null,null,null,null,null,null,{"$f":"IF(CJ32>0.001,BQ34,0)+BQ13+BQ18+IF(BV21>0.001,BQ21,0)+BQ23+BQ26+BQ30+BQ32","v":64.64},null,null,"kWh",null,{"$f":"SUM(BV13:BX34)","v":51.5},null,null,"kWh",null,null,"pro Mastplatz",null,null,null,null,null,null,null,null,null,null,null,null,null,null,null,null,"Verbrauchswert"]
[null,null,null,null,null,null,null,null,null,null,null,null,null,null,null,null,null,null,null,null,null,null,null,null,null,null,null,null,null,null,null,null,null,null,null,null,null,null,null,null,null,null,null,null,null,null,null,null,null,null,null,null,null,"Gesamt",null,null,null,null,null,null,null,null,null,null,null,null,null,null,{"$f":"BQ36*K4","v":12928},null,null,"kWh",null,{"$f":"BV36*K4","v":10300},null,null,"kWh",null,null,null,null,null,null,null,null,null,null,null,null,null,null,null,null,null,null,null,null,null,null,null,null,null,null,null,null,null,null,null,null,null,"IST"]
[null,null,null,null,null,null,"kWh",null,null,null,null,null,null,null,null,null,null,null,null,null,null,null,null,null,null,null,"Der Energiebedarf bei der Fütterung und Futteraufbereitung ist abhängig vom ",null,null,null,null,null,null,null,null,null,null,null,null,null,null,null,null,null,null,null,null,null,null,null,null,null,null,null,null,null,null,null,null,null,null,null,null,null,null,null,null,null,null,null,null,null,null,null,null,null,null,null,null,"Heizung: Warmwasser und Gaskanonen",null,null,null,null,null,null,null,null,null,null,null,null,null,null,"SOLL",null,null,null,null,"IST",null,null,null,null,null,null,null,null,null,null,"kWh"]
[null,"Lüftung",null,null,null,null,25,null,null,null,null,null,null,null,null,null,null,null,null,null,null,null,null,null,null,null,null,"Fütterungssystem. Bei Trockenfütterungsanlagen ist der energetische Aufwand geringer als ",null,null,null,null,null,null,null,null,null,null,null,null,null,null,null,null,null,null,null,null,null,null,null,null,"Berechnungshilfe elektrische Energie:",null,null,null,null,null,null,null,null,null,null,null,null,null,null,null,null,null,null,null,null,null,null,null,null,null,null,"gut gedämmtes Stallgebäude",null,null,null,null,null,null,null,null,null,null,null,null,null,null,null,null,null,null,null,null,null,null,null,null,null,"Lüftung",null,null,null,null,{"$f":"BV13","v":30}]
[null,"Fütterung",null,null,null,null,2,null,null,null,null,null,null,null,null,null,null,null,null,null,null,null,null,null,null,null,null,"bei Flüssigfütterungsanlagen und deutlich geringer als bei pneumatischen Systemen.",null,null,null,null,null,null,null,null,null,null,null,null,null,null,null,null,null,null,null,null,null,null,null,null,null,"Hier kann mittels Leistung und Laufzeit der Jahresstromverbrauch der einzelnen",null,null,null,null,null,null,null,null,null,null,null,null,null,null,null,null,null,null,null,null,null,null,null,null,null,"Gesamt pro Platz",null,null,null,null,null,null,null,null,null,null,null,null,null,"Stallheizung ",25,null,null,"kWh",null,22,null,null,"kWh",null,null,"Fütterung",null,null,null,null,{"$f":"SUM(BV17:BX19)","v":2.5}]
[null,"Mahl-/Mischanlage",null,null,null,null,{"$f":"BV21","v":4},null,null,null,null,null,null,null,null,null,null,null,null,null,null,null,null,null,null,null,null,null,null,null,null,null,null,null,null,null,null,null,null,null,null,null,null,null,null,null,null,null,null,null,null,null,null,"Systemkomponenten berechnet werden.",null,null,null,null,null,null,null,null,null,null,null,null,null,null,null,null,null,null,null,null,null,null,null,null,null,"Gesamt",null,null,null,null,null,null,null,null,null,null,null,null,null,null,{"$f":"CQ40*K4","v":5000},null,null,"kWh",null,null,null,null,null,null,null,"Mahl-/Mischanlage",null,null,null,null,{"$f":"BV21","v":4}]
[null,"Beleuchtung",null,null,null,null,1,null,null,null,null,null,null,null,null,null,null,null,null,null,null,null,null,null,null,null,"Weiterer Energieverbrauch in schweinehaltenden Betrieben wird von Entmistungsanlagen und",null,null,null,null,null,null,null,null,null,null,null,null,null,null,null,null,null,null,null,null,null,null,null,null,null,null,"Verbraucher",null,null,null,null,null,"Anzahl",null,null,"Leistung",null,null,null,"Laufzeit",null,null,null,"Tage",null,null,null,"Strom",null,null,null,null,null,null,null,null,null,null,null,null,null,null,null,null,null,null,null,null,null,null,null,null,null,null,null,null,null,null,"Beleuchtung",null,null,null,null,{"$f":"SUM(BV23:BX24)","v":2}]
[null,"Reinigung",null,null,null,null,0.5,null,null,null,null,null,null,null,null,null,null,null,null,null,null,null,null,null,null,null,null,"Reinigungsgeräten, sowie sonstigen Stromverbrauchern für den Verwaltungs- und",null,null,null,null,null,null,null,null,null,null,null,null,null,null,null,null,null,null,null,null,null,null,null,null,null,"HDR",null,null,null,null,null,1,null,null,2.6,null,"kW",null,6,null,"h",null,80,null,"d",null,{"$f":"BH43*BK43*BO43*BS43","v":1248},null,"kWh",null,null,"Zu/-Abschlagwerte für andere Ausführungen",null,null,null,null,null,null,null,null,null,null,null,null,null,null,null,null,null,null,null,null,null,null,null,null,null,"Reinigung",null,null,null,null,{"$f":"BV26","v":1}]
[null,"Entmistung",null,null,null,null,{"$f":"BV28","v":0},null,null,null,null,null,null,null,null,null,null,null,null,null,null,null,null,null,null,null,null,"Betriebsablauf verursacht.",null,null,null,null,null,null,null,null,null,null,null,null,null,null,null,null,null,null,null,null,null,null,null,null,null,"Gebläse",null,null,null,null,null,1,null,null,1.5,null,"kW",null,8,null,"h",null,10,null,"d",null,{"$f":"BH44*BK44*BO44*BS44","v":120},null,"kWh",null,null,null,"ohne WRG",null,null,null,null,null,null,null,null,null,null,null,null,null,0.25,null,null,null,null,0.25,null,null,null,null,null,"Entmistung",null,null,null,null,{"$f":"BV28","v":0}]
[null,"Betriebsstrom",null,null,null,null,0.5,null,null,null,null,null,null,null,null,null,null,null,null,null,null,null,null,null,null,null,null,null,null,null,null,null,null,null,null,null,null,null,null,null,null,null,null,null,null,null,null,null,null,null,null,null,null,"Schrotmühle",null,null,null,null,null,1,null,null,10.5,null,"kW",null,1.5,null,"h",null,180,null,"d",null,{"$f":"BH45*BK45*BO45*BS45","v":2835},null,"kWh",null,null,null,"ohne Liegeflächenabdeckung",null,null,null,null,null,null,null,null,null,null,null,null,null,0.4,null,null,null,null,null,null,null,null,null,null,"Betriebsstrom",null,null,null,null,{"$f":"BV30","v":1}]
[null,"Sonstige",null,null,null,null,{"$f":"BV32","v":1},null,null,null,null,null,null,null,null,null,null,null,null,null,null,null,null,null,null,null,"Für einen energieeffizienten Betrieb der Anlagen und Geräte ist die regelmäßige Reinigung, ",null,null,null,null,null,null,null,null,null,null,null,null,null,null,null,null,null,null,null,null,null,null,null,null,null,null,null,null,null,null,null,null,null,null,null,null,null,"kW",null,null,null,"h",null,null,null,"d",null,null,null,"kWh",null,null,"Gesamt pro Platz",null,null,null,null,null,null,null,null,null,null,null,null,null,null,{"$f":"CQ40+(CQ40*CQ44)+(CQ40*CQ45)","v":41.25},null,null,"kWh",null,{"$f":"CV40+(CV40*CV44)+(CV40*CV45)","v":27.5},null,null,"kWh",null,null,"Sonstige",null,null,null,null,{"$f":"BV32","v":1}]
[null,"Abluftreinigung",null,null,null,null,12,null,null,null,null,null,null,null,null,null,null,null,null,null,null,null,null,null,null,null,null,"Wartung und Überprüfung der Anlagen von erheblicher Bedeutung.",null,null,null,null,null,null,null,null,null,null,null,null,null,null,null,null,null,null,null,null,null,null,null,null,null,null,null,null,null,null,null,null,null,null,null,null,null,null,null,null,null,null,null,null,null,null,{"$f":"SUM(BW43:BX46)","v":4203},null,"kWh",null,null,"Gesamt",null,null,null,null,null,null,null,null,null,null,null,null,null,null,{"$f":"CQ46*K4","v":8250},null,null,"kWh",null,{"$f":"CV46*K4","v":5500},null,null,"kWh",null,null,"Abluftreinigung",null,null,null,null,{"$f":"BV34","v":10}]
[]
[null,null,null,null,null,null,null,null,null,null,null,null,null,null,null,null,null,null,null,null,null,null,null,null,null,null,null,null,null,null,null,null,null,null,null,null,null,null,null,null,null,null,null,null,null,null,null,null,null,null,"MS.2",null,null,null,null,null,null,null,null,null,null,null,null,null,null,null,null,null,null,null,null,null,null,null,null,null,"MS.3",null,null,null,null,null,null,null,null,null,null,null,null,null,null,null,null,null,null,null,null,null,null,null,null,null,"MS.4"]

{"sheet":"MS A","index":9,"n_rows":49,"n_cols":115,"rows_kept":49,"cut":false,"hidden":false,"merged":[[14,68,14,70],[14,73,14,75],[16,68,16,70],[16,73,16,75],[48,76,48,77],[46,60,46,61],[46,66,46,67],[46,70,46,71],[46,74,46,75],[47,74,47,75],[17,68,17,70],[17,73,17,75],[18,68,18,70],[18,73,18,75],[20,68,20,70],[20,73,20,75],[27,68,27,70],[27,73,27,75],[25,68,25,70],[25,73,25,75],[23,10,23,12],[23,15,23,16],[23,19,23,21],[42,6,42,8],[41,73,41,75],[42,68,42,70],[23,24,23,25],[23,68,23,70],[6,10,6,12],[7,10,7,12],[7,15,7,16],[7,19,7,21],[7,24,7,25],[23,73,23,75],[22,73,22,75],[6,19,6,21],[39,6,39,8],[40,6,40,8],[8,56,8,61],[8,63,8,68],[8,70,8,75],[12,68,12,70],[12,73,12,75],[42,73,42,75],[44,6,44,8],[45,6,45,8],[38,6,38,8],[43,6,43,8],[21,10,21,13],[41,6,41,8],[37,6,37,8],[33,68,33,70],[33,73,33,75],[34,68,34,70],[34,73,34,75],[31,68,31,70],[31,73,31,75],[29,68,29,70],[29,73,29,75],[41,44,41,45],[41,48,41,49],[21,19,21,22],[22,10,22,12],[22,19,22,21],[22,68,22,70],[41,68,41,70],[39,68,39,70],[39,73,39,75],[0,31,0,32],[0,35,0,39],[0,50,0,51],[0,5,0,6],[0,24,0,25],[0,76,0,77],[3,21,3,23],[3,10,3,12],[5,10,5,13],[5,19,5,22],[0,57,0,58],[0,61,0,65],[3,73,3,75],[0,87,0,91],[0,83,0,84],[0,102,0,103],[0,9,0,13],[2,27,2,32],[3,27,3,32],[4,27,4,32],[48,50,48,51],[39,27,39,31],[39,33,39,34],[39,36,39,37],[39,40,39,41],[39,44,39,45],[39,48,39,49],[40,27,40,31],[40,33,40,34],[40,36,40,37],[40,40,40,41],[40,44,40,45],[40,48,40,49],[41,27,41,31],[41,33,41,34],[41,36,41,37],[41,40,41,41],[22,84,22,86],[23,84,23,86],[7,102,7,103],[3,88,3,90],[3,99,3,101],[5,88,5,91],[5,97,5,100],[6,88,6,90],[6,97,6,99],[7,88,7,90],[7,93,7,94],[7,97,7,99],[45,84,45,86],[44,84,44,86],[42,84,42,86],[43,84,43,86],[40,84,40,86],[41,84,41,86],[36,84,36,86],[37,84,37,86],[38,84,38,86],[39,84,39,86],[30,84,30,86],[31,84,31,86],[27,84,27,86],[28,84,28,86],[29,84,29,86],[24,84,24,86],[25,84,25,86],[26,84,26,86],[44,27,44,31],[44,33,44,34],[44,36,44,37],[44,40,44,41],[44,44,44,45],[44,48,44,49],[45,48,45,49],[42,27,42,31],[42,33,42,34],[42,36,42,37],[42,40,42,41],[42,44,42,45],[42,48,42,49],[43,27,43,31],[43,33,43,34],[43,36,43,37],[43,40,43,41],[43,44,43,45],[43,48,43,49]]}
["Energie-Check",null,null,null,null,{"$f":"Betriebsübersicht!F1","v":"V 1.0"},null,null,null,"Schweinemast A",null,null,null,null,null," Ergebnisblatt",null,null,null,null,null,null,null,null,null,null,"Energie-Check",null,null,null,null,{"$f":"Betriebsübersicht!F1","v":"V 1.0"},null,null,null,"Schweinemast A",null,null,null,null,null,"Infoblatt",null,null,null,null,null,null,null,null,null,null,"Energie-Check",null,null,null,null,{"$f":"Betriebsübersicht!F1","v":"V 1.0"},null,null,null,"Schweinemast A",null,null,null,null,null,"Eingabeblatt 1",null,null,null,null,null,null,null,null,null,null,"Energie-Check",null,null,null,null,{"$f":"Betriebsübersicht!F1","v":"V 1.0"},null,null,null,"Schweinemast A",null,null,null,null,null," Ergebnisblatt Vgl. SOLL - IST"]
[null,null,null,null,null,null,null,null,null,null,null,null,null,null,null,null,null,null,null,null,null,null,null,null,null,null,null,null,null,null,null,null,null,null,null,null,null,null,null,null,null,null,null,null,null,null,null,null,null,null,null,null,"Detailbetrachtung",null,null,null,null,null,null,null,null,null,null,null,null,null,null,null,null,null,null,null,null,null,null,null,null,null,"Detailbetrachtung"]
[null,null,null,null,null,null,null,null,null,null,null,null,null,null,null,null,null,null,null,null,null,null,null,null,null,null,null,"Eingabefelder",null,null,null,null,null,null,"Felder für die Eingabe betrieblicher Daten",null,null,null,null,null,null,null,null,null,null,null,null,null,null,null,null,null,"Berechnung Stromverbrauch - Technische Ausstattung"]
["Außenklimastall",null,null,null,null,null,null,null,null,"Mastplätze ",{"$f":"Betriebsübersicht!V33","v":200},null,null,null,null,null,"Abrechnungsjahr",null,null,null,null,{"$f":"Energieeinsatz!AV4","v":2021},null,null,null,null,null,"berechnete Felder",null,null,null,null,null,null,"Felder die vom Programm berechnet werden",null,null,null,null,null,null,null,null,null,null,null,null,null,null,null,null,null,null,null,null,null,null,null,null,null,null,null,null,null,null,null,null,null,"Abrechnungsjahr",null,null,null,null,{"$f":"V4","v":2021},null,null,null,null,"Außenklimastall",null,null,null,null,null,null,null,null,"Mastplätze ",{"$f":"Betriebsübersicht!V33","v":200},null,null,null,null,null,"Abrechnungsjahr",null,null,null,null,{"$f":"V4","v":2021}]
[null,null,null,null,null,null,null,null,null,null,null,null,null,null,null,null,null,null,null,null,null,null,null,null,null,null,null,"Werte",null,null,null,null,null,null,"Werte die aus Eingebefeldern übernommen wurden bzw. "]
[null,null,null,null,null,null,null,null,null,null,"Strom",null,null,null,null,null,null,null,null,"Wärme",null,null,null,null,null,null,null,null,null,null,null,null,null,null,null,"-","Felder mit hinterlegten Werten",null,null,null,null,null,null,null,null,null,null,null,null,null,null,null,null,"Sollwerte: durchschnittliche Verbrauchskennzahlen aus zeitgemäßen Tiehaltungsanlagen",null,null,null,null,null,null,null,null,null,null,null,null,null,null,null,null,null,null,null,null,null,null,null,null,null,null,null,null,null,null,null,null,null,null,"Strom",null,null,null,null,null,null,null,null,"Wärme"]
[null,null,null,"Gesamtverbrauch",null,null,null,null,null,null,{"$f":"'Abgrenzung BZ'!AI8","v":83100},null,null,"kWh",null,null,null,null,null,{"$f":"'Abgrenzung BZ'!AV8","v":184000},null,null,"kWh",null,null,null,null,null,null,null,null,null,null,null,null,"-","Felder mit hinterlegten Faktoren",null,null,null,null,null,null,null,null,null,null,null,null,null,null,null,null,"Istwerte: ",null,null,"Bitte hier betriebliche Daten eintragen, Sollwert kann als Anhaltspunkt dienen.",null,null,null,null,null,null,null,null,null,null,null,null,null,null,null,null,null,null,null,null,null,null,null,null,"pro Mastplatz - SOLL",null,null,null,null,null,null,{"$f":"BQ34","v":15.5},null,null,"kWh",null,null,null,null,null,{"$f":"BQ42","v":14},null,null,"kWh"]
[null,"davon",null,"Schweinemast",null,null,null,null,null,null,{"$f":"'Abgrenzung BZ'!AI18","v":2000},null,null,"kWh",null,{"$f":"K8/K7","v":2.4067388688327317E-2},null,null,null,{"$f":"'Abgrenzung BZ'!AV18","v":3000},null,null,"kWh",null,{"$f":"T8/T7","v":1.6304347826086956E-2},null,null,null,null,null,null,null,null,null,null,null,null,null,null,null,null,null,null,null,null,null,null,null,null,null,null,null,null,null,null,null,"Falls keine Messwerte vorhanden, Schätzwerte eingeben!",null,null,null,null,null,null,null,null,null,null,null,null,null,null,null,null,null,null,null,null,null,null,null,null,"pro Mastplatz - IST",null,null,null,null,null,null,{"$f":"BV34","v":25},null,null,"kWh",null,{"$f":"CK8/CK7","v":1.6129032258064515},null,null,null,{"$f":"BV42","v":18},null,null,"kWh",null,{"$f":"CT8/CT7","v":1.2857142857142858}]
["Anteil am Gesamtverbrauch",null,null,null,null,null,null,null,null,null,null,null,null,null,null,null,null,null,null,null,null,null,null,null,null,null,null,null,null,null,null,null,null,null,null,null,null,null,null,null,null,null,null,null,null,null,null,null,null,null,null,null,null,null,null,null,"Eingabefelder",null,null,null,null,null,null,"berechnete Felder",null,null,null,null,null,null,"Werte"]
[null,null,null,null,null,null,null,null,null,null,null,null,null,null,null,null,null,null,null,null,null,null,null,null,null,null,"Außenklimastall",null,null,null,null,null,null,null,null,null,null,null,null,null,null,null,null,null,null,null,null,null,null,null,null,null,"Außenklimastall"]
[]
[null,null,null,null,null,null,null,null,null,null,null,null,null,null,null,null,null,null,null,null,null,null,null,null,null,null,"Bei Außenklimaställen bzw. frei gelüfteten Ställen entsteht aufgrund des Haltungsverfahrens,",null,null,null,null,null,null,null,null,null,null,null,null,null,null,null,null,null,null,null,null,null,null,null,null,null,"pro Mastplatz",null,null,null,null,null,null,null,null,null,null,null,null,null,null,null,null,null,"Verbrauchswert"]
[null,null,null,null,null,null,null,null,null,null,null,null,null,null,null,null,null,null,null,null,null,null,null,null,null,null,null," meist mit unterschiedlichen Klimazonen (eingestreute Stallfläche, Liegekojen und Auslauf)",null,null,null,null,null,null,null,null,null,null,null,null,null,null,null,null,null,null,null,null,null,null,null,null,"Stromverbrauch",null,null,null,null,null,null,null,null,null,null,null,null,null,null,null,"SOLL",null,null,null,null,"IST"]
[null,null,null,null,null,null,null,null,null,null,null,null,null,null,null,null,null,null,null,null,null,null,null,null,null,null,null," kein Energieaufwand für die Lüftung."]
[null,null,null,null,null,null,null,null,null,null,null,null,null,null,null,null,null,null,null,null,null,null,null,null,null,null,"In Kaltställen ohne Einstreu werden jedoch häufig die Liegeflächen beheizt.",null,null,null,null,null,null,null,null,null,null,null,null,null,null,null,null,null,null,null,null,null,null,null,null,null,null,"Frostsicherung",null,null,null,null,null,null,null,null,null,null,null,null,null,"Wasserleitungen, Tränken ",2,null,null,"kWh",null,6,null,null,"kWh"]
[null,null,null,null,null,null,null,null,null,null,null,null,null,null,null,null,null,null,null,null,null,null,null,null,null,null,"Der Energieaufwand für die Frostsicherung der Wasserleitungen und Tränken, sowie für die "]
[null,null,null,null,null,null,null,null,null,null,null,null,null,null,null,null,null,null,null,null,null,null,null,null,null,null,null,"Entmistung (Festmist + Abschieben des Auslaufs mit mobilen oder stationären ",null,null,null,null,null,null,null,null,null,null,null,null,null,null,null,null,null,null,null,null,null,null,null,null,null,"Fütterung:",null,null,null,null,null,null,null,null,null,null,null,null,null,"Trockenfütterung ",1,null,null,"kWh",null,1,null,null,"kWh"]
[null,null,null,null,null,null,null,null,null,null,null,null,null,null,null,null,null,null,null,null,null,null,null,null,null,null,null,"Entmistungssystemen) ist jedoch deutlich höher einzustufen.",null,null,null,null,null,null,null,null,null,null,null,null,null,null,null,null,null,null,null,null,null,null,null,null,null,null,null,null,null,null,null,null,null,null,null,null,null,null,null,"Flüssigfütterung ",2.2999999999999998,null,null,"kWh",null,null,null,null,"kWh"]
[null,null,null,null,null,null,null,null,null,null,null,null,null,null,null,null,null,null,null,null,null,null,null,null,null,null,null,null,null,null,null,null,null,null,null,null,null,null,null,null,null,null,null,null,null,null,null,null,null,null,null,null,null,null,null,null,null,null,null,null,null,null,null,null,null,null,null,"pneumatisches Fütterungssystem ",9.3000000000000007,null,null,"kWh",null,null,null,null,"kWh"]
[]
[null,null,null,null,null,null,null,null,null,null,null,null,null,null,null,null,null,null,null,null,null,null,null,null,null,null,"Handlungsempfehlungen:",null,null,null,null,null,null,null,null,null,null,null,null,null,null,null,null,null,null,null,null,null,null,null,null,null,null,"Futteraufbereitung:",null,null,null,null,null,null,null,null,null,null,null,null,null,"Mahl- und Mischanlage ",9.1999999999999993,null,null,"kWh",null,10,null,null,"kWh"]
[null,null,null,null,null,null,null,null,null,null,"Strom",null,null,null,null,null,null,null,null,"Wärme",null,null,null,null,null,null,null,"-","Heizanlagen wenn möglich auf regenerative Energieträger umstellen."]
[null,null,null,"pro Mastplatz - SOLL",null,null,null,null,null,null,8,null,null,"kWh",null,null,null,null,null,{"$f":"BQ42","v":14},null,null,"kWh",null,null,null,null,"-","regelmäßige Wartung der Anlagen insbesondere der Fütterungs- und ",null,null,null,null,null,null,null,null,null,null,null,null,null,null,null,null,null,null,null,null,null,null,null,null,"Beleuchtung:",null,null,null,null,null,2,"h/d",null,null,null,null,null,null,"Leuchtstoffröhren ",1.3,null,null,"kWh",null,2,null,null,"kWh",null,null,null,null,null,null,null,"Soll"]
[null,null,null,"pro Mastplatz - IST",null,null,null,null,null,null,{"$f":"K8/$K$4","v":10},null,null,"kWh",null,{"$f":"K24/K23","v":1.25},null,null,null,{"$f":"T8/K4","v":15},null,null,"kWh",null,{"$f":"T24/T23","v":1.0714285714285714},null,null,null,null,null,"Futteraufbereitungsanlagen",null,null,null,null,null,null,null,null,null,null,null,null,null,null,null,null,null,null,null,null,null,null,null,null,null,null,null,null,null,null,null,null,null,null,null,null,"LED-Leuchten ",0.3,null,null,"kWh",null,null,null,null,"kWh",null,null,null,null,null,null,null,"kWh",null,null,null,null,null,null,null,null,null,null,null,null,null,null,null,null,null,null,null,null,null,null,null,null,null,"IST",null,null,null,"Soll"]
[null,null,null,null,null,null,null,null,null,null,null,null,null,null,null,null,null,null,null,null,null,null,null,null,null,null,null,"-","Beleuchtung: Umrüstung auf LED",null,null,null,null,null,null,null,null,null,null,null,null,null,null,null,null,null,null,null,null,null,null,null,null,null,null,null,null,null,null,null,null,null,null,null,null,null,null,null,null,null,null,null,null,null,null,null,null,null,null,"Frostsicherung",null,null,null,null,2,null,null,null,null,null,null,null,null,null,null,null,null,null,null,null,null,null,null,null,null,{"$f":"CB35","v":0},{"$f":"CC35","v":0},{"$f":"CD35","v":0},{"$f":"CE35","v":0},{"$f":"CF35","v":0},{"$f":"CG49","v":0},null,null,null,{"$f":"CG35","v":0}]
[null,null,null,null,null,null,null,null,null,null,null,null,null,null,null,null,null,null,null,null,null,null,null,null,null,null,null,"-","frostsichere Verlegung der Wasserleitungen",null,null,null,null,null,null,null,null,null,null,null,null,null,null,null,null,null,null,null,null,null,null,null,null,"Reinigung:",null,null,null,null,null,null,null,null,null,null,null,null,null,"Hochdruckreiniger (HDR) ",0.8,null,null,"kWh",null,2,null,null,"kWh",null,null,"Fütterung",null,null,null,null,1,null,null,null,null,null,null,null,null,null,null,null,null,null,null,null,null,null,null,null,null,{"$f":"CB34","v":0},{"$f":"CC34","v":0},{"$f":"CD34","v":0},{"$f":"CE34","v":0},{"$f":"CF34","v":0},{"$f":"CG48","v":0},null,null,null,{"$f":"CG34","v":0}]
[null,null,null,null,null,null,null,null,null,null,null,null,null,null,null,null,null,null,null,null,null,null,null,null,null,null,null,"-","Einbau hocheffizienter Antriebe und Pumpen",null,null,null,null,null,null,null,null,null,null,null,null,null,null,null,null,null,null,null,null,null,null,null,null,null,null,null,null,null,null,null,null,null,null,null,null,null,null,null,null,null,null,null,null,null,null,null,null,null,null,"Mahl-/Mischanlage",null,null,null,null,9,null,null,null,null,null,null,null,null,null,null,null,null,null,null,null,null,null,null,null,null,{"$f":"CB33","v":0},{"$f":"CC33","v":0},{"$f":"CD33","v":0},{"$f":"CE33","v":0},{"$f":"CF33","v":0},{"$f":"CG47","v":0},null,null,null,{"$f":"CG33","v":0}]
[null,null,null,null,null,null,null,null,null,null,null,null,null,null,null,null,null,null,null,null,null,null,null,null,null,null,null,null,null,null,null,null,null,null,null,null,null,null,null,null,null,null,null,null,null,null,null,null,null,null,null,null,null,"Entmistung:",null,null,null,null,null,null,null,null,null,null,null,null,null,"Güllerührwerk /-pumpe ",2,null,null,"kWh",null,null,null,null,"kWh",null,null,"Beleuchtung",null,null,null,null,2,null,null,null,null,null,null,null,null,null,null,null,null,null,null,null,null,null,null,null,null,{"$f":"CB32","v":"Sonstige"},{"$f":"CC32","v":0},{"$f":"CD32","v":0},{"$f":"CE32","v":0},{"$f":"CF32","v":0},{"$f":"CG46","v":2},null,null,null,{"$f":"CG32","v":2}]
[null,null,null,null,null,null,null,null,null,null,null,null,null,null,null,null,null,null,null,null,null,null,null,null,null,null,null,null,null,null,null,null,null,null,null,null,null,null,null,null,null,null,null,null,null,null,null,null,null,null,null,null,null,null,null,null,null,null,null,null,null,null,null,null,null,null,null,null,null,null,null,null,null,null,null,null,null,null,null,"Reinigung",null,null,null,null,1,null,null,null,null,null,null,null,null,null,null,null,null,null,null,null,null,null,null,null,null,{"$f":"CB31","v":"Betriebsstrom"},{"$f":"CC31","v":0},{"$f":"CD31","v":0},{"$f":"CE31","v":0},{"$f":"CF31","v":0},{"$f":"CG45","v":2},null,null,null,{"$f":"CG31","v":1}]
[null,null,null,null,null,null,null,null,null,null,null,null,null,null,null,null,null,null,null,null,null,null,null,null,null,null,null,null,null,null,null,null,null,null,null,null,null,null,null,null,null,null,null,null,null,null,null,null,null,null,null,null,null,"Betriebsstrom Heizung:",null,null,null,null,null,null,null,null,null,null,null,null,null,"Umwälzpumpen, ... ",1,null,null,"kWh",null,2,null,null,"kWh",null,null,"Entmistung",null,null,null,null,0,null,null,null,null,null,null,null,null,null,null,null,null,null,null,null,null,null,null,null,null,{"$f":"CB30","v":"Entmistung"},{"$f":"CC30","v":0},{"$f":"CD30","v":0},{"$f":"CE30","v":0},{"$f":"CF30","v":0},{"$f":"CG44","v":0},null,null,null,{"$f":"CG30","v":0}]
[null,null,null,null,null,null,null,null,null,null,null,null,null,null,null,null,null,null,null,null,null,null,null,null,null,null,null,null,null,null,null,null,null,null,null,null,null,null,null,null,null,null,null,null,null,null,null,null,null,null,null,null,null,null,null,null,null,null,null,null,null,null,null,null,null,null,null,null,null,null,null,null,null,null,null,null,null,null,null,"Betriebsstrom",null,null,null,null,1,null,null,null,null,null,null,null,null,null,null,null,null,null,null,null,null,null,null,null,null,{"$f":"CB29","v":"Reinigung"},{"$f":"CC29","v":0},{"$f":"CD29","v":0},{"$f":"CE29","v":0},{"$f":"CF29","v":0},{"$f":"CG43","v":2},null,null,null,{"$f":"CG29","v":1}]
[null,null,null,null,null,null,null,null,null,null,null,null,null,null,null,null,null,null,null,null,null,null,null,null,null,null,null,null,null,null,null,null,null,null,null,null,null,null,null,null,null,null,null,null,null,null,null,null,null,null,null,null,null,"Sonstige:",null,null,null,null,null,null,null,null,null,null,null,null,null,"Stallbüro, Elektroboiler, Kühlschränke, … ",1,null,null,"kWh",null,2,null,null,"kWh",null,null,"Sonstige",null,null,null,null,2,null,null,null,null,null,null,null,null,null,null,null,null,null,null,null,null,null,null,null,null,{"$f":"CB28","v":"Beleuchtung"},{"$f":"CC28","v":0},{"$f":"CD28","v":0},{"$f":"CE28","v":0},{"$f":"CF28","v":0},{"$f":"CG42","v":2},null,null,null,{"$f":"CG28","v":2}]
[null,null,null,null,null,null,null,null,null,null,null,null,null,null,null,null,null,null,null,null,null,null,null,null,null,null,null,null,null,null,null,null,null,null,null,null,null,null,null,null,null,null,null,null,null,null,null,null,null,null,null,null,null,null,null,null,null,null,null,null,null,null,null,null,null,null,null,null,null,null,null,null,null,null,null,null,null,null,null,null,null,null,null,null,null,null,null,null,null,null,null,null,null,null,null,null,null,null,null,null,null,null,null,null,null,{"$f":"CB27","v":"Mahl-/Mischanlage"},{"$f":"CC27","v":0},{"$f":"CD27","v":0},{"$f":"CE27","v":0},{"$f":"CF27","v":0},{"$f":"CG41","v":10},null,null,null,{"$f":"CG27","v":9}]
[null,null,null,null,null,null,null,null,null,null,null,null,null,null,null,null,null,null,null,null,null,null,null,null,null,null,null,null,null,null,null,null,null,null,null,null,null,null,null,null,null,null,null,null,null,null,null,null,null,null,null,null,null,"Gesamt pro Platz",null,null,null,null,null,null,null,null,null,null,null,null,null,null,{"$f":"BQ15+BQ17+IF(BV21>0.001,BQ21,0)+BQ23+BQ30+BQ32","v":15.5},null,null,"kWh",null,{"$f":"SUM(BV15:BX32)","v":25},null,null,"kWh",null,null,null,null,null,null,null,null,null,null,null,null,null,null,null,null,null,null,null,null,null,null,null,null,null,null,null,null,{"$f":"CB26","v":"Fütterung"},{"$f":"CC26","v":0},{"$f":"CD26","v":0},{"$f":"CE26","v":0},{"$f":"CF26","v":0},{"$f":"CG40","v":1},null,null,null,{"$f":"CG26","v":1}]
[null,null,null,null,null,null,null,null,null,null,null,null,null,null,null,null,null,null,null,null,null,null,null,null,null,null,null,null,null,null,null,null,null,null,null,null,null,null,null,null,null,null,null,null,null,null,null,null,null,null,null,null,null,"Gesamt",null,null,null,null,null,null,null,null,null,null,null,null,null,null,{"$f":"BQ34*K4","v":3100},null,null,"kWh",null,{"$f":"BV34*K4","v":5000},null,null,"kWh",null,null,null,null,null,null,null,null,null,null,null,null,null,null,null,null,null,null,null,null,null,null,null,null,null,null,null,null,{"$f":"CB25","v":"Frostsicherung"},{"$f":"CC25","v":0},{"$f":"CD25","v":0},{"$f":"CE25","v":0},{"$f":"CF25","v":0},{"$f":"CG39","v":6},null,null,null,{"$f":"CG25","v":2}]
[null,null,null,null,null,null,null,null,null,null,null,null,null,null,null,null,null,null,null,null,null,null,null,null,null,null,"Berechnungshilfe elektrische Energie:"]
[null,null,null,null,null,null,null,null,null,null,null,null,null,null,null,null,null,null,null,null,null,null,null,null,null,null,null,"Hier kann mittels Leistung und Laufzeit der Jahresstromverbrauch der einzelnen",null,null,null,null,null,null,null,null,null,null,null,null,null,null,null,null,null,null,null,null,null,null,null,null,null,null,null,null,null,null,null,null,null,null,null,null,null,null,null,null,null,null,null,null,null,null,null,null,null,null,null,null,null,null,null,null,"IST"]
[null,null,null,null,null,null,"kWh",null,null,null,null,null,null,null,null,null,null,null,null,null,null,null,null,null,null,null,null,"Systemkomponenten berechnet werden.",null,null,null,null,null,null,null,null,null,null,null,null,null,null,null,null,null,null,null,null,null,null,null,null,"Berechnung Wärmebedarf - SOLL:",null,null,null,null,null,null,null,null,null,null,null,null,null,null,null,null,null,null,null,null,null,null,null,null,null,null,null,null,null,null,null,"kWh"]
[null,"Frostsicherung",null,null,null,null,2,null,null,null,null,null,null,null,null,null,null,null,null,null,null,null,null,null,null,null,null,"Verbraucher",null,null,null,null,null,"Anzahl",null,null,"Leistung",null,null,null,"Laufzeit",null,null,null,"Tage",null,null,null,"Strom",null,null,null,null,null,"pro Mastplatz",null,null,null,null,null,null,null,null,null,null,null,null,null,null,null,"Verbrauchswert",null,null,null,null,null,null,null,null,"Frostsicherung",null,null,null,null,{"$f":"BV15","v":6}]
[null,"Fütterung",null,null,null,null,{"$f":"BV17+BV18+BV19","v":1},null,null,null,null,null,null,null,null,null,null,null,null,null,null,null,null,null,null,null,null,"HDR",null,null,null,null,null,1,null,null,2.6,null,"kW",null,6,null,"h",null,80,null,"d",null,{"$f":"AH40*AK40*AO40*AS40","v":1248},null,"kWh",null,null,"Heizung: Warmwasser - Ruhebereich",null,null,null,null,null,null,null,null,null,null,null,null,null,null,"SOLL",null,null,null,null,"IST",null,null,null,null,null,"Fütterung",null,null,null,null,{"$f":"SUM(BV17:BX19)","v":1}]
[null,"Mahl-/Mischanlage",null,null,null,null,null,null,null,null,null,null,null,null,null,null,null,null,null,null,null,null,null,null,null,null,null,"Gebläse",null,null,null,null,null,1,null,null,1.5,null,"kW",null,8,null,"h",null,10,null,"d",null,{"$f":"AH41*AK41*AO41*AS41","v":120},null,"kWh",null,null,null,null,null,null,null,null,null,null,null,null,null,null,null,null,null,null,null,null,null,null,null,null,null,null,null,null,"Mahl-/Mischanlage",null,null,null,null,{"$f":"BV21","v":10}]
[null,"Beleuchtung",null,null,null,null,{"$f":"BV23+BV24","v":2},null,null,null,null,null,null,null,null,null,null,null,null,null,null,null,null,null,null,null,null,"Schrotmühle",null,null,null,null,null,1,null,null,10.5,null,"kW",null,1.5,null,"h",null,180,null,"d",null,{"$f":"AH42*AK42*AO42*AS42","v":2835},null,"kWh",null,null,"Gesamt pro Platz",null,null,null,null,null,null,null,null,null,null,null,null,null,"Liegebereichsheizung ",14,null,null,"kWh",null,18,null,null,"kWh",null,null,"Beleuchtung",null,null,null,null,{"$f":"SUM(BV23:BX24)","v":2}]
[null,"Reinigung",null,null,null,null,1,null,null,null,null,null,null,null,null,null,null,null,null,null,null,null,null,null,null,null,null,null,null,null,null,null,null,null,null,null,null,null,"kW",null,null,null,"h",null,null,null,"d",null,null,null,"kWh",null,null,"Gesamt",null,null,null,null,null,null,null,null,null,null,null,null,null,null,{"$f":"BQ42*K4","v":2800},null,null,"kWh",null,{"$f":"BV42*K4","v":3600},null,null,"kWh",null,null,"Reinigung",null,null,null,null,{"$f":"BV26","v":2}]
[null,"Entmistung",null,null,null,null,{"$f":"BV28","v":0},null,null,null,null,null,null,null,null,null,null,null,null,null,null,null,null,null,null,null,null,null,null,null,null,null,null,null,null,null,null,null,"kW",null,null,null,"h",null,null,null,"d",null,null,null,"kWh",null,null,null,null,null,null,null,null,null,null,null,null,null,null,null,null,null,null,null,null,null,null,null,null,null,null,null,null,"Entmistung",null,null,null,null,{"$f":"BV28","v":0}]
[null,"Betriebsstrom",null,null,null,null,1,null,null,null,null,null,null,null,null,null,null,null,null,null,null,null,null,null,null,null,null,null,null,null,null,null,null,null,null,null,null,null,"kW",null,null,null,"h",null,null,null,"d",null,null,null,"kWh",null,"Berechnung Dieselverbrauch Entmistung - SOLL:",null,null,null,null,null,null,null,null,null,null,null,null,null,null,null,null,null,null,null,null,null,null,null,null,null,null,"Betriebsstrom",null,null,null,null,{"$f":"BV30","v":2}]
[null,"Sonstige",null,null,null,null,{"$f":"BV32","v":2},null,null,null,null,null,null,null,null,null,null,null,null,null,null,null,null,null,null,null,null,null,null,null,null,null,null,null,null,null,null,null,null,null,null,null,null,null,null,null,null,null,{"$f":"SUM(AW40:AX45)","v":4203},null,"kWh",null,null,null,null,null,null,null,null,null,"Dieselverbrauch",null,null,null,null,null,"Dauer",null,null,null,"Tage",null,null,null,"Diesel",null,null,null,null,"Sonstige",null,null,null,null,{"$f":"BV32","v":2}]
[null,null,null,null,null,null,null,null,null,null,null,null,null,null,null,null,null,null,null,null,null,null,null,null,null,null,null,null,null,null,null,null,null,null,null,null,null,null,null,null,null,null,null,null,null,null,null,null,null,null,null,null,null,"Schlepper / Hoftruck",null,null,null,null,null,null,12,null,"Liter/h",null,null,null,0.5,null,"h",null,180,null,"d",null,{"$f":"BI47*BO47*BS47","v":1080},null,"Liter"]
[null,null,null,null,null,null,null,null,null,null,null,null,null,null,null,null,null,null,null,null,null,null,null,null,null,null,null,null,null,null,null,null,null,null,null,null,null,null,null,null,null,null,null,null,null,null,null,null,null,null,null,null,null,null,null,null,null,null,null,null,null,null,null,null,null,null,null,null,null,"pro Mastplatz",null,null,null,null,{"$f":"BW47/K4","v":5.4},null,"Liter"]
[null,null,null,null,null,null,null,null,null,null,null,null,null,null,null,null,null,null,null,null,null,null,null,null,null,null,null,null,null,null,null,null,null,null,null,null,null,null,null,null,null,null,null,null,null,null,null,null,null,null,"MSA.2",null,null,null,null,null,null,null,null,null,null,null,null,null,null,null,null,null,null,null,null,null,null,null,null,null,"MSA.3"]

{"sheet":"LH","index":10,"n_rows":49,"n_cols":92,"rows_kept":49,"cut":false,"hidden":false,"merged":[[0,5,0,6],[0,24,0,25],[0,50,0,51],[3,21,3,23],[3,10,3,12],[16,42,16,44],[16,47,16,49],[5,10,5,13],[5,19,5,22],[6,10,6,12],[6,19,6,21],[7,10,7,12],[7,15,7,16],[7,19,7,21],[7,24,7,25],[12,42,12,44],[12,47,12,49],[14,42,14,44],[14,47,14,49],[0,31,0,32],[0,35,0,39],[3,47,3,49],[8,30,8,35],[8,37,8,42],[39,5,39,6],[26,42,26,44],[26,47,26,49],[24,42,24,44],[24,47,24,49],[28,42,28,44],[28,47,28,49],[18,42,18,44],[18,47,18,49],[23,10,23,12],[23,15,23,16],[23,19,23,21],[23,24,23,25],[21,42,21,44],[21,47,21,49],[22,10,22,12],[22,19,22,21],[20,42,20,44],[20,47,20,49],[42,33,42,34],[42,36,42,37],[42,40,42,41],[42,44,42,45],[42,48,42,49],[41,27,41,31],[41,33,41,34],[41,36,41,37],[30,42,30,44],[30,47,30,49],[32,42,32,44],[32,47,32,49],[33,42,33,44],[33,47,33,49],[35,42,35,44],[35,47,35,49],[36,42,36,44],[36,47,36,49],[46,5,46,6],[40,7,40,8],[41,7,41,8],[42,7,42,8],[43,7,43,8],[44,7,44,8],[45,7,45,8],[46,7,46,8],[40,5,40,6],[41,5,41,6],[42,5,42,6],[43,5,43,6],[44,5,44,6],[8,44,8,49],[7,67,7,68],[7,71,7,73],[45,5,45,6],[0,9,0,13],[21,17,21,23],[39,7,39,8],[37,5,37,8],[44,48,44,49],[43,27,43,31],[43,33,43,34],[43,36,43,37],[43,40,43,41],[43,44,43,45],[43,48,43,49],[41,40,41,41],[41,44,41,45],[41,48,41,49],[42,27,42,31],[21,57,21,60],[26,57,26,58],[27,57,27,58],[28,57,28,58],[29,57,29,58],[7,76,7,77],[6,62,6,64],[6,71,6,73],[3,73,3,75],[0,57,0,58],[0,61,0,65],[0,76,0,77],[3,62,3,64],[5,69,5,75],[7,62,7,64],[48,50,48,51],[24,59,24,60],[25,59,25,60],[26,59,26,60],[27,59,27,60],[28,59,28,60],[29,59,29,60],[30,59,30,60],[31,59,31,60],[24,57,24,58],[25,57,25,58],[30,57,30,58],[31,57,31,58],[45,58,45,60],[44,58,44,60],[43,58,43,60],[41,58,41,60],[42,58,42,60],[40,58,40,60],[39,58,39,60],[37,58,37,60],[38,58,38,60],[36,58,36,60]]}
["Energie-Check",null,null,null,null,{"$f":"Betriebsübersicht!F1","v":"V 1.0"},null,null,null,"Legehennen",null,null,null,null,null," Ergebnisblatt",null,null,null,null,null,null,null,null,null,null,"Energie-Check",null,null,null,null,{"$f":"Betriebsübersicht!F1","v":"V 1.0"},null,null,null,"Legehennen",null,null,null,null,null,"Eingabeblatt 1",null,null,null,null,null,null,null,null,null,null,"Energie-Check",null,null,null,null,{"$f":"Betriebsübersicht!F1","v":"V 1.0"},null,null,null,"Legehennen",null,null,null,null,null," Ergebnisblatt Vgl. SOLL - IST"]
[null,null,null,null,null,null,null,null,null,null,null,null,null,null,null,null,null,null,null,null,null,null,null,null,null,null,"Detailbetrachtung",null,null,null,null,null,null,null,null,null,null,null,null,null,null,null,null,null,null,null,null,null,null,null,null,null,"Detailbetrachtung"]
[]
[null,null,null,null,null,null,null,null,null,"Anzahl Legehennen ",{"$f":"Betriebsübersicht!J37","v":8000},null,null,null,null,null,"Abrechnungsjahr",null,null,null,null,{"$f":"Energieeinsatz!AV4","v":2021},null,null,null,null,"Unterscheidung in Stallhaltung und Mobil+Auslauf",null,null,null,null,null,null,null,null,null,null,null,null,null,null,null,"Abrechnungsjahr",null,null,null,null,{"$f":"V4","v":2021},null,null,null,null,null,null,null,null,null,null,null,null,null,"Mastplätze ",{"$f":"Betriebsübersicht!J37","v":8000},null,null,null,null,null,"Abrechnungsjahr",null,null,null,null,{"$f":"V4","v":2021}]
[]
[null,null,null,null,null,null,null,null,null,null,"Strom",null,null,null,null,null,null,null,null,"Diesel",null,null,null,null,null,null,null,"Sollwerte: durchschnittliche Verbrauchskennzahlen aus zeitgemäßen Tiehaltungsanlagen",null,null,null,null,null,null,null,null,null,null,null,null,null,null,null,null,null,null,null,null,null,null,null,null,null,null,null,null,null,null,null,null,"Strom - Stallhaltung",null,null,null,null,null,null,null,null,"Strom - Mobil + Auslauf"]
[null,null,null,"Gesamtverbrauch",null,null,null,null,null,null,{"$f":"'Abgrenzung BZ'!AI8","v":83100},null,null,"kWh",null,null,null,null,null,{"$f":"'Abgrenzung BZ'!AO8","v":24000},null,null,"kWh",null,null,null,null,"Istwerte: ",null,null,"Bitte hier betriebliche Daten eintragen, Sollwert kann als Anhaltspunkt dienen.",null,null,null,null,null,null,null,null,null,null,null,null,null,null,null,null,null,null,null,null,null,null,null,null,"pro Hennenplatz - SOLL",null,null,null,null,null,null,{"$f":"AQ33","v":2.4200000000000004},null,null,"kWh",null,null,null,null,null,{"$f":"AQ36","v":0.26571428571428574},null,null,"kWh"]
[null,"davon",null,"Legehennen",null,null,null,null,null,null,{"$f":"'Abgrenzung BZ'!AI19","v":2000},null,null,"kWh",null,{"$f":"K8/K7","v":2.4067388688327317E-2},null,null,null,{"$f":"'Abgrenzung BZ'!AO19","v":200},null,null,"kWh",null,{"$f":"T8/T7","v":8.3333333333333332E-3},null,null,null,null,null,"Falls keine Messwerte vorhanden, Schätzwerte eingeben!",null,null,null,null,null,null,null,null,null,null,null,null,null,null,null,null,null,null,null,null,null,null,null,null,"pro Hennenplatz - IST",null,null,null,null,null,null,{"$f":"AV33","v":2.4300000000000002},null,null,"kWh",null,{"$f":"BK8/BK7","v":1.0041322314049586},null,null,null,{"$f":"AV36","v":2.4300000000000002},null,null,"kWh",null,{"$f":"BT8/BT7","v":9.1451612903225801}]
["Anteil am Gesamtverbrauch",null,null,null,null,null,null,null,null,null,null,null,null,null,null,null,null,null,null,null,null,null,null,null,null,null,null,null,null,null,"Eingabefelder",null,null,null,null,null,null,"berechnete Felder",null,null,null,null,null,null,"Werte"]
[]
[null,null,null,null,null,null,null,null,null,null,null,null,null,null,null,null,null,null,null,null,null,null,null,null,null,null,"Berechnung Stromverbrauch - Technische Ausstattung:"]
[null,null,null,null,null,null,null,null,null,null,null,null,null,null,null,null,null,null,null,null,null,null,null,null,null,null,null,"pro Hennenplatz",null,null,null,null,null,null,null,null,null,null,null,null,null,null,null,null,"Verbrauchswert"]
[null,null,null,null,null,null,null,null,null,null,null,null,null,null,null,null,null,null,null,null,null,null,null,null,null,null,null,null,null,null,null,null,null,null,null,null,null,null,null,null,null,null,"SOLL",null,null,null,null,"IST"]
[]
[null,null,null,null,null,null,null,null,null,null,null,null,null,null,null,null,null,null,null,null,null,null,null,null,null,null,null,"Lüftung (Stallhaltung)",null,null,null,null,null,null,null,null,null,null,null,null,null,"Lüftungsanlage ",1.1100000000000001,null,null,"kWh",null,1,null,null,"kWh"]
[]
[null,null,null,null,null,null,null,null,null,null,null,null,null,null,null,null,null,null,null,null,null,null,null,null,null,null,null,"Frostsicherung (Mobilstall)",null,null,null,null,null,null,null,null,null,null,null,null,null,"Wasserleitungen, Tränken ",0.1,null,null,"kWh",null,null,null,null,"kWh"]
[]
[null,null,null,null,null,null,null,null,null,null,null,null,null,null,null,null,null,null,null,null,null,null,null,null,null,null,null,"Fütterung:",null,null,null,null,null,null,null,null,null,null,null,null,null,"Fertigfutter ",0.04,null,null,"kWh",null,0.1,null,null,"kWh"]
[]
[null,null,null,null,null,null,null,null,null,null,null,null,null,null,null,null,null,null,null,null,null,null,null,null,null,null,null,"Beleuchtung:",null,null,null,null,null,14,"h/d",null,null,null,null,null,null,"Leuchtstoffröhren ",0.3,null,null,"kWh",null,0.2,null,null,"kWh"]
[null,null,null,null,null,null,null,null,"Strom - Stallhaltung",null,null,null,null,null,null,null,null,"Strom - Mobil + Auslauf",null,null,null,null,null,null,null,null,null,null,null,null,null,null,null,null,null,null,null,null,null,null,null,"LED-Leuchten ",7.0000000000000007E-2,null,null,"kWh",null,null,null,null,"kWh",null,null,null,null,null,null,"kWh"]
[null,null,null,"pro Hennenplatz - SOLL *)",null,null,null,null,null,null,1.5,null,null,"kWh",null,null,null,null,null,0.3,null,null,"kWh",null,null,null,null,null,"Beleuchtungsdauer - Stallhaltung: ca. 14 h/d - Mobil + Auslauf: ca. 4 h/d)",null,null,null,null,null,null,null,null,null,null,null,null,null,null,null,null,null,null,null,null,null,null,null,null,null,null,null,null,"Soll",null,"Soll"]
[null,null,null,"pro Hennenplatz - IST",null,null,null,null,null,null,{"$f":"K8/$K$4","v":0.25},null,null,"kWh",null,{"$f":"K24/K23","v":0.16666666666666666},null,null,null,{"$f":"K8/K4","v":0.25},null,null,"kWh",null,{"$f":"T24/T23","v":0.83333333333333337},null,null,null,null,null,null,null,null,null,null,null,null,null,null,null,null,null,null,null,null,null,null,null,null,null,null,null,null,null,null,null,null,"Stall",null,"Mobil",null,null,null,null,null,null,null,null,null,null,null,null,null,null,null,null,null,null,null,null,null,null,null,null,"IST",null,null,null,"Soll S",null,"Soll M"]
["*) ohne Abluftreinigung",null,null,null,null,null,null,null,null,null,null,null,null,null,null,null,null,null,null,null,null,null,null,null,null,null,null,"Reinigung:",null,null,null,null,null,null,null,null,null,null,null,null,null,"Hochdruckreiniger (HDR) ",0.01,null,null,"kWh",null,0.01,null,null,"kWh",null,"Lüftung",null,null,null,null,1.1000000000000001,null,null,null,null,null,null,null,null,null,null,null,null,null,null,null,null,null,null,null,null,null,{"$f":"BB35","v":0},{"$f":"BC35","v":0},{"$f":"BD35","v":0},{"$f":"BE35","v":0},{"$f":"BF35","v":0},{"$f":"BG49","v":0},null,null,null,{"$f":"BG35","v":0}]
[null,null,null,null,null,null,null,null,null,null,null,null,null,null,null,null,null,null,null,null,null,null,null,null,null,null,null,null,null,null,null,null,null,null,null,null,null,null,null,null,null,null,null,null,null,null,null,null,null,null,null,null,"Frostsicherung",null,null,null,null,null,null,0.1,null,null,null,null,null,null,null,null,null,null,null,null,null,null,null,null,null,null,null,{"$f":"BB34","v":0},{"$f":"BC34","v":0},{"$f":"BD34","v":0},{"$f":"BE34","v":0},{"$f":"BF34","v":0},{"$f":"BG48","v":0},null,null,null,{"$f":"BG34","v":0}]
[null,null,null,null,null,null,null,null,null,null,null,null,null,null,null,null,null,null,null,null,null,null,null,null,null,null,null,"Entmistung:",null,null,null,null,null,null,null,null,null,null,null,null,null,"Kotband ",0.02,null,null,"kWh",null,0.02,null,null,"kWh",null,"Fütterung",null,null,null,null,0.04,null,0.04,null,null,null,null,null,null,null,null,null,null,null,null,null,null,null,null,null,null,null,{"$f":"BA33","v":0},{"$f":"BB33","v":0},{"$f":"BC33","v":0},{"$f":"BD33","v":0},{"$f":"BE33","v":0},{"$f":"BG47","v":0},null,null,null,{"$f":"BF33","v":0}]
[null,null,null,null,null,null,null,null,null,null,null,null,null,null,null,null,null,null,null,null,null,null,null,null,null,null,null,null,null,null,null,null,null,null,null,null,null,null,null,null,null,null,null,null,null,null,null,null,null,null,null,null,"Beleuchtung",null,null,null,null,0.3,null,0.1,null,null,null,null,null,null,null,null,null,null,null,null,null,null,null,null,null,null,null,{"$f":"BA32","v":"Abluftreinigung"},{"$f":"BB32","v":0},{"$f":"BC32","v":0},{"$f":"BD32","v":0},{"$f":"BE32","v":0},{"$f":"BG46","v":1},null,null,null,{"$f":"BF32","v":0.9},{"$f":"BG32","v":0},0,0]
[null,null,null,null,null,null,null,null,null,null,null,null,null,null,null,null,null,null,null,null,null,null,null,null,null,null,null,"Eiersortiertechnik",null,null,null,null,null,null,null,null,null,null,null,null,null,null,0.04,null,null,"kWh",null,0.1,null,null,"kWh",null,"Reinigung",null,null,null,null,0.01,null,0.01,null,null,null,null,null,null,null,null,null,null,null,null,null,null,null,null,null,null,null,{"$f":"BA31","v":"Eiersortiertechnik"},{"$f":"BB31","v":0},{"$f":"BC31","v":0},{"$f":"BD31","v":0},{"$f":"BE31","v":0},{"$f":"BG45","v":0.1},null,null,null,{"$f":"BF31","v":0.04},{"$f":"BG31","v":0},0.04,0]
[null,null,null,null,null,null,null,null,null,null,null,null,null,null,null,null,null,null,null,null,null,null,null,null,null,null,null,null,null,null,null,null,null,null,null,null,null,null,null,null,null,null,null,null,null,null,null,null,null,null,null,null,"Entmistung",null,null,null,null,0.02,null,0.02,null,null,null,null,null,null,null,null,null,null,null,null,null,null,null,null,null,null,null,{"$f":"BA30","v":"Entmistung"},{"$f":"BB30","v":0},{"$f":"BC30","v":0},{"$f":"BD30","v":0},{"$f":"BE30","v":0},{"$f":"BG44","v":0.02},null,null,null,{"$f":"BF30","v":0.02},{"$f":"BG30","v":0},0.02,0]
[null,null,null,null,null,null,null,null,null,null,null,null,null,null,null,null,null,null,null,null,null,null,null,null,null,null,null,"Abluftreinigung:",null,null,null,null,null,null,null,null,null,null,null,null,null,"Wäscher, Umwälzpumpen ",0.9,null,null,"kWh",null,1,null,null,"kWh",null,"Eiersortiertechnik",null,null,null,null,0.04,null,0.04,null,null,null,null,null,null,null,null,null,null,null,null,null,null,null,null,null,null,null,{"$f":"BA29","v":"Reinigung"},{"$f":"BB29","v":0},{"$f":"BC29","v":0},{"$f":"BD29","v":0},{"$f":"BE29","v":0},{"$f":"BG43","v":0.01},null,null,null,{"$f":"BF29","v":0.01},{"$f":"BG29","v":0},0.01,0]
[null,null,null,null,null,null,null,null,null,null,null,null,null,null,null,null,null,null,null,null,null,null,null,null,null,null,null,null,null,null,null,null,null,null,null,null,null,null,null,null,null,null,null,null,null,null,null,null,null,null,null,null,"Abluftreinigung",null,null,null,null,0.9,null,null,null,null,null,null,null,null,null,null,null,null,null,null,null,null,null,null,null,null,null,{"$f":"BA28","v":"Beleuchtung"},{"$f":"BB28","v":0},{"$f":"BC28","v":0},{"$f":"BD28","v":0},{"$f":"BE28","v":0},{"$f":"BG42","v":0.2},null,null,null,{"$f":"BF28","v":0.3},{"$f":"BG28","v":0},0.1,0]
[null,null,null,null,null,null,null,null,null,null,null,null,null,null,null,null,null,null,null,null,null,null,null,null,null,null,null,"Gesamt pro Platz (Stallhaltung)",null,null,null,null,null,null,null,null,null,null,null,null,null,null,{"$f":"AQ15+AQ19+AQ21+AQ25+AQ27+AQ29+IF(AV31>0.001,AQ31,0)","v":2.4200000000000004},null,null,"kWh",null,{"$f":"SUM(AV15:AX31)","v":2.4300000000000002},null,null,"kWh",null,null,null,null,null,null,null,null,null,null,null,null,null,null,null,null,null,null,null,null,null,null,null,null,null,null,null,null,{"$f":"BA27","v":"Fütterung"},{"$f":"BB27","v":0},{"$f":"BC27","v":0},{"$f":"BD27","v":0},{"$f":"BE27","v":0},{"$f":"BG41","v":0.1},null,null,null,{"$f":"BF27","v":0.04},{"$f":"BG27","v":0},0.04,0]
[null,null,null,null,null,null,null,null,null,null,null,null,null,null,null,null,null,null,null,null,null,null,null,null,null,null,null,"Gesamt (Stallhaltung)",null,null,null,null,null,null,null,null,null,null,null,null,null,null,{"$f":"AQ33*K4","v":19360.000000000004},null,null,"kWh",null,{"$f":"AV33*K4","v":19440},null,null,"kWh",null,null,null,null,null,null,null,null,null,null,null,null,null,null,null,null,null,null,null,null,null,null,null,null,null,null,null,null,{"$f":"BA26","v":"Frostsicherung"},{"$f":"BB26","v":0},{"$f":"BC26","v":0},{"$f":"BD26","v":0},{"$f":"BE26","v":0},{"$f":"BG40","v":0},null,null,null,{"$f":"BF26","v":0},{"$f":"BG26","v":0},0.1,0]
[null,null,null,null,null,null,null,null,null,null,null,null,null,null,null,null,null,null,null,null,null,null,null,null,null,null,null,null,null,null,null,null,null,null,null,null,null,null,null,null,null,null,null,null,null,null,null,null,null,null,null,null,null,null,null,null,null,null,null,null,null,null,null,null,null,null,null,null,null,null,null,null,null,null,null,null,null,null,null,{"$f":"BA25","v":"Lüftung"},{"$f":"BB25","v":0},{"$f":"BC25","v":0},{"$f":"BD25","v":0},{"$f":"BE25","v":0},{"$f":"BG39","v":1},null,null,null,{"$f":"BF25","v":1.1000000000000001},{"$f":"BG25","v":0},0,0]
[null,null,null,null,null,null,null,null,null,null,null,null,null,null,null,null,null,null,null,null,null,null,null,null,null,null,null,"Gesamt pro Platz (Mobil + Auslauf)",null,null,null,null,null,null,null,null,null,null,null,null,null,null,{"$f":"AQ17+AQ19+(AQ21/14*4)+AQ29","v":0.26571428571428574},null,null,"kWh",null,{"$f":"SUM(AV15:AX31)","v":2.4300000000000002},null,null,"kWh"]
[null,null,null,null,null,null,null,null,null,null,null,null,null,null,null,null,null,null,null,null,null,null,null,null,null,null,null,"Gesamt (Mobil + Auslauf)",null,null,null,null,null,null,null,null,null,null,null,null,null,null,{"$f":"AQ36*K4","v":2125.7142857142858},null,null,"kWh",null,{"$f":"AV36*K4","v":19440},null,null,"kWh",null,null,null,null,null,null,null,"IST"]
[null,null,null,null,null,"kWh",null,null,null,null,null,null,null,null,null,null,null,null,null,null,null,null,null,null,null,null,null,null,null,null,null,null,null,null,null,null,null,null,null,null,null,null,null,null,null,null,null,null,null,null,null,null,null,null,null,null,null,null,"kWh"]
[null,null,null,null,null,"Stall",null,"Mobil",null,null,null,null,null,null,null,null,null,null,null,null,null,null,null,null,null,null,"Berechnungshilfe elektrische Energie:",null,null,null,null,null,null,null,null,null,null,null,null,null,null,null,null,null,null,null,null,null,null,null,null,null,"Lüftung",null,null,null,null,null,{"$f":"AV15","v":1}]
["Lüftung",null,null,null,null,1.1000000000000001,null,null,null,null,null,null,null,null,null,null,null,null,null,null,null,null,null,null,null,null,null,"Berechnung des Stromverbrauchs mittels Leistung und Laufzeiten",null,null,null,null,null,null,null,null,null,null,null,null,null,null,null,null,null,null,null,null,null,null,null,null,"Frostsicherung",null,null,null,null,null,{"$f":"AV17","v":0}]
["Frostsicherung",null,null,null,null,{"$f":"AV17","v":0},null,0.1,null,null,null,null,null,null,null,null,null,null,null,null,null,null,null,null,null,null,null,"Verbraucher",null,null,null,null,null,"Anzahl",null,null,"Leistung",null,null,null,"Laufzeit",null,null,null,"Tage",null,null,null,"Strom",null,null,null,"Fütterung",null,null,null,null,null,{"$f":"AV19","v":0.1}]
["Fütterung",null,null,null,null,0.04,null,0.04,null,null,null,null,null,null,null,null,null,null,null,null,null,null,null,null,null,null,null,"Beleuchtung",null,null,null,null,null,18,null,null,7.4999999999999997E-2,null,"kW",null,4,null,"h",null,365,null,"d",null,{"$f":"AH42*AK42*AO42*AS42","v":1970.9999999999998},null,"kWh",null,"Beleuchtung",null,null,null,null,null,{"$f":"SUM(AV21:AX22)","v":0.2}]
["Beleuchtung",null,null,null,null,{"$f":"AV21+AV22","v":0.2},null,0.1,null,null,null,null,null,null,null,null,null,null,null,null,null,null,null,null,null,null,null,"Eiersortiertechnik",null,null,null,null,null,1,null,null,0.8,null,"kW",null,1,null,"h",null,365,null,"d",null,{"$f":"AH43*AK43*AO43*AS43","v":292},null,"kWh",null,"Reinigung",null,null,null,null,null,{"$f":"AV25","v":0.01}]
["Reinigung",null,null,null,null,{"$f":"AV25","v":0.01},null,0.01,null,null,null,null,null,null,null,null,null,null,null,null,null,null,null,null,null,null,null,null,null,null,null,null,null,null,null,null,null,null,"kW",null,null,null,"h",null,null,null,"d",null,null,null,"kWh",null,"Entmistung",null,null,null,null,null,{"$f":"AV27","v":0.02}]
["Entmistung",null,null,null,null,{"$f":"AV27","v":0.02},null,0.02,null,null,null,null,null,null,null,null,null,null,null,null,null,null,null,null,null,null,null,null,null,null,null,null,null,null,null,null,null,null,null,null,null,null,null,null,null,null,null,null,{"$f":"SUM(AW42:AX44)","v":2263},null,"kWh",null,"Eiersortiertechnik",null,null,null,null,null,{"$f":"AV29","v":0.1}]
["Eiersortiertechnik",null,null,null,null,0.04,null,0.04,null,null,null,null,null,null,null,null,null,null,null,null,null,null,null,null,null,null,"Handlungsempfehlungen:",null,null,null,null,null,null,null,null,null,null,null,null,null,null,null,null,null,null,null,null,null,null,null,null,null,"Abluftreinigung",null,null,null,null,null,{"$f":"AV31","v":1}]
["Abluftreinigung",null,null,null,null,0.9,null,null,null,null,null,null,null,null,null,null,null,null,null,null,null,null,null,null,null,null,null,"Beleuchtung: Umrüstung auf LED"]
[null,null,null,null,null,null,null,null,null,null,null,null,null,null,null,null,null,null,null,null,null,null,null,null,null,null,null,"Frostsichere Verlegung der Wasserleitungen"]
[null,null,null,null,null,null,null,null,null,null,null,null,null,null,null,null,null,null,null,null,null,null,null,null,null,null,null,null,"Lüftung: siehe Ferkelerzeugung",null,null,null,null,null,null,null,null,null,null,null,null,null,null,null,null,null,null,null,null,null,"LH.2"]

{"sheet":"GM","index":11,"n_rows":49,"n_cols":115,"rows_kept":49,"cut":false,"hidden":false,"merged":[[32,48,32,49],[42,6,42,8],[38,27,38,31],[38,33,38,34],[38,36,38,37],[38,40,38,41],[38,44,38,45],[38,48,38,49],[39,6,39,8],[39,48,39,49],[39,27,39,31],[39,33,39,34],[39,36,39,37],[39,40,39,41],[39,44,39,45],[41,48,41,49],[40,27,40,31],[40,33,40,34],[23,42,23,44],[23,47,23,49],[37,6,37,8],[25,42,25,44],[25,47,25,49],[26,42,26,44],[26,47,26,49],[40,6,40,8],[41,6,41,8],[37,27,37,31],[37,33,37,34],[37,36,37,37],[37,40,37,41],[37,44,37,45],[37,48,37,49],[40,36,40,37],[40,40,40,41],[40,44,40,45],[40,48,40,49],[38,6,38,8],[31,34,31,35],[31,40,31,41],[31,44,31,45],[31,48,31,49],[21,42,21,44],[21,47,21,49],[10,42,10,44],[10,47,10,49],[12,42,12,44],[12,47,12,49],[16,42,16,44],[16,47,16,49],[18,42,18,44],[18,47,18,49],[0,5,0,6],[0,24,0,25],[0,50,0,51],[3,21,3,23],[3,10,3,12],[5,10,5,13],[5,19,5,22],[0,31,0,32],[0,35,0,39],[3,47,3,49],[0,57,0,58],[0,9,0,13],[48,50,48,51],[8,30,8,35],[8,37,8,42],[8,44,8,49],[6,10,6,12],[6,19,6,21],[7,10,7,12],[7,15,7,16],[7,19,7,21],[7,24,7,25],[23,10,23,12],[23,15,23,16],[23,19,23,21],[23,24,23,25],[19,42,19,44],[19,47,19,49],[21,10,21,13],[31,56,31,59],[28,56,28,59],[21,19,21,22],[22,10,22,12],[22,19,22,21],[0,61,0,65],[0,76,0,77],[0,83,0,84],[0,87,0,91],[0,102,0,103],[3,73,3,75],[3,88,3,90],[3,99,3,101],[5,88,5,91],[5,97,5,100],[6,88,6,90],[6,97,6,99],[7,88,7,90],[7,93,7,94],[7,97,7,99],[7,102,7,103],[17,68,17,70],[20,56,20,59],[20,61,20,65],[20,67,20,71],[20,73,20,77],[22,61,22,65],[22,67,22,71],[22,73,22,77],[22,84,22,86],[23,84,23,86],[22,56,22,59],[24,67,24,71],[24,73,24,77],[24,84,24,86],[31,61,31,65],[31,73,31,75],[36,84,36,86],[37,68,37,70],[37,73,37,75],[37,84,37,86],[25,84,25,86],[26,67,26,71],[26,84,26,86],[27,84,27,86],[28,61,28,65],[28,67,28,71],[28,73,28,77],[28,84,28,86],[48,76,48,77],[44,68,44,70],[44,73,44,75],[45,68,45,70],[45,73,45,75],[46,68,46,70],[46,73,46,75],[38,84,38,86],[39,68,39,70],[39,73,39,75],[39,84,39,86],[40,68,40,70],[40,84,40,86],[41,84,41,86],[42,84,42,86],[43,68,43,70],[43,73,43,75]]}
["Energie-Check",null,null,null,null,{"$f":"Betriebsübersicht!F1","v":"V 1.0"},null,null,null,"Geflügelmast",null,null,null,null,null," Ergebnisblatt",null,null,null,null,null,null,null,null,null,null,"Energie-Check",null,null,null,null,{"$f":"Betriebsübersicht!F1","v":"V 1.0"},null,null,null,"Geflügelmast",null,null,null,null,null,"Eingabeblatt 1",null,null,null,null,null,null,null,null,null,null,"Energie-Check",null,null,null,null,{"$f":"Betriebsübersicht!F1","v":"V 1.0"},null,null,null,"Geflügelmast",null,null,null,null,null,"Eingabeblatt 2",null,null,null,null,null,null,null,null,null,null,"Energie-Check",null,null,null,null,{"$f":"Betriebsübersicht!F1","v":"V 1.0"},null,null,null,"Geflügelmast",null,null,null,null,null," Ergebnisblatt Vgl. SOLL - IST"]
[null,null,null,null,null,null,null,null,null,null,null,null,null,null,null,null,null,null,null,null,null,null,null,null,null,null,"Detailbetrachtung",null,null,null,null,null,null,null,null,null,null,null,null,null,null,null,null,null,null,null,null,null,null,null,null,null,"Detailbetrachtung",null,null,null,null,null,null,null,null,null,null,null,null,null,null,null,null,null,null,null,null,null,null,null,null,null,"Detailbetrachtung"]
[null,null,null,null,null,null,null,null,null,null,null,null,null,null,null,null,null,null,null,null,null,null,null,null,null,null,"Berechnung Stromverbrauch - Technische Ausstattung",null,null,null,null,null,null,null,null,null,null,null,null,null,null,null,null,null,null,null,null,null,null,null,null,null,"Berechnung Stromverbrauch - Technische Ausstattung"]
[null,null,null,null,null,null,null,null,null,"Mastplätze ",{"$f":"Betriebsübersicht!J38","v":4000},null,null,null,null,null,"Abrechnungsjahr",null,null,null,null,{"$f":"Energieeinsatz!AV4","v":2021},null,null,null,null,null,null,null,null,null,null,null,null,null,null,null,null,null,null,null,null,"Abrechnungsjahr",null,null,null,null,{"$f":"V4","v":2021},null,null,null,null,null,null,null,null,null,null,null,null,null,null,null,null,null,null,null,null,"Abrechnungsjahr",null,null,null,null,{"$f":"V4","v":2021},null,null,null,null,null,null,null,null,null,null,null,null,null,"Mastplätze ",{"$f":"Betriebsübersicht!J38","v":4000},null,null,null,null,null,"Abrechnungsjahr",null,null,null,null,{"$f":"V4","v":2021}]
[]
[null,null,null,null,null,null,null,null,null,null,"Strom",null,null,null,null,null,null,null,null,"Wärme",null,null,null,null,null,null,null,"Sollwerte: durchschnittliche Verbrauchskennzahlen aus zeitgemäßen Tiehaltungsanlagen",null,null,null,null,null,null,null,null,null,null,null,null,null,null,null,null,null,null,null,null,null,null,null,null,"Der Stromverbrauch der Lüftungsanlage ist im Wesentlichen Abhängig von baulichen und",null,null,null,null,null,null,null,null,null,null,null,null,null,null,null,null,null,null,null,null,null,null,null,null,null,null,null,null,null,null,null,null,null,null,null,"Strom",null,null,null,null,null,null,null,null,"Wärme"]
[null,null,null,"Gesamtverbrauch",null,null,null,null,null,null,{"$f":"'Abgrenzung BZ'!AI8","v":83100},null,null,"kWh",null,null,null,null,null,{"$f":"'Abgrenzung BZ'!AV8","v":184000},null,null,"kWh",null,null,null,null,"Istwerte: ",null,null,"Bitte hier betriebliche Daten eintragen, Sollwert kann als Anhaltspunkt dienen.",null,null,null,null,null,null,null,null,null,null,null,null,null,null,null,null,null,null,null,null,null,null,"technischen Ausführung.",null,null,null,null,null,null,null,null,null,null,null,null,null,null,null,null,null,null,null,null,null,null,null,null,null,null,null,"pro Mastplatz - SOLL",null,null,null,null,null,null,{"$f":"AQ26","v":1.5999999999999999},null,null,"kWh",null,null,null,null,null,{"$f":"BQ40","v":6},null,null,"kWh"]
[null,"davon",null,"Geflügelmast",null,null,null,null,null,null,{"$f":"'Abgrenzung BZ'!AI20","v":2000},null,null,"kWh",null,{"$f":"K8/K7","v":2.4067388688327317E-2},null,null,null,{"$f":"'Abgrenzung BZ'!AV20","v":12000},null,null,"kWh",null,{"$f":"T8/T7","v":6.5217391304347824E-2},null,null,null,null,null,"Falls keine Messwerte vorhanden, Schätzwerte eingeben!",null,null,null,null,null,null,null,null,null,null,null,null,null,null,null,null,null,null,null,null,null,"Unter Berechnung Lüftungsstrombedarf ist eine für das Produktionsverfahren",null,null,null,null,null,null,null,null,null,null,null,null,null,null,null,null,null,null,null,null,null,null,null,null,null,null,null,null,"pro Mastplatz - IST",null,null,null,null,null,null,{"$f":"AV26","v":1.37},null,null,"kWh",null,{"$f":"CK8/CK7","v":0.85625000000000018},null,null,null,{"$f":"BV46","v":2.5},null,null,"kWh",null,{"$f":"CT8/CT7","v":0.41666666666666669}]
["Anteil am Gesamtverbrauch",null,null,null,null,null,null,null,null,null,null,null,null,null,null,null,null,null,null,null,null,null,null,null,null,null,null,null,null,null,"Eingabefelder",null,null,null,null,null,null,"berechnete Felder",null,null,null,null,null,null,"Werte",null,null,null,null,null,null,null,null,"Geflügelmast typische und energetisch effiziente Ausführung dargestellt."]
[null,null,null,null,null,null,null,null,null,null,null,null,null,null,null,null,null,null,null,null,null,null,null,null,null,null,"pro Mastplatz",null,null,null,null,null,null,null,null,null,null,null,null,null,null,null,null,null,"Verbrauchswert",null,null,null,null,null,null,null,"Durch Eingabe von Zu-/und Abschlagswerten kann der Stromverbrauch der Praxisanlage"]
[null,null,null,null,null,null,null,null,null,null,null,null,null,null,null,null,null,null,null,null,null,null,null,null,null,null,null,null,null,null,null,null,null,null,null,null,null,null,null,null,null,null,"SOLL",null,null,null,null,"IST",null,null,null,null,null,"berechnet werden."]
[]
[null,null,null,null,null,null,null,null,null,null,null,null,null,null,null,null,null,null,null,null,null,null,null,null,null,null,null,"Lüftung: *)",null,null,null,null,null,null,null,null,null,null,null,null,null,"Lüftungsanlage ",{"$f":"BV32","v":1.17},null,null,"kWh",null,1,null,null,"kWh",null,"Berechnung Lüftungsstrombedarf"]
[null,null,null,null,null,null,null,null,null,null,null,null,null,null,null,null,null,null,null,null,null,null,null,null,null,null,null,null,null,null,null,null,null,null,null,null,null,null,null,null,null,null,null,null,null,null,null,null,null,null,null,null,null,"Lüftungsanlage:"]
[null,null,null,null,null,null,null,null,null,null,null,null,null,null,null,null,null,null,null,null,null,null,null,null,null,null,"*) Berechnung Lüftungsstrombedarf -> siehe Eingabeblatt 2",null,null,null,null,null,null,null,null,null,null,null,null,null,null,null,null,null,null,null,null,null,null,null,null,null,null,null,null,null,"Zuluftführung",null,null,null,null,"Abluftführung",null,null,null,null,null,"Kamin",null,null,null,null,null,"Regelungstechnik"]
[null,null,null,null,null,null,null,null,null,null,null,null,null,null,null,null,null,null,null,null,null,null,null,null,null,null,null,null,null,null,null,null,null,null,null,null,null,null,null,null,null,null,null,null,null,null,null,null,null,null,null,null,null,null,null,null,"Strahllüftung",null,null,null,null,"Oberflur dezentral ",null,null,null,null,null,"Diffusor ",null,null,null,null,null,"EC-Motor "]
[null,null,null,null,null,null,null,null,null,null,null,null,null,null,null,null,null,null,null,null,null,null,null,null,null,null,null,"Fütterung:",null,null,null,null,null,null,null,null,null,null,null,null,null,"Fertigfutter ",0.02,null,null,"kWh",null,0.02,null,null,"kWh"]
[null,null,null,null,null,null,null,null,null,null,null,null,null,null,null,null,null,null,null,null,null,null,null,null,null,null,null,null,null,null,null,null,null,null,null,null,null,null,null,null,null,null,null,null,null,null,null,null,null,null,null,null,null,null,null,null,null,null,null,null,null,null,null,null,null,null,null,null,1,null,null,"kWh"]
[null,null,null,null,null,null,null,null,null,null,null,null,null,null,null,null,null,null,null,null,null,null,null,null,null,null,null,"Beleuchtung:",null,null,null,null,null,16,"h/d",null,null,null,null,null,null,"Leuchtstoffröhren ",0.36,null,null,"kWh",null,0.3,null,null,"kWh",null,null,"Zu-/Abschlagwerte für andere Ausführungen"]
[null,null,null,null,null,null,null,null,null,null,null,null,null,null,null,null,null,null,null,null,null,null,null,null,null,null,null,null,null,null,null,null,null,null,null,null,null,null,null,null,null,"LED-Leuchten ",0.08,null,null,"kWh",null,null,null,null,"kWh",null,null,null,null,null,"Lochplatten",null,null,null,null,"Unterflur zentral ",null,null,null,null,null,"Weitwurfdüse ",null,null,null,null,null,"Phasenanschnitt"]
[null,null,null,null,null,null,null,null,null,null,null,null,null,null,null,null,null,null,null,null,null,null,null,null,null,null,null,null,null,null,null,null,null,null,null,null,null,null,null,null,null,null,null,null,null,null,null,null,null,null,null,null,null,null,null,null,0.14000000000000001,null,null,null,null,0.84,null,null,null,null,null,0.66,null,null,null,null,null,0.7]
[null,null,null,null,null,null,null,null,null,null,"Strom",null,null,null,null,null,null,null,null,"Wärme",null,null,null,null,null,null,null,"Reinigung:",null,null,null,null,null,null,null,null,null,null,null,null,null,"Hochdruckreiniger (HDR) ",0.05,null,null,"kWh",null,0.05,null,null,"kWh",null,null,null,null,null,"Porendecke ",null,null,null,null,"Oberflur zentral ",null,null,null,null,null,"Regenhaube ",null,null,null,null,null,"Traforegelung "]
[null,null,null,"pro Mastplatz - SOLL *)",null,null,null,null,null,null,1.4,null,null,"kWh",null,null,null,null,null,6,null,null,"kWh",null,null,null,null,null,null,null,null,null,null,null,null,null,null,null,null,null,null,null,null,null,null,null,null,null,null,null,null,null,null,null,null,null,0.2,null,null,null,null,0.42,null,null,null,null,null,0.61,null,null,null,null,null,0.5,null,null,null,null,null,null,null,null,null,null,"Soll"]
[null,null,null,"pro Mastplatz - IST",null,null,null,null,null,null,{"$f":"K8/$K$4","v":0.5},null,null,"kWh",null,{"$f":"K24/K23","v":0.35714285714285715},null,null,null,{"$f":"T8/K4","v":3},null,null,"kWh",null,{"$f":"T24/T23","v":0.5},null,null,"Abluftreinigung:",null,null,null,null,null,null,null,null,null,null,null,null,null,"Wäscher, Umwälzpumpen ",0.9,null,null,"kWh",null,0,null,null,"kWh",null,null,null,null,null,null,null,null,null,null,null,null,null,null,null,null,"Einströmdüse ",null,null,null,null,null,null,null,null,null,"Frequenzregelung",null,null,null,null,null,null,"kWh",null,null,null,null,null,null,null,null,null,null,null,null,null,null,null,null,null,null,null,null,null,null,null,null,null,"IST",null,null,null,"Soll"]
["*) ohne Abluftreinigung",null,null,null,null,null,null,null,null,null,null,null,null,null,null,null,null,null,null,null,null,null,null,null,null,null,null,null,null,null,null,null,null,null,null,null,null,null,null,null,null,null,null,null,null,null,null,null,null,null,null,null,null,null,null,null,null,null,null,null,null,null,null,null,null,null,null,-7.0000000000000007E-2,null,null,null,null,null,0.05,null,null,null,null,null,"Lüftung",null,null,null,null,1.1000000000000001,null,null,null,null,null,null,null,null,null,null,null,null,null,null,null,null,null,null,null,null,{"$f":"CB35","v":0},{"$f":"CC35","v":0},{"$f":"CD35","v":0},{"$f":"CE35","v":0},{"$f":"CF35","v":0},{"$f":"CG49","v":0},null,null,null,{"$f":"CG35","v":0}]
[null,null,null,null,null,null,null,null,null,null,null,null,null,null,null,null,null,null,null,null,null,null,null,null,null,null,null,"Gesamt pro Platz",null,null,null,null,null,null,null,null,null,null,null,null,null,null,{"$f":"IF(BJ32>0.001,AQ24,0)+AQ13+AQ17+AQ19+AQ22","v":1.5999999999999999},null,null,"kWh",null,{"$f":"SUM(AV13:AX24)","v":1.37},null,null,"kWh",null,null,null,null,null,null,null,null,null,null,null,null,null,null,null,null,"gerade Ausführung ",null,null,null,null,null,null,null,null,null,null,null,"Fütterung",null,null,null,null,0.02,null,null,null,null,null,null,null,null,null,null,null,null,null,null,null,null,null,null,null,null,{"$f":"CB34","v":0},{"$f":"CC34","v":0},{"$f":"CD34","v":0},{"$f":"CE34","v":0},{"$f":"CF34","v":0},{"$f":"CG48","v":0},null,null,null,{"$f":"CG34","v":0}]
[null,null,null,null,null,null,null,null,null,null,null,null,null,null,null,null,null,null,null,null,null,null,null,null,null,null,null,"Gesamt",null,null,null,null,null,null,null,null,null,null,null,null,null,null,{"$f":"AQ26*K4","v":6399.9999999999991},null,null,"kWh",null,{"$f":"AV26*K4","v":5480},null,null,"kWh",null,null,null,null,null,null,null,null,null,null,null,null,null,null,null,null,0.17,null,null,null,null,null,null,null,null,null,null,null,"Beleuchtung",null,null,null,null,0.3,null,null,null,null,null,null,null,null,null,null,null,null,null,null,null,null,null,null,null,null,{"$f":"CB33","v":0},{"$f":"CC33","v":0},{"$f":"CD33","v":0},{"$f":"CE33","v":0},{"$f":"CF33","v":0},{"$f":"CG47","v":0},null,null,null,{"$f":"CG33","v":0}]
[null,null,null,null,null,null,null,null,null,null,null,null,null,null,null,null,null,null,null,null,null,null,null,null,null,null,null,null,null,null,null,null,null,null,null,null,null,null,null,null,null,null,null,null,null,null,null,null,null,null,null,null,null,null,null,null,null,null,null,null,null,null,null,null,null,null,null,null,null,null,null,null,null,null,null,null,null,null,null,"Reinigung",null,null,null,null,0.05,null,null,null,null,null,null,null,null,null,null,null,null,null,null,null,null,null,null,null,null,{"$f":"CB32","v":0},{"$f":"CC32","v":0},{"$f":"CD32","v":0},{"$f":"CE32","v":0},{"$f":"CF32","v":0},{"$f":"CG46","v":0},null,null,null,{"$f":"CG32","v":0}]
[null,null,null,null,null,null,null,null,null,null,null,null,null,null,null,null,null,null,null,null,null,null,null,null,null,null,null,null,null,null,null,null,null,null,null,null,null,null,null,null,null,null,null,null,null,null,null,null,null,null,null,null,null,null,null,null,null,null,null,null,null,null,null,null,null,null,null,0.17,null,null,null,null,null,0,null,null,null,null,null,"Abluftreinigung",null,null,null,null,0.9,null,null,null,null,null,null,null,null,null,null,null,null,null,null,null,null,null,null,null,null,{"$f":"CB31","v":0},{"$f":"CC31","v":0},{"$f":"CD31","v":0},{"$f":"CE31","v":0},{"$f":"CF31","v":0},{"$f":"CG45","v":0},null,null,null,{"$f":"CG31","v":0}]
[null,null,null,null,null,null,null,null,null,null,null,null,null,null,null,null,null,null,null,null,null,null,null,null,null,null,"Berechnung Dieselverbrauch Entmistung - SOLL:",null,null,null,null,null,null,null,null,null,null,null,null,null,null,null,null,null,null,null,null,null,null,null,null,null,null,null,null,null,null,null,null,null,null,null,null,null,null,null,null,null,null,null,null,null,null,null,null,null,null,null,null,null,null,null,null,null,null,null,null,null,null,null,null,null,null,null,null,null,null,null,null,null,null,null,null,null,null,{"$f":"CB30","v":0},{"$f":"CC30","v":0},{"$f":"CD30","v":0},{"$f":"CE30","v":0},{"$f":"CF30","v":0},{"$f":"CG44","v":0},null,null,null,{"$f":"CG30","v":0}]
[null,null,null,null,null,null,null,null,null,null,null,null,null,null,null,null,null,null,null,null,null,null,null,null,null,null,null,null,null,null,null,null,null,null,"Dieselverbrauch",null,null,null,null,null,"Dauer",null,null,null,"Tage",null,null,null,"Diesel",null,null,null,null,null,null,null,"Abluftreinigung",null,null,null,null,null,null,null,null,null,null,"Verbrauchswert - SOLL",null,null,null,null,null,null,null,null,null,null,null,null,null,null,null,null,null,null,null,null,null,null,null,null,null,null,null,null,null,null,null,null,null,null,null,null,null,{"$f":"CB29","v":"Abluftreinigung"},{"$f":"CC29","v":0},{"$f":"CD29","v":0},{"$f":"CE29","v":0},{"$f":"CF29","v":0},{"$f":"CG43","v":0},null,null,null,{"$f":"CG29","v":0.9}]
[null,null,null,null,null,null,null,null,null,null,null,null,null,null,null,null,null,null,null,null,null,null,null,null,null,null,null,"Schlepper / Hoftruck",null,null,null,null,null,null,12,null,"Liter/h",null,null,null,6,null,"h",null,8,null,"d",null,{"$f":"AI32*AO32*AS32","v":576},null,"Liter",null,null,null,null,null,0.5,null,null,null,null,0,null,null,null,null,null,null,null,null,null,null,"Lüftungsanlage ",{"$f":"BQ18+(BQ18*BE29)+(BQ18*BJ29)+(BQ18*BP29)+(BQ18*BV29)+(BQ18*BJ32)","v":1.17},null,null,"kWh",null,null,null,null,null,null,null,null,null,null,null,null,null,null,null,null,null,null,null,null,null,null,null,null,null,null,null,null,{"$f":"CB28","v":"Reinigung"},{"$f":"CC28","v":0},{"$f":"CD28","v":0},{"$f":"CE28","v":0},{"$f":"CF28","v":0},{"$f":"CG42","v":0.05},null,null,null,{"$f":"CG28","v":0.05}]
[null,null,null,null,null,null,null,null,null,null,null,null,null,null,null,null,null,null,null,null,null,null,null,null,null,null,null,null,null,null,null,null,null,null,null,null,null,null,null,null,null,null,null,"pro Mastplatz",null,null,null,null,{"$f":"AW32/K4","v":0.14399999999999999},null,"Liter",null,null,null,null,null,null,null,null,null,null,null,null,null,null,null,null,null,null,null,null,null,null,null,null,null,null,null,null,null,null,null,null,null,null,null,null,null,null,null,null,null,null,null,null,null,null,null,null,null,null,null,null,null,null,{"$f":"CB27","v":"Beleuchtung"},{"$f":"CC27","v":0},{"$f":"CD27","v":0},{"$f":"CE27","v":0},{"$f":"CF27","v":0},{"$f":"CG41","v":0.3},null,null,null,{"$f":"CG27","v":0.3}]
[null,null,null,null,null,null,null,null,null,null,null,null,null,null,null,null,null,null,null,null,null,null,null,null,null,null,null,null,null,null,null,null,null,null,null,null,null,null,null,null,null,null,null,null,null,null,null,null,null,null,null,null,null,null,null,null,null,null,null,null,null,null,null,null,null,null,null,null,null,null,null,null,null,null,"Zurück",null,null,null,null,null,null,null,null,null,null,null,null,null,null,null,null,null,null,null,null,null,null,null,null,null,null,null,null,null,null,{"$f":"CB26","v":"Fütterung"},{"$f":"CC26","v":0},{"$f":"CD26","v":0},{"$f":"CE26","v":0},{"$f":"CF26","v":0},{"$f":"CG40","v":0.02},null,null,null,{"$f":"CG26","v":0.02}]
[null,null,null,null,null,null,null,null,null,null,null,null,null,null,null,null,null,null,null,null,null,null,null,null,null,null,"Berechnungshilfe elektrische Energie:",null,null,null,null,null,null,null,null,null,null,null,null,null,null,null,null,null,null,null,null,null,null,null,null,null,"Berechnung Wärmebedarf - SOLL:",null,null,null,null,null,null,null,null,null,null,null,null,null,null,null,null,null,null,null,null,null,null,null,null,null,null,null,null,null,null,null,null,null,null,null,null,null,null,null,null,null,null,null,null,null,null,null,null,null,null,null,null,{"$f":"CB25","v":"Lüftung"},{"$f":"CC25","v":0},{"$f":"CD25","v":0},{"$f":"CE25","v":0},{"$f":"CF25","v":0},{"$f":"CG39","v":1},null,null,null,{"$f":"CG25","v":1.1000000000000001}]
[null,null,null,null,null,null,null,null,null,null,null,null,null,null,null,null,null,null,null,null,null,null,null,null,null,null,null,"Berechnung des Stromverbrauchs mittels Leistung und Laufzeiten",null,null,null,null,null,null,null,null,null,null,null,null,null,null,null,null,null,null,null,null,null,null,null,null,null,"pro Mastplatz",null,null,null,null,null,null,null,null,null,null,null,null,null,null,null,null,"Verbrauchswert"]
[null,null,null,null,null,null,null,null,null,null,null,null,null,null,null,null,null,null,null,null,null,null,null,null,null,null,null,"Verbraucher",null,null,null,null,null,"Anzahl",null,null,"Leistung",null,null,null,"Laufzeit",null,null,null,"Tage",null,null,null,"Strom",null,null,null,null,null,null,null,null,null,null,null,null,null,null,null,null,null,null,null,null,null,null,null,null,null,null,null,null,null,null,null,null,null,null,null,"IST"]
[null,null,null,null,null,null,"kWh",null,null,null,null,null,null,null,null,null,null,null,null,null,null,null,null,null,null,null,null,"Beleuchtung",null,null,null,null,null,40,null,null,7.4999999999999997E-2,null,"kW",null,6,null,"h",null,365,null,"d",null,{"$f":"AH38*AK38*AO38*AS38","v":6570},null,"kWh",null,null,"Heizung: Warmwasser und Gaskanonen",null,null,null,null,null,null,null,null,null,null,null,null,null,null,"SOLL",null,null,null,null,"IST",null,null,null,null,null,null,null,null,null,null,"kWh"]
[null,"Lüftung",null,null,null,null,{"$f":"AV13","v":1},null,null,null,null,null,null,null,null,null,null,null,null,null,null,null,null,null,null,null,null,"HDR",null,null,null,null,null,2,null,null,1.8,null,"kW",null,8,null,"h",null,30,null,"d",null,{"$f":"AH39*AK39*AO39*AS39","v":864},null,"kWh",null,null,"gut gedämmtes Stallgebäude",null,null,null,null,null,null,null,null,null,null,null,null,null,null,null,null,null,null,null,null,null,null,null,null,null,"Lüftung",null,null,null,null,{"$f":"AV13","v":1}]
[null,"Fütterung",null,null,null,null,{"$f":"AV17","v":0.02},null,null,null,null,null,null,null,null,null,null,null,null,null,null,null,null,null,null,null,null,null,null,null,null,null,null,null,null,null,null,null,"kW",null,null,null,"h",null,null,null,"d",null,null,null,"kWh",null,null,"Gesamt pro Platz",null,null,null,null,null,null,null,null,null,null,null,null,null,"Stallheizung ",6,null,null,"kWh",null,2,null,null,"kWh",null,null,"Fütterung",null,null,null,null,{"$f":"AV17","v":0.02}]
[null,"Beleuchtung",null,null,null,null,{"$f":"AV19+AV20","v":0.3},null,null,null,null,null,null,null,null,null,null,null,null,null,null,null,null,null,null,null,null,null,null,null,null,null,null,null,null,null,null,null,"kW",null,null,null,"h",null,null,null,"d",null,null,null,"kWh",null,null,"Gesamt",null,null,null,null,null,null,null,null,null,null,null,null,null,null,{"$f":"BQ40*K4","v":24000},null,null,"kWh",null,null,null,null,null,null,null,"Beleuchtung",null,null,null,null,{"$f":"SUM(AV19:AX20)","v":0.3}]
[null,"Reinigung",null,null,null,null,{"$f":"AV22","v":0.05},null,null,null,null,null,null,null,null,null,null,null,null,null,null,null,null,null,null,null,null,null,null,null,null,null,null,null,null,null,null,null,null,null,null,null,null,null,null,null,null,null,{"$f":"SUM(AW38:AX41)","v":7434},null,"kWh",null,null,null,null,null,null,null,null,null,null,null,null,null,null,null,null,null,null,null,null,null,null,null,null,null,null,null,null,"Reinigung",null,null,null,null,{"$f":"AV22","v":0.05}]
[null,"Abluftreinigung",null,null,null,null,0.9,null,null,null,null,null,null,null,null,null,null,null,null,null,null,null,null,null,null,null,null,null,null,null,null,null,null,null,null,null,null,null,null,null,null,null,null,null,null,null,null,null,null,null,null,null,null,"Zu/-Abschlagwerte für andere Ausführungen",null,null,null,null,null,null,null,null,null,null,null,null,null,null,null,null,null,null,null,null,null,null,null,null,null,"Abluftreinigung",null,null,null,null,{"$f":"AV24","v":0}]
[null,null,null,null,null,null,null,null,null,null,null,null,null,null,null,null,null,null,null,null,null,null,null,null,null,null,"Handlungsempfehlungen:",null,null,null,null,null,null,null,"Lüftungsanlage",null,null,null,null,null,null,null,null,null,null,null,null,null,null,null,null,null,null,null,"ohne WRG",null,null,null,null,null,null,null,null,null,null,null,null,null,0.25,null,null,null,null,0.25]
[null,null,null,null,null,null,null,null,null,null,null,null,null,null,null,null,null,null,null,null,null,null,null,null,null,null,null,"richtige Dimensionierung der Lüftungsanlage",null,null,null,null,null,null,null,null,null,null,null,null,null,null,null,null,null,null,null,null,null,null,null,null,null,null,"ohne Liegeflächenabdeckung",null,null,null,null,null,null,null,null,null,null,null,null,null,0.4]
[null,null,null,null,null,null,null,null,null,null,null,null,null,null,null,null,null,null,null,null,null,null,null,null,null,null,null,"strömungstechnisch günstige Gestaltung der Zu- und Abluftführung",null,null,null,null,null,null,null,null,null,null,null,null,null,null,null,null,null,null,null,null,null,null,null,null,null,"Gesamt pro Platz",null,null,null,null,null,null,null,null,null,null,null,null,null,null,{"$f":"BQ40+(BQ40*BQ44)+(BQ40*BQ45)","v":9.9},null,null,"kWh",null,{"$f":"BV40+(BV40*BV44)+(BV40*BV45)","v":2.5},null,null,"kWh"]
[null,null,null,null,null,null,null,null,null,null,null,null,null,null,null,null,null,null,null,null,null,null,null,null,null,null,null,"Wartung und Überprüfung der Zu- und Abluftkanäle, der Ventilatoren und Lüftungs-",null,null,null,null,null,null,null,null,null,null,null,null,null,null,null,null,null,null,null,null,null,null,null,null,null,"Gesamt",null,null,null,null,null,null,null,null,null,null,null,null,null,null,{"$f":"BQ46*K4","v":39600},null,null,"kWh",null,{"$f":"BV46*K4","v":10000},null,null,"kWh"]
[null,null,null,null,null,null,null,null,null,null,null,null,null,null,null,null,null,null,null,null,null,null,null,null,null,null,null,"klappen inkl. Kalibrierung und optimale Einstellung der Temperaturfühler"]
[null,null,null,null,null,null,null,null,null,null,null,null,null,null,null,null,null,null,null,null,null,null,null,null,null,null,null,null,null,null,null,null,null,null,null,null,null,null,null,null,null,null,null,null,null,null,null,null,null,null,"GM.2",null,null,null,null,null,null,null,null,null,null,null,null,null,null,null,null,null,null,null,null,null,null,null,null,null,"GM.3"]

{"sheet":"G-A","index":12,"n_rows":49,"n_cols":51,"rows_kept":49,"cut":false,"hidden":false,"merged":[[7,10,7,12],[7,15,7,16],[7,19,7,21],[2,10,2,12],[0,9,0,14],[0,5,0,6],[23,10,23,12],[23,15,23,16],[23,19,23,21],[23,24,23,25],[21,10,21,13],[22,10,22,12],[22,19,22,21],[0,24,0,25],[7,24,7,25],[6,10,6,12],[6,19,6,21],[3,10,3,12],[3,21,3,23],[5,19,5,21],[6,24,6,25],[42,6,42,8],[40,6,40,8],[38,6,38,8],[39,6,39,8],[37,6,37,8],[46,6,46,8],[47,6,47,8],[45,6,45,8],[44,6,44,8],[43,6,43,8],[9,35,9,36],[10,35,10,36],[12,35,12,36],[14,35,14,36],[8,45,8,46],[10,45,10,46],[13,45,13,46],[0,31,0,32],[0,50,0,51],[6,35,6,36],[7,35,7,36],[8,35,8,36],[0,35,0,40],[2,35,2,36],[3,35,3,36],[4,35,4,36],[2,45,2,46],[3,45,3,46],[11,35,11,36],[15,35,15,36],[16,35,16,36],[13,35,13,36],[48,50,48,51],[15,45,15,46],[17,35,17,36],[17,45,17,46]]}
["Energie-Check",null,null,null,null,{"$f":"Betriebsübersicht!F1","v":"V 1.0"},null,null,null,"Grünland/Ackerbau",null,null,null,null,null," Ergebnisblatt",null,null,null,null,null,null,null,null,null,null,"Energie-Check",null,null,null,null,{"$f":"Betriebsübersicht!F1","v":"V 1.0"},null,null,null,"Grünland/Ackerbau",null,null,null,null,null,"Infoblatt"]
[null,null,null,null,null,null,null,null,null,null,null,null,null,null,null,null,null,null,null,null,null,null,null,null,null,null,"Dieseleinsatz im Grünland"]
[null,null,null,null,null,null,null,null,null,"Grünlandfläche ",{"$f":"Betriebsübersicht!J19","v":46},null,null,null,null,null,null,null,null,null,null,null,null,null,null,null,null,"Mähwerk ohne Aufbereiter",null,null,null,null,null,null,null,"5 - 7",null,"l/ha",null,null,"mit Aufbereiter",null,null,null,null,"6 - 8",null,"l/ha"]
[null,null,null,null,null,null,null,null,null,"Ackerfläche ",{"$f":"Betriebsübersicht!V19","v":32},null,null,"kg/a",null,null,"Abrechnungsjahr",null,null,null,null,{"$f":"Energieeinsatz!AV4","v":2021},null,null,null,null,null,"Kreiselheuer",null,null,null,null,null,null,null,2,null,"l/ha",null,null,"Schwader",null,null,null,null,3,null,"l/ha"]
[null,null,null,null,null,null,null,null,null,null,null,null,null,null,null,null,null,null,null,null,null,null,null,null,null,null,null,"Ladewagen",null,null,null,null,null,null,null,"8 - 10",null,"l/ha"]
[null,null,null,null,null,null,null,null,null,null,"Diesel",null,null,null,null,null,null,null,null,"Diesel",null,null,null,null,null,null,"Dieseleinsatz im Ackerbau",null,null,null,null,null,null,null,null,null,null,null,null,null,"Bodenbearbeitungskombinationen"]
[null,null,null,"Gesamtverbrauch",null,null,null,null,null,null,{"$f":"'Abgrenzung BZ'!O8","v":24000},null,null,"Liter",null,null,null,null,"DG",{"$f":"K8/(Betriebsübersicht!J19*Betriebsübersicht!AJ19+Betriebsübersicht!V19*Betriebsübersicht!AV19)*(Betriebsübersicht!J19*Betriebsübersicht!AJ19)","v":9495.4128440366967},null,null,"Liter",null,{"$f":"T7/K8","v":0.6330275229357798},null,null,"Stoppelbearbeitung",null,null,null,null,null,null,null,"8 - 10",null,"l/ha",null,null,null,"Konventionell:"]
[null,"davon",null,"Grünland/Ackerbau",null,null,null,null,null,null,{"$f":"'Abgrenzung BZ'!O21","v":15000},null,null,"Liter",null,{"$f":"K8/K7","v":0.625},null,null,"AF",{"$f":"K8/(Betriebsübersicht!J19*Betriebsübersicht!AJ19+Betriebsübersicht!V19*Betriebsübersicht!AV19)*Betriebsübersicht!V19*Betriebsübersicht!AV19","v":5504.5871559633024},null,null,"Liter",null,{"$f":"T8/K8","v":0.36697247706422015},null,null,"Pflügen",null,null,null,null,null,null,null,"18 - 28",null,"l/ha",null,null,null,"-","Pflug mit Packer"]
["Anteil am Gesamtverbrauch",null,null,null,null,null,null,null,null,null,null,null,null,null,null,null,null,null,null,null,null,null,null,null,null,null,null,"Saatbeetbereitung",null,null,null,null,null,null,null,"6 - 10",null,"l/ha",null,null,null,null,null,null,null,"20 - 26",null,"l/ha"]
[null,null,null,null,null,null,null,null,null,null,null,null,null,null,null,null,null,null,null,null,null,null,null,null,null,null,null,"Aussaat",null,null,null,null,null,null,null," 3 - 4",null,"l/ha",null,null,null,"-","Kreiselegge mit Drillmaschine"]
[null,null,null,null,null,null,null,null,null,null,null,null,null,null,null,null,null,null,null,null,null,null,null,null,null,null,null,"Düngung",null,null,null,null,null,null,"mineralisch ","2 - 4",null,"l/ha",null,null,null,null,null,null,null,"10 - 12",null,"l/ha"]
[null,null,null,null,null,null,null,null,null,null,null,null,null,null,null,null,null,null,null,null,null,null,null,null,null,null,null,null,null,null,null,null,null,null,"organisch ","6 - 12",null,"l/ha",null,null,null,"Mulchsaat:"]
[null,null,null,null,null,null,null,null,null,null,null,null,null,null,null,null,null,null,null,null,null,null,null,null,null,null,null,"Pflanzenschutz",null,null,null,null,null,null,"chemisch ",2,null,"l/ha",null,null,null,"-","Grubberscheibeneggenkombination"]
[null,null,null,null,null,null,null,null,null,null,null,null,null,null,null,null,null,null,null,null,null,null,null,null,null,null,null,null,null,null,null,null,null,null,"mechanisch ","4 - 6",null,"l/ha",null,null,null,null,null,null,null,"13 - 18",null,"l/ha"]
[null,null,null,null,null,null,null,null,null,null,null,null,null,null,null,null,null,null,null,null,null,null,null,null,null,null,null,"Ernte",null,null,null,null,null,null,"Feldhäcksler ","30 - 36",null,"l/ha",null,null,null,"-","Drillmaschine für Mulchsaat"]
[null,null,null,null,null,null,null,null,null,null,null,null,null,null,null,null,null,null,null,null,null,null,null,null,null,null,null,null,null,null,null,null,null,null,"Mähdrescher ","22 - 27",null,"l/ha",null,null,null,null,null,null,null,"10 - 12",null,"l/ha"]
[null,null,null,null,null,null,null,null,null,null,null,null,null,null,null,null,null,null,null,null,null,null,null,null,null,null,null,null,null,null,null,null,null,null,"Kartoffel-/Rübenroder ","40 - 55",null,"l/ha",null,null,null,"Diektsaat:"]
[null,null,null,null,null,null,null,null,null,null,null,null,null,null,null,null,null,null,null,null,null,null,null,null,null,null,null,"Transporte",null,null,null,null,null,null,null,"16 - 18",null,"l/ha",null,null,null,null,null,null,null,"10 - 12",null,"l/ha"]
[null,null,null,null,null,null,null,null,null,null,null,null,null,null,null,null,null,null,null,null,null,null,null,null,null,null,"Handlungsempfehlungen:"]
[null,null,null,null,null,null,null,null,null,null,null,null,null,null,null,null,null,null,null,null,null,null,null,null,null,null,null,"Schlaggröße und -form, Innerbetriebliche Organisation"]
[null,null,null,null,null,null,null,null,null,null,null,null,null,null,null,null,null,null,null,null,null,null,null,null,null,null,null,null,"-","große und gleichförmige (optimal sind rechteckige) Schläge reduzieren den "]
[null,null,null,null,null,null,null,null,null,null,"Grünland",null,null,null,null,null,null,null,null,"Ackerbau",null,null,null,null,null,null,null,null,null,"Dieselverbrauch aufgrund weniger Wendemanöver und geringerem Zeitaufwand"]
[null,null,null,"Diesel pro ha - SOLL",null,null,null,null,null,null,{"$f":"G39","v":120},null,null,"kWh",null,null,null,null,null,{"$f":"G43","v":100},null,null,"Liter",null,null,null,null,null,"-","größere Einzelschläge verringern die Anzahl der Fahrten zweichen Hof und Feld"]
[null,null,null,"Diesel pro ha - IST",null,null,null,null,null,null,{"$f":"T7/K3","v":206.42201834862385},null,null,"kWh",null,{"$f":"K24/K23","v":1.7201834862385321},null,null,null,{"$f":"T8/K4","v":172.0183486238532},null,null,"Liter",null,{"$f":"T24/T23","v":1.7201834862385319},null,null,null,"-","Organisation einer günstigen innerbetrieblichen Verkehrslage "]
[null,null,null,null,null,null,null,null,null,null,null,null,null,null,null,null,null,null,null,null,null,null,null,null,null,null,null,"Außenwirtschaft: Arbeitsgänge verringern bzw. kombinieren"]
[null,null,null,null,null,null,null,null,null,null,null,null,null,null,null,null,null,null,null,null,null,null,null,null,null,null,null,null,"-","bei der Bodenbearbeitung kann, durch den Verzicht auf das Pflügen ca. 20 l/ha oder"]
[null,null,null,null,null,null,null,null,null,null,null,null,null,null,null,null,null,null,null,null,null,null,null,null,null,null,null,null,null,"durch den Ersatz mit dem Grubber  ca. 10 l/ha Diesel eigespart werden"]
[null,null,null,null,null,null,null,null,null,null,null,null,null,null,null,null,null,null,null,null,null,null,null,null,null,null,null,"Außenwirtschaft: Optimaler Geräteeinsatz und ideale Bearbeitungsintensität"]
[null,null,null,null,null,null,null,null,null,null,null,null,null,null,null,null,null,null,null,null,null,null,null,null,null,null,null,null,"-","Reduzierung des Dieselverbrauchs durch fruchtspezifisch angepasste"]
[null,null,null,null,null,null,null,null,null,null,null,null,null,null,null,null,null,null,null,null,null,null,null,null,null,null,null,null,null,"Bearbeitungstiefe und Kombination von Arbeitsgängen (Bodenbearbeitung)"]
[null,null,null,null,null,null,null,null,null,null,null,null,null,null,null,null,null,null,null,null,null,null,null,null,null,null,null,null,"-","Optimale Geräteeinstellungen und große Arbeitsbreiten wählen"]
[null,null,null,null,null,null,null,null,null,null,null,null,null,null,null,null,null,null,null,null,null,null,null,null,null,null,null,"Schleppereinsatz"]
[null,null,null,null,null,null,null,null,null,null,null,null,null,null,null,null,null,null,null,null,null,null,null,null,null,null,null,null,"-","Optimierter Schleppereinsatz - Motorauswahl, Motorauslastung"]
[null,null,null,null,null,null,null,null,null,null,null,null,null,null,null,null,null,null,null,null,null,null,null,null,null,null,null,null,"-","Anpassung des Schleppers und Geräte (Reifendruckregelung und Ballastierung) an "]
[null,null,null,null,null,null,null,null,null,null,null,null,null,null,null,null,null,null,null,null,null,null,null,null,null,null,null,null,null,"die Einsatzbedingungen + angepasste Fahrweise"]
[null,null,null,null,null,null,null,null,null,null,null,null,null,null,null,null,null,null,null,null,null,null,null,null,null,null,null,null,"-","Bereifung: Reifenhöhe, -breite, angepasster Luftdruck (Einsparung bis 10%)"]
[null,null,null,null,null,null,null,null,null,null,null,null,null,null,null,null,null,null,null,null,null,null,null,null,null,null,null,null,"-","Arbeiten mit möglichst geringer Motordrehzahl/Sparzapfwellenbetrieb ausführen"]
[null,null,null,null,null,null,"kWh",null,null,null,null,null,null,null,null,null,null,null,null,null,null,null,null,null,null,null,null,"Regelmäßige Pflege und Wartung"]
[null,"Grünland",null,null,null,null,120,null,null,null,null,null,null,null,null,null,null,null,null,null,null,null,null,null,null,null,null,null,"Für einen energieeffizienten Betrieb ist die regelmäßige und sorgfältige Reinigung, "]
[null,"Silage",null,null,null,null,110,null,null,null,null,null,null,null,null,null,null,null,null,null,null,null,null,null,null,null,null,null,"Wartung und Überprüfung der Anlagen von erheblicher Bedeutung"]
[null,"Heu",null,null,null,null,130,null,null,null,null,null,null,null,null,null,null,null,null,null,null,null,null,null,null,null,null,null,"-","Kühler + Luftfilter (Einsparung jeweils bis 5%)"]
[null,null,null,null,null,null,null,null,null,null,null,null,null,null,null,null,null,null,null,null,null,null,null,null,null,null,null,null,"-","Motoreinstellung (Einsparung bis 10%)"]
[null,"Ackerbau",null,null,null,null,100,null,null,null,null,null,null,null,null,null,null,null,null,null,null,null,null,null,null,null,null,null,"-","sonstige Wartungsarbeiten (Einsparung bis 2%)"]
[null,"Getreide",null,null,null,null,90,null,null,null,null,null,null,null,null,null,null,null,null,null,null,null,null,null,null,null,null,"Möglichkeiten des Precision Farming zur Energieeffizienzverbesserung nutzen"]
[null,"Silomais",null,null,null,null,110,null,null,null,null,null,null,null,null,null,null,null,null,null,null,null,null,null,null,null,null,null,"-","Vermeiden von Überlappungen durch satellitengestütztes Anschlussfahren mit "]
[null,"Kartoffeln",null,null,null,null,130,null,null,null,null,null,null,null,null,null,null,null,null,null,null,null,null,null,null,null,null,null,null,"Parallelfahrsystemen (Lenkassistenzsysteme)"]
[null,"Zuckerrüben",null,null,null,null,110,null,null,null,null,null,null,null,null,null,null,null,null,null,null,null,null,null,null,null,null,null,"-","Anpassen der Bodenbearbeitungstiefe an das teilflächenspezifische"]
[null,"Ackergras",null,null,null,null,150,null,null,null,null,null,null,null,null,null,null,null,null,null,null,null,null,null,null,null,null,null,null,"Lockerungsbedürfnis der Böden"]
[null,null,null,null,null,null,null,null,null,null,null,null,null,null,null,null,null,null,null,null,null,null,null,null,null,null,null,null,"-","Erhöhung der Stickstoff-Effizienz durch sensorgesteuerte N-Düngung",null,null,null,null,null,null,null,null,null,null,null,null,null,null,null,null,null,null,null,null,"G-A.2"]

{"sheet":"PV","index":13,"n_rows":49,"n_cols":75,"rows_kept":49,"cut":false,"hidden":false,"merged":[[0,35,0,39],[29,10,29,12],[0,76,0,77],[23,17,23,18],[23,20,23,24],[11,21,11,23],[17,21,17,23],[0,50,0,51],[2,27,2,32],[3,27,3,32],[25,22,25,23],[26,22,26,23],[21,8,21,10],[21,11,21,12],[19,8,19,10],[19,11,19,12],[18,8,18,10],[0,5,0,6],[0,24,0,25],[3,21,3,23],[0,31,0,32],[0,9,0,13],[18,11,18,12],[17,8,17,10],[17,11,17,12],[16,8,16,10],[16,11,16,12],[15,8,15,10],[15,11,15,12],[9,11,9,12],[7,8,7,10],[7,11,7,12],[14,11,14,12],[13,8,13,10],[13,11,13,12],[12,8,12,10],[12,11,12,12],[4,27,4,32],[48,24,48,25],[3,1,4,14],[48,50,48,51],[30,10,30,12],[31,10,31,12],[29,22,29,23],[30,22,30,23],[8,21,8,23],[11,8,11,10],[11,11,11,12],[6,8,6,10],[10,8,10,10],[10,11,10,12],[9,8,9,10],[14,8,14,10]]}
["Energie-Check",null,null,null,null,{"$f":"Betriebsübersicht!F1","v":"V 1.0"},null,null,null,"Photovoltaik",null,null,null,null,null," Ergebnisblatt",null,null,null,null,null,null,null,null,null,null,"Energie-Check",null,null,null,null,{"$f":"Betriebsübersicht!F1","v":"V 1.0"},null,null,null,"Photovoltaik",null,null,null,null,null,"Infoblatt",null,null,null,null,null,null,null,null,null,null,"PV-Eigennutzung %",null,null,null,null,null,null,null,null,null,"Verhältnis Erzeugung/Verbrauch"]
[null,null,null,null,null,null,null,null,null,null,null,null,null,null,null,null,null,null,null,null,null,null,null,null,null,null,null,null,null,null,null,null,null,null,null,null,null,null,null,null,null,null,null,null,null,null,null,null,null,null,null,null,null,null,null,null,null,null,10,20,30,40,50,60,70,80,90,100,110,120,130,140,150]
["Berechnung der möglichen Solartromeigennutzung",null,null,null,null,null,null,null,null,null,null,null,null,null,null,null,null,null,null,null,null,null,null,null,null,null,null,"Eingabefelder",null,null,null,null,null,null,"Felder für die Eingabe betrieblicher Daten",null,null,null,null,null,null,null,null,null,null,null,null,null,null,null,null,null,null,"Haushalt",null,null,null,null,88,86,80,72,66,60,54,50,46,42,40,38,36,34,32]
[null,"Aufgrund betriebsindividueller Lastprofile kann die Solarstromeigennutzung nur näherungsweise kalkuliert werden.",null,null,null,null,null,null,null,null,null,null,null,null,null,null,"Abrechnungsjahr",null,null,null,null,{"$f":"Energieeinsatz!AV4","v":2021},null,null,null,null,null,"berechnete Felder",null,null,null,null,null,null,"Felder die vom Programm berechnet werden",null,null,null,null,null,null,null,null,null,null,null,null,null,null,null,null,null,null,"MV FGM",null,null,null,null,78,76,70,62,56,50,46,42,38,36,32,28,28,26,24]
[null,null,null,null,null,null,null,null,null,null,null,null,null,null,null,null,null,null,null,null,null,null,null,null,null,null,null,"Werte",null,null,null,null,null,null,"Werte die aus Eingebefeldern übernommen wurden bzw. ",null,null,null,null,null,null,null,null,null,null,null,null,null,null,null,null,null,null,"MV FGM Eis",null,null,null,null,82,80,74,68,62,58,54,50,46,42,38,34,32,30,28]
[null,null,null,null,null,null,null,null,"Stromverbrauch",null,null,null,null,null,null,null,null,"PV-Anlage Erzeugung",null,null,null,null,null,null,null,null,null,null,null,null,null,null,null,null,null,"-","Felder mit hinterlegten Werten",null,null,null,null,null,null,null,null,null,null,null,null,null,null,null,null,"MV AMS",null,null,null,null,82,80,74,68,60,56,52,48,44,40,36,32,30,28,26]
[null,null,null,null,null,null,null,null,"kWh",null,null,null,null,null,null,null,null,null,null,null,null,null,null,null,null,null,null,null,null,null,null,null,null,null,null,"-","Felder mit hinterlegten Faktoren",null,null,null,null,null,null,null,null,null,null,null,null,null,null,null,null,"MV AMS Eis",null,null,null,null,86,84,78,74,66,64,60,56,52,46,42,38,34,32,30]
[null,"Gesamt",null,null,null,null,null,null,{"$f":"'Abgrenzung BZ'!AI8","v":83100},null,null,1,null,null,null,null,null,"Bitte Anlagenertrag eingeben",null,null,null,null,null,null,null,null,"Begriffsdefinition:",null,null,null,null,null,null,null,null,null,null,null,null,null,null,null,null,null,null,null,null,null,null,null,null,null,null,"Veredelung",null,null,null,null,90,88,82,76,70,66,60,56,50,46,44,40,38,36,34,null,{"$f":"W26*100","v":108.30324909747293}]
[null,null,null,null,null,null,null,null,null,null,null,null,null,null,null,null,null,null,null,null,null,90000,null,null,"kWh",null,null,"Eigenstromnutzung oder auch Eigenstromverbrauch bezeichnen den Anteil der "]
[null,"P/H","Privat / Haushalt",null,null,null,null,null,{"$f":"'Abgrenzung BZ'!AI11","v":3100},null,null,{"$f":"I10/$I$8","v":3.7304452466907341E-2},null,null,null,null,null,null,null,null,null,null,null,null,null,null,null,null,"Erzeugung, der vom Anlagenbetreiber selbst verbraucht wird. Dabei ist es egal, ob ",null,null,null,null,null,null,null,null,null,null,null,null,null,null,null,null,null,null,null,null,null,null,null,"Eigenverbrauchssteigerung mit Batteriespeicher %",null,null,null,null,null,null,null,null,null,"Verhältnis Nutzkapazität/Nennleistung PV"]
[null,"SBZ","Sonstige Betriebszweige",null,null,null,null,null,{"$f":"'Abgrenzung BZ'!AI12","v":0},null,null,0,null,null,null,null,null,null,null,null,null,null,null,null,null,null,null,null,"der Strom direkt oder nach einer Speicherung verbraucht wird. Je höher der ",null,null,null,null,null,null,null,null,null,null,null,null,null,null,null,null,null,null,null,null,null,null,null,null,null,null,null,null,null,10,20,30,40,50,60,70,80,90,100,110,120,130,140,150]
["*)","MV","Milchvieh",null,null,null,null,null,{"$f":"'Abgrenzung BZ'!AI13","v":50000},null,null,0.60168471720818295,null,null,null,null,null,"Ausrichtung:",null,null,null,"West",null,null,null,null,null,null,"Eigenverbrauchsanteil ist, desto weniger Strom wird in das Netz eingespeist.",null,null,null,null,null,null,null,null,null,null,null,null,null,null,null,null,null,null,null,null,null,null,null,null,"Haushalt",null,null,null,null,6,7,9,11,13,16,19,21,23,25,25,26,26,27,27]
[null,"RM","Rindermast",null,null,null,null,null,{"$f":"'Abgrenzung BZ'!AI14","v":3000},null,null,3.6101083032490974E-2,null,null,null,null,null,null,null,null,null,null,null,null,null,null,null,"Selbstversorgungsgrad oder auch Autarkiegrad geben den Anteil des Stromverbrauchs an, ",null,null,null,null,null,null,null,null,null,null,null,null,null,null,null,null,null,null,null,null,null,null,null,null,null,"MV FGM",null,null,null,null,7,8,10,12,14,17,20,23,25,27,29,30,31,32,33]
[null,"FE","Ferkelerzeugung ",null,null,null,null,null,{"$f":"'Abgrenzung BZ'!AI15","v":20000},null,null,0.24067388688327315,null,null,null,null,null,null,null,null,null,null,null,null,null,null,null,null,"der durch selbst erzeugten Strom gedeckt wird. Hierzu trägt entweder der zeitgleiche ",null,null,null,null,null,null,null,null,null,null,null,null,null,null,null,null,null,null,null,null,null,null,null,null,"MV FGM Eis",null,null,null,null,8,9,11,13,15,18,21,24,26,28,30,31,32,33,34]
[null,"FA","Ferkelaufzucht",null,null,null,null,null,{"$f":"'Abgrenzung BZ'!AI16","v":10000},null,null,0.12033694344163658,null,null,null,null,null,"Batteriespeicher:",null,null,null,null,null,null,null,null,null,null,"Direktverbrauch des erzeugten Stroms oder die Entladung eines Batteriespeichers bei. ",null,null,null,null,null,null,null,null,null,null,null,null,null,null,null,null,null,null,null,null,null,null,null,null,"MV AMS",null,null,null,null,8,9,11,13,15,18,21,24,26,28,30,31,32,33,34]
[null,"MS","Schweinemast ",null,null,null,null,null,{"$f":"'Abgrenzung BZ'!AI17","v":5000},null,null,6.0168471720818288E-2,null,null,null,null,null,null,null,null,null,null,null,null,null,null,null,null,"Je höher die Eigenstromdeckung ist, desto weniger Energie wird aus dem Stromnetz",null,null,null,null,null,null,null,null,null,null,null,null,null,null,null,null,null,null,null,null,null,null,null,null,"MV AMS Eis",null,null,null,null,9,10,12,14,16,19,22,25,27,29,31,32,33,34,35]
[null,"MSA","Schweinemast Außenklima",null,null,null,null,null,{"$f":"'Abgrenzung BZ'!AI18","v":2000},null,null,2.4067388688327317E-2,null,null,null,null,null,"Bitte Nutzkapazität eingeben",null,null,null,null,null,null,null,null,null,null,"bezogen.",null,null,null,null,null,null,null,null,null,null,null,null,null,null,null,null,null,null,null,null,null,null,null,null,"Veredelung",null,null,null,null,7,8,10,12,14,17,20,23,25,27,28,29,29,30,30,null,{"$f":"W27*100","v":22.222222222222221}]
[null,"LH","Legehennen",null,null,null,null,null,{"$f":"'Abgrenzung BZ'!AI19","v":2000},null,null,2.4067388688327317E-2,null,null,null,null,null,null,null,null,null,20,null,null,"kWh",null,null,"Leistungsprofile bzw. Lastprofile beschreiben den zeitlichen Verlauf der erzeugten bzw. "]
[null,"GM","Geflügelmast",null,null,null,null,null,{"$f":"'Abgrenzung BZ'!AI20","v":2000},null,null,2.4067388688327317E-2,null,null,null,null,null,null,null,null,null,null,null,null,null,null,null,null,"abgenommenen Leistung während einer bestimmten Zeitperiode.",null,null,null,null,null,null,null,null,null,null,null,null,null,null,null,null,null,null,null,null,null,null,null,"PV-Ausrichtung"]
[null,"G-A","Grünland - Ackerbau",null,null,null,null,null,{"$f":"'Abgrenzung BZ'!AI21","v":0},null,null,0,null,null,null,null,null,null,null,null,null,null,null,null,null,null,null,null,null,null,null,null,null,null,null,null,null,null,null,null,null,null,null,null,null,null,null,null,null,null,null,null,null,"Süd",null,null,null,null,100]
[null,null,null,null,null,null,null,null,null,null,null,null,null,null,null,null,null,null,null,null,null,null,null,null,null,null,null,null,null,null,null,null,null,null,null,null,null,null,null,null,null,null,null,null,null,null,null,null,null,null,null,null,null,"Ost",null,null,null,null,92]
[null,"Verbleiben",null,null,null,null,null,null,{"$f":"I8-I11-I10-I12-I13-I14-I15-I16-I17-I18-I19-I20","v":-14000},null,null,{"$f":"L8-L11-L10-L12-L13-L14-L15-L16-L17-L18-L19-L20","v":-0.16847172081829129},null,null,null,"Zurück zur Abgrenzung BZ",null,null,null,null,null,null,null,null,null,null,null,null,null,null,null,null,null,null,null,null,null,null,null,null,null,null,null,null,null,null,null,null,null,null,null,null,null,"West",null,null,null,null,96]
[null,null,null,null,null,null,null,null,null,null,null,null,null,null,null,null,null,null,null,null,null,null,null,null,null,null,null,null,null,null,null,null,null,null,null,null,null,null,null,null,null,null,null,null,null,null,null,null,null,null,null,null,null,"Ost-West",null,null,null,null,104,null,null,null,null,null,null,null,null,null,null,null,null,null,null,null,{"$f":"IF(V12=\"Süd\",BG20,IF(V12=\"Ost\",BG21,IF(V12=\"West\",BG22,IF(V12=\"Ost-West\",BG23,BG20))))","v":96}]
["*) Bei Milchviehbetrieb bitte Melk- und Kühlsystem auswählen",null,null,null,null,null,null,null,null,null,null,null,null,null,null,null,null,"AMS",null,null,"Direktkühlung"]
[null,null,null,null,null,null,null,null,null,null,null,null,null,null,null,null,null,null,null,null,null,null,null,null,null,null,null,null,null,null,null,null,null,null,null,null,null,null,null,null,null,null,null,null,null,null,null,null,null,null,null,null,"Berechnung Eigenstrom"]
[null,null,null,null,null,null,null,null,null,null,null,null,null,null,null,null,null,null,null,"Verhältnis Stromverbrauch zu Solarstromerzeugung",null,"1 :",{"$f":"V9/I8","v":1.0830324909747293},null,null,null,null,null,null,null,null,null,null,null,null,null,null,null,null,null,null,null,null,null,null,null,null,null,null,null,null,null,null,null,null,null,null,null,null,null,"Strom","96%","98%","PV","PV-E/V","Ausrichtung","PV-E","max.","Batterie-N/N","B-E","max.","PV+B-E","max."]
[null,null,null,null,null,null,null,null,null,null,null,null,null,null,null,null,null,null,null,"Verhältnis Solarstromerzeugung zu Nutzkapazität Batterie",null,"1 :",{"$f":"IF(V9=0,0,V18*1000/V9)","v":0.22222222222222221},null,null,null,null,null,null,null,null,null,null,null,null,null,null,null,null,null,null,null,null,null,null,null,null,null,null,null,null,null,null,"Gesamt",null,null,null,null,{"$f":"I8","v":83100},null,{"$f":"I8","v":83100},null,null,{"$f":"V9","v":90000},null,null,null,null,{"$f":"V18","v":20},null,{"$f":"V18*200","v":4000}]
[null,null,null,null,null,null,null,null,null,null,null,null,null,null,null,null,null,null,null,null,null,null,null,null,null,null,null,null,null,null,null,null,null,null,null,null,null,null,null,null,null,null,null,null,null,null,null,null,null,null,null,null,null,"Haushalt",null,null,null,null,{"$f":"L10+L11","v":3.7304452466907341E-2},null,{"$f":"BI27*BG28/BG34","v":2653.0381050463438},{"$f":"BI28*0.96","v":2546.91658084449},{"$f":"BI28*0.98","v":2599.9773429454167},{"$f":"$BL$27*BG28/$BG$34","v":2873.3264675592172},{"$f":"IF($BG$2>$BW$8,BG3,IF($BH$2>$BW$8,BH3,IF($BI$2>$BW$8,BI3,IF($BJ$2>$BW$8,BJ3,IF($BK$2>$BW$8,BK3,IF($BL$2>$BW$8,BL3,IF($BM$2>$BW$8,BM3,IF($BN$2>$BW$8,BN3,IF($BO$2>$BW$8,BO3,IF($BP$2>$BW$8,BP3,IF($BQ$2>$BW$8,BQ3,IF($BR$2>$BW$8,BR3,IF($BS$2>$BW$8,BS3,IF($BT$2>$BW$8,BT3,IF($BU$2>$BW$8,BU3,BU3)))))))))))))))","v":40},{"$f":"IF(V12=\"Süd\",BG20,IF(V12=\"Ost\",BG21,IF(V12=\"West\",BG22,IF(V12=\"Ost-West\",BG23,100))))","v":96},{"$f":"BL28*(BM28%*BN28%)","v":1103.3573635427394},{"$f":"IF(BO28>BJ28,BJ28,BO28)","v":1103.3573635427394},{"$f":"IF($V$18=0,0,IF($BG$11>$BW$17,BG12,IF($BH$11>$BW$17,BH12,IF($BI$11>$BW$17,BI12,IF($BJ$11>$BW$17,BJ12,IF($BK$11>$BW$17,BK12,IF($BL$11>$BW$17,BL12,IF($BM$11>$BW$17,BM12,IF($BN$11>$BW$17,BN12,IF($BO$11>$BW$17,BO12,IF($BP$11>$BW$17,BP12,IF($BQ$11>$BW$17,BQ12,IF($BR$11>$BW$17,BR12,IF($BS$11>$BW$17,BS12,IF($BT$11>$BW$17,BT12,IF($BU$11>$BW$17,BU12,BU12))))))))))))))))","v":9},{"$f":"BL28*BQ28%","v":258.59938208032952}]
["Strombilanz",null,null,null,null,null,null,null,null,null,null,null,null,null,null,null,null,null,null,null,null,null,null,null,null,null,null,null,null,null,null,null,null,null,null,null,null,null,null,null,null,null,null,null,null,null,null,null,null,null,null,null,null,"MV FGM",null,null,null,null,{"$f":"IF(AND(R24 =\"FGM\",U24=\"Direktkühlung\"),L12,0)","v":0},null,{"$f":"BG29*BI27/BG34","v":0},{"$f":"BI29*0.96","v":0},{"$f":"BI29*0.98","v":0},0,32,{"$f":"BN28","v":96},0,0,10,{"$f":"BL29*BQ29%","v":0}]
[null,null,null,null,null,null,null,null,null,"Eigenverbrauch Solarstrom ",{"$f":"BU34","v":38346.446961894952},null,null,"kWh/a",null,null,null,null,null,null,null,"Eigenverbrauchsanteil ",{"$f":"K30/V9%","v":42.607163290994393},null,"%",null,null,null,null,null,null,null,null,null,null,null,null,null,null,null,null,null,null,null,null,null,null,null,null,null,null,null,null,"MV FGM Eis",null,null,null,null,{"$f":"IF(AND(R24 =\"FGM\",U24=\"Eiswasserkühlung\"),L12,0)","v":0},null,{"$f":"BG30*BI27/BG34","v":0},0,0,0,38,{"$f":"BN28","v":96},0,0,11,{"$f":"BL30*BQ30%","v":0}]
[null,null,null,null,null,null,null,null,null,"noch benötigter Netzbezug ",{"$f":"I8-K30","v":44753.553038105048},null,null,"kWh/a",null,null,null,null,null,null,null,"Selbstversorgungsgrad ",{"$f":"K30/I8%","v":46.144942192412699},null,"%",null,null,null,null,null,null,null,null,null,null,null,null,null,null,null,null,null,null,null,null,null,null,null,null,null,null,null,null,"MV AMS",null,null,null,null,{"$f":"IF(AND(R24 =\"AMS\",U24=\"Direktkühlung\"),L12,0)","v":0.60168471720818295},null,{"$f":"BG31*BI27/BG34","v":42790.937178166838},41079.299691040163,41935.118434603501,46343.975283213178,36,{"$f":"BN28","v":96},16016.477857878474,16016.477857878474,11,{"$f":"BL31*BQ31%","v":5097.83728115345}]
[null,null,null,null,null,null,null,null,null,"PV Überschuß = Netzeinspeisung ",{"$f":"V9-K30","v":51653.553038105048},null,null,"kWh/a",null,null,null,null,null,null,null,null,null,null,null,null,null,null,null,null,null,null,null,null,null,null,null,null,null,null,null,null,null,null,null,null,null,null,null,null,null,null,null,"MV AMS Eis",null,null,null,null,{"$f":"IF(AND(R24 =\"AMS\",U24=\"Eiswasserkühlung\"),L12,0)","v":0},null,{"$f":"BG32*BI27/BG34","v":0},0,0,0,42,{"$f":"BN28","v":96},0,0,12,{"$f":"BL32*BQ32%","v":0}]
[null,null,null,null,null,null,null,null,null,null,null,null,null,null,null,null,null,null,null,null,null,null,null,null,null,null,null,null,null,null,null,null,null,null,null,null,null,null,null,null,null,null,null,null,null,null,null,null,null,null,null,null,null,"Veredelung",null,null,null,null,{"$f":"L13+L14+L15+L16+L17+L18+L19+L20","v":0.52948255114320097},null,{"$f":"BG33*BI27/BG34","v":37656.024716786815},36149.783728115341,36902.904222451078,40782.698249227593,44,{"$f":"BN28","v":96},17226.611740473734,17226.611740473734,10,{"$f":"BL33*BQ33%","v":4078.2698249227597}]
[null,null,null,null,null,null,null,null,null,null,null,null,null,null,null,null,null,null,null,null,null,null,null,null,null,null,null,null,null,null,null,null,null,null,null,null,null,null,null,null,null,null,null,null,null,null,null,null,null,null,null,null,null,null,null,null,null,null,{"$f":"SUM(BG28:BG33)","v":1.1684717208182913},null,{"$f":"SUM(BI28:BI33)","v":83100},{"$f":"SUM(BJ28:BJ33)","v":79776},{"$f":"SUM(BK28:BK33)","v":81438},{"$f":"SUM(BL28:BL33)","v":89999.999999999985},null,null,{"$f":"SUM(BO28:BO33)","v":34346.446961894952},{"$f":"SUM(BP28:BP33)","v":34346.446961894952},null,{"$f":"SUM(BR28:BR33)","v":9434.7064881565384},{"$f":"IF(BR34>BS27,BS27,BR34)","v":4000},{"$f":"BS34+BP34","v":38346.446961894952},{"$f":"IF(BT34>BK34,BK34,BT34)","v":38346.446961894952}]
[]
[]
[]
[null,null,null,null,null,null,null,null,null,null,null,null,null,null,null,null,null,null,null,null,null,null,null,null,null,null,null,null,null,null,null,null,null,null,null,null,null,null,null,null,null,null,null,null,null,null,null,null,null,null,null,null,null,null,null,null,null,null,0.60168471720818295,null,42790.937178166838,41079.299691040163,41935.118434603501,41194.644696189498,46,100,18949.536560247168,18949.536560247168,33,13594.232749742536]
[]
[]
[null,null,null,null,null,null,null,null,null,null,null,null,null,null,null,null,null,null,null,null,null,null,null,null,null,null,null,null,null,null,null,null,null,null,null,null,null,null,null,null,null,null,null,null,null,null,null,null,null,null,null,null,null,"FGM",null,null,"Direktkühlung"]
[null,null,null,null,null,null,null,null,null,null,null,null,null,null,null,null,null,null,null,null,null,null,null,null,null,null,null,null,null,null,null,null,null,null,null,null,null,null,null,null,null,null,null,null,null,null,null,null,null,null,null,null,null,"AMS",null,null,"Eiswasserkühlung"]
[]
[null,null,null,null,null,null,null,null,null,null,null,null,null,null,null,null,null,null,null,null,null,null,null,null,null,null,null,null,null,null,null,null,null,null,null,null,null,null,null,null,null,null,null,null,null,null,null,null,null,null,null,null,null,null,null,null,null,null,null,"Stromverbrauch Betrieb",{"$f":"I8","v":83100},null,null,null,null,null,null,null,null,null,null,"Eigen-verbrauchs-anteil ",{"$f":"W30","v":42.607163290994393}]
[null,null,null,null,null,null,null,null,null,null,null,null,null,null,null,null,null,null,null,null,null,null,null,null,null,null,null,null,null,null,null,null,null,null,null,null,null,null,null,null,null,null,null,null,null,null,null,null,null,null,null,null,null,null,null,null,null,null,null,"Solarstromerzeugung",{"$f":"V9","v":90000},null,null,null,null,null,null,null,null,null,null,"Solarstromerzeugung",{"$f":"100-W30","v":57.392836709005607}]
[null,null,null,null,null,null,null,null,null,null,null,null,null,null,null,null,null,null,null,null,null,null,null,null,null,null,null,null,null,null,null,null,null,null,null,null,null,null,null,null,null,null,null,null,null,null,null,null,null,null,null,null,null,null,null,null,null,null,null,"Eigenverbrauch",{"$f":"K30","v":38346.446961894952},null,null,null,null,null,null,null,null,null,null,"Selbst-versorgungs-grad",{"$f":"W31","v":46.144942192412699}]
[null,null,null,null,null,null,null,null,null,null,null,null,null,null,null,null,null,null,null,null,null,null,null,null,null,null,null,null,null,null,null,null,null,null,null,null,null,null,null,null,null,null,null,null,null,null,null,null,null,null,null,null,null,null,null,null,null,null,null,"Netzbezug",{"$f":"K31","v":44753.553038105048},null,null,null,null,null,null,null,null,null,null,"Stromverbrauch Betrieb",{"$f":"100-W31","v":53.855057807587301}]
[null,null,null,null,null,null,null,null,null,null,null,null,null,null,null,null,null,null,null,null,null,null,null,null,null,null,null,null,null,null,null,null,null,null,null,null,null,null,null,null,null,null,null,null,null,null,null,null,null,null,null,null,null,null,null,null,null,null,null,"Netzeinspeisung",{"$f":"K32","v":51653.553038105048}]
[null,null,null,null,null,null,null,null,null,null,null,null,null,null,null,null,null,null,null,null,null,null,null,null,null,null,null,null,null,null,null,null,null,null,null,null,null,null,null,null,null,null,null,null,null,null,null,null,null,null,"PV.2"]

{"sheet":"CO2","index":14,"n_rows":49,"n_cols":100,"rows_kept":49,"cut":false,"hidden":false,"merged":[[0,61,0,65],[11,62,11,64],[11,67,11,69],[11,72,11,74],[0,57,0,58],[6,62,6,64],[6,67,6,69],[6,72,6,74],[7,62,7,64],[7,67,7,69],[7,72,7,74],[8,62,8,64],[8,67,8,69],[8,72,8,74],[48,50,48,51],[11,46,11,48],[12,46,12,48],[14,46,14,48],[16,46,16,48],[17,46,17,48],[18,46,18,48],[20,46,20,48],[19,46,19,48],[21,46,21,48],[22,46,22,48],[23,46,23,48],[24,46,24,48],[25,46,25,48],[26,46,26,48],[27,46,27,48],[28,46,28,48],[29,46,29,48],[30,46,30,48],[31,46,31,48],[15,89,15,90],[16,89,16,90],[17,89,17,90],[18,89,18,90],[20,89,20,90],[21,89,21,90],[0,31,0,32],[0,50,0,51],[2,27,2,32],[3,27,3,32],[4,27,4,32],[12,62,12,64],[12,67,12,69],[12,72,12,74],[13,62,13,64],[13,67,13,69],[13,72,13,74],[9,62,9,64],[9,67,9,69],[9,72,9,74],[10,62,10,64],[10,67,10,69],[10,72,10,74],[0,35,0,39],[24,8,24,10],[24,14,24,16],[24,20,24,22],[24,11,24,12],[23,89,23,90],[24,89,24,90],[19,89,19,90],[11,89,11,90],[24,17,24,18],[24,23,24,24],[22,20,22,24],[17,14,17,16],[17,17,17,18],[17,20,17,22],[17,23,17,24],[16,8,16,10],[16,11,16,12],[16,14,16,16],[16,17,16,18],[16,20,16,22],[16,23,16,24],[12,89,12,90],[13,89,13,90],[14,89,14,90],[48,24,48,25],[3,1,4,14],[25,8,25,10],[25,11,25,12],[25,14,25,16],[25,17,25,18],[25,20,25,22],[25,23,25,24],[26,8,26,10],[19,8,19,10],[19,11,19,12],[19,14,19,16],[19,17,19,18],[19,20,19,22],[19,23,19,24],[18,8,18,10],[18,11,18,12],[18,14,18,16],[18,17,18,18],[18,20,18,22],[18,23,18,24],[17,8,17,10],[17,11,17,12],[15,8,15,10],[15,11,15,12],[15,14,15,16],[15,17,15,18],[15,20,15,22],[15,23,15,24],[14,8,14,10],[14,11,14,12],[14,14,14,16],[14,17,14,18],[14,20,14,22],[14,23,14,24],[13,8,13,10],[13,11,13,12],[13,14,13,16],[13,17,13,18],[13,20,13,22],[13,23,13,24],[12,8,12,10],[12,11,12,12],[12,14,12,16],[12,17,12,18],[12,20,12,22],[12,23,12,24],[11,8,11,10],[11,11,11,12],[11,14,11,16],[11,17,11,18],[11,20,11,22],[11,23,11,24],[10,8,10,10],[10,11,10,12],[10,14,10,16],[10,17,10,18],[10,20,10,22],[10,23,10,24],[9,8,9,10],[9,11,9,12],[9,14,9,16],[9,17,9,18],[9,20,9,22],[9,23,9,24],[7,8,7,10],[7,11,7,12],[7,14,7,16],[7,17,7,18],[7,20,7,22],[7,23,7,24],[5,8,5,10],[5,14,5,16],[5,20,5,22],[6,8,6,10],[6,14,6,16],[6,20,6,22],[0,5,0,6],[0,24,0,25],[8,8,8,24],[0,9,0,13],[0,102,0,103],[3,21,3,23],[30,20,30,22],[0,76,0,77],[22,89,22,90],[46,73,46,74],[23,62,23,63],[23,65,23,66],[23,69,23,70],[23,73,23,74],[39,65,39,66],[39,73,39,74],[24,53,24,57],[24,59,24,60],[24,62,24,63],[24,65,24,66],[24,69,24,70],[24,73,24,74],[27,53,27,57],[26,53,26,57],[25,59,25,60],[26,59,26,60],[25,62,25,63],[26,62,26,63],[48,76,48,77],[28,65,28,66],[28,73,28,74],[43,65,43,66],[43,69,43,70],[43,73,43,74],[33,53,33,57],[33,59,33,60],[33,62,33,63],[33,65,33,66],[33,69,33,70],[33,73,33,74],[36,53,36,57],[36,59,36,60],[36,62,36,63],[36,65,36,66],[36,69,36,70],[36,73,36,74],[37,53,37,57],[37,65,37,66],[37,69,37,70],[37,73,37,74],[44,65,44,66],[44,69,44,70],[20,10,20,12],[29,2,29,4],[20,16,20,18],[20,22,20,24],[29,20,29,22],[34,53,34,57],[34,65,34,66],[34,69,34,70],[34,73,34,74],[27,59,27,60],[27,62,27,63],[27,65,27,66],[27,69,27,70],[27,73,27,74],[22,53,22,57],[22,59,22,60],[22,62,22,63],[22,65,22,66],[22,69,22,70],[22,73,22,74],[23,53,23,57],[23,59,23,60],[25,53,25,57],[26,11,26,12],[44,73,44,74],[43,53,43,63],[44,53,44,63],[27,8,27,10],[27,11,27,12],[25,65,25,66],[26,65,26,66],[25,69,25,70],[26,69,26,70],[25,73,25,74],[26,73,26,74],[26,14,26,16],[26,17,26,18],[26,20,26,22],[26,23,26,24]]}
["Energie-Check",null,null,null,null,{"$f":"Betriebsübersicht!F1","v":"V 1.0"},null,null,null,"CO2-Bilanz",null,null,null,null,null,null,null,null,null,null,null,null,null,null,null,null,"Energie-Check",null,null,null,null,{"$f":"Betriebsübersicht!F1","v":"V 1.0"},null,null,null,"CO2-Bilanz",null,null,null,null,null,"Infoblatt 1",null,null,null,null,null,null,null,null,null,null,"Energie-Check",null,null,null,null,{"$f":"Betriebsübersicht!AF1","v":0},null,null,null,"CO2-Bilanz",null,null,null,null,null,"Infoblatt 2"]
[]
["Berechnung der möglichen Einsparung von CO2-Emissionen",null,null,null,null,null,null,null,null,null,null,null,null,null,null,null,null,null,null,null,null,null,null,null,null,null,null,"Eingabefelder",null,null,null,null,null,null,"Felder für die Eingabe betrieblicher Daten",null,null,null,null,null,null,null,null,null,null,null,null,null,null,null,null,null,"Berechnungshilfen"]
[null,"Die CO2-Berechnung bezieht sich ausschließlich auf den Energieträgereinsatz am Betrieb.",null,null,null,null,null,null,null,null,null,null,null,null,null,null,"Abrechnungsjahr",null,null,null,null,{"$f":"Energieeinsatz!AV4","v":2021},null,null,null,null,null,"berechnete Felder",null,null,null,null,null,null,"Felder die vom Programm berechnet werden"]
[null,null,null,null,null,null,null,null,null,null,null,null,null,null,null,null,null,null,null,null,null,null,null,null,null,null,null,"Werte",null,null,null,null,null,null,"Werte die aus Eingebefeldern übernommen wurden bzw. ",null,null,null,null,null,null,null,null,null,null,null,null,null,null,null,null,null,"Umrechnungsfaktoren für den Wärme- bzw. Heizenergieeinsatz"]
[null,null,null,null,null,null,null,null,"Strom",null,null,null,null,null,"Kraftstoff",null,null,null,null,null,"Wärme",null,null,null,null,null,null,null,null,null,null,null,null,null,null,"-","Felder mit hinterlegten Werten",null,null,null,null,null,null,null,null,null,null,null,null,null,null,null,null,null,null,null,null,null,null,null,null,null,null,null,null,null,null,"Heizwert"]
[null,null,null,null,null,null,null,null,"kWh",null,null,null,null,null,"Liter",null,null,null,null,null,"kWh",null,null,null,null,null,null,null,null,null,null,null,null,null,null,"-","Felder mit hinterlegten Faktoren",null,null,null,null,null,null,null,null,null,null,null,null,null,null,null,null,"Heizöl",null,null,null,null,null,null,null,null,8000,null,null,"l",null,9.8000000000000007,null,null,null,null,{"$f":"BK7*BP7","v":78400},null,null,"kWh"]
[null,"Gesamt",null,null,null,null,null,null,{"$f":"'Abgrenzung BZ'!AI8","v":83100},null,null,1,null,null,{"$f":"'Abgrenzung BZ'!AO8","v":24000},null,null,1,null,null,{"$f":"'Abgrenzung BZ'!AV8","v":184000},null,null,1,null,null,null,null,null,null,null,null,null,null,null,null,null,null,null,null,null,null,null,null,null,null,null,null,null,null,null,null,null,"Erdgas",null,null,null,null,null,null,null,null,8000,null,null,"m³",null,10.4,null,null,null,null,{"$f":"BK8*BP8","v":83200},null,null,"kWh"]
[null,null,null,null,null,null,null,null,"Bitte Einsparpotenziale eintragen",null,null,null,null,null,null,null,null,null,null,null,null,null,null,null,null,null,"Spezifische CO2-Emissionsfaktoren nach Energieträgern",null,null,null,null,null,null,null,null,null,null,null,null,null,null,null,"(Stand 15.11.2021)",null,null,null,null,null,null,null,null,null,null,"Flüssiggas",null,null,null,null,null,null,null,null,1200,null,null,"l",null,6.57,null,null,null,null,7884,null,null,"kWh"]
[null,"P/H","Privat / Haushalt",null,null,null,null,null,{"$f":"'Abgrenzung BZ'!AI11","v":3100},null,null,300,null,null,{"$f":"'Abgrenzung BZ'!AO11","v":1800},null,null,200,null,null,{"$f":"'Abgrenzung BZ'!AV11","v":12000},null,null,2000,null,null,null,null,null,null,null,null,null,null,null,null,null,null,null,null,null,null,null,null,null,null,null,null,null,null,null,null,null,"Scheitholz - Hartholz",null,null,null,null,null,null,null,null,14,null,null,"rm",null,1800,null,null,null,null,25200,null,null,"kWh"]
[null,"SBZ","Sonstige Betriebszweige",null,null,null,null,null,{"$f":"'Abgrenzung BZ'!AI12","v":0},null,null,0,null,null,{"$f":"'Abgrenzung BZ'!AO12","v":200},null,null,0,null,null,{"$f":"'Abgrenzung BZ'!AV12","v":3800},null,null,0,null,null,null,"Energieträger",null,null,null,null,null,null,null,null,null,null,null,null,null,null,"Einheit",null,null,null,"CO2-Faktor",null,null,null,null,null,null,"Scheitholz - Weichholz",null,null,null,null,null,null,null,null,12,null,null,"rm",null,1400,null,null,null,null,16800,null,null,"kWh",null,null,null,"Energieträger",null,null,null,null,null,"Einheit",null,null,"CO2-Faktor"]
[null,"MV","Milchvieh",null,null,null,null,null,{"$f":"'Abgrenzung BZ'!AI13","v":50000},null,null,9000,null,null,{"$f":"'Abgrenzung BZ'!AO13","v":4200},null,null,0,null,null,{"$f":"'Abgrenzung BZ'!AV13","v":0},null,null,0,null,null,null,"Strom (Strommix Deutschland 2021)",null,null,null,null,null,null,null,null,null,null,null,null,null,null,"kg CO2/kWh ",null,null,null,0.42,null,null,null,null,null,null,"Hackschnitzel - Hartholz",null,null,null,null,null,null,null,null,14,null,null,"srm",null,945,null,null,null,null,13230,null,null,"kWh",null,null,null,"Strom",null,null,null,null,null,"kg CO2/kWh ",null,null,null,0.42]
[null,"RM","Rindermast",null,null,null,null,null,{"$f":"'Abgrenzung BZ'!AI14","v":3000},null,null,100,null,null,{"$f":"'Abgrenzung BZ'!AO14","v":3000},null,null,0,null,null,{"$f":"'Abgrenzung BZ'!AV14","v":0},null,null,0,null,null,null,"Strom (bei Energieeffizienzmaßnahmen",null,null,null,null,null,null,null,null,null,null,null,null,null,null,"kg CO2/kWh ",null,null,null,0.73199999999999998,null,null,null,null,null,null,"Hackschnitzel - Weichholz",null,null,null,null,null,null,null,null,12,null,null,"srm",null,720,null,null,null,null,8640,null,null,"kWh",null,null,null,"Strom PV",null,null,null,null,null,"kg CO2/kWh ",null,null,null,0.252]
[null,"FE","Ferkelerzeugung ",null,null,null,null,null,{"$f":"'Abgrenzung BZ'!AI15","v":20000},null,null,2000,null,null,{"$f":"'Abgrenzung BZ'!AO15","v":0},null,null,0,null,null,{"$f":"'Abgrenzung BZ'!AV15","v":30000},null,null,6000,null,null,null,null,"und erneuerbaren Erzeugungsanlagen) ",null,null,null,null,null,null,null,null,null,null,null,null,null,null,null,null,null,null,null,null,null,null,null,null,"Holzpellets",null,null,null,null,null,null,null,null,8.4,null,null,"t",null,4300,null,null,null,null,36120,null,null,"kWh",null,null,null,"Wärmepumpe",null,null,null,null,null,"kg CO2/kWh ",null,null,null,0.22]
[null,"FA","Ferkelaufzucht",null,null,null,null,null,{"$f":"'Abgrenzung BZ'!AI16","v":10000},null,null,1000,null,null,{"$f":"'Abgrenzung BZ'!AO16","v":0},null,null,0,null,null,{"$f":"'Abgrenzung BZ'!AV16","v":40000},null,null,6000,null,null,null,"Strom (bei einem Wechsel des",null,null,null,null,null,null,null,null,null,null,null,null,null,null,"kg CO2/kWh ",null,null,null,0.36599999999999999,null,null,null,null,null,null,null,null,null,null,null,null,null,null,null,null,null,null,null,null,null,null,null,null,null,null,null,null,null,null,null,null,"Wärmepumpe PV",null,null,null,null,null,"kg CO2/kWh ",null,null,null,0.13200000000000001]
[null,"MS","Schweinemast ",null,null,null,null,null,{"$f":"'Abgrenzung BZ'!AI17","v":5000},null,null,0,null,null,{"$f":"'Abgrenzung BZ'!AO17","v":0},null,null,0,null,null,{"$f":"'Abgrenzung BZ'!AV17","v":6000},null,null,0,null,null,null,null,"Energieträgers z.B. von Diesel zu Strom) ",null,null,null,null,null,null,null,null,null,null,null,null,null,null,null,null,null,null,null,null,null,null,null,null,null,null,null,null,null,null,null,null,null,null,null,null,null,null,null,null,null,null,null,null,null,null,null,null,null,null,"Nah-/Fernwärme ",null,null,null,null,null,"kg CO2/kWh ",null,null,null,0.28000000000000003]
[null,"MSA","Schweinemast Außenklima",null,null,null,null,null,{"$f":"'Abgrenzung BZ'!AI18","v":2000},null,null,0,null,null,{"$f":"'Abgrenzung BZ'!AO18","v":1200},null,null,0,null,null,{"$f":"'Abgrenzung BZ'!AV18","v":3000},null,null,0,null,null,null,"Nah-/Fernwärme ",null,null,null,null,null,null,null,null,null,null,null,null,null,null,"kg CO2/kWh ",null,null,null,0.28000000000000003,null,null,null,null,null,"Berechnung der Klimawirksamkeit:",null,null,null,null,null,null,null,null,null,null,"CO2 - Einsparung pro Jahr",null,null,null,null,null,null,null,null,null,null,null,null,null,null,null,"Heizöl",null,null,null,null,null,"kg CO2/kWh ",null,null,null,0.26600000000000001]
[null,"LH","Legehennen",null,null,null,null,null,{"$f":"'Abgrenzung BZ'!AI19","v":2000},null,null,0,null,null,{"$f":"'Abgrenzung BZ'!AO19","v":200},null,null,0,null,null,{"$f":"'Abgrenzung BZ'!AV19","v":0},null,null,0,null,null,null,"Heizöl leicht ",null,null,null,null,null,null,null,null,null,null,null,null,null,null,"kg CO2/kWh ",null,null,null,0.26600000000000001,null,null,null,null,null,null,null,null,null,null,null,null,null,null,null,null,null,null,null,null,null,null,null,null,null,null,null,null,null,null,null,null,"Erdgas",null,null,null,null,null,"kg CO2/kWh ",null,null,null,0.20100000000000001]
[null,"GM","Geflügelmast",null,null,null,null,null,{"$f":"'Abgrenzung BZ'!AI20","v":2000},null,null,0,null,null,{"$f":"'Abgrenzung BZ'!AO20","v":0},null,null,0,null,null,{"$f":"'Abgrenzung BZ'!AV20","v":12000},null,null,0,null,null,null,"Heizöl schwer ",null,null,null,null,null,null,null,null,null,null,null,null,null,null,"kg CO2/kWh ",null,null,null,0.28799999999999998,null,null,null,null,null,"Energieeinsparung",null,null,null,null,null,null,null,null,null,null,null,null,null,null,null,null,null,null,null,null,null,null,null,null,null,null,"Flüssiggas",null,null,null,null,null,"kg CO2/kWh ",null,null,null,0.23899999999999999]
[null,"G-A","Grünland - Ackerbau",null,null,null,null,null,{"$f":"'Abgrenzung BZ'!AI21","v":0},null,null,0,null,null,{"$f":"'Abgrenzung BZ'!AO21","v":15000},null,null,1800,null,null,{"$f":"'Abgrenzung BZ'!AV21","v":0},null,null,0,null,null,null,"Erdgas ",null,null,null,null,null,null,null,null,null,null,null,null,null,null,"kg CO2/kWh ",null,null,null,0.20100000000000001,null,null,null,null,null,null,null,null,null,null,null,null,"Verbrauchswert",null,null,null,null,null,null,null,null,null,null,null,null,null,null,null,null,null,null,null,"Gas+Solarthermie",null,null,null,null,null,"kg CO2/kWh ",null,null,null,0.124]
[null,"Energieeinsparung",null,null,null,null,null,null,null,"kWh ",{"$f":"L10+L11+L12+L13+L14+L15+L16+L17+L18+L19+L20","v":12400},null,null,null,null,"Liter ",{"$f":"R10+R11+R12+R13+R14+R15+R16+R17+R18+R19+R20","v":2000},null,null,null,null,"kWh th. ",{"$f":"X10+X11+X12+X13+X14+X15+X16+X17+X18+X19+X20","v":14000},null,null,null,null,"Flüssiggas ",null,null,null,null,null,null,null,null,null,null,null,null,null,null,"kg CO2/kWh ",null,null,null,0.23899999999999999,null,null,null,null,null,null,"Verbraucher",null,null,null,null,null,"IST",null,null,"SOLL",null,null,"Einsparung",null,null,null,"CO2-Faktor",null,null,null,"Einsparung",null,null,null,null,null,"Scheitholz",null,null,null,null,null,"kg CO2/kWh ",null,null,null,2.5999999999999999E-2]
[null,null,null,null,null,null,null,null,null,null,null,null,null,null,null,null,null,null,null,null,null,null,null,null,null,null,null,"Steinkohle ",null,null,null,null,null,null,null,null,null,null,null,null,null,null,"kg CO2/kWh ",null,null,null,0.33500000000000002,null,null,null,null,null,null,null,null,null,null,null,null,"kWh",null,null,"kWh",null,null,"kWh/a",null,null,null,"kg CO2/kWh ",null,null,null,"t CO2/a",null,null,null,null,null,"Hackschnitzel",null,null,null,null,null,"kg CO2/kWh ",null,null,null,2.7E-2]
[null,null,null,null,null,null,null,null,null,null,null,null,null,null,null,null,null,null,null,"Wärme: Bitte Energieträger auswählen","Scheitholz",null,null,null,null,null,null,"Braunkohle ",null,null,null,null,null,null,null,null,null,null,null,null,null,null,"kg CO2/kWh ",null,null,null,0.38300000000000001,null,null,null,null,null,null,"HDR",null,null,null,null,null,1700,null,null,800,null,null,{"$f":"BH23-BK23","v":900},null,null,null,0.73199999999999998,null,null,null,{"$f":"BN23*BR23/1000","v":0.65879999999999994},null,null,null,null,null,"Pellets",null,null,null,null,null,"kg CO2/kWh ",null,null,null,3.5999999999999997E-2]
[null,null,null,null,null,null,null,null,null,null,null,null,null,null,null,null,null,null,null,null,null,null,null,null,null,null,null,"Rohbenzin ",null,null,null,null,null,null,null,null,null,null,null,null,null,null,"kg CO2/kWh ",null,null,null,0.26400000000000001,null,null,null,null,null,null,"Schrotmühle",null,null,null,null,null,2400,null,null,2000,null,null,{"$f":"BH24-BK24","v":400},null,null,null,0.73199999999999998,null,null,null,{"$f":"BN24*BR24/1000","v":0.2928},null,null,null,null,null,"Biogas",null,null,null,null,null,"kg CO2/kWh ",null,null,null,0.152]
[null,null,null,null,null,null,null,null,"kg CO2",null,null,0.73199999999999998,null,null,"kg CO2",null,null,0.26600000000000001,null,null,"kg CO2",null,null,{"$f":"IF(U23=\"Strom\",CL12,IF(U23=\"Strom PV\",CL13,IF(U23=\"Wärmepumpe\",CL14,IF(U23=\"Wärmepumpe PV\",CL15,IF(U23=\"Nah-/Fernwärme\",CL16,IF(U23=\"Heizöl\",CL17,IF(U23=\"Erdgas\",CL18,IF(U23=\"Flüssiggas\",CL19,IF(U23=\"Gas+Solarthermie\",CL20,IF(U23=\"Scheitholz\",CL21,IF(U23=\"Hackschnitzel\",CL22,IF(U23=\"Pellets\",CL23,IF(U23=\"Biogas\",CL24,IF(U23=\"Pflanzenöl\",CL25,0.28))))))))))))))","v":2.5999999999999999E-2},null,null,null,"Diesel ",null,null,null,null,null,null,null,null,null,null,null,null,null,null,"kg CO2/kWh ",null,null,null,0.26600000000000001,null,null,null,null,null,null,"Lechtstoff - LED",null,null,null,null,null,4600,null,null,1200,null,null,{"$f":"BH25-BK25","v":3400},null,null,null,0.73199999999999998,null,null,null,2.4887999999999999,null,null,null,null,null,"Pflanzenöl",null,null,null,null,null,"kg CO2/kWh ",null,null,null,0.114]
[null,"CO2-Emissionen",null,null,null,null,null,null,{"$f":"I8*L25","v":60829.2},null,null,1,null,null,{"$f":"O8*R25","v":6384},null,null,1,null,null,{"$f":"U8*X25","v":4784},null,null,1,null,null,null,"Biomasse Holz ",null,null,null,null,null,null,null,null,null,null,null,null,null,null,"kg CO2/kWh ",null,null,null,2.7E-2,null,null,null,null,null,null,"Vakuump. Frequ.",null,null,null,null,null,9600,null,null,5760,null,null,{"$f":"BH26-BK26","v":3840},null,null,null,0.73199999999999998,null,null,null,2.81088]
[null,"CO2-Einsparpotenzial",null,null,null,null,null,null,{"$f":"K21*L25","v":9076.7999999999993},null,null,{"$f":"I27/I26","v":0.14921780986762936},null,null,{"$f":"Q21*R25","v":532},null,null,{"$f":"O27/O26","v":8.3333333333333329E-2},null,null,{"$f":"W21*X25","v":364},null,null,{"$f":"U27/U26","v":7.6086956521739135E-2},null,null,null,"Pellets ",null,null,null,null,null,null,null,null,null,null,null,null,null,null,"kg CO2/kWh ",null,null,null,3.5999999999999997E-2,null,null,null,null,null,null,null,null,null,null,null,null,null,null,null,null,null,null,0,null,null,null,null,null,null,null,0]
["*)","Solarstromeigennutzung",null,null,null,null,null,null,{"$f":"C30*L25","v":28069.599176107105},null,null,{"$f":"I28/I26","v":0.46144942192412702},null,null,null,null,null,null,null,null,null,null,null,null,null,null,null,"Biomethan ",null,null,null,null,null,null,null,null,null,null,null,null,null,null,"kg CO2/kWh ",null,null,null,3.218E-2,null,null,null,null,null,null,null,null,null,null,null,null,null,null,null,null,null,null,0,null,null,null,null,null,null,null,0]
[null,null,null,null,null,null,null,null,null,null,null,null,null,null,null,null,null,null,null,null,null,null,null,null,null,null,null,"Biogas ",null,null,null,null,null,null,null,null,null,null,null,null,null,null,"kg CO2/kWh ",null,null,null,0.152,null,null,null,null,null,null,null,null,null,null,null,null,null,null,null,null,null,null,{"$f":"SUM(BN23:BO28)","v":8540},null,"kWh/a",null,null,null,null,null,{"$f":"SUM(BV23:BW28)","v":6.2512799999999995},null,"t CO2/a"]
[null,"*)",{"$f":"PV!K30","v":38346.446961894952},null,null,"kWh ",null,null,null,null,null,null,null,null,null,null,null,null,null,"CO2-Eimissionen, gesamt ",{"$f":"(I26+O26+U26)/1000","v":71.997199999999992},null,null," t CO2",null,null,null,"Bioethanol ",null,null,null,null,null,null,null,null,null,null,null,null,null,null,"kg CO2/kWh ",null,null,null,2.6780000000000002E-2]
[null,null,null,{"$f":"D19","v":0},0,0,0,null,null,null,null,null,null,null,null,null,null,null,null,"CO2-Einsparpotenzial, gesamt ",{"$f":"(I27+I28+O27+U27)/1000","v":38.042399176107111},null,null," t CO2",null,null,null,"Pflanzenöl ",null,null,null,null,null,null,null,null,null,null,null,null,null,null,"kg CO2/kWh ",null,null,null,0.11376,null,null,null,null,null,"Elektrifizierung - Energieträgerwechsel"]
[null,null,null,{"$f":"D18","v":0},0,0,0,null,null,null,null,null,null,null,null,null,null,null,null,null,null,null,null,null,null,null,null,"Biodiesel",null,null,null,null,null,null,null,null,null,null,null,null,null,null,"kg CO2/kWh ",null,null,null,6.4689999999999998E-2,null,null,null,null,null,null,"Verbraucher",null,null,null,null,null,"IST",null,null,"U-Faktor",null,null,null,null,null,null,"CO2-Faktor",null,null,null,"Einsparung",null,null,null,null,null,null,null,null,null,null,null,null,"Strom [kWh]",null,null,null,null,null,"Kraftstoff [l]",null,null,null,null,null,null,"Wärme [kWh]"]
[null,null,null,{"$f":"D17","v":0},0,0,0,null,null,null,null,null,null,null,null,null,null,null,null,null,null,null,null,null,null,null,null,null,null,null,null,null,null,null,null,null,null,null,null,null,null,null,null,null,null,null,null,null,null,null,null,null,null,null,null,null,null,null,null,"Liter",null,null,null,null,null,"kWh/a",null,null,null,"kg CO2/kWh ",null,null,null,"t CO2/a"]
[null,null,null,{"$f":"D16","v":0},0,0,0,null,null,null,null,null,null,null,null,null,null,null,null,null,null,null,null,null,null,null,"Quelle:",null,"Informationsblatt CO2-Faktoren; Bundesamt für Wirtschaft und Ausfuhrkontrolle",null,null,null,null,null,null,null,null,null,null,null,null,null,null,null,null,null,null,null,null,null,null,null,1,"Hof-Truck Diesel",null,null,null,null,null,600,null,null,9.8000000000000007,null,null,{"$f":"BH34*BK34","v":5880},null,null,null,0.26600000000000001,null,null,null,{"$f":"BN34*BR34/1000","v":1.5640800000000001},null,null,null,null,null,{"$f":"C20","v":"Grünland - Ackerbau"},null,null,null,null,null,null,{"$f":"L20","v":0},null,null,null,null,null,{"$f":"R20","v":1800},null,null,null,null,null,null,{"$f":"X20","v":0}]
[null,null,null,{"$f":"D15","v":0},0,0,0,null,null,null,null,null,null,null,null,null,null,null,null,null,null,null,null,null,null,null,null,null,"https://www.bafa.de/SharedDocs/Downloads/DE/Energie/eew_infoblatt_co2_faktoren_2021.html",null,null,null,null,null,null,null,null,null,null,null,null,null,null,null,null,null,null,null,null,null,null,null,null,"E-Truck",null,null,null,null,null,null,null,null,"SOLL",null,null,3600,null,null,null,0.36599999999999999,null,null,null,{"$f":"BN35*BR35/1000","v":1.3175999999999999},null,null,null,null,null,{"$f":"C19","v":"Geflügelmast"},null,null,null,null,null,null,{"$f":"L19","v":0},null,null,null,null,null,{"$f":"R19","v":0},null,null,null,null,null,null,{"$f":"X19","v":0}]
[null,null,null,{"$f":"D14","v":0},0,0,0,null,null,null,null,null,null,null,null,null,null,null,null,null,null,null,null,null,null,null,null,null,null,null,null,null,null,null,null,null,null,null,null,null,null,null,null,null,null,null,null,null,null,null,null,null,null,null,null,null,null,null,null,null,null,null,null,null,null,null,null,null,null,null,null,null,null,null,null,null,null,null,null,{"$f":"C18","v":"Legehennen"},null,null,null,null,null,null,{"$f":"L18","v":0},null,null,null,null,null,{"$f":"R18","v":0},null,null,null,null,null,null,{"$f":"X18","v":0}]
[null,null,null,{"$f":"D13","v":0},0,0,0,null,null,null,null,null,null,null,null,null,null,null,null,null,null,null,null,null,null,null,"Handlungsempfehlungen:",null,null,null,null,null,null,null,null,null,null,null,null,null,null,null,null,null,null,null,null,null,null,null,null,null,2,"Futtermischwagen",null,null,null,null,null,6200,null,null,9.8000000000000007,null,null,{"$f":"BH37*BK37","v":60760.000000000007},null,null,null,0.26600000000000001,null,null,null,{"$f":"BN37*BR37/1000","v":16.162160000000004},null,null,null,null,null,{"$f":"C17","v":"Schweinemast Außenklima"},null,null,null,null,null,null,{"$f":"L17","v":0},null,null,null,null,null,{"$f":"R17","v":0},null,null,null,null,null,null,{"$f":"X17","v":0}]
[null,null,null,{"$f":"D12","v":0},0,0,0,null,null,null,null,null,null,null,null,null,null,null,null,null,null,null,null,null,null,null,null,null,"-","Energieeinsparung mit effizienten Anlagen die Klimabilanz",null,null,null,null,null,null,null,null,null,null,null,null,null,null,null,null,null,null,null,null,null,null,null,"Auto. Fütterung",null,null,null,null,null,null,null,null,"SOLL",null,null,25600,null,null,null,0.36599999999999999,null,null,null,{"$f":"BN38*BR38/1000","v":9.3696000000000002},null,null,null,null,null,{"$f":"C16","v":"Schweinemast "},null,null,null,null,null,null,{"$f":"L16","v":0},null,null,null,null,null,{"$f":"R16","v":0},null,null,null,null,null,null,{"$f":"X16","v":0}]
[null,null,null,{"$f":"D10","v":0},0,0,0,null,null,null,null,null,null,null,null,null,null,null,null,null,null,null,null,null,null,null,null,null,"-","Nutzung regenerativer Energieträger (Ökostrom, Biogas, …)",null,null,null,null,null,null,null,null,null,null,null,null,null,null,null,null,null,null,null,null,null,null,null,null,null,null,null,null,null,null,null,null,null,null,null,null,null,null,null,null,null,null,null,null,null,null,null,null,null,{"$f":"C15","v":"Ferkelaufzucht"},null,null,null,null,null,null,{"$f":"L15","v":1000},null,null,null,null,null,{"$f":"R15","v":0},null,null,null,null,null,null,{"$f":"X15","v":6000}]
[null,null,null,null,null,null,null,null,null,null,null,null,null,null,null,null,null,null,null,null,null,null,null,null,null,null,null,null,"-","Umstig auf eletrische Antriebe bei stationären Anlagen und mobilen Maschinen",null,null,null,null,null,null,null,null,null,null,null,null,null,null,null,null,null,null,null,null,null,null,null,"Einsparung",null,null,null,null,null,null,null,null,null,null,null,{"$f":"(BN34-BN35)+(BN37-BN38)","v":37440.000000000007},null,"kWh/a",null,null,null,null,null,{"$f":"(BV34-BV35)+(BV37-BV38)","v":7.0390400000000035},null,"t CO2/a",null,null,null,{"$f":"C14","v":"Ferkelerzeugung "},null,null,null,null,null,null,{"$f":"L14","v":2000},null,null,null,null,null,{"$f":"R14","v":0},null,null,null,null,null,null,{"$f":"X14","v":6000}]
[null,null,null,null,null,null,null,null,null,null,null,null,null,null,null,null,null,null,null,null,null,null,null,null,null,null,null,"Heizung",null,null,null,null,null,null,null,null,null,null,null,null,null,null,null,null,null,null,null,null,null,null,null,null,null,null,null,null,null,null,null,null,null,null,null,null,null,null,null,null,null,null,null,null,null,null,null,null,null,null,null,{"$f":"C13","v":"Rindermast"},null,null,null,null,null,null,{"$f":"L13","v":100},null,null,null,null,null,{"$f":"R13","v":0},null,null,null,null,null,null,{"$f":"X13","v":0}]
[null,null,null,null,null,null,null,null,null,null,null,null,null,null,null,null,null,null,null,null,null,null,null,null,null,null,null,null,"-","optimale Einstellung und Wartung der Heizanlagen, Dämmung von Heizungsrohren, ..",null,null,null,null,null,null,null,null,null,null,null,null,null,null,null,null,null,null,null,null,null,null,"PV-Eigennutzung",null,null,null,null,null,null,null,null,null,null,null,null,null,null,null,null,null,null,null,null,null,null,null,null,null,null,{"$f":"C12","v":"Milchvieh"},null,null,null,null,null,null,{"$f":"L12","v":9000},null,null,null,null,null,{"$f":"R12","v":0},null,null,null,null,null,null,{"$f":"X12","v":0}]
[null,null,null,null,null,null,null,null,null,null,null,null,null,null,null,null,null,null,null,null,null,null,null,null,null,null,null,null,"-","Energieträgerwechsel kann die CO2-Emissionen senken",null,null,null,null,null,null,null,null,null,null,null,null,null,null,null,null,null,null,null,null,null,null,null,null,null,null,null,null,null,null,null,null,null,null,null,"kWh/a",null,null,null,"kg CO2/kWh ",null,null,null,"t CO2/a",null,null,null,null,null,{"$f":"C11","v":"Sonstige Betriebszweige"},null,null,null,null,null,null,{"$f":"L11","v":0},null,null,null,null,null,{"$f":"R11","v":0},null,null,null,null,null,null,{"$f":"X11","v":0}]
[null,null,null,null,null,null,null,null,null,null,null,null,null,null,null,null,null,null,null,null,null,null,null,null,null,null,null,null,"-","angemessene Stall-/Abteiltemperaturen",null,null,null,null,null,null,null,null,null,null,null,null,null,null,null,null,null,null,null,null,null,null,null,"Solarstromeigennutzung PV1 Wohnhaus",null,null,null,null,null,null,null,null,null,null,null,2000,null,null,null,0.73199999999999998,null,null,null,{"$f":"BN44*BR44/1000","v":1.464},null,"t CO2/a",null,null,null,{"$f":"C10","v":"Privat / Haushalt"},null,null,null,null,null,null,{"$f":"L10","v":300},null,null,null,null,null,{"$f":"R10","v":200},null,null,null,null,null,null,{"$f":"X10","v":2000}]
[null,null,null,null,null,null,null,null,null,null,null,null,null,null,null,null,null,null,null,null,null,null,null,null,null,null,null,null,"-","baulicher Wärmeschutz / energetische Sanierung (Decken, Wände, Fenster, Türen, ..)",null,null,null,null,null,null,null,null,null,null,null,null,null,null,null,null,null,null,null,null,null,null,null,"Solarstromeigennutzung PV2 Stall",null,null,null,null,null,null,null,null,null,null,null,36567,null,null,null,0.73199999999999998,null,null,null,{"$f":"BN45*BR45/1000","v":26.767043999999999},null,"t CO2/a"]
[null,null,null,null,null,null,null,null,null,null,null,null,null,null,null,null,null,null,null,null,null,null,null,null,null,null,null,"Lüftungsanlagen"]
[null,null,null,null,null,null,null,null,null,null,null,null,null,null,null,null,null,null,null,null,null,null,null,null,null,null,null,null,"-","optimale Einstellung und Wartung der Lüftungsanlagen",null,null,null,null,null,null,null,null,null,null,null,null,null,null,null,null,null,null,null,null,null,null,"Einsparung von CO2-Emissionen, gesamt",null,null,null,null,null,null,null,null,null,null,null,null,null,null,null,null,null,null,null,null,{"$f":"BV29+BV44+BV40+BV45","v":41.521364000000005},null,"t CO2/a"]
[null,null,null,null,null,null,null,null,null,null,null,null,null,null,null,null,null,null,null,null,null,null,null,null,null,null,null,null,"-","Nutzung von Wärmerückgewinnungstechniken"]
[null,null,null,null,null,null,null,null,null,null,null,null,null,null,null,null,null,null,null,null,null,null,null,null,"CO2.1",null,null,"Technische Anlagen auf aktuellem Stand: Effiziente Motore, Pumpen, …",null,null,null,null,null,null,null,null,null,null,null,null,null,null,null,null,null,null,null,null,null,null,"CO2.2",null,null,null,null,null,null,null,null,null,null,null,null,null,null,null,null,null,null,null,null,null,null,null,null,null,"CO2.3"]

{"sheet":"Effizienzförderung","index":15,"n_rows":49,"n_cols":26,"rows_kept":49,"cut":false,"hidden":false,"merged":[[47,20,47,24],[48,14,48,21],[0,24,0,25],[0,5,0,6],[6,26,7,45],[3,5,4,25],[0,9,0,14]]}
["Energie-Check",null,null,null,null,{"$f":"Betriebsübersicht!F1","v":"V 1.0"},null,null,null,"Förderprogramme"]
[]
["Bundesprogramm zur Steigerung der Energieeffizienz und CO2-Einsparung in Landwirtschaft und"]
["Gartenbau",null,null,null,null,"https://www.ble.de/DE/Projektfoerderung/Foerderungen-Auftraege/Bundesprogramm-Energieeffizienz/bundesprogramm-energieeffizienz_node.html"]
["Förderung von "]
[null,"Beratung"]
[null,null,"Gefördert werden qualifizierte Beratungen zur Ermittlung des betriebsindividuellen "]
[null,null,null,"CO2-Einsparpotenzials"]
[null,null,"Fördermodalitäten: "]
[null,null,null,"80% der förderfähigen Netto-Beratungskosten, max. Zuwendung 7.000 € bei "]
[null,null,null,"betrieblichen Energiekosten von ≥ 10.000 €/a (≤ 10.000 € max. Zuschuss 4.500 €)"]
[null,"Einzelmaßnahmen"]
[null,null,"Förderfähig sind einzelne oder mehrere Investitionen in definierte technische,"]
[null,null,null,"Komponenten als Austausch, Nach- oder Umrüstung"]
[null,null,"Fördermodalitäten:"]
[null,null,null,"bis zu 30% der förderfähigen Netto-Investitionskosten, 3.000 € Mindestinvestitions-"]
[null,null,null,"ausgaben"]
[null,"Modernisierung und Neubau"]
[null,null,"Gefördert werden Maßnahmen an bestehenden Anlagen zur Kühlung, Belüftung und"]
[null,null,null,"Wärmeversorgung; Optimierung der Mess-, Steuer- und Regelungstechnik, "]
[null,null,null,"Umstellungen auf energieeffiziente Technologien und energetische Optimierung "]
[null,null,null,"von technischen Prozessen"]
[null,null,"Fördermodalitäten:"]
[null,null,null,"bis zu 30% der förderfähigen Investitionskosten, bis zu 40% bei Nutzung von "]
[null,null,null,"erneuerbaren Energien, maximal 700 € pro jährl. eingesparter Tonne CO2,"]
[null,null,null,"20.000 € Mindestinvestitionsausgaben"]
[null,"Regenerative Eigenenergieerzeugung"]
[null,null,"Gefördert werden Solarkollektoranlagen, Photovoltaikanlagen, Anlagen zum Einsatz von "]
[null,null,null,"Biomasse und kleine BGA, Wärmepumpen, Geothermie, Maßnahmen zur Ab- und "]
[null,null,null,"Fernwärmenutzung, Anlagen zur Speicherung und Wiederabgabe dieser Energien"]
[null,null,"Fördermodalitäten:"]
[null,null,null,"800 € pro jährl. eingesparter Tonne CO2, bis 40% der förderfähigen Investitionskosten"]
[null,"Mobile Maschinen und Geräte"]
[null,null,"Förderfähig sind die direkte Elektrifizierung von mobilen Motoren als Ersatz für "]
[null,null,null,"Verbrennungsmotoren, die Anschaffung oder die Umrüstung von Landmaschinen zur "]
[null,null,null,"Nutzung von Biomethan und kaltgepresstem Rapsöl aus Treibstoff"]
[null,null,"Fördermodalitäten:"]
[null,null,null,"700 € pro jährl. Eingesparter Tonne CO2, bis40% der förderfähigen Investitionskosten"]
[null,null,null,"(Differenz von Anschaffungspreis zu Referenzpreis einer konventionellen Maschine),"]
[null,null,null,"16.000 € Mindestinvestitionsausgaben (bei Um- & Nachrüstung 5.000 €)"]
[]
["CO2 - Einsparkonzepte von gelisteten Sachverständigen sind als Grundlage für folgende "]
["investive Maßnahmen vorzulegen:"]
[null,"-","Modernisierungen oder dem Neubau von energieeffizienten Anlagen"]
[null,"-","Regenerative Eigenenergieerzeugung und Abwärmenutzung zur betrieblichen Nutzung"]
[null,"-","Mobile Geräte und Maschinen, die regenerative Energien nutzen"]
[]
["Antrags- und Bewilligungsbehörde ist die Bundesanstalt für Landwirtschaft und Ernährung (BLE) ",null,null,null,null,null,null,null,null,null,null,null,null,null,null,null,null,null,null,null,"http://www.ble.de"]
["Antragsstellung erfolgt über Förderportal des Bundes easy-Online ",null,null,null,null,null,null,null,null,null,null,null,null,null,"https://foerderportal.bund.de ",null,null,null,null,null,null,null,null,null,null,"EF"]

{"sheet":"Quellen+Literatur","index":16,"n_rows":49,"n_cols":26,"rows_kept":49,"cut":false,"hidden":false,"merged":[[47,1,47,18],[29,1,29,18],[33,1,33,18],[36,1,36,18],[39,1,39,18],[43,1,43,18],[0,24,0,25],[0,5,0,6],[16,1,16,16],[19,1,19,12],[0,9,0,15]]}
["Energie-Check",null,null,null,null,{"$f":"Betriebsübersicht!F1","v":"V 1.0"},null,null,null,"Quellen und Literatur"]
[]
["KTBL Betriebsplanung Landwirtschaft, Trocknungs- und Aufbereitungskosten"]
[]
["KTBL-Heft 104, Energiebedarf in der Milchviehhaltung"]
[]
["KTBL-Heft 105, Energiebedarf in der Schweine- und Hühnerhaltung"]
[]
["KTBL-Heft 110, Strom speichern, Eigenverbrauch steigern"]
[]
["KTBL-Tagungsband, Mit Energie in die Zukunft - Strom, Wärme und kraftstoffe in der "]
[null,"Landwirtschaft"]
[]
["KTBL-Schrift, Energie vom Hof - Eigenversorgung mit Strom, Wärme und Kraftstoffen"]
[]
["KTBL Enrgiebedarfsrechner Tierhaltung"]
[null,"https://www.ktbl.de/webanwendungen/energiebedarfsrechner"]
[]
["KTBL Dieselbedarf"]
[null,"https://daten.ktbl.de/dieselbedarf/main.html"]
[]
["DLG Merkblatt 339, Dieseleinsparung bei der Pflanzenproduktion"]
[]
["Broschüre Energieeffizienzverbesserung in der Landwirtschaft der LWK Niedersachsen und NRW"]
[]
["Energieeffizienz in der Landwirtschaft - Leitfaden für die Praxis, LfULG Sachsen"]
[]
["LfL-Publikation, Energieeinsparung in der Milchviehhaltung - Beleuchtung und "]
[null,"Beleuchtungssysteme"]
[null,"https://www.lfl.bayern.de/publikationen/informationen/040274/index.php"]
[]
["LfL-Publikation, Energieeinsparung in der Milchviehhaltung - Milchgewinnung"]
[null,"Vakuumversorgung, Kühlung, Reinigung"]
[null,"https://www.lfl.bayern.de/publikationen/informationen/040273/index.php"]
[]
["LfL-Publikation, Energieeinsparung in der Schweinehaltung - Lüftung"]
[null,"https://www.lfl.bayern.de/publikationen/informationen/040275/index.php"]
[]
["LfL-Publikation, Energieeinsparung in der Schweinehaltung - Wärmetauscher"]
[null,"https://www.lfl.bayern.de/publikationen/informationen/040276/index.php"]
[]
["LfL-Publikation, Energieeinsparung und Eigenstromnutzung in der Milchviehhaltung, Nutzung "]
[null,"von Solarstrom für die Erzeugung von Eiswasser zum Abkühlen der Milch"]
[null,"https://www.lfl.bayern.de/publikationen/informationen/132711/index.php"]
[]
["LfL-Publikation, Enerieeffizienz und Solarstromnutzung in der Landwirtschaft, Beispielhafte "]
[null,"Beratungsempfehlungen - Energieeinsparlösungen auf landwirtschftlichen Praxisbetrieben"]
[null,"https://www.lfl.bayern.de/publikationen/informationen/142325/index.php"]
[null,null,null,null,null,null,null,null,null,null,null,null,null,null,null,null,null,null,null,null,null,null,null,null,null,"Q+L"]

{"sheet":"Fragebogen","index":17,"n_rows":49,"n_cols":52,"rows_kept":49,"cut":false,"hidden":false,"merged":[[0,35,0,45],[25,36,25,51],[29,36,29,51],[34,32,34,51],[5,27,5,29],[11,34,11,51],[19,31,19,38],[20,31,20,38],[21,31,21,38],[20,43,20,51],[21,43,21,51],[46,1,46,25],[45,27,45,51],[46,27,46,51],[43,42,43,43],[36,32,36,51],[43,16,43,17],[42,12,42,13],[42,14,42,15],[42,16,42,17],[45,1,45,25],[43,6,43,7],[43,8,43,9],[43,10,43,11],[43,12,43,13],[43,14,43,15],[48,24,48,25],[0,31,0,32],[0,50,0,51],[4,27,4,29],[42,32,42,33],[42,34,42,35],[42,36,42,37],[42,38,42,39],[42,40,42,41],[42,42,42,43],[43,32,43,33],[43,34,43,35],[43,36,43,37],[43,38,43,39],[43,40,43,41],[0,24,0,25],[0,5,0,6],[42,6,42,7],[42,8,42,9],[42,10,42,11],[8,8,8,25],[16,5,16,12],[17,5,17,12],[18,5,18,12],[17,17,17,25],[18,17,18,25],[22,10,22,25],[26,10,26,25],[31,6,31,25],[35,6,35,25],[36,6,36,25],[0,9,0,16]]}
["Energie-Check",null,null,null,null,{"$f":"Betriebsübersicht!F1","v":"V 1.0"},null,null,null,"Fragebogen für Landwirte",null,null,null,null,null,null,null,null,null,null,null,null,null,null,null,null,"Energie-Check",null,null,null,null,{"$f":"Betriebsübersicht!F1","v":"V 1.0"},null,null,null,"Fragebogen für Berater an den ÄELF"]
[]
["Zu Welchen Betriesschwerpunkten bzw. zu welchem Themenbereich wünschen Sie Beratung?",null,null,null,null,null,null,null,null,null,null,null,null,null,null,null,null,null,null,null,null,null,null,null,null,null,"Wie viele Anfragen zur Energieeinsparung und zur Eigennutzung selbst erzeugter"]
[null,"X",null,"Nuztung regenerativer Energien",null,null,null,null,null,null,null,null,null,null,null,null,null,"Energieeinsparung",null,null,null,null,null,null,null,null,"regenerativer Energien sind seit Jahresbeginn am AELF eingegangen?"]
[null,"Betriebszweige",null,null,null,null,null,null,null,null,null,null,null,null,null,null,null,null,null,null,null,null,null,null,null,null,null,null,null,null,null,"Anfragen zur Energieeinsparung"]
[null,"X",null,"Pflanzliche Erzeugung",null,null,null,null,null,null,null,null,null,null,null,null,null,null,null,null,null,null,null,null,null,null,null,null,null,null,null,"Anfragen zur Nuztung regenerativer Energien"]
[null,null,null,"X",null,"Dieseleinsparung"]
[null,null,null,null,null,"Lagerung, Trocknung, ...",null,null,null,null,null,null,null,null,null,null,null,null,null,null,null,null,null,null,null,null,"Welche Schwerpunkte hatten die Anfragen?"]
[null,null,null,null,null,"Sonstige",null,null,null,null,null,null,null,null,null,null,null,null,null,null,null,null,null,null,null,null,null,null,null,"Pflanzliche Erzeugung"]
[null,"X",null,"Tierische Erzeugung",null,null,null,null,null,null,null,null,null,null,null,"Produktionstechnik",null,null,null,null,null,null,null,null,null,null,null,null,null,null,null,"Dieseleinsparung"]
[null,null,null,"X",null,"Milchviehhaltung",null,null,null,null,null,null,null,null,null,"X",null,"Melk-, Kühltechnik",null,null,null,null,null,null,null,null,null,null,null,null,null,"Lagerung, Trocknung, ..."]
[null,null,null,null,null,"Rindermast",null,null,null,null,null,null,null,null,null,"X",null,"Fütterungstechnik",null,null,null,null,null,null,null,null,null,null,null,null,null,"Sonstige"]
[null,null,null,null,null,"Ferkelerzeugung. -aufzucht",null,null,null,null,null,null,null,null,null,null,null,"Entmistung",null,null,null,null,null,null,null,null,null,null,null,"Tierische Erzeugung",null,null,null,null,null,null,null,null,null,null,null,"Produktionstechnik"]
[null,null,null,null,null,"Schweinemast",null,null,null,null,null,null,null,null,null,"X",null,"Beleuchtung",null,null,null,null,null,null,null,null,null,null,null,null,null,"Milchviehhaltung",null,null,null,null,null,null,null,null,null,null,null,"Melk-, Kühltechnik"]
[null,null,null,null,null,"Legehennenhaltung",null,null,null,null,null,null,null,null,null,null,null,"Lüftung",null,null,null,null,null,null,null,null,null,null,null,null,null,"Rindermast",null,null,null,null,null,null,null,null,null,null,null,"Fütterungstechnik"]
[null,null,null,null,null,"Geflügelmast",null,null,null,null,null,null,null,null,null,null,null,"Wärmeerzeugung/-verteilung",null,null,null,null,null,null,null,null,null,null,null,null,null,"Ferkelerzeugung. -aufzucht",null,null,null,null,null,null,null,null,null,null,null,"Entmistung"]
[null,null,null,null,null,null,null,null,null,null,null,null,null,null,null,null,null,"Sanierung/Dämmung",null,null,null,null,null,null,null,null,null,null,null,null,null,"Schweinemast",null,null,null,null,null,null,null,null,null,null,null,"Beleuchtung"]
[null,null,null,null,null,null,null,null,null,null,null,null,null,null,null,null,null,"Umrüstung auf LED",null,null,null,null,null,null,null,null,null,null,null,null,null,"Legehennenhaltung",null,null,null,null,null,null,null,null,null,null,null,"Lüftung"]
[null,null,null,null,null,null,null,null,null,null,null,null,null,null,null,null,null,null,null,null,null,null,null,null,null,null,null,null,null,null,null,"Geflügelmast",null,null,null,null,null,null,null,null,null,null,null,"Wärmeerzeugung/-verteilung"]
[null,"X",null,"Erneuerbare Energien (Eigenenergieerzeugung, Energiespeichertechnologien)",null,null,null,null,null,null,null,null,null,null,null,null,null,null,null,null,null,null,null,null,null,null,null,null,null,null,null,null,null,null,null,null,null,null,null,null,null,null,null,"Sanierung/Dämmung"]
[null,null,null,"X",null,"Energieeigenerzeugung"]
[null,null,null,null,null,"Energiespeichertechnologien"]
[null,null,null,null,null,"Anmerkungen",null,null,null,null,"Solarstromnutzung",null,null,null,null,null,null,null,null,null,null,null,null,null,null,null,null,null,null,"Erneuerbare Energien (Eigenenergieerzeugung, Energiespeichertechnologien)"]
[null,"X",null,"Mobilität",null,null,null,null,null,null,null,null,null,null,null,null,null,null,null,null,null,null,null,null,null,null,null,null,null,null,null,"Energieeigenerzeugung"]
[null,null,null,"X",null,"Elektrifizierung mobiler Maschinen (E-Hoftruck + Akku, …)",null,null,null,null,null,null,null,null,null,null,null,null,null,null,null,null,null,null,null,null,null,null,null,null,null,"Energiespeichertechnologien"]
[null,null,null,null,null,"Maschinen und Geräte auf Basis regenerativer Antriebstechnologien",null,null,null,null,null,null,null,null,null,null,null,null,null,null,null,null,null,null,null,null,null,null,null,null,null,"Anmerkungen"]
[null,null,null,null,null,"Anmerkungen",null,null,null,null,null,null,null,null,null,null,null,null,null,null,null,null,null,null,null,null,null,null,null,"Mobilität"]
[null,"X",null,"Förderprogramme/-möglichkeiten",null,null,null,null,null,null,null,null,null,null,null,null,null,null,null,null,null,null,null,null,null,null,null,null,null,null,null,"Elektrifizierung mobiler Maschinen (E-Hoftruck + Akku, …)"]
[null,null,null,null,null,null,null,null,null,null,null,null,null,null,null,null,null,null,null,null,null,null,null,null,null,null,null,null,null,null,null,"Maschinen und Geräte auf Basis regenerativer Antriebstechnologien"]
["Haben Sie Kontakt zu einem AELF oder einer Beratungsorganisation aufgenommen?",null,null,null,null,null,null,null,null,null,null,null,null,null,null,null,null,null,null,null,null,null,null,null,null,null,null,null,null,null,null,"Anmerkungen"]
[null,null,null,"Ja",null,null,"Welches AELF bzw. welche Beratungsorganisation",null,null,null,null,null,null,null,null,null,null,null,null,null,null,null,null,null,null,null,null,null,null,"Förderprogramme/-möglichkeiten"]
[]
[null,null,null,null,null,null,null,null,null,null,null,null,null,null,null,null,null,null,null,null,null,null,null,null,null,null,"Konnten die Anfragen durch Mitarbeiter des AELF bearbeitet werden?"]
["Konnten Ihre Fragen beantwortet werden?",null,null,null,null,null,null,null,null,null,null,null,null,null,null,null,null,null,null,null,null,null,null,null,null,null,null,null,null,"Ja",null,null,"Wie hoch war der durchschnittliche Zeitaufwand?"]
[null,null,null,null,null,null,"Welche Schwerpunkte?"]
[null,null,null,"Ja",null,null,null,null,null,null,null,null,null,null,null,null,null,null,null,null,null,null,null,null,null,null,null,null,null,"Nein",null,null,"Weitervermittlung an Baratungsorganisation?"]
[null,null,null,"Nein"]
[]
["Wie sehen Sie das Potenzial eines webbasierten Energiechecks, mit dessen Hilfe Sie sich",null,null,null,null,null,null,null,null,null,null,null,null,null,null,null,null,null,null,null,null,null,null,null,null,null,"Wie sehen Sie das Potenzial eines webbasierten Energiechecks, mit dessen Hilfe sich der/die"]
["einen ersten Überblick über den eigenen Energieverbrauch, Energieeinsparmöglichkeiten,",null,null,null,null,null,null,null,null,null,null,null,null,null,null,null,null,null,null,null,null,null,null,null,null,null,"Betriebsleiter/in eigenständig einen ersten Überblick über den eigenen Energieverbrauch,"]
["Fördermöglichkeiten, Nutzung und Speicherung selbst erzeugter regenerativer Energien",null,null,null,null,null,null,null,null,null,null,null,null,null,null,null,null,null,null,null,null,null,null,null,null,null,"Energieeinsparmöglichkeiten, Fördermöglichkeiten, Nutzung und Speicherung selbst erzeugter"]
["verschaffen können?",null,null,null,null,null,null,null,null,null,null,null,null,null,null,null,null,null,null,null,null,null,null,null,null,null,"regenerativer Energien verschaffen kann?"]
[null,null,null,"positiv",null,null,1,null,2,null,3,null,4,null,5,null,6,null,null,"negativ",null,null,null,null,null,null,null,null,null,"positiv",null,null,1,null,2,null,3,null,4,null,5,null,6,null,null,"negativ"]
[]
["Eigene Anmerkungen:",null,null,null,null,null,null,null,null,null,null,null,null,null,null,null,null,null,null,null,null,null,null,null,null,null,"Eigene Anmerkungen:"]
[]
[]
[null,"Im Registerblatt \"Druck\" kann eine PDF-Datei des Fragebogens erzeugt und an die LfL übermittelt werdenwerden.",null,null,null,null,null,null,null,null,null,null,null,null,null,null,null,null,null,null,null,null,null,null,null,null,null,"Im Registerblatt \"Druck\" kann eine PDF-Datei des Fragebogens erzeugt und an die LfL übermittelt werdenwerden."]
[null,null,null,null,null,null,null,"weiter Zum Registerblatt \"Druck\"",null,null,null,null,null,null,null,null,null,null,null,null,null,null,null,null,"F-LW",null,null,null,null,null,null,null,null,"weiter Zum Registerblatt \"Druck\"",null,null,null,null,null,null,null,null,null,null,null,null,null,null,null,null,null,"F-B"]

{"sheet":"Druck","index":18,"n_rows":49,"n_cols":32,"rows_kept":49,"cut":false,"hidden":false,"merged":[[40,19,42,25],[40,3,41,17],[42,3,43,17],[0,5,0,6],[0,24,0,25],[0,9,0,13]]}
["Energie-Check",null,null,null,null,{"$f":"Betriebsübersicht!F1","v":"V 1.0"},null,null,null,"Druckseite"]
[]
["Bitte Seiten die gedruckt werden sollen hier auswählen:"]
[null,null,null,null,null,null,null,null,null,null,null,null,null,null,null,null,null,null,null,null,"Seitenauswahl"]
[null,null,null,null,null,null,null,null,null,null,null,null,null,null,null,null,null,null,null,null,1,2,3,4,5]
[]
["Dateneingabe",null,null,null,null,null,null,null,null,null,null,null,null,null,null,null,null,null,null,null,null,null,null,null,null,null,"Betriebsübersicht",false]
[null,null,null,null,null,null,null,null,null,null,null,null,null,null,null,null,null,null,null,null,null,null,null,null,null,null,null,"A1:Z49"]
[null,null,null,null,null,null,null,null,null,null,null,null,null,null,null,null,null,null,null,null,null,null,null,null,null,null,"Energieeinsatz",false,false,false]
[null,null,null,null,null,null,null,null,null,null,null,null,null,null,null,null,null,null,null,null,null,null,null,null,null,null,null,"A1:Z49","AA1:AZ49","BA1:BZ49"]
[null,null,null,null,null,null,null,null,null,null,null,null,null,null,null,null,null,null,null,null,null,null,null,null,null,null,"Abgrenzung BZ",false]
[null,null,null,null,null,null,null,null,null,null,null,null,null,null,null,null,null,null,null,null,null,null,null,null,null,null,null,"A1:Z49"]
["Ergebnisseiten"]
[null,"Rinderhaltung",null,null,null,null,null,null,null,null,null,null,null,null,null,null,null,null,null,null,null,null,null,null,null,null,"MV",false,false,false,false,false]
[null,null,null,null,null,null,null,null,null,null,null,null,null,null,null,null,null,null,null,null,null,null,null,null,null,null,null,"A1:Z49","AA1:AZ49","BA1:BZ49","CA1:CZ49","DA1:DZ49"]
[null,null,null,null,null,null,null,null,null,null,null,null,null,null,null,null,null,null,null,null,null,null,null,null,null,null,"RM",false,false,false,false,false]
[null,null,null,null,null,null,null,null,null,null,null,null,null,null,null,null,null,null,null,null,null,null,null,null,null,null,null,"A1:Z49","AA1:AZ49","BA1:BZ49","CA1:CZ49","DA1:DZ49"]
[null,"Schweinhaltung",null,null,null,null,null,null,null,null,null,null,null,null,null,null,null,null,null,null,null,null,null,null,null,null,"FE",true,true,false,false,false]
[null,null,null,null,null,null,null,null,null,null,null,null,null,null,null,null,null,null,null,null,null,null,null,null,null,null,null,"A1:Z49","AA1:AZ49","BA1:BZ49","CA1:CZ49","DA1:DZ49"]
[null,null,null,null,null,null,null,null,null,null,null,null,null,null,null,null,null,null,null,null,null,null,null,null,null,null,"FA",true,true,false,false,false]
[null,null,null,null,null,null,null,null,null,null,null,null,null,null,null,null,null,null,null,null,null,null,null,null,null,null,null,"A1:Z49","AA1:AZ49","BA1:BZ49","CA1:CZ49","DA1:DZ49"]
[null,null,null,null,null,null,null,null,null,null,null,null,null,null,null,null,null,null,null,null,null,null,null,null,null,null,"MS",false,false,false,false,false]
[null,null,null,null,null,null,null,null,null,null,null,null,null,null,null,null,null,null,null,null,null,null,null,null,null,null,null,"A1:Z49","AA1:AZ49","BA1:BZ49","CA1:CZ49","DA1:DZ49"]
[null,null,null,null,null,null,null,null,null,null,null,null,null,null,null,null,null,null,null,null,null,null,null,null,null,null,"MS A",false,false,false,false]
[null,null,null,null,null,null,null,null,null,null,null,null,null,null,null,null,null,null,null,null,null,null,null,null,null,null,null,"A1:Z49","AA1:AZ49","BA1:BZ49","CA1:CZ49"]
[null,"Geflügelhaltung",null,null,null,null,null,null,null,null,null,null,null,null,null,null,null,null,null,null,null,null,null,null,null,null,"LH",false,false,false]
[null,null,null,null,null,null,null,null,null,null,null,null,null,null,null,null,null,null,null,null,null,null,null,null,null,null,null,"A1:Z49","AA1:AZ49","BA1:BZ49"]
[null,null,null,null,null,null,null,null,null,null,null,null,null,null,null,null,null,null,null,null,null,null,null,null,null,null,"GM",false,false,false,false]
[null,null,null,null,null,null,null,null,null,null,null,null,null,null,null,null,null,null,null,null,null,null,null,null,null,null,null,"A1:Z49","AA1:AZ49","BA1:BZ49","CA1:CZ49"]
[null,"Futter-/Marktfruchtbau",null,null,null,null,null,null,null,null,null,null,null,null,null,null,null,null,null,null,null,null,null,null,null,null,"G-A",false,false]
[null,null,null,null,null,null,null,null,null,null,null,null,null,null,null,null,null,null,null,null,null,null,null,null,null,null,null,"A1:Z49","AA1:AZ49"]
[null,"Energieeigennutzung",null,null,null,null,null,null,null,null,null,null,null,null,null,null,null,null,null,null,null,null,null,null,null,null,"PV",false,false]
[null,null,null,null,null,null,null,null,null,null,null,null,null,null,null,null,null,null,null,null,null,null,null,null,null,null,null,"A1:Z49","AA1:AZ49"]
[null,"Klimawirkung",null,null,null,null,null,null,null,null,null,null,null,null,null,null,null,null,null,null,null,null,null,null,null,null,"CO2",false,false,false]
[null,null,null,null,null,null,null,null,null,null,null,null,null,null,null,null,null,null,null,null,null,null,null,null,null,null,null,"A1:Z49","AA1:AZ49","BA1:BZ49"]
[]
["Infoseiten",null,null,null,null,null,null,null,null,null,null,null,null,null,null,null,null,null,null,null,null,null,null,null,null,null,"Effizienzförderung",false]
[null,null,null,null,null,null,null,null,null,null,null,null,null,null,null,null,null,null,null,null,null,null,null,null,null,null,null,"A1:Z49"]
[null,null,null,null,null,null,null,null,null,null,null,null,null,null,null,null,null,null,null,null,null,null,null,null,null,null,"Quellen+Literatur",false]
[null,null,null,null,null,null,null,null,null,null,null,null,null,null,null,null,null,null,null,null,null,null,null,null,null,null,null,"A1:Z49"]
[null,null,null,"Durch betätigen des Buttons \"Druck Fragebogen\"  oder \"Druck\" werden PDF-Dateien erzeugt.",null,null,null,null,null,null,null,null,null,null,null,null,null,null,null,"Vor betätigen des Druckbuttons muss mindestens eine Seite ausgewählt werden."]
[]
[null,null,null,"Diese werden im selben Verzeichnis, in dem auch die Excel Datei    \"E-Check\" liegt, gespeichert.",null,null,null,null,null,null,null,null,null,null,null,null,null,null,null,null,null,null,null,null,null,null,null,"josef.neiber@lfl.bayern.de"]
[]
[]
[]
[]
[]
[null,null,null,null,null,null,null,null,null,null,null,"Bitte PDF-Datei als Anhang einfügen.",null,null,null,null,null,null,null,null,null,null,null,null,null,"D"]